Workbook

Sheet START
A1: =muni -> LIM353 Molemole

Sheet Instructions
D2: 2020
X4: Yes
X5: No
W7: Type of Entities Range: | X7: Parent Municipality
X8: Consolidated Information
W10: Date linked | X10: 16
W11: Date | X11: =VLOOKUP(X10,W39:X55,2) -> Q4 Fourth Quarter | Y11: 2013-08-01
W19: MTREF Range: | X19: 2008
X20: 2009
X21: 2010
X22: 2011
X23: 2012
X24: 2013
X25: 2014
X26: 2015
X27: 2016
X28: 2017
X29: 2018
X30: 2019
X31: 2020
X32: 2021
X33: 2022
W34: MTREF Linked:
W35: MTREF: | X35: 8
X36: =INDEX(X19:X33,X35,1) -> 2015
W37: Fin Year:
X38: =MTREF&"/"&RIGHT(MTREF,2)+1 -> 2015/16
V39: Date/type of report | W39: 1 | X39: M01 July
W40: 2 | X40: M02 August
W41: 3 | X41: M03 September
W42: 4 | X42: M04 October
W43: 5 | X43: M05 November
W44: 6 | X44: M06 December
W45: 7 | X45: M07 January
W46: 8 | X46: M08 February
W47: 9 | X47: M09 March
W48: 10 | X48: M10 April
W49: 11 | X49: M11 May
W50: 12 | X50: M12 June
W51: 13 | X51: Q1 First Quarter
W52: 14 | X52: Q2 Second Quarter
W53: 15 | X53: Q3 Third Quarter
W54: 16 | X54: Q4 Fourth Quarter
W55: 17 | X55: Mid-Year Assessment

Sheet Template names (hidden)
A1: Common sheet headings
A2: Head1 | B2: =HLOOKUP(MTREF,Headings,2) -> 2014/15 | C2: Prior year -1
A3: Head2 | B3: =HLOOKUP(MTREF,Headings,5) -> Budget Year 2015/16 | C3: Year of approved budget
A4: Head2A | B4: =HLOOKUP(MTREF,Headings,4) -> 2015/16 | C4: Approved budget year
A5: Head3 | B5: =HLOOKUP(MTREF,Headings,3) -> 2015/16 Medium Term Revenue & Expenditure Framework | C5: MTREF header name
A6: Head5 | B6: Audited Outcome
A7: Head5A | B7: Outcome
A8: Head5B | B8: Pre-audit outcome
A9: Head6 | B9: Original Budget
A10: Head7 | B10: Adjusted Budget
A11: Head8 | B11: Full Year Forecast
A12: Head9 | B12: =HLOOKUP(MTREF,Headings,5) -> Budget Year 2015/16 | C12: 1st year of MTREF | D12: Year1
A13: Head10 | B13: =HLOOKUP(MTREF,Headings,6) -> Budget Year +1 2016/17 | C13: 2nd year of MTREF | D13: Year2
A14: Head11 | B14: =HLOOKUP(MTREF,Headings,7) -> Budget Year +2 2017/18 | C14: 3rd year of MTREF | D14: Year3
A15: Head12 | B15: Forecast 2010/11 | D15: Year4
A16: Head13 | B16: Forecast 2011/12 | D16: Year5
A17: Head14 | B17: Forecast 2012/13 | D17: Year6
A18: Head15 | B18: Forecast 2013/14 | D18: Year7
A19: Head16 | B19: Forecast 2014/15 | D19: Year8
A20: Head17 | B20: Forecast 2015/16 | D20: Year9
A21: Head18 | B21: Forecast 2016/17 | D21: Year10
A22: Head19 | B22: Forecast 2017/18 | D22: Year11
A23: Head20 | B23: Forecast 2018/19 | D23: Year12
A24: Head21 | B24: Forecast 2019/20 | D24: Year13
A25: Head22 | B25: Forecast 2020/21 | D25: Year14
A26: Head23 | B26: Forecast 2021/22 | D26: Year15
A27: Head24 | B27: Description | D27: Desc
A28: Head25 | B28: Schedule of funding diligence | D28: fdil
A29: Head26 | B29: Vote Description | D29: VDesc
A30: Head27 | B30: Ref
A31: Head27a | B31: References
A32: Head28 | B32: Surplus/ (Deficit) for the year | D32: Result
A33: Head29 | B33: Annual target 2007/08
A34: Head30 | B34: Revised target 2007/08
A35: Head31 | B35: Quarter ended 30 September
A36: Head32 | B36: Quarter ended 31 December
A37: Head33 | B37: Quarter ended 31 March
A38: Head34 | B38: Quarter ended 30 June
A39: Head35 | B39: Variance explanation
A40: Head36 | B40: YTD Actual 31 Dec
A41: Head37 | B41: YTD Budget 31 Dec
A42: Head38 | B42: Monthly actual
A43: Head39 | B43: YearTD actual
A44: Head40 | B44: YearTD budget
A45: Head41 | B45: YTD variance
A46: Head42 | B46: Surplus/ (Deficit) for the yr/period
A47: Head43 | B47: =Head3&" Summary" -> 2015/16 Medium Term Revenue & Expenditure Framework Summary
A48: Head44 | B48: 1996 Census
A49: Head45 | B49: 2001 Census
A50: Head46 | B50: - Adjustments Budget - Month YYYY
A51: Head47 | B51: Previous target year to complete
A52: Head48 | B52: Present value
A53: Head49 | B53: Virement
A54: Head50 | B54: Other Adjusts.
A55: Head51 | B55: Accum. Funds
A56: Head52 | B56: Multi-year capital
A57: Head53 | B57: Unfore. Unavoid.
A58: Head54 | B58: Prior Adjusted
A59: Head55 | B59: Nat. or Prov. Govt
A60: Head56 | B60: Total Adjusts.
A61: Head57 | B61: =date -> Q4 Fourth Quarter
A62: Head58 | B62: Parent muni.
A63: Head59 | B63: Downward adjusts
A64: Head60 | B64: Month | C64: Report header part name | D64: =MONTH(date) -> 
A65: SFPerf1 | B65: Budgeted Financial Performance
A66: SFPerf2 | B66: Forecast Financial Performance
A67: SFPos1 | B67: Budgeted Financial Position
A68: SFPos2 | B68: Forecast Financial Position
A69: Cash1 | B69: Budget Cash Flow
A70: Cash2 | B70: Forecast Cash Flow
A71: RandM | B71: Expenditure includes repairs & maintenance of R'000
A72: Standard nomenclature
A73: Muni | B73: ='Lookup and lists'!B27 -> LIM353 Molemole
A74: Municipal Entities | B74: 2 | C74: Type of report: | D74: 3
A75: =IF((MuniEntities=1)*(MuniType=2),"YES","NO") -> NO | B75: Does this municipality have entities (consolidated budget and entity budgets required)? YES/NO
A76: s71 (Monthly Mayor report) schedules and charts
A77: S71sum | B77: =IF(Consolques="YES",E77,F77) -> Table C1 Monthly Budget Statement Summary | D77: Table C1 | E77: =D77&"Consolidated Monthly Budget Statement Summary" -> Table C1 Consolidated Monthly Budget Statement Summary | F77: =D77&"Monthly Budget Statement Summary" -> Table C1 Monthly Budget Statement Summary
A78: S71C | B78: Table C3 Monthly Budget Statement - Financial Performance (revenue and expenditure by municipal vote) | D78: Table C3 | E78: =D78&"Consolidated Monthly Budget Statement - Financial Performance (revenue and expenditure by municipal vote) " -> Table C3 Consolidated Monthly Budget Statement - Financial Performance (revenue and expenditure by municipal vote) | F78: =D78&"Monthly Budget Statement - Financial Performance (revenue and expenditure by municipal vote)" -> Table C3 Monthly Budget Statement - Financial Performance (revenue and expenditure by municipal vote)
A79: S71A | B79: =IF(Consolques="YES",E79,F79) -> Table C2 Monthly Budget Statement - Financial Performance (standard classification) | D79: Table C2 | E79: =D79&"Consolidated Monthly Budget Statement - Financial Performance (standard classification) " -> Table C2 Consolidated Monthly Budget Statement - Financial Performance (standard classification) | F79: =D79&"Monthly Budget Statement - Financial Performance (standard classification)" -> Table C2 Monthly Budget Statement - Financial Performance (standard classification)
A80: S71B | B80: =IF(Consolques="YES",E80,F80) -> Table C4 Monthly Budget Statement - Financial Performance (revenue and expenditure) | D80: Table C4 | E80: =D80&"Consolidated Monthly Budget Statement - Financial Performance (revenue and expenditure) " -> Table C4 Consolidated Monthly Budget Statement - Financial Performance (revenue and expenditure) | F80: =D80&"Monthly Budget Statement - Financial Performance (revenue and expenditure)" -> Table C4 Monthly Budget Statement - Financial Performance (revenue and expenditure)
A81: S71D | B81: =IF(Consolques="YES",E81,F81) -> Table C5 Monthly Budget Statement - Capital Expenditure (municipal vote, standard classification and funding) | D81: Table C5 | E81: =D81&"Consolidated Monthly Budget Statement - Capital Expenditure (municipal vote, standard classification and funding " -> Table C5 Consolidated Monthly Budget Statement - Capital Expenditure (municipal vote, standard classification and funding | F81: =D81&"Monthly Budget Statement - Capital Expenditure (municipal vote, standard classification and funding)" -> Table C5 Monthly Budget Statement - Capital Expenditure (municipal vote, standard classification and funding)
A82: S71E | B82: Table C6 Monthly Budget Statement - Financial Position | D82: Table C6 | E82: =D82&"Consolidated Monthly Budget Statement - Financial Position " -> Table C6 Consolidated Monthly Budget Statement - Financial Position | F82: =D82&"Monthly Budget Statement - Financial Position" -> Table C6 Monthly Budget Statement - Financial Position
A83: S71F | B83: Table C7 Monthly Budget Statement - Cash Flow | D83: Table C7 | E83: =D83&"Consolidated Monthly Budget Statement - Cash Flow " -> Table C7 Consolidated Monthly Budget Statement - Cash Flow | F83: =D83&"Monthly Budget Statement - Cash Flow " -> Table C7 Monthly Budget Statement - Cash Flow
A84: S71G | B84: =D84&"Material variance explanations " -> Supporting Table SC1 Material variance explanations | D84: Supporting Table SC1
A85: S71H | B85: =D85&"Monthly Budget Statement - performance indicators " -> Supporting Table SC2 Monthly Budget Statement - performance indicators | D85: Supporting Table SC2
A86: S71I | B86: =D86&"Monthly Budget Statement - aged debtors" -> Supporting Table SC3 Monthly Budget Statement - aged debtors | D86: Supporting Table SC3
A87: S71J | B87: =D87&"Monthly Budget Statement - aged creditors " -> Supporting Table SC4 Monthly Budget Statement - aged creditors | D87: Supporting Table SC4
A88: S71K | B88: =D88&"Monthly Budget Statement - investment portfolio " -> Supporting Table SC5 Monthly Budget Statement - investment portfolio | D88: Supporting Table SC5
A89: S71L | B89: =D89&"Monthly Budget Statement - transfers and grant receipts " -> Supporting Table SC6 Monthly Budget Statement - transfers and grant receipts | D89: Supporting Table SC6
A90: S71M | B90: =D90&" Monthly Budget Statement - transfers and grant expenditure " -> Supporting Table SC7(1) Monthly Budget Statement - transfers and grant expenditure | D90: Supporting Table SC7(1)
A91: S71N | B91: =D91&"Monthly Budget Statement - councillor and staff benefits " -> Supporting Table SC8 Monthly Budget Statement - councillor and staff benefits | D91: Supporting Table SC8
A92: S71O | B92: =D92&"Monthly Budget Statement - actuals and revised targets for cash receipts" -> Supporting Table SC9 Monthly Budget Statement - actuals and revised targets for cash receipts | D92: Supporting Table SC9
A93: S71P | B93: =IF(Consolques="YES",E93,F93) -> NOT REQUIRED - municipality does not have entities or this is the parent municipality's budget | D93: Supporting Table SC10 | E93: =D93&"Monthly Budget Statement - Parent Municipality Financial Performance (revenue and expenditure) " -> Supporting Table SC10 Monthly Budget Statement - Parent Municipality Financial Performance (revenue and expenditure) | F93: NOT REQUIRED - municipality does not have entities or this is the parent municipality's budget
A94: S71Q | B94: NOT REQUIRED - municipality does not have entities or this is the parent municipality's budget | D94: Supporting Table SC11 | E94: =D94&"Monthly Budget Statement - summary of municipal entities" -> Supporting Table SC11 Monthly Budget Statement - summary of municipal entities | F94: NOT REQUIRED - municipality does not have entities or this is the parent municipality's budget
A95: S71R | B95: Supporting Table SC12 Monthly Budget Statement - capital expenditure trend | D95: Supporting Table SC12 | E95: =D95&"Consolidated Monthly Budget Statement - capital expenditure trend " -> Supporting Table SC12 Consolidated Monthly Budget Statement - capital expenditure trend | F95: =D95&"Monthly Budget Statement - capital expenditure trend" -> Supporting Table SC12 Monthly Budget Statement - capital expenditure trend
A96: S71Sa | B96: Supporting Table SC13a Monthly Budget Statement - capital expenditure on new assets by asset class | D96: Supporting Table SC13a | E96: =D96&"Consolidated Monthly Budget Statement - capital expenditure on new assets by asset class" -> Supporting Table SC13a Consolidated Monthly Budget Statement - capital expenditure on new assets by asset class | F96: =D96&"Monthly Budget Statement - capital expenditure on new assets by asset class" -> Supporting Table SC13a Monthly Budget Statement - capital expenditure on new assets by asset class
A97: S71Sb | B97: Supporting Table SC13b Monthly Budget Statement - capital expenditure on renewal of existing assets by asset class | D97: Supporting Table SC13b | E97: =D97&"Consolidated Monthly Budget Statement - capital expenditure on renewal of existing assets by asset class" -> Supporting Table SC13b Consolidated Monthly Budget Statement - capital expenditure on renewal of existing assets by asset class | F97: =D97&"Monthly Budget Statement - capital expenditure on renewal of existing assets by asset class" -> Supporting Table SC13b Monthly Budget Statement - capital expenditure on renewal of existing assets by asset class
A98: S71Sc | B98: Supporting Table SC13c Monthly Budget Statement - expenditure on repairs and maintenance by asset class | D98: Supporting Table SC13c | E98: =D98&"Consolidated Monthly Budget Statement - expenditure on repairs and maintenance by asset class" -> Supporting Table SC13c Consolidated Monthly Budget Statement - expenditure on repairs and maintenance by asset class | F98: =D98&"Monthly Budget Statement - expenditure on repairs and maintenance by asset class" -> Supporting Table SC13c Monthly Budget Statement - expenditure on repairs and maintenance by asset class
A99: S71Sd | B99: Supporting Table SC13d Monthly Budget Statement - depreciation by asset class | D99: Supporting Table SC13d | E99: =D99&"Consolidated Monthly Budget Statement - depreciation by asset class" -> Supporting Table SC13d Consolidated Monthly Budget Statement - depreciation by asset class | F99: =D99&"Monthly Budget Statement - depreciation by asset class" -> Supporting Table SC13d Monthly Budget Statement - depreciation by asset class
B100: s71 charts listing
B101: =D101&Head2A&" Capital Expenditure Monthly Trend: actual v target" -> Chart C1 2015/16 Capital Expenditure Monthly Trend: actual v target | D101: Chart C1
B102: =D102&Head2A&" Capital Expenditure: YTD actual v YTD target" -> Chart C2 2015/16 Capital Expenditure: YTD actual v YTD target | D102: Chart C2
B103: =D103&"Aged Consumer Debtors Analysis" -> Chart C3 Aged Consumer Debtors Analysis | D103: Chart C3
B104: =D104&"Consumer Debtors (total by Debtor Customer Category)" -> Chart C4 Consumer Debtors (total by Debtor Customer Category) | D104: Chart C4
B105: =D105&"Aged Creditors Analysis" -> Chart C5 Aged Creditors Analysis | D105: Chart C5
A106: S71T | B106: =D106&" Monthly Budget Statement - Expenditure against approved rollovers" -> Supporting Table SC7(2) Monthly Budget Statement - Expenditure against approved rollovers | D106: Supporting Table SC7(2)

Sheet Lookup and lists (hidden)
A1: Description | B1: 2007 | C1: 2008 | D1: 2009 | E1: 2010 | F1: 2011 | G1: 2012 | H1: 2013 | I1: 2014 | J1: 2015 | K1: 2016 | L1: 2017 | M1: 2018 | N1: 2019 | O1: 2020 | Q1: Grants: | R1: National - opex | S1: Provincial - opex | T1: National - capex | U1: Provincial - capex | V1: YESNO
A2: ='Template names'!C2 -> Prior year -1 | B2: 2006/07 | C2: 2007/08 | D2: 2008/09 | E2: =E1-1&"/"&RIGHT(E1,2)-0 -> 2009/10 | F2: =F1-1&"/"&RIGHT(F1,2)-0 -> 2010/11 | G2: 2011/12 | H2: 2012/13 | I2: 2013/14 | J2: 2014/15 | K2: 2015/16 | L2: 2016/17 | M2: 2017/18 | N2: 2018/19 | O2: 2019/20 | R2: Local Government Equitable Share | S2: Health subsidy | T2: Municipal Infrastructure Grant (MIG) | U2: Agriculture | V2: Yes
A3: ='Template names'!C5 -> MTREF header name | B3: 2007/08 Medium Term Revenue & Expenditure Framework | C3: 2008/09 Medium Term Revenue & Expenditure Framework | D3: 2009/10 Medium Term Revenue & Expenditure Framework | E3: =E1&"/"&RIGHT(E1,2)+1&" Medium Term Revenue & Expenditure Framework" -> 2010/11 Medium Term Revenue & Expenditure Framework | F3: =F1&"/"&RIGHT(F1,2)+1&" Medium Term Revenue & Expenditure Framework" -> 2011/12 Medium Term Revenue & Expenditure Framework | G3: 2012/13 Medium Term Revenue & Expenditure Framework | H3: 2013/14 Medium Term Revenue & Expenditure Framework | I3: 2014/15 Medium Term Revenue & Expenditure Framework | J3: 2015/16 Medium Term Revenue & Expenditure Framework | K3: 2016/17 Medium Term Revenue & Expenditure Framework | L3: 2017/18 Medium Term Revenue & Expenditure Framework | M3: 2018/19 Medium Term Revenue & Expenditure Framework | N3: 2019/20 Medium Term Revenue & Expenditure Framework | O3: 2020/21 Medium Term Revenue & Expenditure Framework | R3: RSC Levy Replacement | S3: Ambulance subsidy | T3: Public Transport and Systems | U3: Education | V3: No
A4: ='Template names'!C4 -> Approved budget year | B4: 2007/08 | C4: 2008/09 | D4: 2009/10 | E4: =E1&"/"&RIGHT(E1,2)+1 -> 2010/11 | F4: =F1&"/"&RIGHT(F1,2)+1 -> 2011/12 | G4: 2012/13 | H4: 2013/14 | I4: 2014/15 | J4: 2015/16 | K4: 2016/17 | L4: 2017/18 | M4: 2018/19 | N4: 2019/20 | O4: 2020/21 | R4: Finance Management | S4: Housing | T4: Rural Transport Services and Infrastructure | U4: Health
A5: ='Template names'!C12 -> 1st year of MTREF | B5: Budget Year 2007/08 | C5: Budget Year 2008/09 | D5: Budget Year 2009/10 | E5: ="Budget Year "&E1&"/"&RIGHT(E1,2)+1 -> Budget Year 2010/11 | F5: ="Budget Year "&F1&"/"&RIGHT(F1,2)+1 -> Budget Year 2011/12 | G5: Budget Year 2012/13 | H5: Budget Year 2013/14 | I5: Budget Year 2014/15 | J5: Budget Year 2015/16 | K5: Budget Year 2016/17 | L5: Budget Year 2017/18 | M5: Budget Year 2018/19 | N5: Budget Year 2019/20 | O5: Budget Year 2020/21 | R5: Municipal Systems Improvement | S5: Sport and Recreation | T5: Regional Bulk Infrastructure | U5: Housing and Local Government
A6: ='Template names'!C13 -> 2nd year of MTREF | B6: Budget Year +1 2008/09 | C6: Budget Year +1 2009/10 | D6: Budget Year +1 2010/11 | E6: ="Budget Year +1 "&E1+1&"/"&RIGHT(E1,2)+2 -> Budget Year +1 2011/12 | F6: ="Budget Year +1 "&F1+1&"/"&RIGHT(F1,2)+2 -> Budget Year +1 2012/13 | G6: Budget Year +1 2013/14 | H6: Budget Year +1 2014/15 | I6: Budget Year +1 2015/16 | J6: Budget Year +1 2016/17 | K6: Budget Year +1 2017/18 | L6: Budget Year +1 2018/19 | M6: Budget Year +1 2019/20 | N6: Budget Year +1 2020/21 | O6: Budget Year +1 2021/22 | R6: Water Services Operating Subsidy | T6: Rural Households Infrastructure | U6: Other Departments
A7: ='Template names'!C14 -> 3rd year of MTREF | B7: Budget Year +2 2009/10 | C7: Budget Year +2 2010/11 | D7: Budget Year +2 2011/12 | E7: ="Budget Year +2 "&E1+2&"/"&RIGHT(E1,2)+3 -> Budget Year +2 2012/13 | F7: ="Budget Year +2 "&F1+2&"/"&RIGHT(F1,2)+3 -> Budget Year +2 2013/14 | G7: Budget Year +2 2014/15 | H7: Budget Year +2 2015/16 | I7: Budget Year +2 2016/17 | J7: Budget Year +2 2017/18 | K7: Budget Year +2 2018/19 | L7: Budget Year +2 2019/20 | M7: Budget Year +2 2020/21 | N7: Budget Year +2 2021/22 | O7: Budget Year +2 2022/23 | R7: Energy Efficiency and Demand Management | T7: Neighbourhood Development Partnership | U7: Public Works, Roads, Transport
A8: NOTE: This sheet should not be directly amended - select headings from sheet 'S' | R8: Integrated National Electrification Programme | T8: 2010 FIFA World Cup Stadiums Development | U8: Sport and Recreation
R9: Municipal Drought Relief
R10: 2010 FIFA World Cup Operating
R11: Electricity Demand Side Management
R12: EPWP Incentive
A26: Name link | B26: 157
A27: Name of Muni | B27: =INDEX(B28:B311,B26,1) -> LIM353 Molemole
B28: Choose name from list | C28: Set name on 'Instructions' sheet
B29: BUF Buffalo City | C29: EC EASTERN CAPE
B30: NMA Nelson Mandela Bay | C30: EC EASTERN CAPE
B31: EC101 Camdeboo | C31: EC EASTERN CAPE
B32: EC102 Blue Crane Route | C32: EC EASTERN CAPE
B33: EC103 Ikwezi | C33: EC EASTERN CAPE
B34: EC104 Makana | C34: EC EASTERN CAPE
B35: EC105 Ndlambe | C35: EC EASTERN CAPE
B36: EC106 Sundays River Valley | C36: EC EASTERN CAPE
B37: EC107 Baviaans | C37: EC EASTERN CAPE
B38: EC108 Kouga | C38: EC EASTERN CAPE
B39: EC109 Kou-Kamma | C39: EC EASTERN CAPE
B40: DC10 Cacadu | C40: EC EASTERN CAPE
B41: EC121 Mbhashe | C41: EC EASTERN CAPE
B42: EC122 Mnquma | C42: EC EASTERN CAPE
B43: EC123 Great Kei | C43: EC EASTERN CAPE
B44: EC124 Amahlathi | C44: EC EASTERN CAPE
B45: EC126 Ngqushwa | C45: EC EASTERN CAPE
B46: EC127 Nkonkobe | C46: EC EASTERN CAPE
B47: EC128 Nxuba | C47: EC EASTERN CAPE
B48: DC12 Amathole | C48: EC EASTERN CAPE
B49: EC131 Inxuba Yethemba | C49: EC EASTERN CAPE
B50: EC132 Tsolwana | C50: EC EASTERN CAPE
B51: EC133 Inkwanca | C51: EC EASTERN CAPE
B52: EC134 Lukhanji | C52: EC EASTERN CAPE
B53: EC135 Intsika Yethu | C53: EC EASTERN CAPE
B54: EC136 Emalahleni (Ec) | C54: EC EASTERN CAPE
B55: EC137 Engcobo | C55: EC EASTERN CAPE
B56: EC138 Sakhisizwe | C56: EC EASTERN CAPE
B57: DC13 Chris Hani | C57: EC EASTERN CAPE
B58: EC141 Elundini | C58: EC EASTERN CAPE
B59: EC142 Senqu | C59: EC EASTERN CAPE
B60: EC143 Maletswai | C60: EC EASTERN CAPE
B61: EC144 Gariep | C61: EC EASTERN CAPE
B62: DC14 Joe Gqabi | C62: EC EASTERN CAPE
B63: EC153 Ngquza Hills | C63: EC EASTERN CAPE
B64: EC154 Port St Johns | C64: EC EASTERN CAPE
B65: EC155 Nyandeni | C65: EC EASTERN CAPE
B66: EC156 Mhlontlo | C66: EC EASTERN CAPE
B67: EC157 King Sabata Dalindyebo | C67: EC EASTERN CAPE
B68: DC15 O .R. Tambo | C68: EC EASTERN CAPE
B69: EC441 Matatiele | C69: EC EASTERN CAPE
B70: EC442 Umzimvubu | C70: EC EASTERN CAPE
B71: EC443 Mbizana | C71: EC EASTERN CAPE
B72: EC444 Ntabankulu | C72: EC EASTERN CAPE
B73: DC44 Alfred Nzo | C73: EC EASTERN CAPE
B74: MAN Mangaung | C74: FS FREE STATE
B75: FS161 Letsemeng | C75: FS FREE STATE
B76: FS162 Kopanong | C76: FS FREE STATE
B77: FS163 Mohokare | C77: FS FREE STATE
B78: FS164 Naledi (Fs) | C78: FS FREE STATE
B79: DC16 Xhariep | C79: FS FREE STATE
B80: FS181 Masilonyana | C80: FS FREE STATE
B81: FS182 Tokologo | C81: FS FREE STATE
B82: FS183 Tswelopele | C82: FS FREE STATE
B83: FS184 Matjhabeng | C83: FS FREE STATE
B84: FS185 Nala | C84: FS FREE STATE
B85: DC18 Lejweleputswa | C85: FS FREE STATE
B86: FS191 Setsoto | C86: FS FREE STATE
B87: FS192 Dihlabeng | C87: FS FREE STATE
B88: FS193 Nketoana | C88: FS FREE STATE
B89: FS194 Maluti-a-Phofung | C89: FS FREE STATE
B90: FS195 Phumelela | C90: FS FREE STATE
B91: FS196 Mantsopa | C91: FS FREE STATE
B92: DC19 Thabo Mofutsanyana | C92: FS FREE STATE
B93: FS201 Moqhaka | C93: FS FREE STATE
B94: FS203 Ngwathe | C94: FS FREE STATE
B95: FS204 Metsimaholo | C95: FS FREE STATE
B96: FS205 Mafube | C96: FS FREE STATE
B97: DC20 Fezile Dabi | C97: FS FREE STATE
B98: EKU Ekurhuleni Metro | C98: GT GAUTENG
B99: JHB City Of Johannesburg | C99: GT GAUTENG
B100: TSH City Of Tshwane | C100: GT GAUTENG
B101: GT421 Emfuleni | C101: GT GAUTENG
B102: GT422 Midvaal | C102: GT GAUTENG
B103: GT423 Lesedi | C103: GT GAUTENG
B104: DC42 Sedibeng | C104: GT GAUTENG
B105: GT481 Mogale City | C105: GT GAUTENG
B106: GT482 Randfontein | C106: GT GAUTENG
B107: GT483 Westonaria | C107: GT GAUTENG
B108: GT484 Merafong City | C108: GT GAUTENG
B109: DC48 West Rand | C109: GT GAUTENG
B110: ETH eThekwini | C110: KZN KWAZULU-NATAL
B111: KZN211 Vulamehlo | C111: KZN KWAZULU-NATAL
B112: KZN212 Umdoni | C112: KZN KWAZULU-NATAL
B113: KZN213 Umzumbe | C113: KZN KWAZULU-NATAL
B114: KZN214 uMuziwabantu | C114: KZN KWAZULU-NATAL
B115: KZN215 Ezinqoleni | C115: KZN KWAZULU-NATAL
B116: KZN216 Hibiscus Coast | C116: KZN KWAZULU-NATAL
B117: DC21 Ugu | C117: KZN KWAZULU-NATAL
B118: KZN221 uMshwathi | C118: KZN KWAZULU-NATAL
B119: KZN222 uMngeni | C119: KZN KWAZULU-NATAL
B120: KZN223 Mpofana | C120: KZN KWAZULU-NATAL
B121: KZN224 Impendle | C121: KZN KWAZULU-NATAL
B122: KZN225 Msunduzi | C122: KZN KWAZULU-NATAL
B123: KZN226 Mkhambathini | C123: KZN KWAZULU-NATAL
B124: KZN227 Richmond | C124: KZN KWAZULU-NATAL
B125: DC22 uMgungundlovu | C125: KZN KWAZULU-NATAL
B126: KZN232 Emnambithi/Ladysmith | C126: KZN KWAZULU-NATAL
B127: KZN233 Indaka | C127: KZN KWAZULU-NATAL
B128: KZN234 Umtshezi | C128: KZN KWAZULU-NATAL
B129: KZN235 Okhahlamba | C129: KZN KWAZULU-NATAL
B130: KZN236 Imbabazane | C130: KZN KWAZULU-NATAL
B131: DC23 Uthukela | C131: KZN KWAZULU-NATAL
B132: KZN241 Endumeni | C132: KZN KWAZULU-NATAL
B133: KZN242 Nquthu | C133: KZN KWAZULU-NATAL
B134: KZN244 Msinga | C134: KZN KWAZULU-NATAL
B135: KZN245 Umvoti | C135: KZN KWAZULU-NATAL
B136: DC24 Umzinyathi | C136: KZN KWAZULU-NATAL
B137: KZN252 Newcastle | C137: KZN KWAZULU-NATAL
B138: KZN253 eMadlangeni | C138: KZN KWAZULU-NATAL
B139: KZN254 Dannhauser | C139: KZN KWAZULU-NATAL
B140: DC25 Amajuba | C140: KZN KWAZULU-NATAL
B141: KZN261 eDumbe | C141: KZN KWAZULU-NATAL
B142: KZN262 uPhongolo | C142: KZN KWAZULU-NATAL
B143: KZN263 Abaqulusi | C143: KZN KWAZULU-NATAL
B144: KZN265 Nongoma | C144: KZN KWAZULU-NATAL
B145: KZN266 Ulundi | C145: KZN KWAZULU-NATAL
B146: DC26 Zululand | C146: KZN KWAZULU-NATAL
B147: KZN271 Umhlabuyalingana | C147: KZN KWAZULU-NATAL
B148: KZN272 Jozini | C148: KZN KWAZULU-NATAL
B149: KZN273 The Big 5 False Bay | C149: KZN KWAZULU-NATAL
B150: KZN274 Hlabisa | C150: KZN KWAZULU-NATAL
B151: KZN275 Mtubatuba | C151: KZN KWAZULU-NATAL
B152: DC27 Umkhanyakude | C152: KZN KWAZULU-NATAL
B153: KZN281 Mfolozi | C153: KZN KWAZULU-NATAL
B154: KZN282 uMhlathuze | C154: KZN KWAZULU-NATAL
B155: KZN283 Ntambanana | C155: KZN KWAZULU-NATAL
B156: KZN284 uMlalazi | C156: KZN KWAZULU-NATAL
B157: KZN285 Mthonjaneni | C157: KZN KWAZULU-NATAL
B158: KZN286 Nkandla | C158: KZN KWAZULU-NATAL
B159: DC28 uThungulu | C159: KZN KWAZULU-NATAL
B160: KZN291 Mandeni | C160: KZN KWAZULU-NATAL
B161: KZN292 KwaDukuza | C161: KZN KWAZULU-NATAL
B162: KZN293 Ndwedwe | C162: KZN KWAZULU-NATAL
B163: KZN294 Maphumulo | C163: KZN KWAZULU-NATAL
B164: DC29 iLembe | C164: KZN KWAZULU-NATAL
B165: KZN431 Ingwe | C165: KZN KWAZULU-NATAL
B166: KZN432 Kwa Sani | C166: KZN KWAZULU-NATAL
B167: KZN433 Greater Kokstad | C167: KZN KWAZULU-NATAL
B168: KZN434 Ubuhlebezwe | C168: KZN KWAZULU-NATAL
B169: KZN435 Umzimkhulu | C169: KZN KWAZULU-NATAL
B170: DC43 Sisonke | C170: KZN KWAZULU-NATAL
B171: LIM331 Greater Giyani | C171: LIM LIMPOPO
B172: LIM332 Greater Letaba | C172: LIM LIMPOPO
B173: LIM333 Greater Tzaneen | C173: LIM LIMPOPO
B174: LIM334 Ba-Phalaborwa | C174: LIM LIMPOPO
B175: LIM335 Maruleng | C175: LIM LIMPOPO
B176: DC33 Mopani | C176: LIM LIMPOPO
B177: LIM341 Musina | C177: LIM LIMPOPO
B178: LIM342 Mutale | C178: LIM LIMPOPO
B179: LIM343 Thulamela | C179: LIM LIMPOPO
B180: LIM344 Makhado | C180: LIM LIMPOPO
B181: DC34 Vhembe | C181: LIM LIMPOPO
B182: LIM351 Blouberg | C182: LIM LIMPOPO
B183: LIM352 Aganang | C183: LIM LIMPOPO
B184: LIM353 Molemole | C184: LIM LIMPOPO
B185: LIM354 Polokwane | C185: LIM LIMPOPO
B186: LIM355 Lepelle-Nkumpi | C186: LIM LIMPOPO
B187: DC35 Capricorn | C187: LIM LIMPOPO
B188: LIM361 Thabazimbi | C188: LIM LIMPOPO
B189: LIM362 Lephalale | C189: LIM LIMPOPO
B190: LIM364 Mookgopong | C190: LIM LIMPOPO
B191: LIM365 Modimolle | C191: LIM LIMPOPO
B192: LIM366 Bela Bela | C192: LIM LIMPOPO
B193: LIM367 Mogalakwena | C193: LIM LIMPOPO
B194: DC36 Waterberg | C194: LIM LIMPOPO
B195: LIM471 Ephraim Mogale | C195: LIM LIMPOPO
B196: LIM472 Elias Motsoaledi | C196: LIM LIMPOPO
B197: LIM473 Makhuduthamaga | C197: LIM LIMPOPO
B198: LIM474 Fetakgomo | C198: LIM LIMPOPO
B199: LIM475 Greater Tubatse | C199: LIM LIMPOPO
B200: DC47 Sekhukhune | C200: LIM LIMPOPO
B201: MP301 Albert Luthuli | C201: MP MPUMALANGA
B202: MP302 Msukaligwa | C202: MP MPUMALANGA
B203: MP303 Mkhondo | C203: MP MPUMALANGA
B204: MP304 Pixley Ka Seme (MP) | C204: MP MPUMALANGA
B205: MP305 Lekwa | C205: MP MPUMALANGA
B206: MP306 Dipaleseng | C206: MP MPUMALANGA
B207: MP307 Govan Mbeki | C207: MP MPUMALANGA
B208: DC30 Gert Sibande | C208: MP MPUMALANGA
B209: MP311 Victor Khanye | C209: MP MPUMALANGA
B210: MP312 Emalahleni (Mp) | C210: MP MPUMALANGA
B211: MP313 Steve Tshwete | C211: MP MPUMALANGA
B212: MP314 Emakhazeni | C212: MP MPUMALANGA
B213: MP315 Thembisile Hani | C213: MP MPUMALANGA
... 94 more rows

Sheet Org structure
A1: Organisational Structure Votes | C1: Organisational Structure Sub-Votes | E1: Display Sub-Votes
A2: =B2&" - "&C2 -> Vote 1 - EXECUTIVE AND COUNCIL | B2: Vote 1 | C2: EXECUTIVE AND COUNCIL
A3: =B13&" - "& C13 -> Vote 2 - BUDGET AND TREASURY | B3: 1.1 | C3: MAYOR AND COUNCIL | D3: =CONCATENATE(B3, " - ", C3) -> 1,1 - MAYOR AND COUNCIL | E3: 1.1 - MAYOR AND COUNCIL
A4: =B24&" - "&C24 -> Vote 3 - CORPORATE SERVICES | B4: 1.2 | C4: MUNICIPAL MANAGER | D4: 1,2 - MUNICIPAL MANAGER | E4: 1.2 - MUNICIPAL MANAGER
A5: =B35&" - "&C35 -> Vote 4 - LOCAL ECONOMIC DEVELOPMENT AND PLANNING | B5: 1.3 | C5: [Name of sub-vote] | D5: 1,3 - [Name of sub-vote]
A6: =B46&" - "&C46 -> Vote 5 - COMMUNITY SERVICES | B6: 1.4 | C6: [Name of sub-vote] | D6: 1,4 - [Name of sub-vote]
A7: =B57&" - "&C57 -> Vote 6 - ROAD TRANSPORT | B7: 1.5 | C7: [Name of sub-vote] | D7: 1,5 - [Name of sub-vote]
A8: =B68&" - "&C68 -> Vote 7 - ELECTRICITY | B8: 1.6 | C8: [Name of sub-vote] | D8: 1,6 - [Name of sub-vote]
A9: =B79&" - "&C79 -> Vote 8 - WATER | B9: 1.7 | C9: [Name of sub-vote] | D9: 1,7 - [Name of sub-vote]
A10: =B90&" - "&C90 -> Vote 9 - [NAME OF VOTE 9] | B10: 1.8 | C10: [Name of sub-vote] | D10: 1,8 - [Name of sub-vote]
A11: =B101&" - "&C101 -> Vote 10 - [NAME OF VOTE 10] | B11: 1.9 | C11: [Name of sub-vote] | D11: 1,9 - [Name of sub-vote]
A12: =B112&" - "&C112 -> Vote 11 - [NAME OF VOTE 11] | B12: 1.10 | C12: [Name of sub-vote] | D12: 1.10 - [Name of sub-vote]
A13: =B123&" - "&C123 -> Vote 12 - [NAME OF VOTE 12] | B13: Vote 2 | C13: BUDGET AND TREASURY
A14: =B134&" - "&C134 -> Vote 13 - [NAME OF VOTE 13] | B14: 2.1 | C14: BUDGET AND TREASURY | D14: =CONCATENATE(B14, " - ", C14) -> 2,1 - BUDGET AND TREASURY | E14: 2.1 - BUDGET AND TREASURY
A15: =B145&" - "&C145 -> Vote 14 - [NAME OF VOTE 14] | B15: 2.2 | C15: [Name of sub-vote] | D15: 2,2 - [Name of sub-vote]
A16: =B156&" - "&C156 -> Vote 15 - [NAME OF VOTE 15] | B16: 2.3 | C16: [Name of sub-vote] | D16: 2,3 - [Name of sub-vote]
B17: 2.4 | C17: [Name of sub-vote] | D17: 2,4 - [Name of sub-vote]
B18: 2.5 | C18: [Name of sub-vote] | D18: 2,5 - [Name of sub-vote]
B19: 2.6 | C19: [Name of sub-vote] | D19: 2,6 - [Name of sub-vote]
B20: 2.7 | C20: [Name of sub-vote] | D20: 2,7 - [Name of sub-vote]
B21: 2.8 | C21: [Name of sub-vote] | D21: 2,8 - [Name of sub-vote]
B22: 2.9 | C22: [Name of sub-vote] | D22: 2,9 - [Name of sub-vote]
B23: 2.10 | C23: [Name of sub-vote] | D23: 2.10 - [Name of sub-vote]
B24: Vote 3 | C24: CORPORATE SERVICES
B25: 3.1 | C25: HUMAN RESOURCES | D25: =CONCATENATE(B25, " - ", C25) -> 3,1 - HUMAN RESOURCES | E25: 3.1 - HUMAN RESOURCES
B26: 3.2 | C26: INFORMATION TECHNOLOGY | D26: 3,2 - INFORMATION TECHNOLOGY | E26: 3.2 - INFORMATION TECHNOLOGY
B27: 3.3 | C27: PROPERTY SERVICES | D27: 3,3 - PROPERTY SERVICES | E27: 3.3 - PROPERTY SERVICES
B28: 3.4 | C28: OTHER ADMIN | D28: 3,4 - OTHER ADMIN | E28: 3.4 - OTHER ADMIN
B29: 3.5 | C29: [Name of sub-vote] | D29: 3,5 - [Name of sub-vote]
B30: 3.6 | C30: [Name of sub-vote] | D30: 3,6 - [Name of sub-vote]
B31: 3.7 | C31: [Name of sub-vote] | D31: 3,7 - [Name of sub-vote]
B32: 3.8 | C32: [Name of sub-vote] | D32: 3,8 - [Name of sub-vote]
B33: 3.9 | C33: [Name of sub-vote] | D33: 3,9 - [Name of sub-vote]
B34: 3.10 | C34: [Name of sub-vote] | D34: 3.10 - [Name of sub-vote]
B35: Vote 4 | C35: LOCAL ECONOMIC DEVELOPMENT AND PLANNING
B36: 4.1 | C36: ECONOMIC/DEVELOPMENT AND PLANNING | D36: =CONCATENATE(B36, " - ", C36) -> 4,1 - ECONOMIC/DEVELOPMENT AND PLANNING | E36: 4.1 - ECONOMIC/DEVELOPMENT AND PLANNING
B37: 4.2 | C37: TOWN PLANNING/BUILDING ENFORCEMENT | D37: 4,2 - TOWN PLANNING/BUILDING ENFORCEMENT | E37: 4.2 - TOWN PLANNING/BUILDING ENFORCEMENT
B38: 4.3 | C38: LICENSING AND REGULATION | D38: 4,3 - LICENSING AND REGULATION | E38: 4.3 - LICENSING AND REGULATION
B39: 4.4 | C39: [Name of sub-vote] | D39: 4,4 - [Name of sub-vote]
B40: 4.5 | C40: [Name of sub-vote] | D40: 4,5 - [Name of sub-vote]
B41: 4.6 | C41: [Name of sub-vote] | D41: 4,6 - [Name of sub-vote]
B42: 4.7 | C42: [Name of sub-vote] | D42: 4,7 - [Name of sub-vote]
B43: 4.8 | C43: [Name of sub-vote] | D43: 4,8 - [Name of sub-vote]
B44: 4.9 | C44: [Name of sub-vote] | D44: 4,9 - [Name of sub-vote]
B45: 4.10 | C45: [Name of sub-vote] | D45: 4.10 - [Name of sub-vote]
B46: Vote 5 | C46: COMMUNITY SERVICES
B47: 5.1 | C47: LIBRARIES AND ARCHIEVES | D47: =CONCATENATE(B47, " - ", C47) -> 5,1 - LIBRARIES AND ARCHIEVES | E47: 5.1 - LIBRARIES AND ARCHIEVES
B48: 5.2 | C48: MUSEUM AND ART GALLERIES ETC | D48: 5,2 - MUSEUM AND ART GALLERIES ETC | E48: 5.2 - MUSEUM AND ART GALLERIES ETC
B49: 5.3 | C49: COMMUNITY HALLS AND FACILITIES | D49: 5,3 - COMMUNITY HALLS AND FACILITIES | E49: 5.3 - COMMUNITY HALLS AND FACILITIES
B50: 5.4 | C50: CEMETRIES & CRÈMATORIUMS | D50: 5,4 - CEMETRIES & CRÈMATORIUMS | E50: 5.4 - CEMETRIES & CRÈMATORIUMS
B51: 5.5 | C51: CHILD CARE | D51: 5,5 - CHILD CARE | E51: 5.5 - CHILD CARE
B52: 5.6 | C52: AGED CARE | D52: 5,6 - AGED CARE | E52: 5.6 - AGED CARE
B53: 5.7 | C53: OTHER COMMUNITY | D53: 5,7 - OTHER COMMUNITY | E53: 5.7 - OTHER COMMUNITY
B54: 5.8 | C54: OTHER SOCIAL | D54: 5,8 - OTHER SOCIAL | E54: 5.8 - OTHER SOCIAL
B55: 5.9 | C55: SPORT AND RECREATION | D55: 5,9 - SPORT AND RECREATION | E55: 5.9 - SPORT AND RECREATION
B56: 5.10 | C56: OTHER | D56: 5.10 - OTHER | E56: 5.10 - OTHER
B57: Vote 6 | C57: ROAD TRANSPORT
B58: 6.1 | C58: ROADS | D58: =CONCATENATE(B58, " - ", C58) -> 6,1 - ROADS | E58: 6.1 - ROADS
B59: 6.2 | C59: PUBLIC BUSES | D59: 6,2 - PUBLIC BUSES | E59: 6.2 - PUBLIC BUSES
B60: 6.3 | C60: PARKING GARAGES | D60: 6,3 - PARKING GARAGES | E60: 6.3 - PARKING GARAGES
B61: 6.4 | C61: VEHICLE LICENSING AND TESTING | D61: 6,4 - VEHICLE LICENSING AND TESTING | E61: 6.4 - VEHICLE LICENSING AND TESTING
B62: 6.5 | C62: OTHER | D62: 6,5 - OTHER | E62: 6.5 - OTHER
B63: 6.6 | C63: [Name of sub-vote] | D63: 6,6 - [Name of sub-vote]
B64: 6.7 | C64: [Name of sub-vote] | D64: 6,7 - [Name of sub-vote]
B65: 6.8 | C65: [Name of sub-vote] | D65: 6,8 - [Name of sub-vote]
B66: 6.9 | C66: [Name of sub-vote] | D66: 6,9 - [Name of sub-vote]
B67: 6.10 | C67: [Name of sub-vote] | D67: 6.10 - [Name of sub-vote]
B68: Vote 7 | C68: ELECTRICITY
B69: 7.1 | C69: ELECTRICITY DISTRIBUTION | D69: =CONCATENATE(B69, " - ", C69) -> 7,1 - ELECTRICITY DISTRIBUTION | E69: 7.1 - ELECTRICITY DISTRIBUTION
B70: 7.2 | C70: ELECTRICITY GENERATION | D70: 7,2 - ELECTRICITY GENERATION | E70: 7.2 - ELECTRICITY GENERATION
B71: 7.3 | C71: [Name of sub-vote] | D71: 7,3 - [Name of sub-vote]
B72: 7.4 | C72: [Name of sub-vote] | D72: 7,4 - [Name of sub-vote]
B73: 7.5 | C73: [Name of sub-vote] | D73: 7,5 - [Name of sub-vote]
B74: 7.6 | C74: [Name of sub-vote] | D74: 7,6 - [Name of sub-vote]
B75: 7.7 | C75: [Name of sub-vote] | D75: 7,7 - [Name of sub-vote]
B76: 7.8 | C76: [Name of sub-vote] | D76: 7,8 - [Name of sub-vote]
B77: 7.9 | C77: [Name of sub-vote] | D77: 7,9 - [Name of sub-vote]
B78: 7.10 | C78: [Name of sub-vote] | D78: 7.10 - [Name of sub-vote]
B79: Vote 8 | C79: WATER
B80: 8.1 | C80: WATER DISTRIBUTION | D80: =CONCATENATE(B80, " - ", C80) -> 8,1 - WATER DISTRIBUTION | E80: 8.1 - WATER DISTRIBUTION
B81: 8.2 | C81: [Name of sub-vote] | D81: 8,2 - [Name of sub-vote]
B82: 8.3 | C82: [Name of sub-vote] | D82: 8,3 - [Name of sub-vote]
B83: 8.4 | C83: [Name of sub-vote] | D83: 8,4 - [Name of sub-vote]
B84: 8.5 | C84: [Name of sub-vote] | D84: 8,5 - [Name of sub-vote]
B85: 8.6 | C85: [Name of sub-vote] | D85: 8,6 - [Name of sub-vote]
B86: 8.7 | C86: [Name of sub-vote] | D86: 8,7 - [Name of sub-vote]
B87: 8.8 | C87: [Name of sub-vote] | D87: 8,8 - [Name of sub-vote]
B88: 8.9 | C88: [Name of sub-vote] | D88: 8,9 - [Name of sub-vote]
B89: 8.10 | C89: [Name of sub-vote] | D89: 8.10 - [Name of sub-vote]
B90: Vote 9 | C90: [NAME OF VOTE 9]
B91: 9.1 | C91: [Name of sub-vote] | D91: =CONCATENATE(B91, " - ", C91) -> 9,1 - [Name of sub-vote] | E91: 9.1 - [Name of sub-vote]
B92: 9.2 | C92: [Name of sub-vote] | D92: 9,2 - [Name of sub-vote]
B93: 9.3 | C93: [Name of sub-vote] | D93: 9,3 - [Name of sub-vote]
B94: 9.4 | C94: [Name of sub-vote] | D94: 9,4 - [Name of sub-vote]
B95: 9.5 | C95: [Name of sub-vote] | D95: 9,5 - [Name of sub-vote]
B96: 9.6 | C96: [Name of sub-vote] | D96: 9,6 - [Name of sub-vote]
B97: 9.7 | C97: [Name of sub-vote] | D97: 9,7 - [Name of sub-vote]
B98: 9.8 | C98: [Name of sub-vote] | D98: 9,8 - [Name of sub-vote]
B99: 9.9 | C99: [Name of sub-vote] | D99: 9,9 - [Name of sub-vote]
B100: 9.10 | C100: [Name of sub-vote] | D100: 9.10 - [Name of sub-vote]
B101: Vote 10 | C101: [NAME OF VOTE 10]
B102: 10.1 | C102: [Name of sub-vote] | D102: =CONCATENATE(B102, " - ", C102) -> 10,1 - [Name of sub-vote] | E102: 10.1 - [Name of sub-vote]
B103: 10.2 | C103: [Name of sub-vote] | D103: 10,2 - [Name of sub-vote]
B104: 10.3 | C104: [Name of sub-vote] | D104: 10,3 - [Name of sub-vote]
B105: 10.4 | C105: [Name of sub-vote] | D105: 10,4 - [Name of sub-vote]
B106: 10.5 | C106: [Name of sub-vote] | D106: 10,5 - [Name of sub-vote]
B107: 10.6 | C107: [Name of sub-vote] | D107: 10,6 - [Name of sub-vote]
B108: 10.7 | C108: [Name of sub-vote] | D108: 10,7 - [Name of sub-vote]
B109: 10.8 | C109: [Name of sub-vote] | D109: 10,8 - [Name of sub-vote]
B110: 10.9 | C110: [Name of sub-vote] | D110: 10,9 - [Name of sub-vote]
B111: 10.10 | C111: [Name of sub-vote] | D111: 10.10 - [Name of sub-vote]
B112: Vote 11 | C112: [NAME OF VOTE 11]
B113: 11.1 | C113: [Name of sub-vote] | D113: =CONCATENATE(B113, " - ", C113) -> 11,1 - [Name of sub-vote] | E113: 11.1 - [Name of sub-vote]
B114: 11.2 | C114: [Name of sub-vote] | D114: 11,2 - [Name of sub-vote]
B115: 11.3 | C115: [Name of sub-vote] | D115: 11,3 - [Name of sub-vote]
B116: 11.4 | C116: [Name of sub-vote] | D116: 11,4 - [Name of sub-vote]
B117: 11.5 | C117: [Name of sub-vote] | D117: 11,5 - [Name of sub-vote]
B118: 11.6 | C118: [Name of sub-vote] | D118: 11,6 - [Name of sub-vote]
B119: 11.7 | C119: [Name of sub-vote] | D119: 11,7 - [Name of sub-vote]
B120: 11.8 | C120: [Name of sub-vote] | D120: 11,8 - [Name of sub-vote]
B121: 11.9 | C121: [Name of sub-vote] | D121: 11,9 - [Name of sub-vote]
B122: 11.10 | C122: [Name of sub-vote] | D122: 11.10 - [Name of sub-vote]
B123: Vote 12 | C123: [NAME OF VOTE 12]
B124: 12.1 | C124: [Name of sub-vote] | D124: =CONCATENATE(B124, " - ", C124) -> 12,1 - [Name of sub-vote] | E124: 12.1 - [Name of sub-vote]
B125: 12.2 | C125: [Name of sub-vote] | D125: 12,2 - [Name of sub-vote]
B126: 12.3 | C126: [Name of sub-vote] | D126: 12,3 - [Name of sub-vote]
B127: 12.4 | C127: [Name of sub-vote] | D127: 12,4 - [Name of sub-vote]
B128: 12.5 | C128: [Name of sub-vote] | D128: 12,5 - [Name of sub-vote]
B129: 12.6 | C129: [Name of sub-vote] | D129: 12,6 - [Name of sub-vote]
B130: 12.7 | C130: [Name of sub-vote] | D130: 12,7 - [Name of sub-vote]
B131: 12.8 | C131: [Name of sub-vote] | D131: 12,8 - [Name of sub-vote]
B132: 12.9 | C132: [Name of sub-vote] | D132: 12,9 - [Name of sub-vote]
B133: 12.10 | C133: [Name of sub-vote] | D133: 12.10 - [Name of sub-vote]
B134: Vote 13 | C134: [NAME OF VOTE 13]
B135: 13.1 | C135: [Name of sub-vote] | D135: =CONCATENATE(B135, " - ", C135) -> 13,1 - [Name of sub-vote] | E135: 13.1 - [Name of sub-vote]
B136: 13.2 | C136: [Name of sub-vote] | D136: 13,2 - [Name of sub-vote]
B137: 13.3 | C137: [Name of sub-vote] | D137: 13,3 - [Name of sub-vote]
B138: 13.4 | C138: [Name of sub-vote] | D138: 13,4 - [Name of sub-vote]
B139: 13.5 | C139: [Name of sub-vote] | D139: 13,5 - [Name of sub-vote]
B140: 13.6 | C140: [Name of sub-vote] | D140: 13,6 - [Name of sub-vote]
B141: 13.7 | C141: [Name of sub-vote] | D141: 13,7 - [Name of sub-vote]
B142: 13.8 | C142: [Name of sub-vote] | D142: 13,8 - [Name of sub-vote]
B143: 13.9 | C143: [Name of sub-vote] | D143: 13,9 - [Name of sub-vote]
B144: 13.10 | C144: [Name of sub-vote] | D144: 13.10 - [Name of sub-vote]
B145: Vote 14 | C145: [NAME OF VOTE 14]
B146: 14.1 | C146: [Name of sub-vote] | D146: =CONCATENATE(B146, " - ", C146) -> 14,1 - [Name of sub-vote] | E146: 14.1 - [Name of sub-vote]
B147: 14.2 | C147: [Name of sub-vote] | D147: 14,2 - [Name of sub-vote]
B148: 14.3 | C148: [Name of sub-vote] | D148: 14,3 - [Name of sub-vote]
B149: 14.4 | C149: [Name of sub-vote] | D149: 14,4 - [Name of sub-vote]
B150: 14.5 | C150: [Name of sub-vote] | D150: 14,5 - [Name of sub-vote]
B151: 14.6 | C151: [Name of sub-vote] | D151: 14,6 - [Name of sub-vote]
B152: 14.7 | C152: [Name of sub-vote] | D152: 14,7 - [Name of sub-vote]
B153: 14.8 | C153: [Name of sub-vote] | D153: 14,8 - [Name of sub-vote]
B154: 14.9 | C154: [Name of sub-vote] | D154: 14,9 - [Name of sub-vote]
B155: 14.10 | C155: [Name of sub-vote] | D155: 14.10 - [Name of sub-vote]
B156: Vote 15 | C156: [NAME OF VOTE 15]
B157: 15.1 | C157: [Name of sub-vote] | D157: =CONCATENATE(B157, " - ", C157) -> 15,1 - [Name of sub-vote] | E157: 15.1 - [Name of sub-vote]
B158: 15.2 | C158: [Name of sub-vote] | D158: 15,2 - [Name of sub-vote]
B159: 15.3 | C159: [Name of sub-vote] | D159: 15,3 - [Name of sub-vote]
B160: 15.4 | C160: [Name of sub-vote] | D160: 15,4 - [Name of sub-vote]
B161: 15.5 | C161: [Name of sub-vote] | D161: 15,5 - [Name of sub-vote]
B162: 15.6 | C162: [Name of sub-vote] | D162: 15,6 - [Name of sub-vote]
B163: 15.7 | C163: [Name of sub-vote] | D163: 15,7 - [Name of sub-vote]
B164: 15.8 | C164: [Name of sub-vote] | D164: 15,8 - [Name of sub-vote]
B165: 15.9 | C165: [Name of sub-vote] | D165: 15,9 - [Name of sub-vote]
B166: 15.10 | C166: [Name of sub-vote] | D166: 15.10 - [Name of sub-vote]

Sheet Contacts
A1: =muni&" - "&" Contact Information" -> LIM353 Molemole - Contact Information
A3: A. GENERAL INFORMATION
A4: Municipality | B4: =muni -> LIM353 Molemole | C4: Set name on 'Instructions' sheet
A6: Grade | C6: 1 Grade in terms of the Remuneration of Public Office Bearers Act.
A8: Province | B8: =IF(B4>" ",VLOOKUP(B4,'Lookup and lists'!B28:C311,2, FALSE)," ") -> LIM LIMPOPO
A10: Web Address
A12: e-mail Address
A14: B. CONTACT INFORMATION
A15: Postal address:
A16: P.O. Box | B16: Private Bag x 44
A17: City / Town | B17: Mogwadi
A18: Postal Code | B18: 715
A20: Street address
A21: Building | B21: Civic Centre
A22: Street No. & Name | B22: 303 Church Street
A23: City / Town | B23: Mogwadi
A24: Postal Code | B24: 715
A26: General Contacts
A27: Telephone number | B27: 015 501 0243
A28: Fax number | B28: 015 501 0419
A30: C. POLITICAL LEADERSHIP
A31: Speaker: | C31: Secretary/PA to the Speaker:
A32: Name | B32: Moabelo M L | C32: Name | D32: Padima M
A33: Telephone number | B33: 015 501 0243 | C33: Telephone number | D33: 015 501 0243
A34: Cell number | B34: 076 602 5514 | C34: Cell number | D34: 076 502 4923
A35: Fax number | B35: 015 501 0419 | C35: Fax number | D35: 015 501 0419
A36: E-mail address | B36: Lmoabelo@molemole.gov.za | C36: E-mail address | D36: padimamm@molemole,gov.za
A38: Mayor/Executive Mayor: | C38: Secretary/PA to the Mayor/Executive Mayor:
A39: Name | B39: Makgato P | C39: Name | D39: Machaka M A
A40: Telephone number | B40: 015 501 0243 | C40: Telephone number | D40: 015 501 0243
A41: Cell number | B41: 082 148 8306 | C41: Cell number | D41: 082 229 3302
A42: Fax number | B42: 015 501 0419 | C42: Fax number | D42: 015 501 0419
A43: E-mail address | B43: makgatop@molemole.gov.za | C43: E-mail address | D43: machakamw@molemole.gov.za
A45: Deputy Mayor/Executive Mayor: | C45: Secretary/PA to the Deputy Mayor/Executive Mayor:
A46: Name | C46: Name
A47: Telephone number | C47: Telephone number
A48: Cell number | C48: Cell number
A49: Fax number | C49: Fax number
A50: E-mail address | C50: E-mail address
A52: D. MANAGEMENT LEADERSHIP
A53: Municipal Manager: | C53: Secretary/PA to the Municipal Manager:
A54: Name | B54: Makhura NI | C54: Name
A55: Telephone number | B55: 015 501 0243 | C55: Telephone number
A56: Cell number | B56: 072 068 8048 | C56: Cell number
A57: Fax number | B57: 015 501 0419 | C57: Fax number
A58: E-mail address | B58: makhuraim@molemole.gov.za | C58: E-mail address
A60: Chief Financial Officer | C60: Secretary/PA to the Chief Financial Officer
A61: Name | B61: Moloko E K | C61: Name | D61: Seabela S
A62: Telephone number | B62: 015 501 0243 | C62: Telephone number | D62: 015 501 0243
A63: Cell number | B63: 082 575 4024 | C63: Cell number
A64: Fax number | B64: 015 501 0419 | C64: Fax number | D64: 015 501 0419
A65: E-mail address | B65: moloko@molemole.gov.za | C65: E-mail address | D65: lebepes@molemole.gov.za
A67: Official responsible for submitting financial information
A68: Name | B68: Lethuba BMM
A69: Telephone number | B69: 015 501 0243
A70: Cell number | B70: 082 813 5777
A71: Fax number | B71: 015 501 0419
A72: E-mail address | B72: lethubab@molemole.gov.za
A73: Official responsible for submitting financial information
A74: Name | B74: Wiso P M
A75: Telephone number | B75: 015 501 0243
A76: Cell number | B76: 0824883823
A77: Fax number | B77: 015 501 0419
A78: E-mail address | B78: MamaboloMP@molemole.gov.za
A79: Official responsible for submitting financial information
A80: Name
A81: Telephone number
A82: Cell number
A83: Fax number
A84: E-mail address

Sheet C1-Sum
A1: =muni& " - "&s71sum& " - "&date -> LIM353 Molemole - Table C1 Monthly Budget Statement Summary - Q4 Fourth Quarter
A2: =desc -> Description | B2: =Head1 -> 2014/15 | C2: =Head2 -> Budget Year 2015/16
B3: =Head5 -> Audited Outcome | C3: =Head6 -> Original Budget | D3: =Head7 -> Adjusted Budget | E3: =Head38 -> Monthly actual | F3: =Head39 -> YearTD actual | G3: =Head40 -> YearTD budget | H3: =Head41 -> YTD variance | I3: =Head41 -> YTD variance | J3: =Head8 -> Full Year Forecast
A4: R thousands | I4: %
A5: Financial Performance
A6: Property rates | B6: =SUM('C4-FinPerf RE'!C6:C7) -> 10319307 | C6: =SUM('C4-FinPerf RE'!D6:D7) -> 10866048.62 | D6: =SUM('C4-FinPerf RE'!E6:E7) -> 10866048.62 | E6: =SUM('C4-FinPerf RE'!F6:F7) -> 1068947 | F6: =SUM('C4-FinPerf RE'!G6:G7) -> 10850493 | G6: =SUM('C4-FinPerf RE'!H6:H7) -> 10866048.62 | H6: =F6-G6 -> -15555.616 | I6: =IF(H6=0,"",H6/G6) -> -0.001431579827 | J6: =SUM('C4-FinPerf RE'!K6:K7) -> 10866048.62
A7: Service charges | B7: =SUM('C4-FinPerf RE'!C8:C12) -> 7868111 | C7: =SUM('C4-FinPerf RE'!D8:D12) -> 12283908.58 | D7: =SUM('C4-FinPerf RE'!E8:E12) -> 11091203.58 | E7: =SUM('C4-FinPerf RE'!F8:F12) -> 1060483 | F7: =SUM('C4-FinPerf RE'!G8:G12) -> 7491714 | G7: =SUM('C4-FinPerf RE'!H8:H12) -> 11091203.58 | H7: =F7-G7 -> -3599489.578 | I7: =IF(H7=0,"",H7/G7) -> -0.3245355252 | J7: =SUM('C4-FinPerf RE'!K8:K12) -> 11091203.58
A8: Investment revenue | B8: ='C4-FinPerf RE'!C14 -> 1255011 | C8: ='C4-FinPerf RE'!D14 -> 1200000 | D8: ='C4-FinPerf RE'!E14 -> 2200000 | E8: ='C4-FinPerf RE'!F14 -> 258119 | F8: ='C4-FinPerf RE'!G14 -> 2100559 | G8: ='C4-FinPerf RE'!H14 -> 2200000 | H8: =F8-G8 -> -99441 | I8: =IF(H8=0,"",H8/G8) -> -0.04520045455 | J8: ='C4-FinPerf RE'!K14 -> 2200000
A9: Transfers recognised - operational | B9: ='C4-FinPerf RE'!C20 -> 94361874 | C9: ='C4-FinPerf RE'!D20 -> 111217000 | D9: ='C4-FinPerf RE'!E20 -> 111217000 | E9: ='C4-FinPerf RE'!F20 -> 741857 | F9: ='C4-FinPerf RE'!G20 -> 108207404 | G9: ='C4-FinPerf RE'!H20 -> 111217000 | H9: =F9-G9 -> -3009596 | I9: =IF(H9=0,"",H9/G9) -> -0.02706057527 | J9: ='C4-FinPerf RE'!K20 -> 111217000
A10: Other own revenue | B10: ='C4-FinPerf RE'!C13+'C4-FinPerf RE'!C15+'C4-FinPerf RE'!C16+'C4-FinPerf RE'!C17+'C4-FinPerf RE'!C18+'C4-FinPerf RE'!C19+'C4-FinPerf RE'!C21+'C4-FinPerf RE'!C22 -> 11557249 | C10: ='C4-FinPerf RE'!D13+'C4-FinPerf RE'!D15+'C4-FinPerf RE'!D16+'C4-FinPerf RE'!D17+'C4-FinPerf RE'!D18+'C4-FinPerf RE'!D19+'C4-FinPerf RE'!D21+'C4-FinPerf RE'!D22 -> 15681471.95 | D10: ='C4-FinPerf RE'!E13+'C4-FinPerf RE'!E15+'C4-FinPerf RE'!E16+'C4-FinPerf RE'!E17+'C4-FinPerf RE'!E18+'C4-FinPerf RE'!E19+'C4-FinPerf RE'!E21+'C4-FinPerf RE'!E22 -> 14716497.5 | E10: ='C4-FinPerf RE'!F13+'C4-FinPerf RE'!F15+'C4-FinPerf RE'!F16+'C4-FinPerf RE'!F17+'C4-FinPerf RE'!F18+'C4-FinPerf RE'!F19+'C4-FinPerf RE'!F21+'C4-FinPerf RE'!F22 -> 1956482 | F10: ='C4-FinPerf RE'!G13+'C4-FinPerf RE'!G15+'C4-FinPerf RE'!G16+'C4-FinPerf RE'!G17+'C4-FinPerf RE'!G18+'C4-FinPerf RE'!G19+'C4-FinPerf RE'!G21+'C4-FinPerf RE'!G22 -> 6367458 | G10: ='C4-FinPerf RE'!H13+'C4-FinPerf RE'!H15+'C4-FinPerf RE'!H16+'C4-FinPerf RE'!H17+'C4-FinPerf RE'!H18+'C4-FinPerf RE'!H19+'C4-FinPerf RE'!H21+'C4-FinPerf RE'!H22 -> 14716497.5 | H10: =F10-G10 -> -8349039.499 | I10: =IF(H10=0,"",H10/G10) -> -0.5673251736 | J10: ='C4-FinPerf RE'!K13+'C4-FinPerf RE'!K15+'C4-FinPerf RE'!K16+'C4-FinPerf RE'!K17+'C4-FinPerf RE'!K18+'C4-FinPerf RE'!K19+'C4-FinPerf RE'!K21+'C4-FinPerf RE'!K22 -> 14716497.5
A11: Total Revenue (excluding capital transfers and contributions) | B11: =SUM(B6:B10) -> 125361552 | C11: 151248429.1 | D11: 150090749.7 | E11: 5085888 | F11: 135017628 | G11: 150090749.7 | H11: =F11-G11 -> -15073121.69 | I11: =IF(H11=0,"",H11/G11) -> -0.10042672 | J11: 150090749.7
A12: Employee costs | B12: ='C4-FinPerf RE'!C26 -> 58009620 | C12: ='C4-FinPerf RE'!D26 -> 66055175.57 | D12: ='C4-FinPerf RE'!E26 -> 66166386.05 | E12: ='C4-FinPerf RE'!F26 -> 5395981 | F12: ='C4-FinPerf RE'!G26 -> 61298146 | G12: ='C4-FinPerf RE'!H26 -> 66166386.05 | H12: -4868240.053 | I12: -0.07357572845 | J12: ='C4-FinPerf RE'!K26 -> 66166386.05
A13: Remuneration of Councillors | B13: ='C4-FinPerf RE'!C27 -> 7650725 | C13: ='C4-FinPerf RE'!D27 -> 10246420.58 | D13: ='C4-FinPerf RE'!E27 -> 10246420.58 | E13: ='C4-FinPerf RE'!F27 -> 707050 | F13: ='C4-FinPerf RE'!G27 -> 8659340 | G13: ='C4-FinPerf RE'!H27 -> 10246420.58 | H13: -1587080.58 | I13: -0.1548912196 | J13: ='C4-FinPerf RE'!K27 -> 10246420.58
A14: Depreciation & asset impairment | B14: ='C4-FinPerf RE'!C29 -> 8147957 | C14: ='C4-FinPerf RE'!D29 -> 4232000 | D14: ='C4-FinPerf RE'!E29 -> 8000000 | E14: ='C4-FinPerf RE'!F29 -> 986927 | F14: ='C4-FinPerf RE'!G29 -> 9614371 | G14: ='C4-FinPerf RE'!H29 -> 8000000 | H14: 1614371 | I14: 0.201796375 | J14: ='C4-FinPerf RE'!K29 -> 8000000
A15: Finance charges | B15: ='C4-FinPerf RE'!C30 -> 0 | C15: ='C4-FinPerf RE'!D30 -> 0 | D15: ='C4-FinPerf RE'!E30 -> 0 | E15: ='C4-FinPerf RE'!F30 -> 0 | F15: ='C4-FinPerf RE'!G30 -> 0 | G15: ='C4-FinPerf RE'!H30 -> 0 | H15: 0 | J15: ='C4-FinPerf RE'!K30 -> 0
A16: Materials and bulk purchases | B16: =SUM('C4-FinPerf RE'!C31:C32) -> 7073013 | C16: =SUM('C4-FinPerf RE'!D31:D32) -> 8500000 | D16: =SUM('C4-FinPerf RE'!E31:E32) -> 8500000 | E16: =SUM('C4-FinPerf RE'!F31:F32) -> 695232 | F16: =SUM('C4-FinPerf RE'!G31:G32) -> 7775854 | G16: =SUM('C4-FinPerf RE'!H31:H32) -> 8500000 | H16: -724146 | I16: -0.08519364706 | J16: =SUM('C4-FinPerf RE'!K31:K32) -> 8500000
A17: Transfers and grants | B17: ='C4-FinPerf RE'!C34 -> 0 | C17: ='C4-FinPerf RE'!D34 -> 0 | D17: ='C4-FinPerf RE'!E34 -> 0 | E17: ='C4-FinPerf RE'!F34 -> 0 | F17: ='C4-FinPerf RE'!G34 -> 0 | G17: ='C4-FinPerf RE'!H34 -> 0 | H17: 0 | J17: ='C4-FinPerf RE'!K34 -> 0
A18: Other expenditure | B18: ='C4-FinPerf RE'!C37-SUM('C1-Sum'!B12:B17) -> 59254850 | C18: ='C4-FinPerf RE'!D37-SUM('C1-Sum'!C12:C17) -> 44080960.43 | D18: ='C4-FinPerf RE'!E37-SUM('C1-Sum'!D12:D17) -> 51347680.43 | E18: ='C4-FinPerf RE'!F37-SUM('C1-Sum'!E12:E17) -> 10020908 | F18: ='C4-FinPerf RE'!G37-SUM('C1-Sum'!F12:F17) -> 31628946 | G18: ='C4-FinPerf RE'!H37-SUM('C1-Sum'!G12:G17) -> 51347680.43 | H18: -19718734.43 | I18: -0.3840238598 | J18: ='C4-FinPerf RE'!K37-SUM('C1-Sum'!J12:J17) -> 51347680.43
A19: Total Expenditure | B19: =SUM(B12:B18) -> 140136165 | C19: 133114556.6 | D19: 144260487.1 | E19: 17806098 | F19: 118976657 | G19: 144260487.1 | H19: -25283830.07 | I19: -0.1752651095 | J19: =SUM(J12:J18) -> 144260487.1
A20: Surplus/(Deficit) | B20: =B11-B19 -> -14774613 | C20: 18133872.56 | D20: 5830262.626 | E20: -12720210 | F20: 16040971 | G20: 5830262.626 | H20: 10210708.37 | I20: 1.751329061 | J20: =J11-J19 -> 5830262.626
A21: Transfers recognised - capital | B21: ='C4-FinPerf RE'!C40 -> 28227629 | C21: ='C4-FinPerf RE'!D40 -> 31418576 | D21: ='C4-FinPerf RE'!E40 -> 31739433 | E21: ='C4-FinPerf RE'!F40 -> 0 | F21: ='C4-FinPerf RE'!G40 -> 26983649 | G21: ='C4-FinPerf RE'!H40 -> 31739433 | H21: -4755784 | I21: -0.1498383415 | J21: ='C4-FinPerf RE'!K40 -> 31739433
A22: Contributions & Contributed assets | B22: =SUM('C4-FinPerf RE'!C41:C42) -> 0 | C22: =SUM('C4-FinPerf RE'!D41:D42) -> 0 | D22: =SUM('C4-FinPerf RE'!E41:E42) -> 0 | E22: =SUM('C4-FinPerf RE'!F41:F42) -> 0 | F22: =SUM('C4-FinPerf RE'!G41:G42) -> 0 | G22: =SUM('C4-FinPerf RE'!H41:H42) -> 0 | H22: 0 | J22: =SUM('C4-FinPerf RE'!K41:K42) -> 0
A23: Surplus/(Deficit) after capital transfers & contributions | B23: =B20+B21+B22 -> 13453016 | C23: 49552448.56 | D23: 37569695.63 | E23: -12720210 | F23: 43024620 | G23: 37569695.63 | H23: 5454924.374 | I23: 0.1451947982 | J23: =J20+J21+J22 -> 37569695.63
A24: Share of surplus/ (deficit) of associate | B24: ='C4-FinPerf RE'!C48 -> 0 | C24: ='C4-FinPerf RE'!D48 -> 0 | D24: ='C4-FinPerf RE'!E48 -> 0 | E24: ='C4-FinPerf RE'!F48 -> 0 | F24: ='C4-FinPerf RE'!G48 -> 0 | G24: ='C4-FinPerf RE'!H48 -> 0 | H24: 0 | J24: ='C4-FinPerf RE'!K48 -> 0
A25: Surplus/ (Deficit) for the year | B25: =B23+B24 -> 13453016 | C25: 49552448.56 | D25: 37569695.63 | E25: -12720210 | F25: 43024620 | G25: 37569695.63 | H25: 5454924.374 | I25: 0.1451947982 | J25: =J23+J24 -> 37569695.63
A27: Capital expenditure & funds sources
A28: Capital expenditure | B28: ='C5-Capex'!C40 -> 14095520 | C28: ='C5-Capex'!D40 -> 49276150 | D28: ='C5-Capex'!E40 -> 51291446.96 | E28: ='C5-Capex'!F40 -> 6056788 | F28: ='C5-Capex'!G40 -> 35338822 | G28: ='C5-Capex'!H40 -> 51291446.96 | H28: =F28-G28 -> -15952624.96 | I28: =IF(H28=0,"",H28/G28) -> -0.3110192031 | J28: ='C5-Capex'!K40 -> 51291446.96
A29: Capital transfers recognised | B29: ='C5-Capex'!C70 -> 4851604 | C29: ='C5-Capex'!D70 -> 28967726 | D29: ='C5-Capex'!E70 -> 29620805.96 | E29: ='C5-Capex'!F70 -> 1830372 | F29: ='C5-Capex'!G70 -> 24013500 | G29: ='C5-Capex'!H70 -> 29620805.96 | H29: -5607305.96 | I29: -0.1893029504 | J29: ='C5-Capex'!K70 -> 29620805.96
A30: Public contributions & donations | B30: ='C5-Capex'!C71 -> 0 | C30: ='C5-Capex'!D71 -> 0 | D30: ='C5-Capex'!E71 -> 0 | E30: ='C5-Capex'!F71 -> 0 | F30: ='C5-Capex'!G71 -> 0 | G30: ='C5-Capex'!H71 -> 0 | H30: 0 | J30: ='C5-Capex'!K71 -> 0
A31: Borrowing | B31: ='C5-Capex'!C72 -> 0 | C31: ='C5-Capex'!D72 -> 0 | D31: ='C5-Capex'!E72 -> 0 | E31: ='C5-Capex'!F72 -> 0 | F31: ='C5-Capex'!G72 -> 0 | G31: ='C5-Capex'!H72 -> 0 | H31: 0 | J31: ='C5-Capex'!K72 -> 0
A32: Internally generated funds | B32: ='C5-Capex'!C73 -> 9243916 | C32: ='C5-Capex'!D73 -> 20308424 | D32: ='C5-Capex'!E73 -> 21670641 | E32: ='C5-Capex'!F73 -> 4226416 | F32: ='C5-Capex'!G73 -> 11325322 | G32: ='C5-Capex'!H73 -> 21670641 | H32: -10345319 | I32: -0.4773886938 | J32: ='C5-Capex'!K73 -> 21670641
A33: Total sources of capital funds | B33: =SUM(B29:B32) -> 14095520 | C33: 49276150 | D33: 51291446.96 | E33: =SUM(E29:E32) -> 6056788 | F33: =SUM(F29:F32) -> 35338822 | G33: =SUM(G29:G32) -> 51291446.96 | H33: -15952624.96 | I33: -0.3110192031 | J33: 51291446.96
A35: Financial position
A36: Total current assets | B36: ='C6-FinPos'!C13 -> 61728258 | C36: ='C6-FinPos'!D13 -> 41560851.04 | D36: ='C6-FinPos'!E13 -> 41560851.04 | F36: ='C6-FinPos'!F13 -> 18476153.34 | J36: ='C6-FinPos'!G13 -> 41560851.04
A37: Total non current assets | B37: ='C6-FinPos'!C25 -> 143387635 | C37: ='C6-FinPos'!D25 -> 261803253 | D37: ='C6-FinPos'!E25 -> 179392550 | F37: ='C6-FinPos'!F25 -> 302282033 | J37: ='C6-FinPos'!G25 -> 179392550
A38: Total current liabilities | B38: ='C6-FinPos'!C35 -> 17128332 | C38: ='C6-FinPos'!D35 -> 9230734.526 | D38: ='C6-FinPos'!E35 -> 9230734.526 | F38: ='C6-FinPos'!F35 -> 5980428.09 | J38: ='C6-FinPos'!G35 -> 9230734.526
A39: Total non current liabilities | B39: ='C6-FinPos'!C40 -> 15101081 | C39: ='C6-FinPos'!D40 -> 4367716.713 | D39: ='C6-FinPos'!E40 -> 4367716.713 | F39: ='C6-FinPos'!F40 -> 0 | J39: ='C6-FinPos'!G40 -> 4367716.713
A40: Community wealth/Equity | B40: ='C6-FinPos'!C48 -> 172886480 | C40: ='C6-FinPos'!D48 -> 289765652.8 | D40: ='C6-FinPos'!E48 -> 207354949.8 | F40: ='C6-FinPos'!F48 -> 314777758 | J40: ='C6-FinPos'!G48 -> 207354949.8
A42: Cash flows
A43: Net cash from (used) operating | B43: ='C7-CFlow'!C18 -> 13453017 | C43: ='C7-CFlow'!D18 -> 47750678.16 | D43: ='C7-CFlow'!E18 -> 47750678.16 | E43: ='C7-CFlow'!F18 -> -11784115 | F43: ='C7-CFlow'!G18 -> 36665850 | G43: ='C7-CFlow'!H18 -> 47750678.16 | H43: =G43-F43 -> 11084828.16 | I43: =IF(H43=0,"",H43/G43) -> 0.2321397012 | J43: ='C7-CFlow'!K18 -> 47750678.16
A44: Net cash from (used) investing | B44: ='C7-CFlow'!C28 -> -14095519 | C44: ='C7-CFlow'!D28 -> -49096150 | D44: ='C7-CFlow'!E28 -> -51291150 | E44: ='C7-CFlow'!F28 -> -6058789 | F44: ='C7-CFlow'!G28 -> -35338823 | G44: ='C7-CFlow'!H28 -> -51291150 | H44: =G44-F44 -> -15952327 | I44: =IF(H44=0,"",H44/G44) -> 0.3110151946 | J44: ='C7-CFlow'!K28 -> -51291150
A45: Net cash from (used) financing | B45: ='C7-CFlow'!C37 -> 0 | C45: ='C7-CFlow'!D37 -> 0 | D45: ='C7-CFlow'!E37 -> 0 | E45: ='C7-CFlow'!F37 -> 0 | F45: ='C7-CFlow'!G37 -> 0 | G45: ='C7-CFlow'!H37 -> 0 | H45: =G45-F45 -> 0 | I45: =IF(H45=0,"",H45/G45) ->  | J45: ='C7-CFlow'!K37 -> 0
A46: Cash/cash equivalents at the month/year end | B46: ='C7-CFlow'!C41 -> 26028814 | C46: ='C7-CFlow'!D41 -> 63915586.16 | D46: ='C7-CFlow'!E41 -> 61720586.16 | E46: ='C7-CFlow'!F41 -> 0 | F46: ='C7-CFlow'!G41 -> 43522973.27 | G46: ='C7-CFlow'!H41 -> 61720586.16 | H46: =G46-F46 -> 18197612.89 | I46: =IF(H46=0,"",H46/G46) -> 0.2948386272 | J46: ='C7-CFlow'!K41 -> 38655474.43
A48: Debtors & creditors analysis | B48: ='SC3'!C3 -> 0-30 Days | C48: ='SC3'!D3 -> 31-60 Days | D48: ='SC3'!E3 -> 61-90 Days | E48: ='SC3'!F3 -> 91-120 Days | F48: ='SC3'!G3 -> 121-150 Dys | G48: ='SC3'!H3 -> 151-180 Dys | H48: ='SC3'!I3 -> 181 Dys-1 Yr | I48: ='SC3'!J3 -> Over 1Yr | J48: Total
A49: =LEFT('SC3'!A4,20) -> Debtors Age Analysis
A50: ='SC3'!A14 -> Total By Income Source | B50: ='SC3'!C14 -> 1492490 | C50: ='SC3'!D14 -> 1442354 | D50: ='SC3'!E14 -> 1534407 | E50: ='SC3'!F14 -> 53535266 | F50: ='SC3'!G14 -> 0 | G50: ='SC3'!H14 -> 0 | H50: ='SC3'!I14 -> 0 | I50: ='SC3'!J14 -> 0 | J50: ='SC3'!K14 -> 58004517
A51: =LEFT('SC4'!A5,22) -> Creditors Age Analysis
A52: Total Creditors | B52: ='SC4'!C15 -> 1715535 | C52: ='SC4'!D15 -> 0 | D52: ='SC4'!E15 -> 0 | E52: ='SC4'!F15 -> 0 | F52: ='SC4'!G15 -> 0 | G52: ='SC4'!H15 -> 0 | H52: ='SC4'!I15 -> 0 | I52: ='SC4'!J15 -> 0 | J52: ='SC4'!K15 -> 1715535

Sheet C2-FinPerf SC
A1: =muni& " - "&S71A& " - "&date -> LIM353 Molemole - Table C2 Monthly Budget Statement - Financial Performance (standard classification) - Q4 Fourth Quarter
A2: =desc -> Description | B2: =head27 -> Ref | C2: =Head1 -> 2014/15 | D2: =Head2 -> Budget Year 2015/16
C3: =Head5 -> Audited Outcome | D3: =Head6 -> Original Budget | E3: =Head7 -> Adjusted Budget | F3: =Head38 -> Monthly actual | G3: =Head39 -> YearTD actual | H3: =Head40 -> YearTD budget | I3: =Head41 -> YTD variance | J3: =Head41 -> YTD variance | K3: =Head8 -> Full Year Forecast
A4: R thousands | B4: 1 | J4: %
A5: Revenue - Standard
A6: Governance and administration | C6: =SUM(C7:C9) -> 108114798 | D6: 126093047.2 | E6: 127247216.9 | F6: 2312878 | G6: 124507112 | H6: 127247216.9 | I6: =G6-H6 -> -2740104.896 | J6: =IF(I6=0,"",I6/H6) -> -0.0215337118 | K6: =SUM(K7:K9) -> 127247216.9
A7: Executive and council | C7: ='C2C'!C7 -> 0 | D7: ='C2C'!D7 -> 0 | E7: ='C2C'!E7 -> 0 | F7: ='C2C'!F7 -> 0 | G7: ='C2C'!G7 -> 0 | H7: ='C2C'!H7 -> 0 | I7: 0 | J7: =IF(I7=0,"",I7/H7) ->  | K7: ='C2C'!K7 -> 0
A8: Budget and treasury office | C8: ='C2C'!C10 -> 107869677 | D8: ='C2C'!D10 -> 125699771.9 | E8: ='C2C'!E10 -> 126856433.9 | F8: ='C2C'!F10 -> 2312878 | G8: ='C2C'!G10 -> 124346449 | H8: ='C2C'!H10 -> 126856433.9 | I8: -2509984.896 | J8: -0.01978602755 | K8: ='C2C'!K10 -> 126856433.9
A9: Corporate services | C9: ='C2C'!C11 -> 245121 | D9: ='C2C'!D11 -> 393275.272 | E9: ='C2C'!E11 -> 390783 | F9: ='C2C'!F11 -> 0 | G9: ='C2C'!G11 -> 160663 | H9: ='C2C'!H11 -> 390783 | I9: -230120 | J9: -0.5888690143 | K9: ='C2C'!K11 -> 390783
A10: Community and public safety | C10: =SUM(C11:C15) -> 7655953 | D10: 11227716.7 | E10: 9232394.199 | F10: 1596828 | G10: 7110953 | H10: 9232394.199 | I10: -2121441.199 | J10: -0.2297823461 | K10: =SUM(K11:K15) -> 9232394.199
A11: Community and social services | C11: ='C2C'!C17 -> 7655953 | D11: ='C2C'!D17 -> 11227716.7 | E11: ='C2C'!E17 -> 9232394.199 | F11: ='C2C'!F17 -> 1596828 | G11: ='C2C'!G17 -> 7110953 | H11: ='C2C'!H17 -> 9232394.199 | I11: -2121441.199 | J11: -0.2297823461 | K11: ='C2C'!K17 -> 9232394.199
A12: Sport and recreation | C12: ='C2C'!C26 -> 0 | D12: ='C2C'!D26 -> 0 | E12: ='C2C'!E26 -> 0 | F12: ='C2C'!F26 -> 0 | G12: ='C2C'!G26 -> 0 | H12: ='C2C'!H26 -> 0 | I12: 0 | K12: ='C2C'!K26 -> 0
A13: Public safety | C13: ='C2C'!C27 -> 0 | D13: ='C2C'!D27 -> 0 | E13: ='C2C'!E27 -> 0 | F13: ='C2C'!F27 -> 0 | G13: ='C2C'!G27 -> 0 | H13: ='C2C'!H27 -> 0 | I13: 0 | K13: ='C2C'!K27 -> 0
A14: Housing | C14: ='C2C'!C33 -> 0 | D14: ='C2C'!D33 -> 0 | E14: ='C2C'!E33 -> 0 | F14: ='C2C'!F33 -> 0 | G14: ='C2C'!G33 -> 0 | H14: ='C2C'!H33 -> 0 | I14: =G14-H14 -> 0 | J14: =IF(I14=0,"",I14/H14) ->  | K14: ='C2C'!K33 -> 0
A15: Health | C15: ='C2C'!C34 -> 0 | D15: ='C2C'!D34 -> 0 | E15: ='C2C'!E34 -> 0 | F15: ='C2C'!F34 -> 0 | G15: ='C2C'!G34 -> 0 | H15: ='C2C'!H34 -> 0 | I15: 0 | K15: ='C2C'!K34 -> 0
A16: Economic and environmental services | C16: =SUM(C17:C19) -> 30001817 | D16: 31566048.13 | E16: 31831715 | F16: 12580 | G16: 27081563 | H16: 31831715 | I16: -4750152 | J16: -0.1492270209 | K16: =SUM(K17:K19) -> 31831715
A17: Planning and development | C17: ='C2C'!C39 -> 25004 | D17: ='C2C'!D39 -> 549048.128 | E17: ='C2C'!E39 -> 493858 | F17: ='C2C'!F39 -> 12580 | G17: ='C2C'!G39 -> 97914 | H17: ='C2C'!H39 -> 493858 | I17: -395944 | J17: -0.8017365316 | K17: ='C2C'!K39 -> 493858
A18: Road transport | C18: ='C2C'!C43 -> 29976813 | D18: ='C2C'!D43 -> 31017000 | E18: ='C2C'!E43 -> 31337857 | F18: ='C2C'!F43 -> 0 | G18: ='C2C'!G43 -> 26983649 | H18: ='C2C'!H43 -> 31337857 | I18: -4354208 | J18: -0.1389440254 | K18: ='C2C'!K43 -> 31337857
A19: Environmental protection | C19: ='C2C'!C49 -> 0 | D19: ='C2C'!D49 -> 0 | E19: ='C2C'!E49 -> 0 | F19: ='C2C'!F49 -> 0 | G19: ='C2C'!G49 -> 0 | H19: ='C2C'!H49 -> 0 | I19: 0 | K19: ='C2C'!K49 -> 0
A20: Trading services | C20: =SUM(C21:C24) -> 7816586 | D20: =SUM(D21:D24) -> 13780193.15 | E20: 13518857.07 | F20: 1163830 | G20: 8371976 | H20: 13518857.07 | I20: -5146881.068 | J20: -0.3807186541 | K20: =SUM(K21:K24) -> 13518857.07
A21: Electricity | C21: ='C2C'!C54 -> 6538615 | D21: ='C2C'!D54 -> 10910785.17 | E21: ='C2C'!E54 -> 9936004.772 | F21: ='C2C'!F54 -> 876626 | G21: ='C2C'!G54 -> 6026460 | H21: ='C2C'!H54 -> 9936004.772 | I21: =G21-H21 -> -3909544.772 | J21: -0.3934725135 | K21: ='C2C'!K54 -> 9936004.772
A22: Water | C22: ='C2C'!C57 -> 1277971 | D22: ='C2C'!D57 -> 2869407.976 | E22: ='C2C'!E57 -> 3582852.296 | F22: ='C2C'!F57 -> 287204 | G22: ='C2C'!G57 -> 2345516 | H22: ='C2C'!H57 -> 3582852.296 | I22: =G22-H22 -> -1237336.296 | J22: -0.3453495131 | K22: ='C2C'!K57 -> 3582852.296
A23: Waste water management | C23: ='C2C'!C60 -> 0 | D23: ='C2C'!D60 -> 0 | E23: ='C2C'!E60 -> 0 | F23: ='C2C'!F60 -> 0 | G23: ='C2C'!G60 -> 0 | H23: ='C2C'!H60 -> 0 | I23: =G23-H23 -> 0 | K23: ='C2C'!K60 -> 0
A24: Waste management | C24: ='C2C'!C64 -> 0 | D24: ='C2C'!D64 -> 0 | E24: ='C2C'!E64 -> 0 | F24: ='C2C'!F64 -> 0 | G24: ='C2C'!G64 -> 0 | H24: ='C2C'!H64 -> 0 | I24: =G24-H24 -> 0 | K24: ='C2C'!K64 -> 0
A25: Other | B25: 4 | C25: ='C2C'!C66 -> 0 | D25: ='C2C'!D66 -> 0 | E25: ='C2C'!E66 -> 0 | F25: ='C2C'!F66 -> 0 | G25: ='C2C'!G66 -> 0 | H25: ='C2C'!H66 -> 0 | I25: =G25-H25 -> 0 | K25: ='C2C'!K66 -> 0
A26: Total Revenue - Standard | B26: 2 | C26: =C6+C10+C16+C20+C25 -> 153589154 | D26: =D6+D10+D16+D20+D25 -> 182667005.1 | E26: 181830183.2 | F26: 5086116 | G26: 167071604 | H26: 181830183.2 | I26: -14758579.16 | J26: -0.08116682779 | K26: =K6+K10+K16+K20+K25 -> 181830183.2
A28: Expenditure - Standard
A29: =A6 -> Governance and administration | C29: =SUM(C30:C32) -> 84896641 | D29: 90219616.21 | E29: 97433515.19 | F29: 10000267 | G29: 77152858 | H29: 97433515.19 | I29: =G29-H29 -> -20280657.19 | J29: =IF(I29=0,"",I29/H29) -> -0.208148676 | K29: =SUM(K30:K32) -> 97433515.19
A30: =A7 -> Executive and council | C30: ='C2C'!C76 -> 23092897 | D30: ='C2C'!D76 -> 30613318.17 | E30: ='C2C'!E76 -> 30853345.63 | F30: ='C2C'!F76 -> 2395789 | G30: ='C2C'!G76 -> 26108359 | H30: ='C2C'!H76 -> 30853345.63 | I30: -4744986.625 | J30: =IF(I30=0,"",I30/H30) -> -0.1537916401 | K30: ='C2C'!K76 -> 30853345.63
A31: Budget and treasury office | C31: ='C2C'!C79 -> 37615237 | D31: ='C2C'!D79 -> 35678566.89 | E31: ='C2C'!E79 -> 42718676.69 | F31: ='C2C'!F79 -> 5474019 | G31: ='C2C'!G79 -> 28735921 | H31: ='C2C'!H79 -> 42718676.69 | I31: -13982755.69 | J31: -0.3273218361 | K31: ='C2C'!K79 -> 42718676.69
A32: Corporate services | C32: ='C2C'!C80 -> 24188507 | D32: ='C2C'!D80 -> 23927731.15 | E32: ='C2C'!E80 -> 23861492.87 | F32: ='C2C'!F80 -> 2130459 | G32: ='C2C'!G80 -> 22308578 | H32: ='C2C'!H80 -> 23861492.87 | I32: -1552914.872 | J32: -0.06508037366 | K32: ='C2C'!K80 -> 23861492.87
A33: Community and public safety | C33: =SUM(C34:C38) -> 15753507 | D33: 17375456.66 | E33: 17547814.56 | F33: 1542321 | G33: 16787869 | H33: 17547814.56 | I33: -759945.5621 | J33: -0.04330713431 | K33: =SUM(K34:K38) -> 17547814.56
A34: Community and social services | C34: ='C2C'!C86 -> 15753507 | D34: ='C2C'!D86 -> 17375456.66 | E34: ='C2C'!E86 -> 17547814.56 | F34: ='C2C'!F86 -> 1542321 | G34: ='C2C'!G86 -> 16787869 | H34: ='C2C'!H86 -> 17547814.56 | I34: -759945.5621 | J34: -0.04330713431 | K34: ='C2C'!K86 -> 17547814.56
A35: Sport and recreation | C35: ='C2C'!C95 -> 0 | D35: ='C2C'!D95 -> 0 | E35: ='C2C'!E95 -> 0 | F35: ='C2C'!F95 -> 0 | G35: ='C2C'!G95 -> 0 | H35: ='C2C'!H95 -> 0 | I35: 0 | K35: ='C2C'!K95 -> 0
A36: Public safety | C36: ='C2C'!C96 -> 0 | D36: ='C2C'!D96 -> 0 | E36: ='C2C'!E96 -> 0 | F36: ='C2C'!F96 -> 0 | G36: ='C2C'!G96 -> 0 | H36: ='C2C'!H96 -> 0 | I36: 0 | K36: ='C2C'!K96 -> 0
A37: Housing | C37: ='C2C'!C102 -> 0 | D37: ='C2C'!D102 -> 0 | E37: ='C2C'!E102 -> 0 | F37: ='C2C'!F102 -> 0 | G37: ='C2C'!G102 -> 0 | H37: ='C2C'!H102 -> 0 | I37: 0 | K37: ='C2C'!K102 -> 0
A38: Health | C38: ='C2C'!C103 -> 0 | D38: ='C2C'!D103 -> 0 | E38: ='C2C'!E103 -> 0 | F38: ='C2C'!F103 -> 0 | G38: ='C2C'!G103 -> 0 | H38: ='C2C'!H103 -> 0 | I38: 0 | K38: ='C2C'!K103 -> 0
A39: Economic and environmental services | C39: =SUM(C40:C42) -> 30637235 | D39: 15035772.35 | E39: 17408036.95 | F39: 3604852 | G39: 14506710 | H39: 17408036.95 | I39: -2901326.953 | J39: -0.1666659464 | K39: =SUM(K40:K42) -> 17408036.95
A40: Planning and development | C40: ='C2C'!C108 -> 3518553 | D40: ='C2C'!D108 -> 6434011.731 | E40: ='C2C'!E108 -> 6885142.731 | F40: ='C2C'!F108 -> 1225837 | G40: ='C2C'!G108 -> 5129990 | H40: ='C2C'!H108 -> 6885142.731 | I40: -1755152.731 | J40: -0.2549188593 | K40: ='C2C'!K108 -> 6885142.731
A41: Road transport | C41: ='C2C'!C112 -> 27118682 | D41: ='C2C'!D112 -> 8601760.622 | E41: ='C2C'!E112 -> 10522894.22 | F41: ='C2C'!F112 -> 2379015 | G41: ='C2C'!G112 -> 9376720 | H41: ='C2C'!H112 -> 10522894.22 | I41: -1146174.222 | J41: -0.1089219561 | K41: ='C2C'!K112 -> 10522894.22
A42: Environmental protection | C42: ='C2C'!C118 -> 0 | D42: ='C2C'!D118 -> 0 | E42: ='C2C'!E118 -> 0 | F42: ='C2C'!F118 -> 0 | G42: ='C2C'!G118 -> 0 | H42: ='C2C'!H118 -> 0 | I42: 0 | K42: ='C2C'!K118 -> 0
A43: Trading services | C43: =SUM(C44:C47) -> 8849101 | D43: =SUM(D44:D47) -> 10483711.37 | E43: 11871266.37 | F43: 943123 | G43: 8134409 | H43: 11871266.37 | I43: -3736857.365 | J43: -0.3147816964 | K43: =SUM(K44:K47) -> 11871266.37
A44: Electricity | C44: ='C2C'!C123 -> 2915123 | D44: ='C2C'!D123 -> 2780647.213 | E44: ='C2C'!E123 -> 4108202.213 | F44: ='C2C'!F123 -> 360979 | G44: ='C2C'!G123 -> 2442214 | H44: ='C2C'!H123 -> 4108202.213 | I44: -1665988.213 | J44: -0.4055273151 | K44: ='C2C'!K123 -> 4108202.213
A45: Water | C45: ='C2C'!C126 -> 5933978 | D45: ='C2C'!D126 -> 7703064.152 | E45: ='C2C'!E126 -> 7763064.152 | F45: ='C2C'!F126 -> 582144 | G45: ='C2C'!G126 -> 5692195 | H45: ='C2C'!H126 -> 7763064.152 | I45: -2070869.152 | J45: -0.2667592475 | K45: ='C2C'!K126 -> 7763064.152
A46: Waste water management | C46: ='C2C'!C129 -> 0 | D46: ='C2C'!D129 -> 0 | E46: ='C2C'!E129 -> 0 | F46: ='C2C'!F129 -> 0 | G46: ='C2C'!G129 -> 0 | H46: ='C2C'!H129 -> 0 | I46: 0 | K46: ='C2C'!K129 -> 0
A47: Waste management | C47: ='C2C'!C133 -> 0 | D47: ='C2C'!D133 -> 0 | E47: ='C2C'!E133 -> 0 | F47: ='C2C'!F133 -> 0 | G47: ='C2C'!G133 -> 0 | H47: ='C2C'!H133 -> 0 | I47: 0 | K47: ='C2C'!K133 -> 0
A48: Other | C48: ='C2C'!C135 -> 0 | D48: ='C2C'!D135 -> 0 | E48: ='C2C'!E135 -> 0 | F48: ='C2C'!F135 -> 0 | G48: ='C2C'!G135 -> 0 | H48: ='C2C'!H135 -> 0 | I48: 0 | K48: ='C2C'!K135 -> 0
A49: Total Expenditure - Standard | B49: 3 | C49: =C29+C33+C39+C43+C48 -> 140136484 | D49: =D29+D33+D39+D43+D48 -> 133114556.6 | E49: 144260633.1 | F49: 16090563 | G49: 116581846 | H49: 144260633.1 | I49: -27678787.07 | J49: -0.1918665299 | K49: =K29+K33+K39+K43+K48 -> 144260633.1
A50: Surplus/ (Deficit) for the year | C50: =C26-C49 -> 13452670 | D50: 49552448.56 | E50: 37569550.1 | F50: -11004447 | G50: 50489758 | H50: 37569550.1 | I50: =I26-I49 -> 12920207.9 | J50: =IF(I50=0,"",I50/H50) -> 0.3439010547 | K50: =K26-K49 -> 37569550.1
A51: =head27a -> References
A52: 1. Government Finance Statistics Functions and Sub-functions are standardised to assist the compilation of national and international accounts for comparison purposes
A53: 2. Total Revenue by standard classification must reconcile to Total Operating Revenue shown in the Financial Performance Statement
A54: 3. Total Expenditure by standard classification must reconcile to total operating expenditure shown in 'Financial Performance Statement'
A55: 4. All amounts must be classified under a standard classification (modified GFS). The GFS function 'Other' is only for Abbatoirs, Air Transport, Markets and Tourism - and if used must be supported by footnotes. Nothing else may be placed under 'Other'. Assign associate share to relevant classification

Sheet C2C
A1: =muni& " - "&S71A& " - "&date -> LIM353 Molemole - Table C2 Monthly Budget Statement - Financial Performance (standard classification) - Q4 Fourth Quarter
A2: =desc -> Description | B2: =head27 -> Ref | C2: =Head1 -> 2014/15 | D2: =Head2 -> Budget Year 2015/16
C3: =Head5 -> Audited Outcome | D3: =Head6 -> Original Budget | E3: =Head7 -> Adjusted Budget | F3: =Head38 -> Monthly actual | G3: =Head39 -> YearTD actual | H3: =Head40 -> YearTD budget | I3: =Head41 -> YTD variance | J3: =Head41 -> YTD variance | K3: =Head8 -> Full Year Forecast
A4: R thousands | B4: 1 | J4: %
A5: Revenue - Standard
A6: Municipal governance and administration | C6: =C7+C10+C11 -> 108114798 | D6: =D7+D10+D11 -> 126093047.2 | E6: 127247216.9 | F6: 2312878 | G6: 124507112 | H6: 127247216.9 | I6: =G6-H6 -> -2740104.896 | J6: =IF(I6=0,"",I6/H6) -> -0.0215337118 | K6: 127247216.9
A7: Executive and council | C7: =SUM(C8:C9) -> 0 | D7: =SUM(D8:D9) -> 0 | E7: 0 | F7: 0 | G7: 0 | H7: 0 | I7: =G7-H7 -> 0 | J7: =IF(I7=0,"",I7/H7) ->  | K7: 0
A8: Mayor and Council | C8: 0 | D8: =[6]A2A!$I$7 -> 0 | E8: 0 | F8: 0 | G8: 0 | H8: =D8/12*12 -> 0 | I8: 0 | K8: =D8 -> 0
A9: Municipal Manager | C9: 0 | D9: =[6]A2A!$I$8 -> 0 | E9: 0 | F9: 0 | G9: 0 | H9: =D9/12*12 -> 0 | I9: 0 | K9: =D9 -> 0
A10: Budget and treasury office | C10: =[7]Sheet1!$H$161 -> 107869677 | D10: =[6]A2A!$I$9 -> 125699771.9 | E10: =[8]B2B!$K$11 -> 126856433.9 | F10: 2312878 | G10: =122033571+F10 -> 124346449 | H10: =E10*12/12 -> 126856433.9 | I10: -2509984.896 | J10: -0.01978602755 | K10: =E10 -> 126856433.9
A11: Corporate services | C11: =SUM(C12:C15) -> 245121 | D11: =SUM(D12:D15) -> 393275.272 | E11: 390783 | F11: 0 | G11: 160663 | H11: 390783 | I11: -230120 | J11: -0.5888690143 | K11: 390783
A12: Human Resources | C12: 0 | D12: 0 | E12: 0 | F12: 0 | G12: 0 | H12: =D12/12*1 -> 0 | I12: 0 | K12: =D12 -> 0
A13: Information Technology | C13: 0 | D13: 0 | E13: 0 | F13: 0 | G13: 0 | H13: =D13/12*1 -> 0 | I13: 0 | K13: =D13 -> 0
A14: Property Services | C14: 0 | D14: 0 | E14: 0 | F14: 0 | G14: 0 | H14: 0 | I14: 0 | K14: 0
A15: Other Admin | C15: =[7]Sheet1!$H$435 -> 245121 | D15: =[6]A2A!$I$14 -> 393275.272 | E15: =[8]B2B!$K$16 -> 390783 | F15: 0 | G15: 160663 | H15: =E15/12*12 -> 390783 | I15: -230120 | J15: -0.5888690143 | K15: =E15 -> 390783
A16: Community and public safety | C16: =C17+C26+C27+C33+C34 -> 7655953 | D16: =D17+D26+D27+D33+D34 -> 11227716.7 | E16: 9232394.199 | F16: 1596828 | G16: 7110953 | H16: 9232394.199 | I16: -2121441.199 | J16: -0.2297823461 | K16: 9232394.199
A17: Community and social services | C17: =SUM(C18:C25) -> 7655953 | D17: =SUM(D18:D25) -> 11227716.7 | E17: 9232394.199 | F17: 1596828 | G17: 7110953 | H17: 9232394.199 | I17: -2121441.199 | J17: -0.2297823461 | K17: 9232394.199
A18: Libraries and Archives | C18: 0 | D18: 0 | E18: 0 | F18: 0 | G18: 0 | H18: 0 | I18: 0 | K18: =D18 -> 0
A19: Museums & Art Galleries etc | C19: 0 | D19: 0 | E19: 0 | F19: 0 | G19: 0 | H19: 0 | I19: 0 | K19: =D19 -> 0
A20: Community halls and Facilities | C20: 0 | D20: 0 | E20: 0 | F20: 0 | G20: 0 | H20: 0 | I20: 0 | K20: 0
A21: Cemeteries & Crematoriums | C21: 0 | D21: 0 | E21: 0 | F21: 0 | G21: 0 | H21: 0 | I21: 0 | K21: 0
A22: Child Care | C22: 0 | D22: 0 | E22: 0 | F22: 0 | G22: 0 | H22: 0 | I22: 0 | K22: 0
A23: Aged Care | C23: 0 | D23: 0 | E23: 0 | F23: 0 | G23: 0 | H23: 0 | I23: 0 | K23: 0
A24: Other Community | C24: 0 | D24: 0 | E24: 0 | F24: 0 | G24: 0 | H24: 0 | I24: 0 | K24: 0
A25: Other Social | C25: =[7]Sheet1!$H$1501-859818 -> 7655953 | D25: =[6]A2A!$I$24 -> 11227716.7 | E25: =[8]B2B!$K$26 -> 9232394.199 | F25: 1596828 | G25: =5514125+F25 -> 7110953 | H25: =E25/12*12 -> 9232394.199 | I25: -2121441.199 | J25: -0.2297823461 | K25: =E25 -> 9232394.199
A26: Sport and recreation | C26: 0 | E26: 0 | F26: 0 | G26: 0 | H26: 0 | I26: 0 | K26: 0
A27: Public safety | C27: =SUM(C28:C32) -> 0 | D27: 0 | E27: 0 | F27: 0 | G27: 0 | H27: 0 | I27: 0 | K27: =SUM(K28:K32) -> 0
A28: Police | C28: 0 | D28: 0 | E28: 0 | F28: 0 | G28: 0 | H28: 0 | I28: =G28-H28 -> 0 | J28: =IF(I28=0,"",I28/H28) ->  | K28: =D28 -> 0
A29: Fire | C29: 0 | D29: 0 | E29: 0 | F29: 0 | G29: 0 | H29: 0 | I29: 0 | K29: =D29 -> 0
A30: Civil Defence | C30: 0 | D30: 0 | E30: 0 | F30: 0 | G30: 0 | H30: 0 | I30: 0 | K30: 0
A31: Street Lighting | C31: 0 | D31: 0 | E31: 0 | F31: 0 | G31: 0 | H31: 0 | I31: =G31-H31 -> 0 | J31: =IF(I31=0,"",I31/H31) ->  | K31: 0
A32: Other | C32: 0 | D32: 0 | E32: 0 | F32: 0 | G32: 0 | H32: 0 | I32: 0 | K32: 0
A33: Housing | C33: 0 | D33: 0 | E33: 0 | F33: 0 | G33: 0 | H33: 0 | I33: 0 | K33: 0
A34: Health | C34: =SUM(C35:C37) -> 0 | D34: =SUM(D35:D37) -> 0 | E34: 0 | F34: 0 | G34: 0 | H34: 0 | I34: 0 | K34: 0
A35: Clinics | C35: 0 | D35: 0 | E35: 0 | F35: 0 | G35: 0 | H35: 0 | I35: 0 | K35: =D35 -> 0
A36: Ambulance | C36: 0 | D36: 0 | E36: 0 | F36: 0 | G36: 0 | H36: 0 | I36: 0 | K36: =D36 -> 0
A37: Other | C37: 0 | D37: 0 | E37: 0 | F37: 0 | G37: 0 | H37: 0 | I37: 0 | K37: 0
A38: Economic and environmental services | C38: =C39+C43+C49 -> 30001817 | D38: =D39+D43+D49 -> 31566048.13 | E38: 31831715 | F38: 12580 | G38: 27081563 | H38: 31831715 | I38: -4750152 | J38: -0.1492270209 | K38: 31831715
A39: Planning and development | C39: =SUM(C40:C42) -> 25004 | D39: =SUM(D40:D42) -> 549048.128 | E39: 493858 | F39: 12580 | G39: 97914 | H39: 493858 | I39: -395944 | J39: -0.8017365316 | K39: 493858
A40: Economic Development/Planning | C40: =[7]Sheet1!$H$563 -> 25004 | D40: =[6]A2A!$I$39 -> 549048.128 | E40: =[8]B2B!$K$41 -> 493858 | F40: 12580 | G40: =85334+F40 -> 97914 | H40: =E40/12*12 -> 493858 | I40: -395944 | J40: -0.8017365316 | K40: =E40 -> 493858
A41: Town Planning/Building enforcement | C41: 0 | D41: 0 | E41: 0 | F41: 0 | G41: 0 | H41: 0 | I41: 0 | K41: =D41 -> 0
A42: Licensing & Regulation | C42: 0 | D42: 0 | E42: 0 | F42: 0 | G42: 0 | H42: 0 | I42: 0 | K42: 0
A43: Road transport | C43: =SUM(C44:C48) -> 29976813 | D43: =SUM(D44:D48) -> 31017000 | E43: 31337857 | F43: 0 | G43: 26983649 | H43: 31337857 | I43: -4354208 | J43: -0.1389440254 | K43: 31337857
A44: Roads | C44: =[7]Sheet1!$H$2780 -> 29976813 | D44: =[6]A2A!$I$43 -> 31017000 | E44: =[8]B2B!$K$45 -> 31337857 | F44: 0 | G44: 26983649 | H44: =E44/12*12 -> 31337857 | I44: -4354208 | J44: -0.1389440254 | K44: =E44 -> 31337857
A45: Public Buses | C45: 0 | D45: 0 | E45: 0 | F45: 0 | G45: 0 | H45: 0 | I45: 0 | K45: =D45 -> 0
A46: Parking Garages | C46: 0 | D46: 0 | E46: 0 | F46: 0 | G46: 0 | H46: 0 | I46: 0 | K46: 0
A47: Vehicle Licensing and Testing | C47: 0 | D47: 0 | E47: 0 | F47: 0 | G47: 0 | H47: 0 | I47: 0 | K47: 0
A48: Other | C48: 0 | D48: 0 | E48: 0 | F48: 0 | G48: 0 | H48: 0 | I48: 0 | K48: 0
A49: Environmental protection | C49: =SUM(C50:C52) -> 0 | D49: =SUM(D50:D52) -> 0 | E49: 0 | F49: 0 | G49: 0 | H49: 0 | I49: 0 | K49: 0
A50: Pollution Control | C50: 0 | D50: 0 | E50: 0 | F50: 0 | G50: 0 | H50: 0 | I50: 0 | K50: =D50 -> 0
A51: Biodiversity & Landscape | C51: 0 | D51: 0 | E51: 0 | F51: 0 | G51: 0 | H51: 0 | I51: 0 | K51: =D51 -> 0
A52: Other | C52: 0 | D52: 0 | E52: 0 | F52: 0 | G52: 0 | H52: 0 | I52: 0 | K52: 0
A53: Trading services | C53: =C54+C57+C60+C64 -> 7816586 | D53: =D54+D57+D60+D64 -> 13780193.15 | E53: 13518857.07 | F53: 1163830 | G53: 8371976 | H53: 13518857.07 | I53: -5146881.068 | J53: -0.3807186541 | K53: =K54+K57+K60+K64 -> 13518857.07
A54: Electricity | C54: =SUM(C55:C56) -> 6538615 | D54: =SUM(D55:D56) -> 10910785.17 | E54: 9936004.772 | F54: 876626 | G54: 6026460 | H54: 9936004.772 | I54: -3909544.772 | J54: -0.3934725135 | K54: 9936004.772
A55: Electricity Distribution | C55: =[7]Sheet1!$H$3377 -> 6538615 | D55: =[6]A2A!$I$54 -> 10910785.17 | E55: =[8]B2B!$K$56 -> 9936004.772 | F55: 876626 | G55: =5149834+F55 -> 6026460 | H55: =E55/12*12 -> 9936004.772 | I55: -3909544.772 | J55: -0.3934725135 | K55: =E55 -> 9936004.772
A56: Electricity Generation | C56: 0 | D56: 0 | E56: 0 | F56: 0 | G56: 0 | H56: 0 | I56: 0 | K56: =D56 -> 0
A57: Water | C57: =SUM(C58:C59) -> 1277971 | D57: =SUM(D58:D59) -> 2869407.976 | E57: 3582852.296 | F57: 287204 | G57: 2345516 | H57: 3582852.296 | I57: -1237336.296 | J57: -0.3453495131 | K57: 3582852.296
A58: Water Distribution | C58: =[7]Sheet1!$H$3182 -> 1277971 | D58: =[6]A2A!$I$57 -> 2869407.976 | E58: =[8]B2B!$K$59 -> 3582852.296 | F58: 287204 | G58: =2058312+F58 -> 2345516 | H58: =E58/12*12 -> 3582852.296 | I58: -1237336.296 | J58: -0.3453495131 | K58: =E58 -> 3582852.296
A59: Water Storage | C59: 0 | D59: 0 | E59: 0 | F59: 0 | G59: 0 | H59: 0 | I59: 0 | K59: =D59 -> 0
A60: Waste water management | C60: =SUM(C61:C63) -> 0 | D60: =SUM(D61:D63) -> 0 | E60: 0 | F60: 0 | G60: 0 | H60: 0 | I60: 0 | K60: 0
A61: Sewerage | C61: 0 | D61: 0 | E61: 0 | F61: 0 | G61: 0 | H61: 0 | I61: 0 | K61: =D61 -> 0
A62: Storm Water Management | C62: 0 | D62: 0 | E62: 0 | F62: 0 | G62: 0 | H62: 0 | I62: 0 | K62: =D62 -> 0
A63: Public Toilets | C63: 0 | D63: 0 | E63: 0 | F63: 0 | G63: 0 | H63: 0 | I63: 0 | K63: 0
A64: Waste management | C64: =SUM(C65) -> 0 | D64: =SUM(D65) -> 0 | E64: 0 | F64: 0 | G64: 0 | H64: 0 | I64: 0 | K64: 0
A65: Solid Waste | C65: 0 | D65: 0 | E65: 0 | F65: 0 | G65: 0 | H65: 0 | I65: 0 | K65: 0
A66: Other | C66: =SUM(C67:C71) -> 0 | D66: =SUM(D67:D71) -> 0 | E66: 0 | F66: 0 | G66: 0 | H66: 0 | I66: 0 | K66: 0
A67: Air Transport | C67: 0 | D67: 0 | E67: 0 | F67: 0 | G67: 0 | H67: 0 | I67: 0 | K67: 0
A68: Abattoirs | C68: 0 | D68: 0 | E68: 0 | F68: 0 | G68: 0 | H68: 0 | I68: 0 | K68: 0
A69: Tourism | C69: 0 | D69: 0 | E69: 0 | F69: 0 | G69: 0 | H69: 0 | I69: 0 | K69: 0
A70: Forestry | C70: 0 | D70: 0 | E70: 0 | F70: 0 | G70: 0 | H70: 0 | I70: 0 | K70: 0
A71: Markets | C71: 0 | D71: 0 | E71: 0 | F71: 0 | G71: 0 | H71: 0 | I71: =G71-H71 -> 0 | J71: =IF(I71=0,"",I71/H71) ->  | K71: 0
A72: ="Total "&A5 -> Total Revenue - Standard | B72: 2 | C72: =C6+C16+C38+C53+C66 -> 153589154 | D72: 182667005.1 | E72: 181830183.2 | F72: 5086116 | G72: 167071604 | H72: 181830183.2 | I72: =G72-H72 -> -14758579.16 | J72: =IF(I72=0,"",I72/H72) -> -0.08116682779 | K72: =K6+K16+K38+K53+K66 -> 181830183.2
A74: Expenditure - Standard
A75: =A6 -> Municipal governance and administration | C75: =C76+C79+C80 -> 84896641 | D75: 90219616.21 | E75: 97433515.19 | F75: 10000267 | G75: 77152858 | H75: 97433515.19 | I75: =G75-H75 -> -20280657.19 | J75: =IF(I75=0,"",I75/H75) -> -0.208148676 | K75: 97433515.19
A76: =A7 -> Executive and council | C76: =SUM(C77:C78) -> 23092897 | D76: 30613318.17 | E76: 30853345.63 | F76: 2395789 | G76: 26108359 | H76: 30853345.63 | I76: -4744986.625 | J76: -0.1537916401 | K76: 30853345.63
A77: Mayor and Council | C77: =[7]Sheet1!$H$52 -> 10082426 | D77: =[6]A2A!$I$76 -> 13214385.59 | E77: =[8]B2B!$K$78 -> 13294642.57 | F77: 1012884 | G77: =10188505+F77 -> 11201389 | H77: =E77/12*12 -> 13294642.57 | I77: -2093253.566 | J77: -0.1574509097 | K77: =E77 -> 13294642.57
A78: Municipal Manager | C78: =[7]Sheet1!$H$119 -> 13010471 | D78: =[6]A2A!$I$77 -> 17398932.58 | E78: =[8]B2B!$K$79 -> 17558703.06 | F78: 1382905 | G78: =13524065+F78 -> 14906970 | H78: =E78/12*12 -> 17558703.06 | I78: -2651733.06 | J78: -0.1510210094 | K78: =E78 -> 17558703.06
A79: Budget and treasury office | C79: =[7]Sheet1!$H$186 -> 37615237 | D79: =[6]A2A!$I$78 -> 35678566.89 | E79: =[8]B2B!$K$80 -> 42718676.69 | F79: =3758484+1715535 -> 5474019 | G79: =22364696+897206+F79 -> 28735921 | H79: 42718676.69 | I79: -13982755.69 | J79: -0.3273218361 | K79: =E79 -> 42718676.69
A80: Corporate services | C80: =SUM(C81:C84) -> 24188507 | D80: 23927731.15 | E80: 23861492.87 | F80: 2130459 | G80: 22308578 | H80: 23861492.87 | I80: -1552914.872 | J80: -0.06508037366 | K80: 23861492.87
A81: Human Resources | C81: =[7]Sheet1!$H$460 -> 24188507 | D81: =[6]A2A!$I$80 -> 23927731.15 | E81: =[8]B2B!$K$82 -> 23861492.87 | F81: 2130459 | G81: =20178119+F81 -> 22308578 | H81: =E81/12*12 -> 23861492.87 | I81: -1552914.872 | J81: -0.06508037366 | K81: =E81 -> 23861492.87
A82: Information Technology | C82: 0 | D82: 0 | E82: 0 | F82: 0 | G82: 0 | H82: 0 | I82: 0 | K82: 0
A83: Property Services | C83: 0 | D83: 0 | E83: 0 | F83: 0 | G83: 0 | H83: 0 | I83: 0 | K83: 0
A84: Other Admin | C84: 0 | D84: 0 | E84: 0 | F84: 0 | G84: 0 | H84: 0 | I84: 0 | K84: 0
A85: Community and public safety | C85: =C86+C95+C96+C102+C103 -> 15753507 | D85: 17375456.66 | E85: 17547814.56 | F85: 1542321 | G85: 16787869 | H85: 17547814.56 | I85: -759945.5621 | J85: -0.04330713431 | K85: 17547814.56
A86: Community and social services | C86: =SUM(C87:C94) -> 15753507 | D86: 17375456.66 | E86: 17547814.56 | F86: 1542321 | G86: 16787869 | H86: 17547814.56 | I86: -759945.5621 | J86: -0.04330713431 | K86: 17547814.56
A87: Libraries and Archives | C87: 0 | D87: 0 | E87: 0 | F87: 0 | G87: 0 | H87: 0 | I87: 0 | K87: =D87 -> 0
A88: Museums & Art Galleries etc | C88: 0 | D88: 0 | E88: 0 | F88: 0 | G88: 0 | H88: 0 | I88: 0 | K88: =D88 -> 0
A89: Community halls and Facilities | C89: 0 | D89: 0 | E89: 0 | F89: 0 | G89: 0 | H89: 0 | I89: 0 | K89: 0
A90: Cemeteries & Crematoriums | C90: 0 | D90: 0 | E90: 0 | F90: 0 | G90: 0 | H90: 0 | I90: 0 | K90: 0
A91: Child Care | C91: 0 | D91: 0 | E91: 0 | F91: 0 | G91: 0 | H91: 0 | I91: 0 | K91: 0
A92: Aged Care | C92: 0 | D92: 0 | E92: 0 | F92: 0 | G92: 0 | H92: 0 | I92: 0 | K92: 0
A93: Other Community | C93: 0 | D93: 0 | E93: 0 | F93: 0 | G93: 0 | H93: 0 | I93: 0 | K93: 0
A94: Other Social | C94: =[7]Sheet1!$H$1532 -> 15753507 | D94: =[6]A2A!$I$93 -> 17375456.66 | E94: =[8]B2B!$K$95 -> 17547814.56 | F94: 1542321 | G94: =15245548+F94 -> 16787869 | H94: =E94/12*12 -> 17547814.56 | I94: -759945.5621 | J94: -0.04330713431 | K94: =E94 -> 17547814.56
A95: Sport and recreation | C95: 0 | D95: 0 | E95: 0 | F95: 0 | G95: 0 | H95: 0 | I95: 0 | K95: 0
A96: Public safety | C96: =SUM(C97:C101) -> 0 | D96: 0 | E96: 0 | F96: 0 | G96: 0 | H96: 0 | I96: 0 | K96: 0
A97: Police | C97: 0 | D97: 0 | E97: 0 | F97: 0 | G97: 0 | H97: 0 | I97: 0 | K97: =D97 -> 0
A98: Fire | C98: 0 | D98: 0 | E98: 0 | F98: 0 | G98: 0 | H98: 0 | I98: 0 | K98: =D98 -> 0
A99: Civil Defence | C99: 0 | D99: 0 | E99: 0 | F99: 0 | G99: 0 | H99: 0 | I99: 0 | K99: 0
A100: Street Lighting | C100: 0 | D100: 0 | E100: 0 | F100: 0 | G100: 0 | H100: 0 | I100: 0 | K100: 0
A101: Other | C101: 0 | D101: 0 | E101: 0 | F101: 0 | G101: 0 | H101: 0 | I101: 0 | K101: 0
A102: Housing | C102: 0 | D102: 0 | E102: 0 | F102: 0 | G102: 0 | H102: 0 | I102: 0 | K102: 0
A103: Health | C103: =SUM(C104:C106) -> 0 | D103: 0 | E103: 0 | F103: 0 | G103: 0 | H103: 0 | I103: 0 | K103: 0
A104: Clinics | C104: 0 | D104: 0 | E104: 0 | F104: 0 | G104: 0 | H104: 0 | I104: 0 | K104: 0
A105: Ambulance | C105: 0 | D105: 0 | E105: 0 | F105: 0 | G105: 0 | H105: 0 | I105: 0 | K105: 0
A106: Other | C106: 0 | D106: 0 | E106: 0 | F106: 0 | G106: 0 | H106: 0 | I106: 0 | K106: 0
A107: Economic and environmental services | C107: =C108+C112+C118 -> 30637235 | D107: 15035772.35 | E107: 17408036.95 | F107: 3604852 | G107: 14506710 | H107: 17408036.95 | I107: -2901326.953 | J107: -0.1666659464 | K107: 17408036.95
A108: Planning and development | C108: =SUM(C109:C111) -> 3518553 | D108: 6434011.731 | E108: 6885142.731 | F108: 1225837 | G108: 5129990 | H108: 6885142.731 | I108: -1755152.731 | J108: -0.2549188593 | K108: 6885142.731
A109: Economic Development/Planning | C109: =[7]Sheet1!$H$588 -> 3518553 | D109: =[6]A2A!$I$108 -> 6434011.731 | E109: =[8]B2B!$K$110 -> 6885142.731 | F109: 1225837 | G109: =3904153+F109 -> 5129990 | H109: =E109/12*12 -> 6885142.731 | I109: -1755152.731 | J109: -0.2549188593 | K109: =E109 -> 6885142.731
A110: Town Planning/Building enforcement | C110: 0 | D110: 0 | E110: 0 | F110: 0 | G110: 0 | H110: 0 | I110: 0 | K110: 0
A111: Licensing & Regulation | C111: 0 | D111: 0 | E111: 0 | F111: 0 | G111: 0 | H111: 0 | I111: 0 | K111: 0
A112: Road transport | C112: =SUM(C113:C117) -> 27118682 | D112: 8601760.622 | E112: 10522894.22 | F112: 2379015 | G112: 9376720 | H112: 10522894.22 | I112: -1146174.222 | J112: -0.1089219561 | K112: 10522894.22
A113: Roads | C113: =[7]Sheet1!$H$2799 -> 27118682 | D113: =[6]A2A!$I$112 -> 8601760.622 | E113: =[8]B2B!$K$114 -> 10522894.22 | F113: 2379015 | G113: =6997705+F113 -> 9376720 | H113: =E113/12*12 -> 10522894.22 | I113: -1146174.222 | J113: -0.1089219561 | K113: =E113 -> 10522894.22
A114: Public Buses | C114: 0 | D114: 0 | E114: 0 | F114: 0 | G114: 0 | H114: 0 | I114: 0 | K114: 0
A115: Parking Garages | C115: 0 | D115: 0 | E115: 0 | F115: 0 | G115: 0 | H115: 0 | I115: 0 | K115: 0
A116: Vehicle Licensing and Testing | C116: 0 | D116: 0 | E116: 0 | F116: 0 | G116: 0 | H116: 0 | I116: 0 | K116: 0
A117: Other | C117: 0 | D117: 0 | E117: 0 | F117: 0 | G117: 0 | H117: 0 | I117: 0 | K117: 0
A118: Environmental protection | C118: =SUM(C119:C121) -> 0 | D118: 0 | E118: 0 | F118: 0 | G118: 0 | H118: 0 | I118: 0 | K118: 0
A119: Pollution Control | C119: 0 | D119: 0 | E119: 0 | F119: 0 | G119: 0 | H119: 0 | I119: 0 | K119: 0
A120: Biodiversity & Landscape | C120: 0 | D120: 0 | E120: 0 | F120: 0 | G120: 0 | H120: 0 | I120: 0 | K120: 0
A121: Other | C121: 0 | D121: 0 | E121: 0 | F121: 0 | G121: 0 | H121: 0 | I121: 0 | K121: 0
A122: Trading services | C122: =C123+C126+C129+C133 -> 8849101 | D122: =D123+D126+D129+D133 -> 10483711.37 | E122: 11871266.37 | F122: 943123 | G122: 8134409 | H122: 11871266.37 | I122: -3736857.365 | J122: -0.3147816964 | K122: =K123+K126+K129+K133 -> 11871266.37
A123: Electricity | C123: =SUM(C124:C125) -> 2915123 | D123: 2780647.213 | E123: 4108202.213 | F123: 360979 | G123: 2442214 | H123: 4108202.213 | I123: -1665988.213 | J123: -0.4055273151 | K123: 4108202.213
A124: Electricity Distribution | C124: =[7]Sheet1!$H$3402 -> 2915123 | D124: =[6]A2A!$I$123 -> 2780647.213 | E124: =[8]B2B!$K$125 -> 4108202.213 | F124: 360979 | G124: =2081235+F124 -> 2442214 | H124: =E124/12*12 -> 4108202.213 | I124: -1665988.213 | J124: -0.4055273151 | K124: =E124 -> 4108202.213
A125: Electricity Generation | C125: 0 | D125: 0 | E125: 0 | F125: 0 | G125: 0 | H125: 0 | I125: 0 | K125: 0
A126: Water | C126: =SUM(C127:C128) -> 5933978 | D126: 7703064.152 | E126: 7763064.152 | F126: 582144 | G126: 5692195 | H126: 7763064.152 | I126: -2070869.152 | J126: -0.2667592475 | K126: 7763064.152
A127: Water Distribution | C127: =[7]Sheet1!$H$3201+219000 -> 5933978 | D127: =[6]A2A!$I$126 -> 7703064.152 | E127: =[8]B2B!$K$128 -> 7763064.152 | F127: 582144 | G127: =5110051+F127 -> 5692195 | H127: =E127/12*12 -> 7763064.152 | I127: -2070869.152 | J127: -0.2667592475 | K127: =E127 -> 7763064.152
A128: Water Storage | C128: 0 | D128: 0 | E128: 0 | F128: 0 | G128: 0 | H128: 0 | I128: 0 | K128: 0
A129: Waste water management | C129: =SUM(C130:C132) -> 0 | D129: 0 | E129: 0 | F129: 0 | G129: 0 | H129: 0 | I129: 0 | K129: 0
A130: Sewerage | C130: 0 | D130: 0 | E130: 0 | F130: 0 | G130: 0 | H130: 0 | I130: 0 | K130: 0
A131: Storm Water Management | C131: 0 | D131: 0 | E131: 0 | F131: 0 | G131: 0 | H131: 0 | I131: 0 | K131: 0
A132: Public Toilets | C132: 0 | D132: 0 | E132: 0 | F132: 0 | G132: 0 | H132: 0 | I132: 0 | K132: 0
A133: Waste management | C133: =SUM(C134) -> 0 | D133: 0 | E133: 0 | F133: 0 | G133: 0 | H133: 0 | I133: 0 | K133: 0
A134: Solid Waste | C134: 0 | D134: 0 | E134: 0 | F134: 0 | G134: 0 | H134: 0 | I134: 0 | K134: 0
A135: Other | C135: =SUM(C136:C140) -> 0 | D135: 0 | E135: 0 | F135: 0 | G135: 0 | H135: 0 | I135: 0 | K135: 0
A136: Air Transport | C136: 0 | D136: 0 | E136: 0 | F136: 0 | G136: 0 | H136: 0 | I136: 0 | K136: 0
A137: Abattoirs | C137: 0 | D137: 0 | E137: 0 | F137: 0 | G137: 0 | H137: 0 | I137: 0 | K137: 0
A138: Tourism | C138: 0 | D138: 0 | E138: 0 | F138: 0 | G138: 0 | H138: 0 | I138: 0 | K138: 0
A139: Forestry | C139: 0 | D139: 0 | E139: 0 | F139: 0 | G139: 0 | H139: 0 | I139: =G139-H139 -> 0 | J139: =IF(I139=0,"",I139/H139) ->  | K139: 0
A140: =A71 -> Markets | C140: 0 | D140: 0 | E140: 0 | F140: 0 | G140: 0 | H140: 0 | I140: =G140-H140 -> 0 | J140: =IF(I140=0,"",I140/H140) ->  | K140: 0
A141: ="Total "&A74 -> Total Expenditure - Standard | B141: 3 | C141: =C75+C85+C107+C122+C135 -> 140136484 | D141: =D75+D85+D107+D122+D135 -> 133114556.6 | E141: 144260633.1 | F141: 16090563 | G141: 116581846 | H141: 144260633.1 | I141: -27678787.07 | J141: =IF(I141=0,"",I141/H141) -> -0.1918665299 | K141: =K75+K85+K107+K122+K135 -> 144260633.1
A142: =result -> Surplus/ (Deficit) for the year | C142: =C72-C141 -> 13452670 | D142: 49552448.56 | E142: 37569550.1 | F142: -11004447 | G142: 50489758 | H142: 37569550.1 | I142: =G142-H142 -> 12920207.9 | J142: =IF(I142=0,"",I142/H142) -> 0.3439010547 | K142: 37569550.1
A143: =head27a -> References
A144: 1. Government Finance Statistics Functions and Sub-functions are standardised to assist national and international accounts and comparison
A145: 2. Total Revenue by Standard Classification must reconcile to total operating revenue shown in Financial Performance (revenue and expenditure)
A146: 3. Total Expenditure by Standard Classification must reconcile to total operating expenditure shown in Financial Performance (revenue and expenditure)
A147: 4. All amounts must be classified under a Standard (modified GFS) classification. The GFS function 'Other' is only for Abbatoirs, Air Transport, Markets and Tourism - and if used must be supported by footnotes. Nothing else may be placed under 'Other'. Assign associate share to relevant classification
A150: check oprev balance | C150: =C72 -> 153589154 | D150: 0 | E150: 0 | F150: 0 | G150: 0 | H150: 0 | I150: 0 | K150: 0
A151: check opexp balance | C151: 0 | D151: 0 | E151: 0 | F151: 0 | G151: 0 | H151: 0 | I151: 0 | K151: 0

Sheet C3-FinPerf V
A1: =muni& " - "&S71C& " - "&date -> LIM353 Molemole - Table C3 Monthly Budget Statement - Financial Performance (revenue and expenditure by municipal vote) - Q4 Fourth Quarter
A2: =Vdesc -> Vote Description | B2: =head27 -> Ref | C2: =Head1 -> 2014/15 | D2: =Head2 -> Budget Year 2015/16
C3: =Head5 -> Audited Outcome | D3: =Head6 -> Original Budget | E3: =Head7 -> Adjusted Budget | F3: =Head38 -> Monthly actual | G3: =Head39 -> YearTD actual | H3: =Head40 -> YearTD budget | I3: =Head41 -> YTD variance | J3: =Head41 -> YTD variance | K3: =Head8 -> Full Year Forecast
A4: R thousands | J4: %
A5: Revenue by Vote | B5: 1
A6: ='Org structure'!A2 -> Vote 1 - EXECUTIVE AND COUNCIL | C6: ='C3C'!C6 -> 0 | D6: ='C3C'!D6 -> 0 | E6: ='C3C'!E6 -> 0 | F6: ='C3C'!F6 -> 0 | G6: ='C3C'!G6 -> 0 | H6: ='C3C'!H6 -> 0 | I6: =G6-H6 -> 0 | J6: =IF(I6=0,"",I6/H6) ->  | K6: ='C3C'!K6 -> 0
A7: ='Org structure'!A3 -> Vote 2 - BUDGET AND TREASURY | C7: ='C3C'!C17 -> 107869677 | D7: ='C3C'!D17 -> 125699771.9 | E7: ='C3C'!E17 -> 126856433.9 | F7: ='C3C'!F17 -> 2312878 | G7: ='C3C'!G17 -> 124346449 | H7: ='C3C'!H17 -> 126856433.9 | I7: =G7-H7 -> -2509984.896 | J7: =IF(I7=0,"",I7/H7) -> -0.01978602755 | K7: ='C3C'!K17 -> 126856433.9
A8: ='Org structure'!A4 -> Vote 3 - CORPORATE SERVICES | C8: ='C3C'!C28 -> 245121 | D8: ='C3C'!D28 -> 393275.272 | E8: ='C3C'!E28 -> 390783 | F8: ='C3C'!F28 -> 0 | G8: ='C3C'!G28 -> 160663 | H8: ='C3C'!H28 -> 390783 | I8: -230120 | J8: -0.5888690143 | K8: ='C3C'!K28 -> 390783
A9: ='Org structure'!A5 -> Vote 4 - LOCAL ECONOMIC DEVELOPMENT AND PLANNING | C9: ='C3C'!C39 -> 25004 | D9: ='C3C'!D39 -> 549048.128 | E9: ='C3C'!E39 -> 493858 | F9: ='C3C'!F39 -> 12580 | G9: ='C3C'!G39 -> 97914 | H9: ='C3C'!H39 -> 493858 | I9: -395944 | J9: -0.8017365316 | K9: ='C3C'!K39 -> 493858
A10: ='Org structure'!A6 -> Vote 5 - COMMUNITY SERVICES | C10: ='C3C'!C50 -> 7655953 | D10: ='C3C'!D50 -> 11227716.7 | E10: ='C3C'!E50 -> 9232394.199 | F10: ='C3C'!F50 -> 1596828 | G10: ='C3C'!G50 -> 7110953 | H10: ='C3C'!H50 -> 9232394.199 | I10: -2121441.199 | J10: -0.2297823461 | K10: ='C3C'!K50 -> 9232394.199
A11: ='Org structure'!A7 -> Vote 6 - ROAD TRANSPORT | C11: ='C3C'!C61 -> 29976813 | D11: ='C3C'!D61 -> 31017000 | E11: ='C3C'!E61 -> 31337857 | F11: ='C3C'!F61 -> 0 | G11: ='C3C'!G61 -> 26983649 | H11: ='C3C'!H61 -> 31337857 | I11: -4354208 | J11: -0.1389440254 | K11: ='C3C'!K61 -> 31337857
A12: ='Org structure'!A8 -> Vote 7 - ELECTRICITY | C12: ='C3C'!C72 -> 6538615 | D12: ='C3C'!D72 -> 10910785.17 | E12: ='C3C'!E72 -> 9936004.772 | F12: ='C3C'!F72 -> 876626 | G12: ='C3C'!G72 -> 6026460 | H12: ='C3C'!H72 -> 9936004.772 | I12: -3909544.772 | J12: -0.3934725135 | K12: ='C3C'!K72 -> 9936004.772
A13: ='Org structure'!A9 -> Vote 8 - WATER | C13: ='C3C'!C83 -> 1277971 | D13: ='C3C'!D83 -> 2869407.976 | E13: ='C3C'!E83 -> 3582852.296 | F13: ='C3C'!F83 -> 287204 | G13: ='C3C'!G83 -> 2345516 | H13: ='C3C'!H83 -> 3582852.296 | I13: -1237336.296 | J13: -0.3453495131 | K13: ='C3C'!K83 -> 3582852.296
A14: ='Org structure'!A10 -> Vote 9 - [NAME OF VOTE 9] | C14: ='C3C'!C94 -> 0 | D14: ='C3C'!D94 -> 0 | E14: ='C3C'!E94 -> 0 | F14: ='C3C'!F94 -> 0 | G14: ='C3C'!G94 -> 0 | H14: ='C3C'!H94 -> 0 | I14: 0 | K14: ='C3C'!K94 -> 0
A15: ='Org structure'!A11 -> Vote 10 - [NAME OF VOTE 10] | C15: ='C3C'!C105 -> 0 | D15: ='C3C'!D105 -> 0 | E15: ='C3C'!E105 -> 0 | F15: ='C3C'!F105 -> 0 | G15: ='C3C'!G105 -> 0 | H15: ='C3C'!H105 -> 0 | I15: 0 | K15: ='C3C'!K105 -> 0
A16: ='Org structure'!A12 -> Vote 11 - [NAME OF VOTE 11] | C16: ='C3C'!C116 -> 0 | D16: ='C3C'!D116 -> 0 | E16: ='C3C'!E116 -> 0 | F16: ='C3C'!F116 -> 0 | G16: ='C3C'!G116 -> 0 | H16: ='C3C'!H116 -> 0 | I16: 0 | K16: ='C3C'!K116 -> 0
A17: ='Org structure'!A13 -> Vote 12 - [NAME OF VOTE 12] | C17: ='C3C'!C127 -> 0 | D17: ='C3C'!D127 -> 0 | E17: ='C3C'!E127 -> 0 | F17: ='C3C'!F127 -> 0 | G17: ='C3C'!G127 -> 0 | H17: ='C3C'!H127 -> 0 | I17: 0 | K17: ='C3C'!K127 -> 0
A18: ='Org structure'!A14 -> Vote 13 - [NAME OF VOTE 13] | C18: ='C3C'!C138 -> 0 | D18: ='C3C'!D138 -> 0 | E18: ='C3C'!E138 -> 0 | F18: ='C3C'!F138 -> 0 | G18: ='C3C'!G138 -> 0 | H18: ='C3C'!H138 -> 0 | I18: 0 | K18: ='C3C'!K138 -> 0
A19: ='Org structure'!A15 -> Vote 14 - [NAME OF VOTE 14] | C19: ='C3C'!C149 -> 0 | D19: ='C3C'!D149 -> 0 | E19: ='C3C'!E149 -> 0 | F19: ='C3C'!F149 -> 0 | G19: ='C3C'!G149 -> 0 | H19: ='C3C'!H149 -> 0 | I19: 0 | K19: ='C3C'!K149 -> 0
A20: ='Org structure'!A16 -> Vote 15 - [NAME OF VOTE 15] | C20: ='C3C'!C160 -> 0 | D20: ='C3C'!D160 -> 0 | E20: ='C3C'!E160 -> 0 | F20: ='C3C'!F160 -> 0 | G20: ='C3C'!G160 -> 0 | H20: ='C3C'!H160 -> 0 | I20: 0 | K20: ='C3C'!K160 -> 0
A21: Total Revenue by Vote | B21: 2 | C21: =SUM(C6:C20) -> 153589154 | D21: =SUM(D6:D20) -> 182667005.1 | E21: 181830183.2 | F21: 5086116 | G21: 167071604 | H21: 181830183.2 | I21: -14758579.16 | J21: -0.08116682779 | K21: =SUM(K6:K20) -> 181830183.2
A23: Expenditure by Vote | B23: 1
A24: ='Org structure'!A2 -> Vote 1 - EXECUTIVE AND COUNCIL | C24: ='C3C'!C174 -> 23092897 | D24: ='C3C'!D174 -> 30613318.17 | E24: ='C3C'!E174 -> 30853345.63 | F24: ='C3C'!F174 -> 2395789 | G24: ='C3C'!G174 -> 26108359 | H24: ='C3C'!H174 -> 30853345.63 | I24: =G24-H24 -> -4744986.625 | J24: =IF(I24=0,"",I24/H24) -> -0.1537916401 | K24: ='C3C'!K174 -> 30853345.63
A25: ='Org structure'!A3 -> Vote 2 - BUDGET AND TREASURY | C25: ='C3C'!C185 -> 37615237 | D25: ='C3C'!D185 -> 35678566.89 | E25: ='C3C'!E185 -> 42718676.69 | F25: ='C3C'!F185 -> 5474019 | G25: ='C3C'!G185 -> 28735921 | H25: ='C3C'!H185 -> 42718676.69 | I25: -13982755.69 | J25: -0.3273218361 | K25: ='C3C'!K185 -> 42718676.69
A26: ='Org structure'!A4 -> Vote 3 - CORPORATE SERVICES | C26: ='C3C'!C196 -> 24188507 | D26: ='C3C'!D196 -> 23927731.15 | E26: ='C3C'!E196 -> 23861492.87 | F26: ='C3C'!F196 -> 2130459 | G26: ='C3C'!G196 -> 22308578 | H26: ='C3C'!H196 -> 23861492.87 | I26: -1552914.872 | J26: -0.06508037366 | K26: ='C3C'!K196 -> 23861492.87
A27: ='Org structure'!A5 -> Vote 4 - LOCAL ECONOMIC DEVELOPMENT AND PLANNING | C27: ='C3C'!C207 -> 3518553 | D27: ='C3C'!D207 -> 6434011.731 | E27: ='C3C'!E207 -> 6885142.731 | F27: ='C3C'!F207 -> 1225837 | G27: ='C3C'!G207 -> 5129990 | H27: ='C3C'!H207 -> 6885142.731 | I27: -1755152.731 | J27: -0.2549188593 | K27: ='C3C'!K207 -> 6885142.731
A28: ='Org structure'!A6 -> Vote 5 - COMMUNITY SERVICES | C28: ='C3C'!C218 -> 15753507 | D28: ='C3C'!D218 -> 17375456.66 | E28: ='C3C'!E218 -> 17547814.56 | F28: ='C3C'!F218 -> 1542321 | G28: ='C3C'!G218 -> 16787869 | H28: ='C3C'!H218 -> 17547814.56 | I28: -759945.5621 | J28: -0.04330713431 | K28: ='C3C'!K218 -> 17547814.56
A29: ='Org structure'!A7 -> Vote 6 - ROAD TRANSPORT | C29: ='C3C'!C229 -> 27118682 | D29: ='C3C'!D229 -> 8601760.622 | E29: ='C3C'!E229 -> 10522894.22 | F29: ='C3C'!F229 -> 2379015 | G29: ='C3C'!G229 -> 9376720 | H29: ='C3C'!H229 -> 10522894.22 | I29: -1146174.222 | J29: -0.1089219561 | K29: ='C3C'!K229 -> 10522894.22
A30: ='Org structure'!A8 -> Vote 7 - ELECTRICITY | C30: ='C3C'!C240 -> 2915123 | D30: ='C3C'!D240 -> 2780647.213 | E30: ='C3C'!E240 -> 4108202.213 | F30: ='C3C'!F240 -> 360979 | G30: ='C3C'!G240 -> 2442214 | H30: ='C3C'!H240 -> 4108202.213 | I30: -1665988.213 | J30: =IF(I30=0,"",I30/H30) -> -0.4055273151 | K30: ='C3C'!K240 -> 4108202.213
A31: ='Org structure'!A9 -> Vote 8 - WATER | C31: ='C3C'!C251 -> 5933978 | D31: ='C3C'!D251 -> 7703064.152 | E31: ='C3C'!E251 -> 7763064.152 | F31: ='C3C'!F251 -> 582144 | G31: ='C3C'!G251 -> 5692195 | H31: ='C3C'!H251 -> 7763064.152 | I31: -2070869.152 | J31: -0.2667592475 | K31: ='C3C'!K251 -> 7763064.152
A32: ='Org structure'!A10 -> Vote 9 - [NAME OF VOTE 9] | C32: ='C3C'!C262 -> 0 | D32: ='C3C'!D262 -> 0 | E32: ='C3C'!E262 -> 0 | F32: ='C3C'!F262 -> 0 | G32: ='C3C'!G262 -> 0 | H32: ='C3C'!H262 -> 0 | I32: 0 | K32: ='C3C'!K262 -> 0
A33: ='Org structure'!A11 -> Vote 10 - [NAME OF VOTE 10] | C33: ='C3C'!C273 -> 0 | D33: ='C3C'!D273 -> 0 | E33: ='C3C'!E273 -> 0 | F33: ='C3C'!F273 -> 0 | G33: ='C3C'!G273 -> 0 | H33: ='C3C'!H273 -> 0 | I33: 0 | J33: =IF(I33=0,"",I33/H33) ->  | K33: ='C3C'!K273 -> 0
A34: ='Org structure'!A12 -> Vote 11 - [NAME OF VOTE 11] | C34: ='C3C'!C284 -> 0 | D34: ='C3C'!D284 -> 0 | E34: ='C3C'!E284 -> 0 | F34: ='C3C'!F284 -> 0 | G34: ='C3C'!G284 -> 0 | H34: ='C3C'!H284 -> 0 | I34: 0 | J34: =IF(I34=0,"",I34/H34) ->  | K34: ='C3C'!K284 -> 0
A35: ='Org structure'!A13 -> Vote 12 - [NAME OF VOTE 12] | C35: ='C3C'!C295 -> 0 | D35: ='C3C'!D295 -> 0 | E35: ='C3C'!E295 -> 0 | F35: ='C3C'!F295 -> 0 | G35: ='C3C'!G295 -> 0 | H35: ='C3C'!H295 -> 0 | I35: 0 | J35: =IF(I35=0,"",I35/H35) ->  | K35: ='C3C'!K295 -> 0
A36: ='Org structure'!A14 -> Vote 13 - [NAME OF VOTE 13] | C36: ='C3C'!C306 -> 0 | D36: ='C3C'!D306 -> 0 | E36: ='C3C'!E306 -> 0 | F36: ='C3C'!F306 -> 0 | G36: ='C3C'!G306 -> 0 | H36: ='C3C'!H306 -> 0 | I36: 0 | J36: =IF(I36=0,"",I36/H36) ->  | K36: ='C3C'!K306 -> 0
A37: ='Org structure'!A15 -> Vote 14 - [NAME OF VOTE 14] | C37: ='C3C'!C317 -> 0 | D37: ='C3C'!D317 -> 0 | E37: ='C3C'!E317 -> 0 | F37: ='C3C'!F317 -> 0 | G37: ='C3C'!G317 -> 0 | H37: ='C3C'!H317 -> 0 | I37: 0 | J37: =IF(I37=0,"",I37/H37) ->  | K37: ='C3C'!K317 -> 0
A38: ='Org structure'!A16 -> Vote 15 - [NAME OF VOTE 15] | C38: ='C3C'!C328 -> 0 | D38: ='C3C'!D328 -> 0 | E38: ='C3C'!E328 -> 0 | F38: ='C3C'!F328 -> 0 | G38: ='C3C'!G328 -> 0 | H38: ='C3C'!H328 -> 0 | I38: 0 | K38: ='C3C'!K328 -> 0
A39: Total Expenditure by Vote | B39: 2 | C39: =SUM(C24:C38) -> 140136484 | D39: =SUM(D24:D38) -> 133114556.6 | E39: 144260633.1 | F39: 16090563 | G39: 116581846 | H39: 144260633.1 | I39: -27678787.07 | J39: =IF(I39=0,"",I39/H39) -> -0.1918665299 | K39: =SUM(K24:K38) -> 144260633.1
A40: =result -> Surplus/ (Deficit) for the year | B40: 2 | C40: =C21-C39 -> 13452670 | D40: 49552448.56 | E40: 37569550.1 | F40: -11004447 | G40: 50489758 | H40: 37569550.1 | I40: =I21-I39 -> 12920207.9 | J40: =IF(I40=0,"",I40/H40) -> 0.3439010547 | K40: =K21-K39 -> 37569550.1
A41: =head27a -> References
A42: 1. Insert 'Vote'; e.g. Department, if different to standard classification structure
A43: 2. Must reconcile to Monthly Budget Statement - Financial Performance Statement (standard classification)

Sheet C3C
A1: =muni& " - "&S71C& " - "&"A"& " - "&date -> LIM353 Molemole - Table C3 Monthly Budget Statement - Financial Performance (revenue and expenditure by municipal vote) - A - Q4 Fourth Quarter
A2: =Vdesc -> Vote Description | B2: =head27 -> Ref | C2: =Head1 -> 2014/15 | D2: =Head2 -> Budget Year 2015/16 | L2: =Head4 -> 
A3: R thousand | C3: =Head5 -> Audited Outcome | D3: =Head6 -> Original Budget | E3: =Head7 -> Adjusted Budget | F3: =Head38 -> Monthly actual | G3: =Head39 -> YearTD actual | H3: =Head40 -> YearTD budget | I3: =Head41 -> YTD variance | J3: =Head41 -> YTD variance | K3: =Head8 -> Full Year Forecast | L3: =Head12 -> Forecast 2010/11 | M3: =Head13 -> Forecast 2011/12 | N3: =Head14 -> Forecast 2012/13 | O3: =Head15 -> Forecast 2013/14 | P3: =Head16 -> Forecast 2014/15 | Q3: =Head17 -> Forecast 2015/16 | R3: =Head18 -> Forecast 2016/17 | S3: =Head19 -> Forecast 2017/18 | T3: =Head20 -> Forecast 2018/19 | U3: =Head21 -> Forecast 2019/20 | V3: =Head22 -> Forecast 2020/21 | W3: =Head23 -> Forecast 2021/22
J4: %
A5: Revenue by Vote | B5: 1
A6: ='Org structure'!A2 -> Vote 1 - EXECUTIVE AND COUNCIL | C6: =SUM(C7:C16) -> 0 | D6: =SUM(D7:D16) -> 0 | E6: 0 | F6: 0 | G6: 0 | H6: 0 | I6: =G6-H6 -> 0 | J6: =IF(I6=0,"",I6/H6) ->  | K6: 0
A7: ='Org structure'!E3 -> 1.1 - MAYOR AND COUNCIL | C7: ='C2C'!C8 -> 0 | D7: ='C2C'!D8 -> 0 | E7: ='C2C'!E8 -> 0 | F7: ='C2C'!F8 -> 0 | G7: ='C2C'!G8 -> 0 | H7: ='C2C'!H8 -> 0 | I7: 0 | K7: =D7 -> 0
A8: ='Org structure'!E4 -> 1.2 - MUNICIPAL MANAGER | C8: ='C2C'!C9 -> 0 | D8: ='C2C'!D9 -> 0 | E8: ='C2C'!E9 -> 0 | F8: ='C2C'!F9 -> 0 | G8: ='C2C'!G9 -> 0 | H8: ='C2C'!H9 -> 0 | I8: 0 | K8: =D8 -> 0
A9: ='Org structure'!E5 -> 0 | C9: 0 | D9: 0 | E9: 0 | F9: 0 | G9: 0 | H9: 0 | I9: 0 | K9: 0
A10: ='Org structure'!E6 -> 0 | C10: 0 | D10: 0 | E10: 0 | F10: 0 | G10: 0 | H10: 0 | I10: 0 | K10: 0
A11: ='Org structure'!E7 -> 0 | C11: 0 | D11: 0 | E11: 0 | F11: 0 | G11: 0 | H11: 0 | I11: 0 | K11: 0
A12: ='Org structure'!E8 -> 0 | C12: 0 | D12: 0 | E12: 0 | F12: 0 | G12: 0 | H12: 0 | I12: 0 | K12: 0
A13: ='Org structure'!E9 -> 0 | C13: 0 | D13: 0 | E13: 0 | F13: 0 | G13: 0 | H13: 0 | I13: 0 | K13: 0
A14: ='Org structure'!E10 -> 0 | C14: 0 | D14: 0 | E14: 0 | F14: 0 | G14: 0 | H14: 0 | I14: 0 | K14: 0
A15: ='Org structure'!E11 -> 0 | C15: 0 | D15: 0 | E15: 0 | F15: 0 | G15: 0 | H15: 0 | I15: 0 | K15: 0
A16: ='Org structure'!E12 -> 0 | C16: 0 | D16: 0 | E16: 0 | F16: 0 | G16: 0 | H16: 0 | I16: 0 | K16: 0
A17: ='Org structure'!A3 -> Vote 2 - BUDGET AND TREASURY | C17: =SUM(C18:C27) -> 107869677 | D17: =SUM(D18:D27) -> 125699771.9 | E17: 126856433.9 | F17: 2312878 | G17: 124346449 | H17: 126856433.9 | I17: -2509984.896 | J17: -0.01978602755 | K17: 126856433.9
A18: ='Org structure'!E14 -> 2.1 - BUDGET AND TREASURY | C18: ='C2C'!C10 -> 107869677 | D18: ='C2C'!D10 -> 125699771.9 | E18: ='C2C'!E10 -> 126856433.9 | F18: ='C2C'!F10 -> 2312878 | G18: ='C2C'!G10 -> 124346449 | H18: ='C2C'!H10 -> 126856433.9 | I18: -2509984.896 | J18: -0.01978602755 | K18: =E18 -> 126856433.9
A19: ='Org structure'!E15 -> 0 | C19: 0 | D19: 0 | E19: 0 | F19: 0 | G19: 0 | H19: 0 | I19: 0 | K19: =D19 -> 0
A20: ='Org structure'!E16 -> 0 | C20: 0 | D20: 0 | E20: 0 | F20: 0 | G20: 0 | H20: 0 | I20: 0 | K20: 0
A21: ='Org structure'!E17 -> 0 | C21: 0 | D21: 0 | E21: 0 | F21: 0 | G21: 0 | H21: 0 | I21: 0 | K21: 0
A22: ='Org structure'!E18 -> 0 | C22: 0 | D22: 0 | E22: 0 | F22: 0 | G22: 0 | H22: 0 | I22: 0 | K22: 0
A23: ='Org structure'!E19 -> 0 | C23: 0 | D23: 0 | E23: 0 | F23: 0 | G23: 0 | H23: 0 | I23: 0 | K23: 0
A24: ='Org structure'!E20 -> 0 | C24: 0 | D24: 0 | E24: 0 | F24: 0 | G24: 0 | H24: 0 | I24: 0 | K24: 0
A25: ='Org structure'!E21 -> 0 | C25: 0 | D25: 0 | E25: 0 | F25: 0 | G25: 0 | H25: 0 | I25: 0 | K25: 0
A26: ='Org structure'!E22 -> 0 | C26: 0 | D26: 0 | E26: 0 | F26: 0 | G26: 0 | H26: 0 | I26: 0 | K26: 0
A27: ='Org structure'!E23 -> 0 | C27: 0 | D27: 0 | E27: 0 | F27: 0 | G27: 0 | H27: 0 | I27: 0 | K27: 0
A28: ='Org structure'!A4 -> Vote 3 - CORPORATE SERVICES | C28: =SUM(C29:C38) -> 245121 | D28: 393275.272 | E28: 390783 | F28: 0 | G28: 160663 | H28: 390783 | I28: -230120 | J28: -0.5888690143 | K28: 390783
A29: ='Org structure'!E25 -> 3.1 - HUMAN RESOURCES | C29: 0 | D29: 0 | E29: 0 | F29: 0 | G29: 0 | H29: 0 | I29: 0 | K29: 0
A30: ='Org structure'!E26 -> 3.2 - INFORMATION TECHNOLOGY | C30: 0 | D30: 0 | E30: 0 | F30: 0 | G30: 0 | H30: 0 | I30: 0 | K30: 0
A31: ='Org structure'!E27 -> 3.3 - PROPERTY SERVICES | C31: 0 | D31: 0 | E31: 0 | F31: 0 | G31: 0 | H31: 0 | I31: 0 | K31: 0
A32: ='Org structure'!E28 -> 3.4 - OTHER ADMIN | C32: ='C2C'!C15 -> 245121 | D32: ='C2C'!D15 -> 393275.272 | E32: ='C2C'!E15 -> 390783 | F32: ='C2C'!F15 -> 0 | G32: ='C2C'!G15 -> 160663 | H32: ='C2C'!H15 -> 390783 | I32: -230120 | J32: -0.5888690143 | K32: =E32 -> 390783
A33: ='Org structure'!E29 -> 0 | C33: 0 | D33: 0 | E33: 0 | F33: 0 | G33: 0 | H33: 0 | I33: 0 | K33: 0
A34: ='Org structure'!E30 -> 0 | C34: 0 | D34: 0 | E34: 0 | F34: 0 | G34: 0 | H34: 0 | I34: 0 | K34: 0
A35: ='Org structure'!E31 -> 0 | C35: 0 | D35: 0 | E35: 0 | F35: 0 | G35: 0 | H35: 0 | I35: 0 | K35: 0
A36: ='Org structure'!E32 -> 0 | C36: 0 | D36: 0 | E36: 0 | F36: 0 | G36: 0 | H36: 0 | I36: 0 | K36: 0
A37: ='Org structure'!E33 -> 0 | C37: 0 | D37: 0 | E37: 0 | F37: 0 | G37: 0 | H37: 0 | I37: 0 | K37: 0
A38: ='Org structure'!E34 -> 0 | C38: 0 | D38: 0 | E38: 0 | F38: 0 | G38: 0 | H38: 0 | I38: 0 | K38: 0
A39: ='Org structure'!A5 -> Vote 4 - LOCAL ECONOMIC DEVELOPMENT AND PLANNING | C39: =SUM(C40:C49) -> 25004 | D39: 549048.128 | E39: 493858 | F39: 12580 | G39: 97914 | H39: 493858 | I39: -395944 | J39: -0.8017365316 | K39: 493858
A40: ='Org structure'!E36 -> 4.1 - ECONOMIC/DEVELOPMENT AND PLANNING | C40: ='C2C'!C40 -> 25004 | D40: ='C2C'!D40 -> 549048.128 | E40: ='C2C'!E40 -> 493858 | F40: ='C2C'!F40 -> 12580 | G40: ='C2C'!G40 -> 97914 | H40: ='C2C'!H40 -> 493858 | I40: -395944 | J40: -0.8017365316 | K40: =E40 -> 493858
A41: ='Org structure'!E37 -> 4.2 - TOWN PLANNING/BUILDING ENFORCEMENT | C41: 0 | D41: 0 | E41: 0 | F41: 0 | G41: 0 | H41: 0 | I41: 0 | K41: 0
A42: ='Org structure'!E38 -> 4.3 - LICENSING AND REGULATION | C42: 0 | D42: 0 | E42: 0 | F42: 0 | G42: 0 | H42: 0 | I42: 0 | K42: 0
A43: ='Org structure'!E39 -> 0 | C43: 0 | D43: 0 | E43: 0 | F43: 0 | G43: 0 | H43: 0 | I43: 0 | K43: 0
A44: ='Org structure'!E40 -> 0 | C44: 0 | D44: 0 | E44: 0 | F44: 0 | G44: 0 | H44: 0 | I44: 0 | K44: 0
A45: ='Org structure'!E41 -> 0 | C45: 0 | D45: 0 | E45: 0 | F45: 0 | G45: 0 | H45: 0 | I45: 0 | K45: 0
A46: ='Org structure'!E42 -> 0 | C46: 0 | D46: 0 | E46: 0 | F46: 0 | G46: 0 | H46: 0 | I46: 0 | K46: 0
A47: ='Org structure'!E43 -> 0 | C47: 0 | D47: 0 | E47: 0 | F47: 0 | G47: 0 | H47: 0 | I47: 0 | K47: 0
A48: ='Org structure'!E44 -> 0 | C48: 0 | D48: 0 | E48: 0 | F48: 0 | G48: 0 | H48: 0 | I48: 0 | K48: 0
A49: ='Org structure'!E45 -> 0 | C49: 0 | D49: 0 | E49: 0 | F49: 0 | G49: 0 | H49: 0 | I49: 0 | K49: 0
A50: ='Org structure'!A6 -> Vote 5 - COMMUNITY SERVICES | C50: =SUM(C51:C60) -> 7655953 | D50: =SUM(D51:D60) -> 11227716.7 | E50: 9232394.199 | F50: 1596828 | G50: 7110953 | H50: 9232394.199 | I50: -2121441.199 | J50: -0.2297823461 | K50: 9232394.199
A51: ='Org structure'!E47 -> 5.1 - LIBRARIES AND ARCHIEVES | C51: 0 | D51: 0 | E51: 0 | F51: 0 | G51: 0 | H51: 0 | I51: 0 | K51: 0
A52: ='Org structure'!E48 -> 5.2 - MUSEUM AND ART GALLERIES ETC | C52: 0 | D52: 0 | E52: 0 | F52: 0 | G52: 0 | H52: 0 | I52: 0 | K52: 0
A53: ='Org structure'!E49 -> 5.3 - COMMUNITY HALLS AND FACILITIES | C53: 0 | D53: 0 | E53: 0 | F53: 0 | G53: 0 | H53: 0 | I53: 0 | K53: 0
A54: ='Org structure'!E50 -> 5.4 - CEMETRIES & CRÈMATORIUMS | C54: 0 | D54: 0 | E54: 0 | F54: 0 | G54: 0 | H54: 0 | I54: 0 | K54: 0
A55: ='Org structure'!E51 -> 5.5 - CHILD CARE | C55: 0 | D55: 0 | E55: 0 | F55: 0 | G55: 0 | H55: 0 | I55: 0 | K55: 0
A56: ='Org structure'!E52 -> 5.6 - AGED CARE | C56: 0 | D56: 0 | E56: 0 | F56: 0 | G56: 0 | H56: 0 | I56: 0 | K56: 0
A57: ='Org structure'!E53 -> 5.7 - OTHER COMMUNITY | C57: 0 | D57: 0 | E57: 0 | F57: 0 | G57: 0 | H57: 0 | I57: 0 | K57: 0
A58: ='Org structure'!E54 -> 5.8 - OTHER SOCIAL | C58: ='C2C'!C25 -> 7655953 | D58: ='C2C'!D25 -> 11227716.7 | E58: ='C2C'!E25 -> 9232394.199 | F58: ='C2C'!F25 -> 1596828 | G58: ='C2C'!G25 -> 7110953 | H58: ='C2C'!H25 -> 9232394.199 | I58: -2121441.199 | J58: -0.2297823461 | K58: =E58 -> 9232394.199
A59: ='Org structure'!E55 -> 5.9 - SPORT AND RECREATION | C59: 0 | D59: 0 | E59: 0 | F59: 0 | G59: 0 | H59: 0 | I59: 0 | K59: 0
A60: ='Org structure'!E56 -> 5.10 - OTHER | C60: 0 | D60: 0 | E60: 0 | F60: 0 | G60: 0 | H60: 0 | I60: 0 | K60: 0
A61: ='Org structure'!A7 -> Vote 6 - ROAD TRANSPORT | C61: =SUM(C62:C71) -> 29976813 | D61: =SUM(D62:D71) -> 31017000 | E61: 31337857 | F61: 0 | G61: 26983649 | H61: 31337857 | I61: -4354208 | J61: -0.1389440254 | K61: 31337857
A62: ='Org structure'!E58 -> 6.1 - ROADS | C62: ='C2C'!C44 -> 29976813 | D62: ='C2C'!D44 -> 31017000 | E62: ='C2C'!E44 -> 31337857 | F62: ='C2C'!F44 -> 0 | G62: ='C2C'!G44 -> 26983649 | H62: ='C2C'!H44 -> 31337857 | I62: -4354208 | J62: -0.1389440254 | K62: =E62 -> 31337857
A63: ='Org structure'!E59 -> 6.2 - PUBLIC BUSES | C63: 0 | D63: 0 | E63: 0 | F63: 0 | G63: 0 | H63: 0 | I63: 0 | K63: 0
A64: ='Org structure'!E60 -> 6.3 - PARKING GARAGES | C64: 0 | D64: 0 | E64: 0 | F64: 0 | G64: 0 | H64: 0 | I64: 0 | K64: 0
A65: ='Org structure'!E61 -> 6.4 - VEHICLE LICENSING AND TESTING | C65: 0 | D65: 0 | E65: 0 | F65: 0 | G65: 0 | H65: 0 | I65: 0 | K65: 0
A66: ='Org structure'!E62 -> 6.5 - OTHER | C66: 0 | D66: 0 | E66: 0 | F66: 0 | G66: 0 | H66: 0 | I66: 0 | K66: 0
A67: ='Org structure'!E63 -> 0 | C67: 0 | D67: 0 | E67: 0 | F67: 0 | G67: 0 | H67: 0 | I67: 0 | K67: 0
A68: ='Org structure'!E64 -> 0 | C68: 0 | D68: 0 | E68: 0 | F68: 0 | G68: 0 | H68: 0 | I68: 0 | K68: 0
A69: ='Org structure'!E65 -> 0 | C69: 0 | D69: 0 | E69: 0 | F69: 0 | G69: 0 | H69: 0 | I69: 0 | K69: 0
A70: ='Org structure'!E66 -> 0 | C70: 0 | D70: 0 | E70: 0 | F70: 0 | G70: 0 | H70: 0 | I70: =G70-H70 -> 0 | J70: =IF(I70=0,"",I70/H70) ->  | K70: 0
A71: ='Org structure'!E67 -> 0 | C71: 0 | D71: 0 | E71: 0 | F71: 0 | G71: 0 | H71: 0 | I71: 0 | K71: 0
A72: ='Org structure'!A8 -> Vote 7 - ELECTRICITY | C72: =SUM(C73:C82) -> 6538615 | D72: 10910785.17 | E72: 9936004.772 | F72: 876626 | G72: 6026460 | H72: 9936004.772 | I72: -3909544.772 | J72: -0.3934725135 | K72: 9936004.772
A73: ='Org structure'!E69 -> 7.1 - ELECTRICITY DISTRIBUTION | C73: ='C2C'!C55 -> 6538615 | D73: ='C2C'!D55 -> 10910785.17 | E73: ='C2C'!E55 -> 9936004.772 | F73: ='C2C'!F55 -> 876626 | G73: ='C2C'!G55 -> 6026460 | H73: ='C2C'!H55 -> 9936004.772 | I73: -3909544.772 | J73: -0.3934725135 | K73: =E73 -> 9936004.772
A74: ='Org structure'!E70 -> 7.2 - ELECTRICITY GENERATION | C74: 0 | D74: 0 | E74: 0 | F74: 0 | G74: 0 | H74: 0 | I74: 0 | K74: 0
A75: ='Org structure'!E71 -> 0 | C75: 0 | D75: 0 | E75: 0 | F75: 0 | G75: 0 | H75: 0 | I75: 0 | K75: 0
A76: ='Org structure'!E72 -> 0 | C76: 0 | D76: 0 | E76: 0 | F76: 0 | G76: 0 | H76: 0 | I76: 0 | K76: 0
A77: ='Org structure'!E73 -> 0 | C77: 0 | D77: 0 | E77: 0 | F77: 0 | G77: 0 | H77: 0 | I77: 0 | K77: 0
A78: ='Org structure'!E74 -> 0 | C78: 0 | D78: 0 | E78: 0 | F78: 0 | G78: 0 | H78: 0 | I78: 0 | K78: 0
A79: ='Org structure'!E75 -> 0 | C79: 0 | D79: 0 | E79: 0 | F79: 0 | G79: 0 | H79: 0 | I79: 0 | K79: 0
A80: ='Org structure'!E76 -> 0 | C80: 0 | D80: 0 | E80: 0 | F80: 0 | G80: 0 | H80: 0 | I80: 0 | K80: 0
A81: ='Org structure'!E77 -> 0 | C81: 0 | D81: 0 | E81: 0 | F81: 0 | G81: 0 | H81: 0 | I81: 0 | K81: 0
A82: ='Org structure'!E78 -> 0 | C82: 0 | D82: 0 | E82: 0 | F82: 0 | G82: 0 | H82: 0 | I82: 0 | K82: 0
A83: ='Org structure'!A9 -> Vote 8 - WATER | C83: =SUM(C84:C93) -> 1277971 | D83: =SUM(D84:D93) -> 2869407.976 | E83: 3582852.296 | F83: 287204 | G83: 2345516 | H83: 3582852.296 | I83: -1237336.296 | J83: -0.3453495131 | K83: 3582852.296
A84: ='Org structure'!E80 -> 8.1 - WATER DISTRIBUTION | C84: ='C2C'!C58 -> 1277971 | D84: ='C2C'!D58 -> 2869407.976 | E84: ='C2C'!E58 -> 3582852.296 | F84: ='C2C'!F58 -> 287204 | G84: ='C2C'!G58 -> 2345516 | H84: ='C2C'!H58 -> 3582852.296 | I84: -1237336.296 | J84: -0.3453495131 | K84: =E84 -> 3582852.296
A85: ='Org structure'!E81 -> 0 | C85: 0 | D85: 0 | E85: 0 | F85: 0 | G85: 0 | H85: 0 | I85: 0 | K85: 0
A86: ='Org structure'!E82 -> 0 | C86: 0 | D86: 0 | E86: 0 | F86: 0 | G86: 0 | H86: 0 | I86: 0 | K86: 0
A87: ='Org structure'!E83 -> 0 | C87: 0 | D87: 0 | E87: 0 | F87: 0 | G87: 0 | H87: 0 | I87: 0 | K87: 0
A88: ='Org structure'!E84 -> 0 | C88: 0 | D88: 0 | E88: 0 | F88: 0 | G88: 0 | H88: 0 | I88: 0 | K88: 0
A89: ='Org structure'!E85 -> 0 | C89: 0 | D89: 0 | E89: 0 | F89: 0 | G89: 0 | H89: 0 | I89: 0 | K89: 0
A90: ='Org structure'!E86 -> 0 | C90: 0 | D90: 0 | E90: 0 | F90: 0 | G90: 0 | H90: 0 | I90: 0 | K90: 0
A91: ='Org structure'!E87 -> 0 | C91: 0 | D91: 0 | E91: 0 | F91: 0 | G91: 0 | H91: 0 | I91: 0 | K91: 0
A92: ='Org structure'!E88 -> 0 | C92: 0 | D92: 0 | E92: 0 | F92: 0 | G92: 0 | H92: 0 | I92: 0 | K92: 0
A93: ='Org structure'!E89 -> 0 | C93: 0 | D93: 0 | E93: 0 | F93: 0 | G93: 0 | H93: 0 | I93: 0 | K93: 0
A94: ='Org structure'!A10 -> Vote 9 - [NAME OF VOTE 9] | C94: =SUM(C95:C104) -> 0 | D94: =SUM(D95:D104) -> 0 | E94: 0 | F94: 0 | G94: 0 | H94: 0 | I94: 0 | K94: 0
A95: ='Org structure'!E91 -> 9.1 - [Name of sub-vote] | C95: 0 | D95: 0 | E95: 0 | F95: 0 | G95: 0 | H95: 0 | I95: 0 | K95: 0
A96: ='Org structure'!E92 -> 0 | C96: 0 | D96: 0 | E96: 0 | F96: 0 | G96: 0 | H96: 0 | I96: 0 | K96: 0
A97: ='Org structure'!E93 -> 0 | C97: 0 | D97: 0 | E97: 0 | F97: 0 | G97: 0 | H97: 0 | I97: 0 | K97: 0
A98: ='Org structure'!E94 -> 0 | C98: 0 | D98: 0 | E98: 0 | F98: 0 | G98: 0 | H98: 0 | I98: 0 | K98: 0
A99: ='Org structure'!E95 -> 0 | C99: 0 | D99: 0 | E99: 0 | F99: 0 | G99: 0 | H99: 0 | I99: 0 | K99: 0
A100: ='Org structure'!E96 -> 0 | C100: 0 | D100: 0 | E100: 0 | F100: 0 | G100: 0 | H100: 0 | I100: 0 | K100: 0
A101: ='Org structure'!E97 -> 0 | C101: 0 | D101: 0 | E101: 0 | F101: 0 | G101: 0 | H101: 0 | I101: 0 | K101: 0
A102: ='Org structure'!E98 -> 0 | C102: 0 | D102: 0 | E102: 0 | F102: 0 | G102: 0 | H102: 0 | I102: 0 | K102: 0
A103: ='Org structure'!E99 -> 0 | C103: 0 | D103: 0 | E103: 0 | F103: 0 | G103: 0 | H103: 0 | I103: 0 | K103: 0
A104: ='Org structure'!E100 -> 0 | C104: 0 | D104: 0 | E104: 0 | F104: 0 | G104: 0 | H104: 0 | I104: 0 | K104: 0
A105: ='Org structure'!A11 -> Vote 10 - [NAME OF VOTE 10] | C105: =SUM(C106:C115) -> 0 | D105: =SUM(D106:D115) -> 0 | E105: 0 | F105: 0 | G105: 0 | H105: 0 | I105: 0 | K105: 0
A106: ='Org structure'!E102 -> 10.1 - [Name of sub-vote] | C106: 0 | D106: 0 | E106: 0 | F106: 0 | G106: 0 | H106: 0 | I106: 0 | K106: 0
A107: ='Org structure'!E103 -> 0 | C107: 0 | D107: 0 | E107: 0 | F107: 0 | G107: 0 | H107: 0 | I107: 0 | K107: 0
A108: ='Org structure'!E104 -> 0 | C108: 0 | D108: 0 | E108: 0 | F108: 0 | G108: 0 | H108: 0 | I108: 0 | K108: 0
A109: ='Org structure'!E105 -> 0 | C109: 0 | D109: 0 | E109: 0 | F109: 0 | G109: 0 | H109: 0 | I109: 0 | K109: 0
A110: ='Org structure'!E106 -> 0 | C110: 0 | D110: 0 | E110: 0 | F110: 0 | G110: 0 | H110: 0 | I110: 0 | K110: 0
A111: ='Org structure'!E107 -> 0 | C111: 0 | D111: 0 | E111: 0 | F111: 0 | G111: 0 | H111: 0 | I111: 0 | K111: 0
A112: ='Org structure'!E108 -> 0 | C112: 0 | D112: 0 | E112: 0 | F112: 0 | G112: 0 | H112: 0 | I112: 0 | K112: 0
A113: ='Org structure'!E109 -> 0 | C113: 0 | D113: 0 | E113: 0 | F113: 0 | G113: 0 | H113: 0 | I113: 0 | K113: 0
A114: ='Org structure'!E110 -> 0 | C114: 0 | D114: 0 | E114: 0 | F114: 0 | G114: 0 | H114: 0 | I114: 0 | K114: 0
A115: ='Org structure'!E111 -> 0 | C115: 0 | D115: 0 | E115: 0 | F115: 0 | G115: 0 | H115: 0 | I115: 0 | K115: 0
A116: ='Org structure'!A12 -> Vote 11 - [NAME OF VOTE 11] | C116: =SUM(C117:C126) -> 0 | D116: =SUM(D117:D126) -> 0 | E116: 0 | F116: 0 | G116: 0 | H116: 0 | I116: 0 | K116: 0
A117: ='Org structure'!E113 -> 11.1 - [Name of sub-vote] | C117: 0 | D117: 0 | E117: 0 | F117: 0 | G117: 0 | H117: 0 | I117: 0 | K117: 0
A118: ='Org structure'!E114 -> 0 | C118: 0 | D118: 0 | E118: 0 | F118: 0 | G118: 0 | H118: 0 | I118: 0 | K118: 0
A119: ='Org structure'!E115 -> 0 | C119: 0 | D119: 0 | E119: 0 | F119: 0 | G119: 0 | H119: 0 | I119: 0 | K119: 0
A120: ='Org structure'!E116 -> 0 | C120: 0 | D120: 0 | E120: 0 | F120: 0 | G120: 0 | H120: 0 | I120: 0 | K120: 0
A121: ='Org structure'!E117 -> 0 | C121: 0 | D121: 0 | E121: 0 | F121: 0 | G121: 0 | H121: 0 | I121: 0 | K121: 0
A122: ='Org structure'!E118 -> 0 | C122: 0 | D122: 0 | E122: 0 | F122: 0 | G122: 0 | H122: 0 | I122: 0 | K122: 0
A123: ='Org structure'!E119 -> 0 | C123: 0 | D123: 0 | E123: 0 | F123: 0 | G123: 0 | H123: 0 | I123: 0 | K123: 0
A124: ='Org structure'!E120 -> 0 | C124: 0 | D124: 0 | E124: 0 | F124: 0 | G124: 0 | H124: 0 | I124: 0 | K124: 0
A125: ='Org structure'!E121 -> 0 | C125: 0 | D125: 0 | E125: 0 | F125: 0 | G125: 0 | H125: 0 | I125: 0 | K125: 0
A126: ='Org structure'!E122 -> 0 | C126: 0 | D126: 0 | E126: 0 | F126: 0 | G126: 0 | H126: 0 | I126: 0 | K126: 0
A127: ='Org structure'!A13 -> Vote 12 - [NAME OF VOTE 12] | C127: =SUM(C128:C137) -> 0 | D127: =SUM(D128:D137) -> 0 | E127: 0 | F127: 0 | G127: 0 | H127: 0 | I127: 0 | K127: 0
A128: ='Org structure'!E124 -> 12.1 - [Name of sub-vote] | C128: 0 | D128: 0 | E128: 0 | F128: 0 | G128: 0 | H128: 0 | I128: 0 | K128: 0
A129: ='Org structure'!E125 -> 0 | C129: 0 | D129: 0 | E129: 0 | F129: 0 | G129: 0 | H129: 0 | I129: 0 | K129: 0
A130: ='Org structure'!E126 -> 0 | C130: 0 | D130: 0 | E130: 0 | F130: 0 | G130: 0 | H130: 0 | I130: 0 | K130: 0
A131: ='Org structure'!E127 -> 0 | C131: 0 | D131: 0 | E131: 0 | F131: 0 | G131: 0 | H131: 0 | I131: 0 | K131: 0
A132: ='Org structure'!E128 -> 0 | C132: 0 | D132: 0 | E132: 0 | F132: 0 | G132: 0 | H132: 0 | I132: 0 | K132: 0
A133: ='Org structure'!E129 -> 0 | C133: 0 | D133: 0 | E133: 0 | F133: 0 | G133: 0 | H133: 0 | I133: 0 | K133: 0
A134: ='Org structure'!E130 -> 0 | C134: 0 | D134: 0 | E134: 0 | F134: 0 | G134: 0 | H134: 0 | I134: =G134-H134 -> 0 | J134: =IF(I134=0,"",I134/H134) ->  | K134: 0
A135: ='Org structure'!E131 -> 0 | C135: 0 | D135: 0 | E135: 0 | F135: 0 | G135: 0 | H135: 0 | I135: 0 | K135: 0
A136: ='Org structure'!E132 -> 0 | C136: 0 | D136: 0 | E136: 0 | F136: 0 | G136: 0 | H136: 0 | I136: 0 | K136: 0
A137: ='Org structure'!E133 -> 0 | C137: 0 | D137: 0 | E137: 0 | F137: 0 | G137: 0 | H137: 0 | I137: 0 | K137: 0
A138: ='Org structure'!A14 -> Vote 13 - [NAME OF VOTE 13] | C138: =SUM(C139:C148) -> 0 | D138: =SUM(D139:D148) -> 0 | E138: 0 | F138: 0 | G138: 0 | H138: 0 | I138: 0 | K138: 0
A139: ='Org structure'!E135 -> 13.1 - [Name of sub-vote] | C139: 0 | D139: 0 | E139: 0 | F139: 0 | G139: 0 | H139: 0 | I139: 0 | K139: 0
A140: ='Org structure'!E136 -> 0 | C140: 0 | D140: 0 | E140: 0 | F140: 0 | G140: 0 | H140: 0 | I140: 0 | K140: 0
A141: ='Org structure'!E137 -> 0 | C141: 0 | D141: 0 | E141: 0 | F141: 0 | G141: 0 | H141: 0 | I141: 0 | K141: 0
A142: ='Org structure'!E138 -> 0 | C142: 0 | D142: 0 | E142: 0 | F142: 0 | G142: 0 | H142: 0 | I142: 0 | K142: 0
A143: ='Org structure'!E139 -> 0 | C143: 0 | D143: 0 | E143: 0 | F143: 0 | G143: 0 | H143: 0 | I143: 0 | K143: 0
A144: ='Org structure'!E140 -> 0 | C144: 0 | D144: 0 | E144: 0 | F144: 0 | G144: 0 | H144: 0 | I144: 0 | K144: 0
A145: ='Org structure'!E141 -> 0 | C145: 0 | D145: 0 | E145: 0 | F145: 0 | G145: 0 | H145: 0 | I145: 0 | K145: 0
A146: ='Org structure'!E142 -> 0 | C146: 0 | D146: 0 | E146: 0 | F146: 0 | G146: 0 | H146: 0 | I146: 0 | K146: 0
A147: ='Org structure'!E143 -> 0 | C147: 0 | D147: 0 | E147: 0 | F147: 0 | G147: 0 | H147: 0 | I147: 0 | K147: 0
A148: ='Org structure'!E144 -> 0 | C148: 0 | D148: 0 | E148: 0 | F148: 0 | G148: 0 | H148: 0 | I148: 0 | K148: 0
A149: ='Org structure'!A15 -> Vote 14 - [NAME OF VOTE 14] | C149: =SUM(C150:C159) -> 0 | D149: =SUM(D150:D159) -> 0 | E149: 0 | F149: 0 | G149: 0 | H149: 0 | I149: 0 | K149: 0
A150: ='Org structure'!E146 -> 14.1 - [Name of sub-vote] | C150: 0 | D150: 0 | E150: 0 | F150: 0 | G150: 0 | H150: 0 | I150: 0 | K150: 0
A151: ='Org structure'!E147 -> 0 | C151: 0 | D151: 0 | E151: 0 | F151: 0 | G151: 0 | H151: 0 | I151: 0 | K151: 0
A152: ='Org structure'!E148 -> 0 | C152: 0 | D152: 0 | E152: 0 | F152: 0 | G152: 0 | H152: 0 | I152: 0 | K152: 0
A153: ='Org structure'!E149 -> 0 | C153: 0 | D153: 0 | E153: 0 | F153: 0 | G153: 0 | H153: 0 | I153: 0 | K153: 0
A154: ='Org structure'!E150 -> 0 | C154: 0 | D154: 0 | E154: 0 | F154: 0 | G154: 0 | H154: 0 | I154: 0 | K154: 0
A155: ='Org structure'!E151 -> 0 | C155: 0 | D155: 0 | E155: 0 | F155: 0 | G155: 0 | H155: 0 | I155: 0 | K155: 0
A156: ='Org structure'!E152 -> 0 | C156: 0 | D156: 0 | E156: 0 | F156: 0 | G156: 0 | H156: 0 | I156: 0 | K156: 0
A157: ='Org structure'!E153 -> 0 | C157: 0 | D157: 0 | E157: 0 | F157: 0 | G157: 0 | H157: 0 | I157: 0 | K157: 0
A158: ='Org structure'!E154 -> 0 | C158: 0 | D158: 0 | E158: 0 | F158: 0 | G158: 0 | H158: 0 | I158: 0 | K158: 0
A159: ='Org structure'!E155 -> 0 | C159: 0 | D159: 0 | E159: 0 | F159: 0 | G159: 0 | H159: 0 | I159: 0 | K159: 0
A160: ='Org structure'!A16 -> Vote 15 - [NAME OF VOTE 15] | C160: =SUM(C161:C170) -> 0 | D160: =SUM(D161:D170) -> 0 | E160: 0 | F160: 0 | G160: 0 | H160: 0 | I160: 0 | K160: 0
A161: ='Org structure'!E157 -> 15.1 - [Name of sub-vote] | C161: 0 | D161: 0 | E161: 0 | F161: 0 | G161: 0 | H161: 0 | I161: 0 | K161: 0
A162: ='Org structure'!E158 -> 0 | C162: 0 | D162: 0 | E162: 0 | F162: 0 | G162: 0 | H162: 0 | I162: 0 | K162: 0
A163: ='Org structure'!E159 -> 0 | C163: 0 | D163: 0 | E163: 0 | F163: 0 | G163: 0 | H163: 0 | I163: 0 | K163: 0
A164: ='Org structure'!E160 -> 0 | C164: 0 | D164: 0 | E164: 0 | F164: 0 | G164: 0 | H164: 0 | I164: 0 | K164: 0
A165: ='Org structure'!E161 -> 0 | C165: 0 | D165: 0 | E165: 0 | F165: 0 | G165: 0 | H165: 0 | I165: 0 | K165: 0
A166: ='Org structure'!E162 -> 0 | C166: 0 | D166: 0 | E166: 0 | F166: 0 | G166: 0 | H166: 0 | I166: 0 | K166: 0
A167: ='Org structure'!E163 -> 0 | C167: 0 | D167: 0 | E167: 0 | F167: 0 | G167: 0 | H167: 0 | I167: 0 | K167: 0
A168: ='Org structure'!E164 -> 0 | C168: 0 | D168: 0 | E168: 0 | F168: 0 | G168: 0 | H168: 0 | I168: 0 | K168: 0
A169: ='Org structure'!E165 -> 0 | C169: 0 | D169: 0 | E169: 0 | F169: 0 | G169: 0 | H169: 0 | I169: 0 | K169: 0
A170: ='Org structure'!E166 -> 0 | C170: 0 | D170: 0 | E170: 0 | F170: 0 | G170: 0 | H170: 0 | I170: 0 | K170: 0 | L170: =SUM(L78:L81) -> 0 | M170: 0 | N170: 0 | O170: 0 | P170: 0 | Q170: 0 | R170: 0 | S170: 0 | T170: 0 | U170: 0 | V170: 0 | W170: 0
A171: Total Revenue by Vote | B171: 2 | C171: =C6+C17+C28+C39+C50+C61+C72+C83+C94+C105+C116+C127+C138+C149+C160 -> 153589154 | D171: =D6+D17+D28+D39+D50+D61+D72+D83+D94+D105+D116+D127+D138+D149+D160 -> 182667005.1 | E171: 181830183.2 | F171: 5086116 | G171: 167071604 | H171: 181830183.2 | I171: -14758579.16 | J171: -0.08116682779 | K171: 181830183.2
I172: 0
A173: Expenditure by Vote | B173: 1 | I173: 0
A174: ='Org structure'!A2 -> Vote 1 - EXECUTIVE AND COUNCIL | C174: =SUM(C175:C184) -> 23092897 | D174: 30613318.17 | E174: 30853345.63 | F174: 2395789 | G174: 26108359 | H174: 30853345.63 | I174: -4744986.625 | J174: -0.1537916401 | K174: 30853345.63
A175: ='Org structure'!E3 -> 1.1 - MAYOR AND COUNCIL | C175: ='C2C'!C77 -> 10082426 | D175: ='C2C'!D77 -> 13214385.59 | E175: ='C2C'!E77 -> 13294642.57 | F175: ='C2C'!F77 -> 1012884 | G175: ='C2C'!G77 -> 11201389 | H175: ='C2C'!H77 -> 13294642.57 | I175: -2093253.566 | J175: -0.1574509097 | K175: =E175 -> 13294642.57
A176: ='Org structure'!E4 -> 1.2 - MUNICIPAL MANAGER | C176: ='C2C'!C78 -> 13010471 | D176: ='C2C'!D78 -> 17398932.58 | E176: ='C2C'!E78 -> 17558703.06 | F176: ='C2C'!F78 -> 1382905 | G176: ='C2C'!G78 -> 14906970 | H176: ='C2C'!H78 -> 17558703.06 | I176: -2651733.06 | J176: -0.1510210094 | K176: =E176 -> 17558703.06
A177: ='Org structure'!E5 -> 0 | C177: 0 | D177: 0 | E177: 0 | F177: 0 | G177: 0 | H177: 0 | I177: 0 | K177: =D177 -> 0
A178: ='Org structure'!E6 -> 0 | C178: 0 | D178: 0 | E178: 0 | F178: 0 | G178: 0 | H178: 0 | I178: 0 | K178: 0
A179: ='Org structure'!E7 -> 0 | C179: 0 | D179: 0 | E179: 0 | F179: 0 | G179: 0 | H179: 0 | I179: 0 | K179: 0
A180: ='Org structure'!E8 -> 0 | C180: 0 | D180: 0 | E180: 0 | F180: 0 | G180: 0 | H180: 0 | I180: 0 | K180: 0
A181: ='Org structure'!E9 -> 0 | C181: 0 | D181: 0 | E181: 0 | F181: 0 | G181: 0 | H181: 0 | I181: 0 | K181: 0
A182: ='Org structure'!E10 -> 0 | C182: 0 | D182: 0 | E182: 0 | F182: 0 | G182: 0 | H182: 0 | I182: 0 | K182: 0
A183: ='Org structure'!E11 -> 0 | C183: 0 | D183: 0 | E183: 0 | F183: 0 | G183: 0 | H183: 0 | I183: 0 | K183: 0
A184: ='Org structure'!E12 -> 0 | C184: 0 | D184: 0 | E184: 0 | F184: 0 | G184: 0 | H184: 0 | I184: 0 | K184: 0
A185: ='Org structure'!A3 -> Vote 2 - BUDGET AND TREASURY | C185: =SUM(C186:C195) -> 37615237 | D185: =SUM(D186:D195) -> 35678566.89 | E185: =SUM(E186:E195) -> 42718676.69 | F185: 5474019 | G185: 28735921 | H185: 42718676.69 | I185: -13982755.69 | J185: -0.3273218361 | K185: 42718676.69
A186: ='Org structure'!E14 -> 2.1 - BUDGET AND TREASURY | C186: ='C2C'!C79 -> 37615237 | D186: ='C2C'!D79 -> 35678566.89 | E186: ='C2C'!E79 -> 42718676.69 | F186: ='C2C'!F79 -> 5474019 | G186: ='C2C'!G79 -> 28735921 | H186: ='C2C'!H79 -> 42718676.69 | I186: -13982755.69 | J186: -0.3273218361 | K186: =E186 -> 42718676.69
A187: ='Org structure'!E15 -> 0 | C187: 0 | D187: 0 | E187: 0 | F187: 0 | G187: 0 | H187: 0 | I187: 0 | K187: 0
A188: ='Org structure'!E16 -> 0 | C188: 0 | D188: 0 | E188: 0 | F188: 0 | G188: 0 | H188: 0 | I188: 0 | K188: 0
A189: ='Org structure'!E17 -> 0 | C189: 0 | D189: 0 | E189: 0 | F189: 0 | G189: 0 | H189: 0 | I189: 0 | K189: 0
A190: ='Org structure'!E18 -> 0 | C190: 0 | D190: 0 | E190: 0 | F190: 0 | G190: 0 | H190: 0 | I190: 0 | K190: 0
A191: ='Org structure'!E19 -> 0 | C191: 0 | D191: 0 | E191: 0 | F191: 0 | G191: 0 | H191: 0 | I191: 0 | K191: 0
A192: ='Org structure'!E20 -> 0 | C192: 0 | D192: 0 | E192: 0 | F192: 0 | G192: 0 | H192: 0 | I192: 0 | K192: 0
A193: ='Org structure'!E21 -> 0 | C193: 0 | D193: 0 | E193: 0 | F193: 0 | G193: 0 | H193: 0 | I193: 0 | K193: 0
A194: ='Org structure'!E22 -> 0 | C194: 0 | D194: 0 | E194: 0 | F194: 0 | G194: 0 | H194: 0 | I194: 0 | K194: 0
A195: ='Org structure'!E23 -> 0 | C195: 0 | D195: 0 | E195: 0 | F195: 0 | G195: 0 | H195: 0 | I195: 0 | K195: 0
A196: ='Org structure'!A4 -> Vote 3 - CORPORATE SERVICES | C196: =SUM(C197:C206) -> 24188507 | D196: 23927731.15 | E196: 23861492.87 | F196: 2130459 | G196: 22308578 | H196: 23861492.87 | I196: -1552914.872 | J196: -0.06508037366 | K196: 23861492.87
A197: ='Org structure'!E25 -> 3.1 - HUMAN RESOURCES | C197: ='C2C'!C81 -> 24188507 | D197: ='C2C'!D81 -> 23927731.15 | E197: ='C2C'!E81 -> 23861492.87 | F197: ='C2C'!F81 -> 2130459 | G197: ='C2C'!G81 -> 22308578 | H197: ='C2C'!H81 -> 23861492.87 | I197: -1552914.872 | J197: -0.06508037366 | K197: =E197 -> 23861492.87
A198: ='Org structure'!E26 -> 3.2 - INFORMATION TECHNOLOGY | C198: 0 | D198: 0 | E198: 0 | F198: 0 | G198: 0 | H198: 0 | I198: =G198-H198 -> 0 | J198: =IF(I198=0,"",I198/H198) ->  | K198: 0
A199: ='Org structure'!E27 -> 3.3 - PROPERTY SERVICES | C199: 0 | D199: 0 | E199: 0 | F199: 0 | G199: 0 | H199: 0 | I199: 0 | K199: 0
A200: ='Org structure'!E28 -> 3.4 - OTHER ADMIN | C200: 0 | D200: 0 | E200: 0 | F200: 0 | G200: 0 | H200: 0 | I200: 0 | K200: 0
... 147 more rows

Sheet C4-FinPerf RE
A1: =muni& " - "&S71B& " - "&date -> LIM353 Molemole - Table C4 Monthly Budget Statement - Financial Performance (revenue and expenditure) - Q4 Fourth Quarter
A2: =desc -> Description | B2: =head27 -> Ref | C2: =Head1 -> 2014/15 | D2: =Head2 -> Budget Year 2015/16
C3: =Head5 -> Audited Outcome | D3: =Head6 -> Original Budget | E3: =Head7 -> Adjusted Budget | F3: =Head38 -> Monthly actual | G3: =Head39 -> YearTD actual | H3: =Head40 -> YearTD budget | I3: =Head41 -> YTD variance | J3: =Head41 -> YTD variance | K3: =Head8 -> Full Year Forecast
A4: R thousands | J4: %
A5: Revenue By Source
A6: Property rates | C6: 10319307 | D6: ='[6]A4-FinPerf RE'!$J$5 -> 10866048.62 | E6: ='[8]B4-FinPerf RE'!$K$7 -> 10866048.62 | F6: =[9]Sheet1!$J$3897 -> 1068947 | G6: =9781546+F6 -> 10850493 | H6: =E6*12/12 -> 10866048.62 | I6: =G6-H6 -> -15555.616 | J6: =IF(I6=0,"",I6/H6) -> -0.001431579827 | K6: =E6 -> 10866048.62
A7: Property rates - penalties & collection charges | C7: 0 | D7: ='[6]A4-FinPerf RE'!$J$6 -> 0 | E7: 0 | F7: 0 | G7: 0 | H7: =E7*12/12 -> 0 | I7: 0 | K7: =E7 -> 0
A8: Service charges - electricity revenue | C8: 6378369 | D8: ='[6]A4-FinPerf RE'!$J$7 -> 10749686.88 | E8: ='[8]B4-FinPerf RE'!$K$9 -> 9556981.882 | F8: =869743 -> 869743 | G8: =5070250+F8 -> 5939993 | H8: 9556981.882 | I8: -3616988.882 | J8: -0.3784656 | K8: 9556981.882
A9: Service charges - water revenue | C9: 0 | D9: 0 | E9: 0 | F9: 0 | G9: =F9 -> 0 | H9: 0 | I9: 0 | K9: 0
A10: Service charges - sanitation revenue | C10: 0 | D10: 0 | E10: 0 | F10: 0 | G10: 0 | H10: 0 | I10: 0 | K10: 0
A11: Service charges - refuse revenue | C11: 1489742 | D11: ='[6]A4-FinPerf RE'!$J$10 -> 1534221.696 | E11: ='[8]B4-FinPerf RE'!$K$12 -> 1534221.696 | F11: 190740 | G11: =1360981+F11 -> 1551721 | H11: 1534221.696 | I11: 17499.304 | J11: 0.01140598132 | K11: 1534221.696
A12: Service charges - other | C12: 0 | D12: ='[6]A4-FinPerf RE'!$J$11 -> 0 | E12: 0 | F12: 0 | G12: 0 | H12: 0 | I12: 0 | K12: 0
A13: Rental of facilities and equipment | C13: 310226 | D13: ='[6]A4-FinPerf RE'!$J$12 -> 256370.144 | E13: ='[8]B4-FinPerf RE'!$K$14 -> 286850.694 | F13: =[9]Sheet1!$J$3900 -> 5065 | G13: =284488+F13 -> 289553 | H13: 286850.694 | I13: 2702.306 | J13: 0.009420601227 | K13: 286850.694
A14: Interest earned - external investments | C14: 1255011 | D14: ='[6]A4-FinPerf RE'!$J$13 -> 1200000 | E14: ='[8]B4-FinPerf RE'!$K$15 -> 2200000 | F14: =[9]Sheet1!$J$3901 -> 258119 | G14: =1842440+F14 -> 2100559 | H14: 2200000 | I14: -99441 | J14: -0.04520045455 | K14: 2200000
A15: Interest earned - outstanding debtors | C15: 4144675 | D15: ='[6]A4-FinPerf RE'!$J$14 -> 4569726.448 | E15: ='[8]B4-FinPerf RE'!$K$16 -> 4569726.448 | F15: =[9]Sheet1!$J$3902 -> 242815 | G15: =2311215+F15 -> 2554030 | H15: 4569726.448 | I15: -2015696.448 | J15: -0.4410978361 | K15: 4569726.448
A16: Dividends received | C16: 0 | D16: 0 | E16: 0 | F16: 0 | G16: 0 | H16: 0 | I16: 0 | K16: 0
A17: Fines | C17: 1398467 | D17: ='[6]A4-FinPerf RE'!$J$16 -> 954153.696 | E17: ='[8]B4-FinPerf RE'!$K$18 -> 954153.696 | F17: =[9]Sheet1!$J$3904 -> 30400 | G17: =335450+F17 -> 365850 | H17: 954153.696 | I17: -588303.696 | J17: -0.616571207 | K17: 954153.696
A18: Licences and permits | C18: 3987769 | D18: ='[6]A4-FinPerf RE'!$J$17 -> 7602114.448 | E18: ='[8]B4-FinPerf RE'!$K$19 -> 5602114.448 | F18: =[9]Sheet1!$J$3905 -> 1375209 | G18: =3532937+F18 -> 4908146 | H18: 5602114.448 | I18: -693968.448 | J18: -0.123876164 | K18: 5602114.448
A19: Agency services | C19: 1277971 | D19: ='[6]A4-FinPerf RE'!$J$18 -> 1369407.976 | E19: ='[8]B4-FinPerf RE'!$K$20 -> 2082851.976 | F19: =[9]Sheet1!$J$3906 -> 287204 | G19: =1678705+222116+F19 -> 2188025 | H19: 2082851.976 | I19: 105173.024 | J19: 0.0504947184 | K19: 2082851.976
A20: Transfers recognised - operational | C20: 94361874 | D20: ='[6]A4-FinPerf RE'!$J$19 -> 111217000 | E20: ='[8]B4-FinPerf RE'!$K$21 -> 111217000 | F20: =[9]Sheet1!$J$3907 -> 741857 | G20: =107465547+F20 -> 108207404 | H20: 111217000 | I20: -3009596 | J20: -0.02706057527 | K20: 111217000
A21: Other revenue | C21: =438141 -> 438141 | D21: ='[6]A4-FinPerf RE'!$J$20 -> 929699.2367 | E21: ='[8]B4-FinPerf RE'!$K$22 -> 1220800.237 | F21: =[9]Sheet1!$J$3909 -> 15789 | G21: =161985488-G6-G8-G11-G13-G14-G15-G17-G18-G19-G20-26983649+F21 -> -3938146 | H21: 1220800.237 | I21: -5158946.237 | J21: -4.225872572 | K21: 1220800.237
A22: Gains on disposal of PPE | C22: 0 | D22: 0 | E22: 0 | F22: 0 | G22: 0 | H22: 0 | I22: 0 | K22: 0
A23: Total Revenue (excluding capital transfers and contributions) | C23: =SUM(C6:C22) -> 125361552 | D23: 151248429.1 | E23: 150090749.7 | F23: 5085888 | G23: 135017628 | H23: 150090749.7 | I23: -15073121.69 | J23: -0.10042672 | K23: =SUM(K6:K22) -> 150090749.7
A25: Expenditure By Type
A26: Employee related costs | C26: 58009620 | D26: ='[6]A4-FinPerf RE'!$J$25 -> 66055175.57 | E26: ='[8]B4-FinPerf RE'!$K$27 -> 66166386.05 | F26: =[9]Sheet1!$J$3921+[9]Sheet1!$J$3922 -> 5395981 | G26: =55902165+F26 -> 61298146 | H26: =E26*12/12 -> 66166386.05 | I26: =G26-H26 -> -4868240.053 | J26: =IF(I26=0,"",I26/H26) -> -0.07357572845 | K26: =E26 -> 66166386.05
A27: Remuneration of councillors | C27: 7650725 | D27: ='[6]A4-FinPerf RE'!$J$26 -> 10246420.58 | E27: ='[8]B4-FinPerf RE'!$K$28 -> 10246420.58 | F27: =[9]Sheet1!$J$3925 -> 707050 | G27: =7952290+F27 -> 8659340 | H27: =E27*12/12 -> 10246420.58 | I27: -1587080.58 | J27: -0.1548912196 | K27: =E27 -> 10246420.58
A28: Debt impairment | C28: 6130228 | D28: ='[6]A4-FinPerf RE'!$J$27 -> 3170280 | E28: ='[8]B4-FinPerf RE'!$K$29 -> 6000000 | F28: 0 | G28: =F28 -> 0 | H28: 6000000 | I28: -6000000 | J28: -1 | K28: 6000000
A29: Depreciation & asset impairment | C29: 8147957 | D29: ='[6]A4-FinPerf RE'!$J$28 -> 4232000 | E29: ='[8]B4-FinPerf RE'!$K$30 -> 8000000 | F29: =[9]Sheet1!$J$3928 -> 986927 | G29: =3757629+807154+816787+785622+742962+820084+897206+F29 -> 9614371 | H29: 8000000 | I29: 1614371 | J29: 0.201796375 | K29: 8000000
A30: Finance charges | C30: 0 | E30: 0 | F30: 0 | G30: 0 | H30: 0 | I30: 0 | K30: 0
A31: Bulk purchases | C31: 7073013 | D31: ='[6]A4-FinPerf RE'!$J$30 -> 8500000 | E31: ='[8]B4-FinPerf RE'!$K$32 -> 8500000 | F31: =[9]Sheet1!$J$3931 -> 695232 | G31: =7080622+F31 -> 7775854 | H31: 8500000 | I31: -724146 | J31: -0.08519364706 | K31: 8500000
A32: Other materials | C32: 0 | E32: 0 | F32: 0 | G32: 0 | H32: 0 | I32: 0 | K32: 0
A33: Contracted services | C33: 3106114 | D33: ='[6]A4-FinPerf RE'!$J$32 -> 3307856 | E33: ='[8]B4-FinPerf RE'!$K$34 -> 3307856 | F33: =[9]Sheet1!$J$3933 -> 252699 | G33: =2648663+F33 -> 2901362 | H33: 3307856 | I33: -406494 | J33: -0.1228874534 | K33: 3307856
A34: Transfers and grants | C34: 0 | E34: 0 | F34: 0 | G34: 0 | H34: 0 | I34: 0 | K34: 0
A35: Other expenditure | C35: =45128409+3116765+827815+849955 -> 49922944 | D35: ='[6]A4-FinPerf RE'!$J$34 -> 37602824.43 | E35: ='[8]B4-FinPerf RE'!$K$36 -> 42039824.43 | F35: =[9]Sheet1!$J$3935+1715535 -> 9768209 | G35: =99594077+G29-G26-G27-G29-G31-G33+F35 -> 28727584 | H35: 42039824.43 | I35: -13312240.43 | J35: -0.3166578503 | K35: 42039824.43
A36: Loss on disposal of PPE | C36: 95564 | E36: 0 | F36: 0 | G36: 0 | H36: 0 | I36: 0 | K36: 0
A37: Total Expenditure | C37: =SUM(C26:C36) -> 140136165 | D37: =SUM(D26:D36) -> 133114556.6 | E37: =SUM(E26:E36) -> 144260487.1 | F37: 17806098 | G37: 118976657 | H37: 144260487.1 | I37: -25283830.07 | J37: -0.1752651095 | K37: 144260487.1
A39: Surplus/(Deficit) | C39: =C23-C37 -> -14774613 | D39: 18133872.56 | E39: 5830262.626 | F39: -12720210 | G39: 16040971 | H39: 5830262.626 | I39: =I23-I37 -> 10210708.37 | J39: 1.751329061 | K39: =K23-K37 -> 5830262.626
A40: Transfers recognised - capital | C40: 28227629 | D40: ='[6]A4-FinPerf RE'!$J$39 -> 31418576 | E40: ='[8]B4-FinPerf RE'!$K$41 -> 31739433 | G40: 26983649 | H40: =E40*12/12 -> 31739433 | I40: =G40-H40 -> -4755784 | J40: -0.1498383415 | K40: =E40 -> 31739433
A41: Contributions recognised - capital | C41: 0 | D41: 0 | E41: 0 | F41: 0 | G41: 0 | H41: 0 | I41: =G41-H41 -> 0 | K41: 0
A42: Contributed assets | C42: 0 | D42: 0 | E42: 0 | F42: 0 | G42: 0 | H42: 0 | I42: =G42-H42 -> 0 | K42: 0
A43: Surplus/(Deficit) after capital transfers & contributions | C43: =C39+SUM(C40:C42) -> 13453016 | D43: 49552448.56 | E43: 37569695.63 | F43: -12720210 | G43: 43024620 | H43: 37569695.63 | K43: =K39+SUM(K40:K42) -> 37569695.63
A44: Taxation | C44: 0 | D44: 0 | E44: 0 | F44: 0 | G44: 0 | H44: 0 | I44: =G44-H44 -> 0 | J44: =IF(I44=0,"",I44/H44) ->  | K44: 0
A45: Surplus/(Deficit) after taxation | C45: =C43-C44 -> 13453016 | D45: 49552448.56 | E45: 37569695.63 | F45: -12720210 | G45: 43024620 | H45: 37569695.63 | K45: =K43-K44 -> 37569695.63
A46: Attributable to minorities | C46: 0 | D46: 0 | E46: 0 | F46: 0 | G46: 0 | H46: 0 | K46: 0
A47: Surplus/(Deficit) attributable to municipality | C47: =SUM(C45:C46) -> 13453016 | D47: 49552448.56 | E47: 37569695.63 | F47: -12720210 | G47: 43024620 | H47: 37569695.63 | K47: =SUM(K45:K46) -> 37569695.63
A48: Share of surplus/ (deficit) of associate | C48: 0 | D48: 0 | E48: 0 | F48: 0 | G48: 0 | H48: 0 | K48: 0
A49: Surplus/ (Deficit) for the year | C49: =C47+C48 -> 13453016 | D49: 49552448.56 | E49: 37569695.63 | F49: -12720210 | G49: 43024620 | H49: 37569695.63 | K49: =K47+K48 -> 37569695.63
A50: =head27a -> References
A51: 1. Material variances to be explained on Table SC1
A54: =A23&" including capital transfers/contributions etc" -> Total Revenue (excluding capital transfers and contributions) including capital transfers/contributions etc | C54: =C23+SUM(C40:C42) -> 153589181 | D54: 182667005.1 | E54: 181830182.7 | F54: 5085888 | G54: 162001277 | H54: 181830182.7 | K54: =K23+SUM(K40:K42) -> 181830182.7

Sheet C5-Capex
A1: =muni& " - "&S71D& " - "&date -> LIM353 Molemole - Table C5 Monthly Budget Statement - Capital Expenditure (municipal vote, standard classification and funding) - Q4 Fourth Quarter
A2: =Vdesc -> Vote Description | B2: =head27 -> Ref | C2: =Head1 -> 2014/15 | D2: =Head2 -> Budget Year 2015/16
C3: =Head5 -> Audited Outcome | D3: =Head6 -> Original Budget | E3: =Head7 -> Adjusted Budget | F3: =Head38 -> Monthly actual | G3: =Head39 -> YearTD actual | H3: =Head40 -> YearTD budget | I3: =Head41 -> YTD variance | J3: =Head41 -> YTD variance | K3: =Head8 -> Full Year Forecast
A4: R thousands | B4: 1 | J4: %
A5: Multi-Year expenditure appropriation | B5: 2
A6: ='Org structure'!A2 -> Vote 1 - EXECUTIVE AND COUNCIL | C6: ='C5C'!C7 -> 85119 | D6: ='C5C'!D7 -> 100000 | E6: ='C5C'!E7 -> 70000 | F6: ='C5C'!F7 -> 4900 | G6: ='C5C'!G7 -> 4900 | H6: ='C5C'!H7 -> 70000 | I6: =G6-H6 -> -65100 | J6: =IF(I6=0,"",I6/H6) -> -0.93 | K6: ='C5C'!K7 -> 70000
A7: ='Org structure'!A3 -> Vote 2 - BUDGET AND TREASURY | C7: ='C5C'!C18 -> 559375 | D7: ='C5C'!D18 -> 50000 | E7: ='C5C'!E18 -> 50000 | F7: ='C5C'!F18 -> 19969 | G7: ='C5C'!G18 -> 49566 | H7: ='C5C'!H18 -> 50000 | I7: =G7-H7 -> -434 | J7: =IF(I7=0,"",I7/H7) -> -0.00868 | K7: ='C5C'!K18 -> 50000
A8: ='Org structure'!A4 -> Vote 3 - CORPORATE SERVICES | C8: ='C5C'!C29 -> 2022015 | D8: ='C5C'!D29 -> 1010000 | E8: ='C5C'!E29 -> 1438691 | F8: ='C5C'!F29 -> 0 | G8: ='C5C'!G29 -> 1404013 | H8: ='C5C'!H29 -> 1438691 | I8: =G8-H8 -> -34678 | J8: =IF(I8=0,"",I8/H8) -> -0.02410385552 | K8: ='C5C'!K29 -> 1438691
A9: ='Org structure'!A5 -> Vote 4 - LOCAL ECONOMIC DEVELOPMENT AND PLANNING | C9: ='C5C'!C40 -> 433500 | D9: ='C5C'!D40 -> 500000 | E9: ='C5C'!E40 -> 100000 | F9: ='C5C'!F40 -> 0 | G9: ='C5C'!G40 -> 74500 | H9: ='C5C'!H40 -> 100000 | I9: -25500 | J9: -0.255 | K9: ='C5C'!K40 -> 100000
A10: ='Org structure'!A6 -> Vote 5 - COMMUNITY SERVICES | C10: ='C5C'!C51 -> 5831814 | D10: ='C5C'!D51 -> 5702550 | E10: ='C5C'!E51 -> 5702550 | F10: ='C5C'!F51 -> 1993367 | G10: ='C5C'!G51 -> 5285686 | H10: ='C5C'!H51 -> 5702550 | I10: -416864 | J10: -0.07310133186 | K10: ='C5C'!K51 -> 5702550
A11: ='Org structure'!A7 -> Vote 6 - ROAD TRANSPORT | C11: ='C5C'!C62 -> 2602524 | D11: ='C5C'!D62 -> 38513600 | E11: ='C5C'!E62 -> 40589019.96 | F11: ='C5C'!F62 -> 3503317 | G11: ='C5C'!G62 -> 27189162 | H11: ='C5C'!H62 -> 40589019.96 | I11: -13399857.96 | J11: -0.3301350457 | K11: ='C5C'!K62 -> 40589019.96
A12: ='Org structure'!A8 -> Vote 7 - ELECTRICITY | C12: ='C5C'!C73 -> 2561173 | D12: ='C5C'!D73 -> 3400000 | E12: ='C5C'!E73 -> 3341186 | F12: ='C5C'!F73 -> 535235 | G12: ='C5C'!G73 -> 1330995 | H12: ='C5C'!H73 -> 3341186 | I12: -2010191 | J12: -0.6016399566 | K12: ='C5C'!K73 -> 3341186
A13: ='Org structure'!A9 -> Vote 8 - WATER | C13: ='C5C'!C84 -> 0 | D13: ='C5C'!D84 -> 0 | E13: ='C5C'!E84 -> 0 | F13: ='C5C'!F84 -> 0 | G13: ='C5C'!G84 -> 0 | H13: ='C5C'!H84 -> 0 | I13: 0 | K13: ='C5C'!K84 -> 0
A14: ='Org structure'!A10 -> Vote 9 - [NAME OF VOTE 9] | C14: ='C5C'!C95 -> 0 | D14: ='C5C'!D95 -> 0 | E14: ='C5C'!E95 -> 0 | F14: ='C5C'!F95 -> 0 | G14: ='C5C'!G95 -> 0 | H14: ='C5C'!H95 -> 0 | I14: 0 | K14: ='C5C'!K95 -> 0
A15: ='Org structure'!A11 -> Vote 10 - [NAME OF VOTE 10] | C15: ='C5C'!C106 -> 0 | D15: ='C5C'!D106 -> 0 | E15: ='C5C'!E106 -> 0 | F15: ='C5C'!F106 -> 0 | G15: ='C5C'!G106 -> 0 | H15: ='C5C'!H106 -> 0 | I15: 0 | K15: ='C5C'!K106 -> 0
A16: ='Org structure'!A12 -> Vote 11 - [NAME OF VOTE 11] | C16: ='C5C'!C117 -> 0 | D16: ='C5C'!D117 -> 0 | E16: ='C5C'!E117 -> 0 | F16: ='C5C'!F117 -> 0 | G16: ='C5C'!G117 -> 0 | H16: ='C5C'!H117 -> 0 | I16: 0 | K16: ='C5C'!K117 -> 0
A17: ='Org structure'!A13 -> Vote 12 - [NAME OF VOTE 12] | C17: ='C5C'!C128 -> 0 | D17: ='C5C'!D128 -> 0 | E17: ='C5C'!E128 -> 0 | F17: ='C5C'!F128 -> 0 | G17: ='C5C'!G128 -> 0 | H17: ='C5C'!H128 -> 0 | I17: 0 | K17: ='C5C'!K128 -> 0
A18: ='Org structure'!A14 -> Vote 13 - [NAME OF VOTE 13] | C18: ='C5C'!C139 -> 0 | D18: ='C5C'!D139 -> 0 | E18: ='C5C'!E139 -> 0 | F18: ='C5C'!F139 -> 0 | G18: ='C5C'!G139 -> 0 | H18: ='C5C'!H139 -> 0 | I18: =G18-H18 -> 0 | J18: =IF(I18=0,"",I18/H18) ->  | K18: ='C5C'!K139 -> 0
A19: ='Org structure'!A15 -> Vote 14 - [NAME OF VOTE 14] | C19: ='C5C'!C150 -> 0 | D19: ='C5C'!D150 -> 0 | E19: ='C5C'!E150 -> 0 | F19: ='C5C'!F150 -> 0 | G19: ='C5C'!G150 -> 0 | H19: ='C5C'!H150 -> 0 | I19: =G19-H19 -> 0 | J19: =IF(I19=0,"",I19/H19) ->  | K19: ='C5C'!K150 -> 0
A20: ='Org structure'!A16 -> Vote 15 - [NAME OF VOTE 15] | C20: ='C5C'!C161 -> 0 | D20: ='C5C'!D161 -> 0 | E20: ='C5C'!E161 -> 0 | F20: ='C5C'!F161 -> 0 | G20: ='C5C'!G161 -> 0 | H20: ='C5C'!H161 -> 0 | I20: =G20-H20 -> 0 | J20: =IF(I20=0,"",I20/H20) ->  | K20: ='C5C'!K161 -> 0
A21: Total Capital Multi-year expenditure | B21: 4,7 | C21: =SUM(C6:C20) -> 14095520 | D21: =SUM(D6:D20) -> 49276150 | E21: 51291446.96 | F21: 6056788 | G21: 35338822 | H21: 51291446.96 | I21: -15952624.96 | J21: =IF(I21=0,"",I21/H21) -> -0.3110192031 | K21: =SUM(K6:K20) -> 51291446.96
A23: Single Year expenditure appropriation | B23: 2
A24: ='Org structure'!A2 -> Vote 1 - EXECUTIVE AND COUNCIL | C24: ='C5C'!C176 -> 0 | D24: ='C5C'!D176 -> 0 | E24: ='C5C'!E176 -> 0 | F24: ='C5C'!F176 -> 0 | G24: ='C5C'!G176 -> 0 | H24: ='C5C'!H176 -> 0 | I24: ='C5C'!I176 -> 0 | J24: =IF(I24=0,"",I24/H24) ->  | K24: ='C5C'!K176 -> 0
A25: ='Org structure'!A3 -> Vote 2 - BUDGET AND TREASURY | C25: ='C5C'!C187 -> 0 | D25: ='C5C'!D187 -> 0 | E25: ='C5C'!E187 -> 0 | F25: ='C5C'!F187 -> 0 | G25: ='C5C'!G187 -> 0 | H25: ='C5C'!H187 -> 0 | I25: ='C5C'!I187 -> 0 | J25: =IF(I25=0,"",I25/H25) ->  | K25: ='C5C'!K187 -> 0
A26: ='Org structure'!A4 -> Vote 3 - CORPORATE SERVICES | C26: ='C5C'!C198 -> 0 | D26: ='C5C'!D198 -> 0 | E26: ='C5C'!E198 -> 0 | F26: ='C5C'!F198 -> 0 | G26: ='C5C'!G198 -> 0 | H26: ='C5C'!H198 -> 0 | I26: ='C5C'!I198 -> 0 | K26: ='C5C'!K198 -> 0
A27: ='Org structure'!A5 -> Vote 4 - LOCAL ECONOMIC DEVELOPMENT AND PLANNING | C27: ='C5C'!C209 -> 0 | D27: ='C5C'!D209 -> 0 | E27: ='C5C'!E209 -> 0 | F27: ='C5C'!F209 -> 0 | G27: ='C5C'!G209 -> 0 | H27: ='C5C'!H209 -> 0 | I27: ='C5C'!I209 -> 0 | K27: ='C5C'!K209 -> 0
A28: ='Org structure'!A6 -> Vote 5 - COMMUNITY SERVICES | C28: ='C5C'!C220 -> 0 | D28: ='C5C'!D220 -> 0 | E28: ='C5C'!E220 -> 0 | F28: ='C5C'!F220 -> 0 | G28: ='C5C'!G220 -> 0 | H28: ='C5C'!H220 -> 0 | I28: ='C5C'!I220 -> 0 | K28: ='C5C'!K220 -> 0
A29: ='Org structure'!A7 -> Vote 6 - ROAD TRANSPORT | C29: ='C5C'!C231 -> 0 | D29: ='C5C'!D231 -> 0 | E29: ='C5C'!E231 -> 0 | F29: ='C5C'!F231 -> 0 | G29: ='C5C'!G231 -> 0 | H29: ='C5C'!H231 -> 0 | I29: ='C5C'!I231 -> 0 | K29: ='C5C'!K231 -> 0
A30: ='Org structure'!A8 -> Vote 7 - ELECTRICITY | C30: ='C5C'!C242 -> 0 | D30: ='C5C'!D242 -> 0 | E30: ='C5C'!E242 -> 0 | F30: ='C5C'!F242 -> 0 | G30: ='C5C'!G242 -> 0 | H30: ='C5C'!H242 -> 0 | I30: ='C5C'!I242 -> 0 | K30: ='C5C'!K242 -> 0
A31: ='Org structure'!A9 -> Vote 8 - WATER | C31: ='C5C'!C253 -> 0 | D31: ='C5C'!D253 -> 0 | E31: ='C5C'!E253 -> 0 | F31: ='C5C'!F253 -> 0 | G31: ='C5C'!G253 -> 0 | H31: ='C5C'!H253 -> 0 | I31: ='C5C'!I253 -> 0 | K31: ='C5C'!K253 -> 0
A32: ='Org structure'!A10 -> Vote 9 - [NAME OF VOTE 9] | C32: ='C5C'!C264 -> 0 | D32: ='C5C'!D264 -> 0 | E32: ='C5C'!E264 -> 0 | F32: ='C5C'!F264 -> 0 | G32: ='C5C'!G264 -> 0 | H32: ='C5C'!H264 -> 0 | I32: ='C5C'!I264 -> 0 | K32: ='C5C'!K264 -> 0
A33: ='Org structure'!A11 -> Vote 10 - [NAME OF VOTE 10] | C33: ='C5C'!C275 -> 0 | D33: ='C5C'!D275 -> 0 | E33: ='C5C'!E275 -> 0 | F33: ='C5C'!F275 -> 0 | G33: ='C5C'!G275 -> 0 | H33: ='C5C'!H275 -> 0 | I33: ='C5C'!I275 -> 0 | K33: ='C5C'!K275 -> 0
A34: ='Org structure'!A12 -> Vote 11 - [NAME OF VOTE 11] | C34: ='C5C'!C286 -> 0 | D34: ='C5C'!D286 -> 0 | E34: ='C5C'!E286 -> 0 | F34: ='C5C'!F286 -> 0 | G34: ='C5C'!G286 -> 0 | H34: ='C5C'!H286 -> 0 | I34: ='C5C'!I286 -> 0 | K34: ='C5C'!K286 -> 0
A35: ='Org structure'!A13 -> Vote 12 - [NAME OF VOTE 12] | C35: ='C5C'!C297 -> 0 | D35: ='C5C'!D297 -> 0 | E35: ='C5C'!E297 -> 0 | F35: ='C5C'!F297 -> 0 | G35: ='C5C'!G297 -> 0 | H35: ='C5C'!H297 -> 0 | I35: ='C5C'!I297 -> 0 | K35: ='C5C'!K297 -> 0
A36: ='Org structure'!A14 -> Vote 13 - [NAME OF VOTE 13] | C36: ='C5C'!C308 -> 0 | D36: ='C5C'!D308 -> 0 | E36: ='C5C'!E308 -> 0 | F36: ='C5C'!F308 -> 0 | G36: ='C5C'!G308 -> 0 | H36: ='C5C'!H308 -> 0 | I36: ='C5C'!I308 -> 0 | K36: ='C5C'!K308 -> 0
A37: ='Org structure'!A15 -> Vote 14 - [NAME OF VOTE 14] | C37: ='C5C'!C319 -> 0 | D37: ='C5C'!D319 -> 0 | E37: ='C5C'!E319 -> 0 | F37: ='C5C'!F319 -> 0 | G37: ='C5C'!G319 -> 0 | H37: ='C5C'!H319 -> 0 | I37: ='C5C'!I319 -> 0 | K37: ='C5C'!K319 -> 0
A38: ='Org structure'!A16 -> Vote 15 - [NAME OF VOTE 15] | C38: ='C5C'!C330 -> 0 | D38: ='C5C'!D330 -> 0 | E38: ='C5C'!E330 -> 0 | F38: ='C5C'!F330 -> 0 | G38: ='C5C'!G330 -> 0 | H38: ='C5C'!H330 -> 0 | I38: ='C5C'!I330 -> 0 | K38: ='C5C'!K330 -> 0
A39: Total Capital single-year expenditure | B39: 4 | C39: =SUM(C24:C38) -> 0 | D39: 0 | E39: 0 | F39: 0 | G39: 0 | H39: 0 | I39: 0 | K39: =SUM(K24:K38) -> 0
A40: Total Capital Expenditure | C40: =C39+C21 -> 14095520 | D40: 49276150 | E40: 51291446.96 | F40: 6056788 | G40: 35338822 | H40: 51291446.96 | I40: -15952624.96 | J40: =IF(I40=0,"",I40/H40) -> -0.3110192031 | K40: =K39+K21 -> 51291446.96
A42: Capital Expenditure - Standard Classification
A43: ='C2-FinPerf SC'!A29 -> Governance and administration | C43: =SUM(C44:C46) -> 2666509 | D43: 1160000 | E43: 1558691 | F43: 24869 | G43: 1458479 | H43: 1558691 | I43: =G43-H43 -> -100212 | J43: =IF(I43=0,"",I43/H43) -> -0.06429240946 | K43: =SUM(K44:K46) -> 1558691
A44: ='C2-FinPerf SC'!A30 -> Executive and council | C44: =[10]Sheet1!$I$111 -> 85119 | D44: =D6 -> 100000 | E44: ='[8]B5-Capex'!$K$46 -> 70000 | F44: =[11]Sheet1!$J$118 -> 4900 | G44: =F44 -> 4900 | H44: =E44*12/12 -> 70000 | I44: -65100 | J44: =IF(I44=0,"",I44/H44) -> -0.93 | K44: =E44 -> 70000
A45: ='C2-FinPerf SC'!A31 -> Budget and treasury office | C45: =[10]Sheet1!$I$206 -> 559375 | D45: =D7 -> 50000 | E45: ='[8]B5-Capex'!$K$47 -> 50000 | F45: =[11]Sheet1!$J$180 -> 19969 | G45: =29597+F45 -> 49566 | H45: =E45*12/12 -> 50000 | I45: -434 | J45: -0.00868 | K45: =E45 -> 50000
A46: ='C2-FinPerf SC'!A32 -> Corporate services | C46: =[10]Sheet1!$I$482 -> 2022015 | D46: =D8 -> 1010000 | E46: ='[8]B5-Capex'!$K$48 -> 1438691 | F46: 0 | G46: =979515+226646+197852 -> 1404013 | H46: 1438691 | I46: -34678 | J46: -0.02410385552 | K46: 1438691
A47: ='C2-FinPerf SC'!A33 -> Community and public safety | C47: =SUM(C48:C52) -> 5831814 | D47: 5702550 | E47: 5702550 | F47: 1993367 | G47: 5285686 | H47: 5702550 | I47: -416864 | J47: -0.07310133186 | K47: =SUM(K48:K52) -> 5702550
A48: ='C2-FinPerf SC'!A34 -> Community and social services | C48: =[10]Sheet1!$I$1517 -> 5831814 | D48: =D10 -> 5702550 | E48: ='[8]B5-Capex'!$K$50 -> 5702550 | F48: =[11]Sheet1!$J$1550 -> 1993367 | G48: =87600+3204719+F48 -> 5285686 | H48: =E48*12/12 -> 5702550 | I48: -416864 | J48: -0.07310133186 | K48: =E48 -> 5702550
A49: ='C2-FinPerf SC'!A35 -> Sport and recreation | C49: 0 | D49: 0 | E49: 0 | F49: 0 | G49: 0 | H49: =E49*12/11 -> 0 | I49: 0 | K49: =D49 -> 0
A50: ='C2-FinPerf SC'!A36 -> Public safety | C50: 0 | D50: 0 | E50: 0 | F50: 0 | G50: 0 | H50: 0 | I50: 0 | K50: 0
A51: ='C2-FinPerf SC'!A37 -> Housing | C51: 0 | D51: 0 | E51: 0 | F51: 0 | G51: 0 | H51: 0 | I51: 0 | K51: 0
A52: ='C2-FinPerf SC'!A38 -> Health | C52: 0 | D52: 0 | E52: 0 | F52: 0 | G52: 0 | H52: 0 | I52: 0 | K52: 0
A53: ='C2-FinPerf SC'!A39 -> Economic and environmental services | C53: =SUM(C54:C56) -> 3036024 | D53: 39013600 | E53: 40689019.96 | F53: 3503317 | G53: 27263662 | H53: 40689019.96 | I53: -13425357.96 | J53: -0.3299503889 | K53: =SUM(K54:K56) -> 40689019.96
A54: ='C2-FinPerf SC'!A40 -> Planning and development | C54: =[10]Sheet1!$I$689 -> 433500 | D54: =D9 -> 500000 | E54: ='[8]B5-Capex'!$K$56 -> 100000 | F54: 0 | G54: 74500 | H54: =E54*12/12 -> 100000 | I54: -25500 | J54: -0.255 | K54: =E54 -> 100000
A55: ='C2-FinPerf SC'!A41 -> Road transport | C55: =[10]Sheet1!$I$2897 -> 2602524 | D55: =D11 -> 38513600 | E55: ='[8]B5-Capex'!$K$57 -> 40589019.96 | F55: =[11]Sheet1!$J$2896 -> 3503317 | G55: =4550186+14482035+3608225+196532+204896+643971+F55 -> 27189162 | H55: =E55*12/12 -> 40589019.96 | I55: -13399857.96 | J55: -0.3301350457 | K55: =E55 -> 40589019.96
A56: ='C2-FinPerf SC'!A42 -> Environmental protection | C56: 0 | E56: 0 | F56: 0 | G56: 0 | H56: 0 | I56: 0 | K56: 0
A57: ='C2-FinPerf SC'!A43 -> Trading services | C57: =SUM(C58:C61) -> 2561173 | D57: 3400000 | E57: 3341186 | F57: 535235 | G57: 1330995 | H57: 3341186 | I57: -2010191 | J57: -0.6016399566 | K57: =SUM(K58:K61) -> 3341186
A58: ='C2-FinPerf SC'!A44 -> Electricity | C58: =[10]Sheet1!$I$3518 -> 2561173 | D58: =D12 -> 3400000 | E58: ='[8]B5-Capex'!$K$60 -> 3341186 | F58: =[11]Sheet1!$J$3472 -> 535235 | G58: =795760+F58 -> 1330995 | H58: =E58*12/12 -> 3341186 | I58: -2010191 | J58: -0.6016399566 | K58: =E58 -> 3341186
A59: ='C2-FinPerf SC'!A45 -> Water | C59: 0 | D59: 0 | E59: 0 | F59: 0 | G59: 0 | H59: =D59/12*4 -> 0 | I59: 0 | K59: 0
A60: ='C2-FinPerf SC'!A46 -> Waste water management | C60: 0 | D60: 0 | E60: 0 | F60: 0 | G60: 0 | H60: 0 | I60: 0 | K60: 0
A61: ='C2-FinPerf SC'!A47 -> Waste management | C61: 0 | D61: 0 | E61: 0 | F61: 0 | G61: 0 | H61: 0 | I61: 0 | K61: 0
A62: ='C2-FinPerf SC'!A48 -> Other | C62: 0 | D62: 0 | E62: 0 | F62: 0 | G62: 0 | H62: 0 | I62: 0 | K62: 0
A63: Total Capital Expenditure - Standard Classification | B63: 3 | C63: =C43+C47+C53+C57+C62 -> 14095520 | D63: =D43+D47+D53+D57+D62 -> 49276150 | E63: 51291446.96 | F63: 6056788 | G63: 35338822 | H63: 51291446.96 | I63: -15952624.96 | J63: -0.3110192031 | K63: =K43+K47+K53+K57+K62 -> 51291446.96
A65: Funded by:
A66: National Government | C66: =[10]Sheet1!$I$4076 -> 4851604 | D66: ='[6]A5-Capex'!$J$66 -> 28566150 | E66: ='[8]B5-Capex'!$K$68 -> 29219229.96 | F66: =[11]Sheet1!$J$4073 -> 1478112 | G66: =22183128+F66 -> 23661240 | H66: =E66*12/12 -> 29219229.96 | I66: =G66-H66 -> -5557989.96 | J66: =IF(I66=0,"",I66/H66) -> -0.1902168527 | K66: =E66 -> 29219229.96
A67: Provincial Government | C67: 0 | D67: 0 | E67: 0 | F67: 0 | G67: 0 | H67: =E67*12/12 -> 0 | I67: 0 | K67: =E67 -> 0
A68: District Municipality | C68: 0 | D68: ='[6]A5-Capex'!$J$68 -> 401576 | E68: ='[8]B5-Capex'!$K$70 -> 401576 | F68: =[11]Sheet1!$J$4077 -> 352260 | G68: =F68 -> 352260 | H68: 401576 | I68: -49316 | J68: -0.1228061438 | K68: 401576
A69: Other transfers and grants | C69: 0 | D69: 0 | E69: 0 | F69: 0 | G69: 0 | H69: =E69*12/11 -> 0 | I69: 0 | K69: 0
A70: Transfers recognised - capital | C70: =SUM(C66:C69) -> 4851604 | D70: 28967726 | E70: 29620805.96 | F70: 1830372 | G70: 24013500 | H70: 29620805.96 | I70: -5607305.96 | J70: -0.1893029504 | K70: =SUM(K66:K69) -> 29620805.96
A71: Public contributions & donations | B71: 5 | C71: 0 | D71: 0 | E71: 0 | F71: 0 | G71: 0 | H71: =E71*12/11 -> 0 | I71: 0 | K71: =E71 -> 0
A72: Borrowing | B72: 6 | C72: 0 | D72: 0 | E72: 0 | F72: 0 | G72: 0 | H72: 0 | I72: 0 | K72: =E72 -> 0
A73: Internally generated funds | C73: =[10]Sheet1!$I$4074 -> 9243916 | D73: ='[6]A5-Capex'!$J$73 -> 20308424 | E73: ='[8]B5-Capex'!$K$75 -> 21670641 | F73: =[11]Sheet1!$J$4075 -> 4226416 | G73: =7098906+F73 -> 11325322 | H73: =E73*12/12 -> 21670641 | I73: -10345319 | J73: -0.4773886938 | K73: 21670641
A74: Total Capital Funding | C74: =SUM(C70:C73) -> 14095520 | D74: 49276150 | E74: 51291446.96 | F74: =SUM(F70:F73) -> 6056788 | G74: =SUM(G70:G73) -> 35338822 | H74: =SUM(H70:H73) -> 51291446.96 | I74: -15952624.96 | J74: -0.3110192031 | K74: 51291446.96
A75: =head27a -> References
A76: 1. Municipalities may choose to appropriate for capital expenditure for three years or for one year (if one year appropriation projected expenditure required for yr2 and yr3).
A77: 2. Include capital component of PPP unitary payment
A78: 3. Capital expenditure by standard classification must reconcile to the total of multi-year and single year appropriations
A79: 4. Include expenditure on investment property, intangible and biological assets
A80: 5. Must reconcile to Monthly Budget Statement Financial Performance (revenue and expenditure)
A81: 6. Include finance leases and PPP capital funding component of unitary payment - total borrowing/repayments to reconcile to changes in Table SA17
A86: check balance | C86: =C40-C74 -> 0 | D86: =D40-D74 -> 0 | E86: 0 | F86: 0 | G86: 0 | H86: 0 | K86: 0

Sheet C5C
A1: =muni& " - "&S71D& " - "&"A"& " - "&date -> LIM353 Molemole - Table C5 Monthly Budget Statement - Capital Expenditure (municipal vote, standard classification and funding) - A - Q4 Fourth Quarter
A2: =Vdesc -> Vote Description | B2: =head27 -> Ref | C2: =Head1 -> 2014/15 | D2: =Head2 -> Budget Year 2015/16 | L2: =Head4 -> 
A3: R thousand | C3: =Head5 -> Audited Outcome | D3: =Head6 -> Original Budget | E3: =Head7 -> Adjusted Budget | F3: =Head38 -> Monthly actual | G3: =Head39 -> YearTD actual | H3: =Head40 -> YearTD budget | I3: =Head41 -> YTD variance | J3: =Head41 -> YTD variance | K3: =Head8 -> Full Year Forecast | L3: =Head12 -> Forecast 2010/11 | M3: =Head13 -> Forecast 2011/12 | N3: =Head14 -> Forecast 2012/13 | O3: =Head15 -> Forecast 2013/14 | P3: =Head16 -> Forecast 2014/15 | Q3: =Head17 -> Forecast 2015/16 | R3: =Head18 -> Forecast 2016/17 | S3: =Head19 -> Forecast 2017/18 | T3: =Head20 -> Forecast 2018/19 | U3: =Head21 -> Forecast 2019/20 | V3: =Head22 -> Forecast 2020/21 | W3: =Head23 -> Forecast 2021/22
J4: %
A5: Capital expenditure - Municipal Vote
A6: Expenditure of multi-year capital appropriation | B6: 1
A7: ='Org structure'!A2 -> Vote 1 - EXECUTIVE AND COUNCIL | C7: =SUM(C8:C17) -> 85119 | D7: =SUM(D8:D17) -> 100000 | E7: 70000 | F7: 4900 | G7: 4900 | H7: 70000 | I7: =G7-H7 -> -65100 | J7: =IF(I7=0,"",I7/H7) -> -0.93 | K7: 70000
A8: ='Org structure'!E3 -> 1.1 - MAYOR AND COUNCIL | C8: 0 | D8: =[6]A5A!$V$7 -> 0 | E8: 0 | F8: 0 | G8: 0 | H8: =D8/12*11 -> 0 | I8: 0 | K8: =E8 -> 0
A9: ='Org structure'!E4 -> 1.2 - MUNICIPAL MANAGER | C9: ='C5-Capex'!C44 -> 85119 | D9: =[6]A5A!$V$8 -> 100000 | E9: ='C5-Capex'!E44 -> 70000 | F9: ='C5-Capex'!F44 -> 4900 | G9: ='C5-Capex'!G44 -> 4900 | H9: ='C5-Capex'!H44 -> 70000 | I9: -65100 | J9: -0.93 | K9: =E9 -> 70000
A10: ='Org structure'!E5 -> 0 | C10: 0 | D10: 0 | E10: 0 | F10: 0 | G10: 0 | H10: =D10/12*11 -> 0 | I10: 0 | K10: 0
A11: ='Org structure'!E6 -> 0 | C11: 0 | D11: 0 | E11: 0 | F11: 0 | G11: 0 | H11: 0 | I11: 0 | K11: 0
A12: ='Org structure'!E7 -> 0 | C12: 0 | D12: 0 | E12: 0 | F12: 0 | G12: 0 | H12: 0 | I12: 0 | K12: 0
A13: ='Org structure'!E8 -> 0 | C13: 0 | D13: 0 | E13: 0 | F13: 0 | G13: 0 | H13: 0 | I13: 0 | K13: 0
A14: ='Org structure'!E9 -> 0 | C14: 0 | D14: 0 | E14: 0 | F14: 0 | G14: 0 | H14: 0 | I14: 0 | K14: 0
A15: ='Org structure'!E10 -> 0 | C15: 0 | D15: 0 | E15: 0 | F15: 0 | G15: 0 | H15: 0 | I15: 0 | K15: 0
A16: ='Org structure'!E11 -> 0 | C16: 0 | D16: 0 | E16: 0 | F16: 0 | G16: 0 | H16: 0 | I16: 0 | K16: 0
A17: ='Org structure'!E12 -> 0 | C17: 0 | D17: 0 | E17: 0 | F17: 0 | G17: 0 | H17: 0 | I17: 0 | K17: 0
A18: ='Org structure'!A3 -> Vote 2 - BUDGET AND TREASURY | C18: =SUM(C19:C28) -> 559375 | D18: =SUM(D19:D28) -> 50000 | E18: 50000 | F18: 19969 | G18: 49566 | H18: 50000 | I18: -434 | J18: -0.00868 | K18: 50000
A19: ='Org structure'!E14 -> 2.1 - BUDGET AND TREASURY | C19: ='C5-Capex'!C45 -> 559375 | D19: =[6]A5A!$V$18 -> 50000 | E19: ='C5-Capex'!E45 -> 50000 | F19: ='C5-Capex'!F45 -> 19969 | G19: ='C5-Capex'!G45 -> 49566 | H19: ='C5-Capex'!H45 -> 50000 | I19: -434 | J19: -0.00868 | K19: =E19 -> 50000
A20: ='Org structure'!E15 -> 0 | C20: 0 | D20: 0 | E20: 0 | F20: 0 | G20: 0 | H20: 0 | I20: 0 | K20: =E20 -> 0
A21: ='Org structure'!E16 -> 0 | C21: 0 | D21: 0 | E21: 0 | F21: 0 | G21: 0 | H21: 0 | I21: 0 | K21: 0
A22: ='Org structure'!E17 -> 0 | C22: 0 | D22: 0 | E22: 0 | F22: 0 | G22: 0 | H22: 0 | I22: 0 | K22: 0
A23: ='Org structure'!E18 -> 0 | C23: 0 | D23: 0 | E23: 0 | F23: 0 | G23: 0 | H23: 0 | I23: 0 | K23: 0
A24: ='Org structure'!E19 -> 0 | C24: 0 | D24: 0 | E24: 0 | F24: 0 | G24: 0 | H24: 0 | I24: 0 | K24: 0
A25: ='Org structure'!E20 -> 0 | C25: 0 | D25: 0 | E25: 0 | F25: 0 | G25: 0 | H25: 0 | I25: 0 | K25: 0
A26: ='Org structure'!E21 -> 0 | C26: 0 | D26: 0 | E26: 0 | F26: 0 | G26: 0 | H26: 0 | I26: 0 | K26: 0
A27: ='Org structure'!E22 -> 0 | C27: 0 | D27: 0 | E27: 0 | F27: 0 | G27: 0 | H27: 0 | I27: 0 | K27: 0
A28: ='Org structure'!E23 -> 0 | C28: 0 | D28: 0 | E28: 0 | F28: 0 | G28: 0 | H28: 0 | I28: 0 | K28: 0
A29: ='Org structure'!A4 -> Vote 3 - CORPORATE SERVICES | C29: =SUM(C30:C39) -> 2022015 | D29: 1010000 | E29: 1438691 | F29: 0 | G29: 1404013 | H29: 1438691 | I29: -34678 | J29: -0.02410385552 | K29: 1438691
A30: ='Org structure'!E25 -> 3.1 - HUMAN RESOURCES | C30: 0 | D30: 0 | E30: 0 | F30: 0 | G30: 0 | H30: 0 | I30: 0 | K30: =E30 -> 0
A31: ='Org structure'!E26 -> 3.2 - INFORMATION TECHNOLOGY | C31: 0 | D31: 0 | E31: 0 | F31: 0 | G31: 0 | H31: 0 | I31: 0 | K31: =E31 -> 0
A32: ='Org structure'!E27 -> 3.3 - PROPERTY SERVICES | C32: 0 | D32: 0 | E32: 0 | F32: 0 | G32: 0 | H32: 0 | I32: 0 | K32: 0
A33: ='Org structure'!E28 -> 3.4 - OTHER ADMIN | C33: ='C5-Capex'!C46 -> 2022015 | D33: =[6]A5A!$V$32 -> 1010000 | E33: ='C5-Capex'!E46 -> 1438691 | F33: ='C5-Capex'!F46 -> 0 | G33: ='C5-Capex'!G46 -> 1404013 | H33: ='C5-Capex'!H46 -> 1438691 | I33: -34678 | J33: -0.02410385552 | K33: 1438691
A34: ='Org structure'!E29 -> 0 | C34: 0 | D34: 0 | E34: 0 | F34: 0 | G34: 0 | H34: 0 | I34: 0 | K34: 0
A35: ='Org structure'!E30 -> 0 | C35: 0 | D35: 0 | E35: 0 | F35: 0 | G35: 0 | H35: 0 | I35: 0 | K35: 0
A36: ='Org structure'!E31 -> 0 | C36: 0 | D36: 0 | E36: 0 | F36: 0 | G36: 0 | H36: 0 | I36: 0 | K36: 0
A37: ='Org structure'!E32 -> 0 | C37: 0 | D37: 0 | E37: 0 | F37: 0 | G37: 0 | H37: 0 | I37: 0 | K37: 0
A38: ='Org structure'!E33 -> 0 | C38: 0 | D38: 0 | E38: 0 | F38: 0 | G38: 0 | H38: 0 | I38: 0 | K38: 0
A39: ='Org structure'!E34 -> 0 | C39: 0 | D39: 0 | E39: 0 | F39: 0 | G39: 0 | H39: 0 | I39: 0 | K39: 0
A40: ='Org structure'!A5 -> Vote 4 - LOCAL ECONOMIC DEVELOPMENT AND PLANNING | C40: =SUM(C41:C50) -> 433500 | D40: 500000 | E40: 100000 | F40: 0 | G40: 74500 | H40: 100000 | I40: -25500 | J40: -0.255 | K40: 100000
A41: ='Org structure'!E36 -> 4.1 - ECONOMIC/DEVELOPMENT AND PLANNING | C41: ='C5-Capex'!C54 -> 433500 | D41: =[6]A5A!$V$40 -> 500000 | E41: ='C5-Capex'!E54 -> 100000 | F41: ='C5-Capex'!F54 -> 0 | G41: ='C5-Capex'!G54 -> 74500 | H41: ='C5-Capex'!H54 -> 100000 | I41: -25500 | J41: -0.255 | K41: =E41 -> 100000
A42: ='Org structure'!E37 -> 4.2 - TOWN PLANNING/BUILDING ENFORCEMENT | C42: 0 | D42: 0 | E42: 0 | F42: 0 | G42: 0 | H42: 0 | I42: 0 | K42: =E42 -> 0
A43: ='Org structure'!E38 -> 4.3 - LICENSING AND REGULATION | C43: 0 | D43: 0 | E43: 0 | F43: 0 | G43: 0 | H43: 0 | I43: 0 | K43: 0
A44: ='Org structure'!E39 -> 0 | C44: 0 | D44: 0 | E44: 0 | F44: 0 | G44: 0 | H44: 0 | I44: 0 | K44: 0
A45: ='Org structure'!E40 -> 0 | C45: 0 | D45: 0 | E45: 0 | F45: 0 | G45: 0 | H45: 0 | I45: 0 | K45: 0
A46: ='Org structure'!E41 -> 0 | C46: 0 | D46: 0 | E46: 0 | F46: 0 | G46: 0 | H46: 0 | I46: 0 | K46: 0
A47: ='Org structure'!E42 -> 0 | C47: 0 | D47: 0 | E47: 0 | F47: 0 | G47: 0 | H47: 0 | I47: 0 | K47: 0
A48: ='Org structure'!E43 -> 0 | C48: 0 | D48: 0 | E48: 0 | F48: 0 | G48: 0 | H48: 0 | I48: 0 | K48: 0
A49: ='Org structure'!E44 -> 0 | C49: 0 | D49: 0 | E49: 0 | F49: 0 | G49: 0 | H49: 0 | I49: 0 | K49: 0
A50: ='Org structure'!E45 -> 0 | C50: 0 | D50: 0 | E50: 0 | F50: 0 | G50: 0 | H50: 0 | I50: 0 | K50: 0
A51: ='Org structure'!A6 -> Vote 5 - COMMUNITY SERVICES | C51: =SUM(C52:C61) -> 5831814 | D51: =SUM(D52:D61) -> 5702550 | E51: 5702550 | F51: 1993367 | G51: 5285686 | H51: 5702550 | I51: -416864 | J51: -0.07310133186 | K51: 5702550
A52: ='Org structure'!E47 -> 5.1 - LIBRARIES AND ARCHIEVES | C52: 0 | D52: 0 | E52: 0 | F52: 0 | G52: 0 | H52: 0 | I52: 0 | K52: 0
A53: ='Org structure'!E48 -> 5.2 - MUSEUM AND ART GALLERIES ETC | C53: 0 | D53: 0 | E53: 0 | F53: 0 | G53: 0 | H53: 0 | I53: 0 | K53: 0
A54: ='Org structure'!E49 -> 5.3 - COMMUNITY HALLS AND FACILITIES | C54: 0 | D54: 0 | E54: 0 | F54: 0 | G54: 0 | H54: 0 | I54: 0 | K54: 0
A55: ='Org structure'!E50 -> 5.4 - CEMETRIES & CRÈMATORIUMS | C55: 0 | D55: 0 | E55: 0 | F55: 0 | G55: 0 | H55: 0 | I55: 0 | K55: 0
A56: ='Org structure'!E51 -> 5.5 - CHILD CARE | C56: 0 | D56: 0 | E56: 0 | F56: 0 | G56: 0 | H56: 0 | I56: 0 | K56: 0
A57: ='Org structure'!E52 -> 5.6 - AGED CARE | C57: 0 | D57: 0 | E57: 0 | F57: 0 | G57: 0 | H57: 0 | I57: 0 | K57: 0
A58: ='Org structure'!E53 -> 5.7 - OTHER COMMUNITY | C58: 0 | D58: 0 | E58: 0 | F58: 0 | G58: 0 | H58: 0 | I58: 0 | K58: 0
A59: ='Org structure'!E54 -> 5.8 - OTHER SOCIAL | C59: 0 | D59: 0 | E59: 0 | F59: 0 | G59: 0 | H59: 0 | I59: 0 | K59: 0
A60: ='Org structure'!E55 -> 5.9 - SPORT AND RECREATION | C60: 0 | D60: 0 | E60: 0 | F60: 0 | G60: 0 | H60: 0 | I60: 0 | K60: 0
A61: ='Org structure'!E56 -> 5.10 - OTHER | C61: ='C5-Capex'!C48 -> 5831814 | D61: =[6]A5A!$V$60 -> 5702550 | E61: ='C5-Capex'!E48 -> 5702550 | F61: ='C5-Capex'!F48 -> 1993367 | G61: ='C5-Capex'!G48 -> 5285686 | H61: ='C5-Capex'!H48 -> 5702550 | I61: -416864 | J61: -0.07310133186 | K61: =E61 -> 5702550
A62: ='Org structure'!A7 -> Vote 6 - ROAD TRANSPORT | C62: =SUM(C63:C72) -> 2602524 | D62: =SUM(D63:D72) -> 38513600 | E62: 40589019.96 | F62: 3503317 | G62: 27189162 | H62: 40589019.96 | I62: -13399857.96 | J62: -0.3301350457 | K62: 40589019.96
A63: ='Org structure'!E58 -> 6.1 - ROADS | C63: ='C5-Capex'!C55 -> 2602524 | D63: =[6]A5A!$V$62 -> 38513600 | E63: ='C5-Capex'!E55 -> 40589019.96 | F63: ='C5-Capex'!F55 -> 3503317 | G63: ='C5-Capex'!G55 -> 27189162 | H63: ='C5-Capex'!H55 -> 40589019.96 | I63: -13399857.96 | J63: -0.3301350457 | K63: =E63 -> 40589019.96
A64: ='Org structure'!E59 -> 6.2 - PUBLIC BUSES | C64: 0 | D64: 0 | E64: 0 | F64: 0 | G64: 0 | H64: 0 | I64: 0 | K64: 0
A65: ='Org structure'!E60 -> 6.3 - PARKING GARAGES | C65: 0 | D65: 0 | E65: 0 | F65: 0 | G65: 0 | H65: 0 | I65: 0 | K65: 0
A66: ='Org structure'!E61 -> 6.4 - VEHICLE LICENSING AND TESTING | C66: 0 | D66: 0 | E66: 0 | F66: 0 | G66: 0 | H66: 0 | I66: 0 | K66: 0
A67: ='Org structure'!E62 -> 6.5 - OTHER | C67: 0 | D67: 0 | E67: 0 | F67: 0 | G67: 0 | H67: 0 | I67: 0 | K67: 0
A68: ='Org structure'!E63 -> 0 | C68: 0 | D68: 0 | E68: 0 | F68: 0 | G68: 0 | H68: 0 | I68: 0 | K68: 0
A69: ='Org structure'!E64 -> 0 | C69: 0 | D69: 0 | E69: 0 | F69: 0 | G69: 0 | H69: 0 | I69: 0 | K69: 0
A70: ='Org structure'!E65 -> 0 | C70: 0 | D70: 0 | E70: 0 | F70: 0 | G70: 0 | H70: 0 | I70: 0 | K70: 0
A71: ='Org structure'!E66 -> 0 | C71: 0 | D71: 0 | E71: 0 | F71: 0 | G71: 0 | H71: 0 | I71: =G71-H71 -> 0 | J71: =IF(I71=0,"",I71/H71) ->  | K71: 0
A72: ='Org structure'!E67 -> 0 | C72: 0 | D72: 0 | E72: 0 | F72: 0 | G72: 0 | H72: 0 | I72: 0 | K72: 0
A73: ='Org structure'!A8 -> Vote 7 - ELECTRICITY | C73: =SUM(C74:C83) -> 2561173 | D73: 3400000 | E73: 3341186 | F73: 535235 | G73: 1330995 | H73: 3341186 | I73: -2010191 | J73: -0.6016399566 | K73: 3341186
A74: ='Org structure'!E69 -> 7.1 - ELECTRICITY DISTRIBUTION | C74: ='C5-Capex'!C58 -> 2561173 | D74: =[6]A5A!$V$73 -> 3400000 | E74: ='C5-Capex'!E58 -> 3341186 | F74: ='C5-Capex'!F58 -> 535235 | G74: ='C5-Capex'!G58 -> 1330995 | H74: ='C5-Capex'!H58 -> 3341186 | I74: -2010191 | J74: -0.6016399566 | K74: =E74 -> 3341186
A75: ='Org structure'!E70 -> 7.2 - ELECTRICITY GENERATION | C75: 0 | D75: 0 | E75: 0 | F75: 0 | G75: 0 | H75: 0 | I75: 0 | K75: 0
A76: ='Org structure'!E71 -> 0 | C76: 0 | D76: 0 | E76: 0 | F76: 0 | G76: 0 | H76: 0 | I76: 0 | K76: 0
A77: ='Org structure'!E72 -> 0 | C77: 0 | D77: 0 | E77: 0 | F77: 0 | G77: 0 | H77: 0 | I77: 0 | K77: 0
A78: ='Org structure'!E73 -> 0 | C78: 0 | D78: 0 | E78: 0 | F78: 0 | G78: 0 | H78: 0 | I78: 0 | K78: 0
A79: ='Org structure'!E74 -> 0 | C79: 0 | D79: 0 | E79: 0 | F79: 0 | G79: 0 | H79: 0 | I79: 0 | K79: 0
A80: ='Org structure'!E75 -> 0 | C80: 0 | D80: 0 | E80: 0 | F80: 0 | G80: 0 | H80: 0 | I80: 0 | K80: 0
A81: ='Org structure'!E76 -> 0 | C81: 0 | D81: 0 | E81: 0 | F81: 0 | G81: 0 | H81: 0 | I81: 0 | K81: 0
A82: ='Org structure'!E77 -> 0 | C82: 0 | D82: 0 | E82: 0 | F82: 0 | G82: 0 | H82: 0 | I82: 0 | K82: 0
A83: ='Org structure'!E78 -> 0 | C83: 0 | D83: 0 | E83: 0 | F83: 0 | G83: 0 | H83: 0 | I83: 0 | K83: 0
A84: ='Org structure'!A9 -> Vote 8 - WATER | C84: =SUM(C85:C94) -> 0 | D84: =SUM(D85:D94) -> 0 | E84: 0 | F84: 0 | G84: 0 | H84: 0 | I84: 0 | K84: 0
A85: ='Org structure'!E80 -> 8.1 - WATER DISTRIBUTION | C85: 0 | D85: 0 | E85: 0 | F85: 0 | G85: 0 | H85: 0 | I85: 0 | K85: 0
A86: ='Org structure'!E81 -> 0 | C86: 0 | D86: 0 | E86: 0 | F86: 0 | G86: 0 | H86: 0 | I86: 0 | K86: 0
A87: ='Org structure'!E82 -> 0 | C87: 0 | D87: 0 | E87: 0 | F87: 0 | G87: 0 | H87: 0 | I87: 0 | K87: 0
A88: ='Org structure'!E83 -> 0 | C88: 0 | D88: 0 | E88: 0 | F88: 0 | G88: 0 | H88: 0 | I88: 0 | K88: 0
A89: ='Org structure'!E84 -> 0 | C89: 0 | D89: 0 | E89: 0 | F89: 0 | G89: 0 | H89: 0 | I89: 0 | K89: 0
A90: ='Org structure'!E85 -> 0 | C90: 0 | D90: 0 | E90: 0 | F90: 0 | G90: 0 | H90: 0 | I90: 0 | K90: 0
A91: ='Org structure'!E86 -> 0 | C91: 0 | D91: 0 | E91: 0 | F91: 0 | G91: 0 | H91: 0 | I91: 0 | K91: 0
A92: ='Org structure'!E87 -> 0 | C92: 0 | D92: 0 | E92: 0 | F92: 0 | G92: 0 | H92: 0 | I92: 0 | K92: 0
A93: ='Org structure'!E88 -> 0 | C93: 0 | D93: 0 | E93: 0 | F93: 0 | G93: 0 | H93: 0 | I93: 0 | K93: 0
A94: ='Org structure'!E89 -> 0 | C94: 0 | D94: 0 | E94: 0 | F94: 0 | G94: 0 | H94: 0 | I94: 0 | K94: 0
A95: ='Org structure'!A10 -> Vote 9 - [NAME OF VOTE 9] | C95: =SUM(C96:C105) -> 0 | D95: =SUM(D96:D105) -> 0 | E95: 0 | F95: 0 | G95: 0 | H95: 0 | I95: 0 | K95: 0
A96: ='Org structure'!E91 -> 9.1 - [Name of sub-vote] | I96: 0
A97: ='Org structure'!E92 -> 0 | I97: 0
A98: ='Org structure'!E93 -> 0 | I98: 0
A99: ='Org structure'!E94 -> 0 | I99: 0
A100: ='Org structure'!E95 -> 0 | I100: 0
A101: ='Org structure'!E96 -> 0 | I101: 0
A102: ='Org structure'!E97 -> 0 | I102: 0
A103: ='Org structure'!E98 -> 0 | I103: 0
A104: ='Org structure'!E99 -> 0 | I104: 0
A105: ='Org structure'!E100 -> 0 | I105: 0
A106: ='Org structure'!A11 -> Vote 10 - [NAME OF VOTE 10] | C106: =SUM(C107:C116) -> 0 | D106: =SUM(D107:D116) -> 0 | E106: 0 | F106: 0 | G106: 0 | H106: 0 | I106: 0 | K106: 0
A107: ='Org structure'!E102 -> 10.1 - [Name of sub-vote] | I107: 0
A108: ='Org structure'!E103 -> 0 | I108: 0
A109: ='Org structure'!E104 -> 0 | I109: 0
A110: ='Org structure'!E105 -> 0 | I110: 0
A111: ='Org structure'!E106 -> 0 | I111: 0
A112: ='Org structure'!E107 -> 0 | I112: 0
A113: ='Org structure'!E108 -> 0 | I113: 0
A114: ='Org structure'!E109 -> 0 | I114: 0
A115: ='Org structure'!E110 -> 0 | I115: 0
A116: ='Org structure'!E111 -> 0 | I116: 0
A117: ='Org structure'!A12 -> Vote 11 - [NAME OF VOTE 11] | C117: =SUM(C118:C127) -> 0 | D117: =SUM(D118:D127) -> 0 | E117: 0 | F117: 0 | G117: 0 | H117: 0 | I117: 0 | K117: 0
A118: ='Org structure'!E113 -> 11.1 - [Name of sub-vote] | I118: 0
A119: ='Org structure'!E114 -> 0 | I119: 0
A120: ='Org structure'!E115 -> 0 | I120: 0
A121: ='Org structure'!E116 -> 0 | I121: 0
A122: ='Org structure'!E117 -> 0 | I122: 0
A123: ='Org structure'!E118 -> 0 | I123: 0
A124: ='Org structure'!E119 -> 0 | I124: 0
A125: ='Org structure'!E120 -> 0 | I125: 0
A126: ='Org structure'!E121 -> 0 | I126: 0
A127: ='Org structure'!E122 -> 0 | I127: 0
A128: ='Org structure'!A13 -> Vote 12 - [NAME OF VOTE 12] | C128: =SUM(C129:C138) -> 0 | D128: =SUM(D129:D138) -> 0 | E128: 0 | F128: 0 | G128: 0 | H128: 0 | I128: 0 | K128: 0
A129: ='Org structure'!E124 -> 12.1 - [Name of sub-vote] | I129: 0
A130: ='Org structure'!E125 -> 0 | I130: 0
A131: ='Org structure'!E126 -> 0 | I131: 0
A132: ='Org structure'!E127 -> 0 | I132: 0
A133: ='Org structure'!E128 -> 0 | I133: 0
A134: ='Org structure'!E129 -> 0 | I134: 0
A135: ='Org structure'!E130 -> 0 | I135: =G135-H135 -> 0 | J135: =IF(I135=0,"",I135/H135) -> 
A136: ='Org structure'!E131 -> 0 | I136: 0
A137: ='Org structure'!E132 -> 0 | I137: 0
A138: ='Org structure'!E133 -> 0 | I138: 0
A139: ='Org structure'!A14 -> Vote 13 - [NAME OF VOTE 13] | C139: =SUM(C140:C149) -> 0 | D139: =SUM(D140:D149) -> 0 | E139: 0 | F139: 0 | G139: 0 | H139: 0 | I139: 0 | K139: 0
A140: ='Org structure'!E135 -> 13.1 - [Name of sub-vote] | I140: 0
A141: ='Org structure'!E136 -> 0 | I141: 0
A142: ='Org structure'!E137 -> 0 | I142: 0
A143: ='Org structure'!E138 -> 0 | I143: 0
A144: ='Org structure'!E139 -> 0 | I144: 0
A145: ='Org structure'!E140 -> 0 | I145: 0
A146: ='Org structure'!E141 -> 0 | I146: 0
A147: ='Org structure'!E142 -> 0 | I147: 0
A148: ='Org structure'!E143 -> 0 | I148: 0
A149: ='Org structure'!E144 -> 0 | I149: 0
A150: ='Org structure'!A15 -> Vote 14 - [NAME OF VOTE 14] | C150: =SUM(C151:C160) -> 0 | D150: =SUM(D151:D160) -> 0 | E150: 0 | F150: 0 | G150: 0 | H150: 0 | I150: 0 | K150: 0
A151: ='Org structure'!E146 -> 14.1 - [Name of sub-vote] | I151: 0
A152: ='Org structure'!E147 -> 0 | I152: 0
A153: ='Org structure'!E148 -> 0 | I153: 0
A154: ='Org structure'!E149 -> 0 | I154: 0
A155: ='Org structure'!E150 -> 0 | I155: 0
A156: ='Org structure'!E151 -> 0 | I156: 0
A157: ='Org structure'!E152 -> 0 | I157: 0
A158: ='Org structure'!E153 -> 0 | I158: 0
A159: ='Org structure'!E154 -> 0 | I159: 0
A160: ='Org structure'!E155 -> 0 | I160: 0
A161: ='Org structure'!A16 -> Vote 15 - [NAME OF VOTE 15] | C161: =SUM(C162:C171) -> 0 | D161: =SUM(D162:D171) -> 0 | E161: 0 | F161: 0 | G161: 0 | H161: 0 | I161: 0 | K161: 0
A162: ='Org structure'!E157 -> 15.1 - [Name of sub-vote] | I162: 0
A163: ='Org structure'!E158 -> 0 | I163: 0
A164: ='Org structure'!E159 -> 0 | I164: 0
A165: ='Org structure'!E160 -> 0 | I165: 0
A166: ='Org structure'!E161 -> 0 | I166: 0
A167: ='Org structure'!E162 -> 0 | I167: 0
A168: ='Org structure'!E163 -> 0 | I168: 0
A169: ='Org structure'!E164 -> 0 | I169: 0
A170: ='Org structure'!E165 -> 0 | I170: 0
A171: ='Org structure'!E166 -> 0 | I171: 0 | L171: =SUM(L79:L82) -> 0 | M171: 0 | N171: 0 | O171: 0 | P171: 0 | Q171: 0 | R171: 0 | S171: 0 | T171: 0 | U171: 0 | V171: 0 | W171: 0
A172: Total multi-year capital expenditure | C172: =C7+C18+C29+C40+C51+C62+C73+C84+C95+C106+C117+C128+C139+C150+C161 -> 14095520 | D172: =D7+D18+D29+D40+D51+D62+D73+D84+D95+D106+D117+D128+D139+D150+D161 -> 49276150 | E172: 51291446.96 | F172: 6056788 | G172: 35338822 | H172: 51291446.96 | I172: -15952624.96 | J172: -0.3110192031 | K172: 51291446.96
I173: 0
A174: Capital expenditure - Municipal Vote
A175: Expenditue of single-year capital appropriation | B175: 1 | I175: 0
A176: ='Org structure'!A2 -> Vote 1 - EXECUTIVE AND COUNCIL | C176: =SUM(C177:C186) -> 0 | D176: 0 | E176: 0 | F176: 0 | G176: 0 | H176: 0 | I176: 0 | K176: 0
A177: ='Org structure'!E3 -> 1.1 - MAYOR AND COUNCIL | I177: 0
A178: ='Org structure'!E4 -> 1.2 - MUNICIPAL MANAGER | I178: 0
A179: ='Org structure'!E5 -> 0 | I179: 0
A180: ='Org structure'!E6 -> 0 | I180: 0
A181: ='Org structure'!E7 -> 0 | I181: 0
A182: ='Org structure'!E8 -> 0 | I182: 0
A183: ='Org structure'!E9 -> 0 | I183: 0
A184: ='Org structure'!E10 -> 0 | I184: 0
A185: ='Org structure'!E11 -> 0 | I185: 0
A186: ='Org structure'!E12 -> 0 | I186: 0
A187: ='Org structure'!A3 -> Vote 2 - BUDGET AND TREASURY | C187: =SUM(C188:C197) -> 0 | D187: =SUM(D188:D197) -> 0 | E187: =SUM(E188:E197) -> 0 | F187: 0 | G187: 0 | H187: 0 | I187: 0 | K187: 0
A188: ='Org structure'!E14 -> 2.1 - BUDGET AND TREASURY | I188: 0
A189: ='Org structure'!E15 -> 0 | I189: 0
A190: ='Org structure'!E16 -> 0 | I190: 0
A191: ='Org structure'!E17 -> 0 | I191: 0
A192: ='Org structure'!E18 -> 0 | I192: 0
A193: ='Org structure'!E19 -> 0 | I193: 0
A194: ='Org structure'!E20 -> 0 | I194: 0
A195: ='Org structure'!E21 -> 0 | I195: 0
A196: ='Org structure'!E22 -> 0 | I196: 0
A197: ='Org structure'!E23 -> 0 | I197: 0
A198: ='Org structure'!A4 -> Vote 3 - CORPORATE SERVICES | C198: =SUM(C199:C208) -> 0 | D198: 0 | E198: 0 | F198: 0 | G198: 0 | H198: 0 | I198: 0 | K198: 0
A199: ='Org structure'!E25 -> 3.1 - HUMAN RESOURCES | I199: 0
A200: ='Org structure'!E26 -> 3.2 - INFORMATION TECHNOLOGY | I200: =G200-H200 -> 0 | J200: =IF(I200=0,"",I200/H200) -> 
... 145 more rows

Sheet C6-FinPos
A1: =muni& " - "&S71E& " - "&date -> LIM353 Molemole - Table C6 Monthly Budget Statement - Financial Position - Q4 Fourth Quarter
A2: =desc -> Description | B2: =head27 -> Ref | C2: =Head1 -> 2014/15 | D2: =Head2 -> Budget Year 2015/16
C3: =Head5 -> Audited Outcome | D3: =Head6 -> Original Budget | E3: =Head7 -> Adjusted Budget | F3: =Head39 -> YearTD actual | G3: =Head8 -> Full Year Forecast
A4: R thousands | B4: 1
A5: ASSETS
A6: Current assets
A7: Cash | C7: =[12]Sheet1!$E$44 -> 31334599 | D7: ='[6]A6-FinPos'!$J$6 -> 35068000 | E7: ='[8]B6-FinPos'!$K$8 -> 35068000 | F7: =[13]tbjune16!$F$2133 -> 3319520.88 | G7: =E7 -> 35068000
A8: Call investment deposits | C8: 0 | D8: ='[6]A6-FinPos'!$J$7 -> 0 | E8: 0 | F8: 0 | G8: =E8 -> 0
A9: Consumer debtors | C9: =9837544+8679257+514058 -> 19030859 | D9: ='[6]A6-FinPos'!$J$8 -> 3058908.934 | E9: ='[8]B6-FinPos'!$K$10 -> 3058908.934 | F9: =[13]tbjune16!$F$2102 -> 20167529.27 | G9: 3058908.934
A10: Other debtors | C10: 11148182 | D10: ='[6]A6-FinPos'!$J$9 -> 3010342.103 | E10: ='[8]B6-FinPos'!$K$11 -> 3010342.103 | F10: =[13]tbjune16!$F$2117 -> -5010896.81 | G10: 3010342.103
A11: Current portion of long-term receivables | C11: 0 | D11: ='[6]A6-FinPos'!$J$10 -> 0 | E11: 0 | F11: 0 | G11: 0
A12: Inventory | C12: 214618 | D12: ='[6]A6-FinPos'!$J$11 -> 423600 | E12: ='[8]B6-FinPos'!$K$13 -> 423600 | F12: 0 | G12: 423600
A13: Total current assets | C13: =SUM(C7:C12) -> 61728258 | D13: =SUM(D7:D12) -> 41560851.04 | E13: =SUM(E7:E12) -> 41560851.04 | F13: =SUM(F7:F12) -> 18476153.34 | G13: =SUM(G7:G12) -> 41560851.04
A15: Non current assets
A16: Long-term receivables | C16: 0 | D16: 0 | E16: 0 | F16: 0 | G16: =E16 -> 0
A17: Investments | C17: 0 | D17: 0 | E17: 0 | F17: 10000000 | G17: =E17 -> 0
A18: Investment property | C18: 1874334 | D18: ='[6]A6-FinPos'!$J$17 -> 4107000 | E18: ='[8]B6-FinPos'!$K$19 -> 4107000 | F18: 0 | G18: 4107000
A19: Investments in Associate | C19: 0 | D19: 0 | E19: 0 | F19: 0 | G19: 0
A20: Property, plant and equipment | C20: =140010095+1135056+368150 -> 141513301 | D20: ='[6]A6-FinPos'!$J$19 -> 257696253 | E20: ='[8]B6-FinPos'!$K$21 -> 175285550 | F20: 292282033 | G20: 175285550
A21: Agricultural | C21: 0 | D21: 0 | E21: 0 | F21: 0 | G21: 0
A22: Biological assets | C22: 0 | D22: 0 | E22: 0 | F22: 0 | G22: 0
A23: Intangible assets | C23: 0 | D23: 0 | E23: 0 | F23: 0 | G23: 0
A24: Other non-current assets | C24: 0 | D24: 0 | E24: 0 | F24: 0 | G24: 0
A25: Total non current assets | C25: =SUM(C16:C24) -> 143387635 | D25: =SUM(D16:D24) -> 261803253 | E25: =SUM(E16:E24) -> 179392550 | F25: =SUM(F16:F24) -> 302282033 | G25: =SUM(G16:G24) -> 179392550
A26: TOTAL ASSETS | C26: =C13+C25 -> 205115893 | D26: =D13+D25 -> 303364104 | E26: =E13+E25 -> 220953401 | F26: =F13+F25 -> 320758186.3 | G26: =G13+G25 -> 220953401
A28: LIABILITIES
A29: Current liabilities
A30: Bank overdraft | C30: 0 | D30: 0 | E30: 0 | F30: 0 | G30: 0
A31: Borrowing | C31: 0 | D31: 0 | E31: 0 | F31: 0 | G31: 0
A32: Consumer deposits | C32: 476478 | D32: ='[6]A6-FinPos'!$J$31 -> 524818.2817 | E32: ='[8]B6-FinPos'!$K$33 -> 524818.2817 | F32: =[13]tbjune16!$F$1761 -> -16114 | G32: =E32 -> 524818.2817
A33: Trade and other payables | C33: =6628149+114796+3649221+519735 -> 10911901 | D33: ='[6]A6-FinPos'!$J$32 -> 2333624 | E33: ='[8]B6-FinPos'!$K$34 -> 2333624 | F33: =[13]tbjune16!$F$1768 -> 5996542.09 | G33: =E33 -> 2333624
A34: Provisions | C34: 5739953 | D34: ='[6]A6-FinPos'!$J$33 -> 6372292.245 | E34: ='[8]B6-FinPos'!$K$35 -> 6372292.245 | F34: 0 | G34: 6372292.245
A35: Total current liabilities | C35: =SUM(C30:C34) -> 17128332 | D35: =SUM(D30:D34) -> 9230734.526 | E35: =SUM(E30:E34) -> 9230734.526 | F35: =SUM(F30:F34) -> 5980428.09 | G35: =SUM(G30:G34) -> 9230734.526
A37: Non current liabilities
A38: Borrowing | C38: 0 | D38: 0 | E38: 0 | F38: 0 | G38: 0
A39: Provisions | C39: =8684457+299325+6117299 -> 15101081 | D39: ='[6]A6-FinPos'!$J$38 -> 4367716.713 | E39: ='[8]B6-FinPos'!$K$40 -> 4367716.713 | F39: 0 | G39: =E39 -> 4367716.713
A40: Total non current liabilities | C40: =SUM(C38:C39) -> 15101081 | D40: =SUM(D38:D39) -> 4367716.713 | E40: =SUM(E38:E39) -> 4367716.713 | F40: =SUM(F38:F39) -> 0 | G40: =SUM(G38:G39) -> 4367716.713
A41: TOTAL LIABILITIES | C41: =C35+C40 -> 32229413 | D41: =D35+D40 -> 13598451.24 | E41: =E35+E40 -> 13598451.24 | F41: =F35+F40 -> 5980428.09 | G41: =G35+G40 -> 13598451.24
A43: NET ASSETS | B43: 2 | C43: =C26-C41 -> 172886480 | D43: =D26-D41 -> 289765652.8 | E43: =E26-E41 -> 207354949.8 | F43: =F26-F41 -> 314777758.2 | G43: =G26-G41 -> 207354949.8
A45: COMMUNITY WEALTH/EQUITY
A46: Accumulated Surplus/(Deficit) | C46: 133215192 | D46: ='[6]A6-FinPos'!$J$45 -> 238104042.1 | E46: ='[8]B6-FinPos'!$K$47 -> 238104042.1 | F46: 314777758 | G46: =E46 -> 238104042.1
A47: Reserves | C47: 39671288 | D47: ='[6]A6-FinPos'!$J$46 -> 51661610.66 | E47: ='[8]B6-FinPos'!$K$48 -> -30749092.34 | F47: 0 | G47: =E47 -> -30749092.34
A48: TOTAL COMMUNITY WEALTH/EQUITY | B48: 2 | C48: =SUM(C46:C47) -> 172886480 | D48: =SUM(D46:D47) -> 289765652.8 | E48: =SUM(E46:E47) -> 207354949.8 | F48: =SUM(F46:F47) -> 314777758 | G48: =SUM(G46:G47) -> 207354949.8
A49: =head27a -> References
A50: 1. Material variances to be explained in Table SC1
A51: 2. Net assets must balance with Total Community Wealth/Equity
A54: check balance | C54: =C43-C48 -> 0 | D54: =D43-D48 -> 0 | E54: =E43-E48 -> -0.03999999166 | F54: =F43-F48 -> 0.25 | G54: =G43-G48 -> -0.03999999166

Sheet C7-CFlow
A1: =muni& " - "&S71F& " - "&date -> LIM353 Molemole - Table C7 Monthly Budget Statement - Cash Flow - Q4 Fourth Quarter
A2: =desc -> Description | B2: =head27 -> Ref | C2: =Head1 -> 2014/15 | D2: =Head2 -> Budget Year 2015/16
C3: =Head5 -> Audited Outcome | D3: =Head6 -> Original Budget | E3: =Head7 -> Adjusted Budget | F3: =Head38 -> Monthly actual | G3: =Head39 -> YearTD actual | H3: =Head40 -> YearTD budget | I3: =Head41 -> YTD variance | J3: =Head41 -> YTD variance | K3: =Head8 -> Full Year Forecast
A4: R thousands | B4: 1 | J4: %
A5: CASH FLOW FROM OPERATING ACTIVITIES
A6: Receipts
A7: Property rates, penalties & collection charges | C7: =[14]Sheet1!$F$7 -> 10319307 | D7: 8227299 | E7: ='[8]B7-CFlow'!$K$8 -> 8227299 | F7: 59972 | G7: =14003+132903+67519+121249+64302+47239+67714+52955+33644+97681+21112+59972 -> 780293 | H7: =E7/12*12 -> 8227299 | I7: =G7-H7 -> -7447006 | J7: =IF(I7=0,"",I7/H7) -> -0.9051580598 | K7: =E7 -> 8227299
A8: Service charges | C8: 7868111 | D8: 9026676.75 | E8: =D8 -> 9026676.75 | F8: =650220+13000 -> 663220 | G8: =3847440+783340+11699+5343+221832+650000+13000 -> 5532654 | H8: =E8/12*12 -> 9026676.75 | I8: =G8-H8 -> -3494022.75 | J8: =IF(I8=0,"",I8/H8) -> -0.3870774203 | K8: =E8 -> 9026676.75
A9: Other revenue | C9: =310226+1277971+3987769+438141+1398467 -> 7412574 | D9: 8913404.75 | E9: =D9 -> 8913404.75 | F9: =5065+45213+30400+1375209+16018+120067 -> 1591972 | G9: =2104841+117380+25600+887829+36177+29246+76915+5065+4380+45213+16018 -> 3348664 | H9: 8913404.75 | I9: -5564740.75 | J9: -0.6243114619 | K9: 8913404.75
A10: Government - operating | C10: =[14]Sheet1!$F$21 -> 92652231 | D10: 111217000 | E10: 111217000 | F10: 741857 | G10: =108232492+741857 -> 108974349 | H10: 111217000 | I10: =G10-H10 -> -2242651 | J10: -0.0201646421 | K10: 111217000
A11: Government - capital | C11: =[14]Sheet1!$F$25 -> 29937273 | D11: 31418576 | E11: 31418576 | F11: 0 | G11: 31017000 | H11: 31418576 | I11: =G11-H11 -> -401576 | J11: =IF(I11=0,"",I11/H11) -> -0.01278148316 | K11: 31418576
A12: Interest | C12: =4144675+1255011 -> 5399686 | D12: 4659998.25 | E12: 4659998.25 | F12: =258119+4380 -> 262499 | G12: =1335074+2077495+377535+17067+26745+129831+258119+4380 -> 4226246 | H12: 4659998.25 | I12: =G12-H12 -> -433752.25 | J12: -0.09307991693 | K12: 4659998.25
A13: Dividends | C13: 0 | D13: 0 | E13: 0 | F13: 0 | G13: 0 | H13: =E13/12*12 -> 0 | I13: =G13-H13 -> 0 | K13: 0
A14: Payments
A15: Suppliers and employees | C15: -140136165 | D15: -125712276.6 | E15: =D15 -> -125712276.6 | F15: =-13388100+-1715535 -> -15103635 | G15: -117213356 | H15: -125712276.6 | I15: =H15-G15 -> -8498920.587 | J15: 0.06760613058 | K15: =E15 -> -125712276.6
A16: Finance charges | C16: 0 | D16: 0 | E16: 0 | F16: 0 | G16: 0 | H16: 0 | I16: =H16-G16 -> 0 | K16: 0
A17: Transfers and Grants | C17: 0 | D17: 0 | E17: 0 | F17: 0 | G17: 0 | H17: 0 | I17: =H17-G17 -> 0 | K17: 0
A18: NET CASH FROM/(USED) OPERATING ACTIVITIES | C18: =SUM(C7:C13)+SUM(C15:C17) -> 13453017 | D18: 47750678.16 | E18: 47750678.16 | F18: -11784115 | G18: 36665850 | H18: 47750678.16 | I18: =H18-G18 -> 11084828.16 | J18: 0.2321397012 | K18: =SUM(K7:K13)+SUM(K15:K17) -> 47750678.16
A20: CASH FLOWS FROM INVESTING ACTIVITIES
A21: Receipts
A22: Proceeds on disposal of PPE | C22: 0 | D22: 0 | E22: 0 | F22: 0 | G22: 0 | H22: 0 | I22: =G22-H22 -> 0 | J22: =IF(I22=0,"",I22/H22) ->  | K22: 0
A23: Decrease (Increase) in non-current debtors | C23: 0 | D23: 0 | E23: 0 | F23: 0 | G23: 0 | H23: 0 | I23: =G23-H23 -> 0 | K23: 0
A24: Decrease (increase) other non-current receivables | C24: 0 | D24: 0 | E24: 0 | F24: 0 | G24: 0 | H24: 0 | I24: =G24-H24 -> 0 | K24: 0
A25: Decrease (increase) in non-current investments | C25: 0 | D25: 0 | E25: 0 | F25: 0 | G25: 0 | H25: 0 | I25: =G25-H25 -> 0 | K25: 0
A26: Payments
A27: Capital assets | C27: =-[14]Sheet1!$F$49 -> -14095519 | D27: ='[6]A7-CFlow'!$J$26 -> -49096150 | E27: ='[8]B7-CFlow'!$K$28 -> -51291150 | F27: -6058789 | G27: -35338823 | H27: =E27/12*12 -> -51291150 | I27: =H27-G27 -> -15952327 | J27: 0.3110151946 | K27: =E27 -> -51291150
A28: NET CASH FROM/(USED) INVESTING ACTIVITIES | C28: =SUM(C22:C25)+C27 -> -14095519 | D28: =SUM(D22:D25)+D27 -> -49096150 | E28: -51291150 | F28: -6058789 | G28: -35338823 | H28: -51291150 | I28: =H28-G28 -> -15952327 | J28: 0.3110151946 | K28: =SUM(K22:K25)+K27 -> -51291150
A30: CASH FLOWS FROM FINANCING ACTIVITIES
A31: Receipts
A32: Short term loans | C32: 0 | D32: 0 | E32: 0 | F32: 0 | G32: 0 | H32: 0 | I32: =G32-H32 -> 0 | J32: =IF(I32=0,"",I32/H32) ->  | K32: 0
A33: Borrowing long term/refinancing | C33: 0 | D33: 0 | E33: 0 | F33: 0 | G33: 0 | H33: 0 | I33: =G33-H33 -> 0 | K33: 0
A34: Increase (decrease) in consumer deposits | C34: 0 | D34: 0 | E34: 0 | F34: 0 | G34: 0 | H34: 0 | I34: =G34-H34 -> 0 | K34: 0
A35: Payments
A36: Repayment of borrowing | C36: 0 | D36: 0 | E36: 0 | F36: 0 | G36: 0 | H36: 0 | I36: =H36-G36 -> 0 | K36: 0
A37: NET CASH FROM/(USED) FINANCING ACTIVITIES | C37: =SUM(C32:C34)+C36 -> 0 | D37: 0 | E37: 0 | F37: 0 | G37: 0 | H37: 0 | I37: =H37-G37 -> 0 | K37: =SUM(K32:K34)+K36 -> 0
A39: NET INCREASE/ (DECREASE) IN CASH HELD | C39: =C18+C28+C37 -> -642502 | D39: -1345471.837 | E39: -3540471.837 | F39: -17842904 | G39: 1327027 | H39: -3540471.837 | K39: =K18+K28+K37 -> -3540471.837
A40: Cash/cash equivalents at beginning: | C40: 26671316 | D40: ='[6]A7-CFlow'!$J$39 -> 65261058 | E40: =D40 -> 65261058 | G40: =8154941.55+8398471.09+25642533.63 -> 42195946.27 | H40: =IF(E40=0, D40, E40) -> 65261058 | K40: =G40 -> 42195946.27
A41: Cash/cash equivalents at month/year end: | C41: =C39+C40 -> 26028814 | D41: =D39+D40 -> 63915586.16 | E41: =E39+E40 -> 61720586.16 | G41: =G39+G40 -> 43522973.27 | H41: =H39+H40 -> 61720586.16 | K41: =K39+K40 -> 38655474.43
A42: References
A43: 1. Material variances to be explained in Table SC1

Sheet SC1
A1: =muni& " - "&S71G& " - "&date -> LIM353 Molemole - Supporting Table SC1 Material variance explanations - Q4 Fourth Quarter
A2: =head27 -> Ref | B2: =desc -> Description
C3: Variance | D3: Reasons for material deviations | E3: Remedial or corrective steps/remarks
B4: R thousands
A5: 1 | B5: ='C4-FinPerf RE'!A5 -> Revenue By Source
B6: Property rates | C6: ='C4-FinPerf RE'!I6 -> -15555.616 | D6: None | E6: None
B7: Service chargees | C7: ='C4-FinPerf RE'!I8+'C4-FinPerf RE'!I11 -> -3599489.578 | D7: Electricity provision was based on conventional meter | E7: To finalise the process of installing prepaid meters
B8: Interests | C8: ='C4-FinPerf RE'!I14+'C4-FinPerf RE'!I15 -> -2115137.448 | D8: Interest on outstanding debtors reduced because of write offs | E8: None
B9: Other revenue | C9: ='C4-FinPerf RE'!I21 -> -5158946.237 | D9: No sale of assets, and payment of fines not all collected | E9: To align the treatment of fines with GRAP on accrual basis
A10: 2 | B10: ='C4-FinPerf RE'!A25 -> Expenditure By Type
B11: Emloyee related costs | C11: ='C4-FinPerf RE'!I26 -> -4868240.053 | D11: Vacant and funded post not filled | E11: Awaiting amalgamation from Aganang
B12: Bulk purchases | C12: ='C4-FinPerf RE'!I31 -> -724146 | D12: None | E12: None
B13: Contracted services | C13: ='C4-FinPerf RE'!I33 -> -406494 | D13: None | E13: None
B14: Other expenditure | C14: ='C4-FinPerf RE'!I35 -> -13312240.43 | D14: Provision for doubtful debt not yet updated | E14: To be updated and revised report to be send
A15: 3 | B15: =RIGHT('C5-Capex'!A40,19) -> Capital Expenditure
B16: capital from own funds | C16: ='C5-Capex'!I73 -> -10345319 | D16: Late appointment of the contractor for Mogwadi inrternal street | E16: The project will be rolled over
B17: Capital from grants | C17: ='C5-Capex'!I70 -> -5607305.96 | D17: The payments are reflected exclusive of VAT , MIG at 99,7% | E17: None
A20: 4 | B20: Financial Position
B21: Total current assets | C21: ='C6-FinPos'!F13 -> 18476153.34
B22: Total non current assets | C22: ='C6-FinPos'!F25 -> 302282033
B23: Total current liabilities | C23: ='C6-FinPos'!F35 -> 5980428.09
B24: Total non current liabilities | C24: ='C6-FinPos'!F40 -> 0
A25: 5 | B25: Cash Flow
B26: Net cash from operating activities | C26: ='C7-CFlow'!I18 -> 11084828.16
B27: Net cash from investing activities | C27: ='C7-CFlow'!I28 -> -15952327
B28: Net cash frm financing activities | C28: ='C7-CFlow'!I37 -> 0
B29: Net in decrese/increase cash on held | C29: ='C7-CFlow'!I41 -> 0
A30: 6 | B30: Measureable performance
A35: 7 | B35: Municipal Entities
A41: =head27a -> References
A42: 1. Revenue for each source, vote and standard classification
A43: 2. Expenditure for each type, vote and standard classification
A44: 3. Capital expenditure for each vote and standard classification
A45: 4. Explain any material variances between the annual budget and the expected financial position based on current trends
A46: 5. Cash receipts by source and cash payments by type where not explained under revenue and expenditure
A47: 6. For Sept, Dec, Mar and Jun statements explain any material variances in achievement of measurable performance objectives

Sheet SC2
A1: =muni& " - "&S71H& " - "&Head57 -> LIM353 Molemole - Supporting Table SC2 Monthly Budget Statement - performance indicators - Q4 Fourth Quarter
A2: Description of financial indicator | B2: Basis of calculation | C2: =head27 -> Ref | D2: =Head1 -> 2014/15 | E2: =Head2 -> Budget Year 2015/16
D3: =Head5 -> Audited Outcome | E3: =Head6 -> Original Budget | F3: =Head7 -> Adjusted Budget | G3: =Head39 -> YearTD actual | H3: =Head8 -> Full Year Forecast
A5: Borrowing Management
A7: Capital Charges to Operating Expenditure | B7: Interest & principal paid/Operating Expenditure | D7: =IF(ISERROR((D42-D43)/D45),0,((D42-D43)/D45)) -> 0 | E7: =IF(ISERROR((E42+E44)/E45),0,((E42+E44)/E45)) -> 0.0317921654 | F7: =IF(ISERROR((F42+F44)/F45),0,((F42+F44)/F45)) -> 0.05545524047 | G7: =IF(ISERROR((G42+G44)/G45),0,((G42+G44)/G45)) -> 0 | H7: =IF(ISERROR((H42+H44)/H45),0,((H42+H44)/H45)) -> 0.07102721465
A8: Borrowed funding of 'own' capital expenditure | B8: Borrowings/Capital expenditure excl. transfers and grants | D8: =IF(ISERROR(D47/D46),0,(D47/D46)) -> 0 | E8: =IF(ISERROR(E47/E46),0,(E47/E46)) -> 0 | F8: =IF(ISERROR(F47/F46),0,(F47/F46)) -> 0 | G8: =IF(ISERROR(G47/G46),0,(G47/G46)) -> 0 | H8: =IF(ISERROR(H47/H46),0,(H47/H46)) -> 0
A9: Safety of Capital
A10: Debt to Equity | B10: Loans, Accounts Payable, Overdraft & Tax Provision/ Funds & Reserves | D10: =IF(ISERROR(D48/D49),0,(D48/D49)) -> 0.06311598802 | E10: =IF(ISERROR(E48/E49),0,(E48/E49)) -> 0.008053487283 | F10: =IF(ISERROR(F48/F49),0,(F48/F49)) -> 0.01125424786 | G10: =IF(ISERROR(G48/G49),0,(G48/G49)) -> 0.01905008196 | H10: =IF(ISERROR(H48/H49),0,(H48/H49)) -> 0.01125424786
A11: Gearing | B11: Long Term Borrowing/ Funds & Reserves | D11: =IF(ISERROR(D51/D50),0,(D51/D50)) -> 0 | E11: =IF(ISERROR(E51/E50),0,(E51/E50)) -> 0 | F11: =IF(ISERROR(F51/F50),0,(F51/F50)) -> 0 | G11: =IF(ISERROR(G51/G50),0,(G51/G50)) -> 0 | H11: =IF(ISERROR(H51/H50),0,(H51/H50)) -> 0
A12: Liquidity
A13: Current Ratio | B13: Current assets/current liabilities | C13: 1 | D13: =IF(ISERROR(D52/D53),0,(D52/D53)) -> 3.603868608 | E13: =IF(ISERROR(E52/E53),0,(E52/E53)) -> 4.502442457 | F13: =IF(ISERROR(F52/F53),0,(F52/F53)) -> 4.502442457 | G13: =IF(ISERROR(G52/G53),0,(G52/G53)) -> 3.089436586 | H13: =IF(ISERROR(H52/H53),0,(H52/H53)) -> 4.502442457
A14: Liquidity Ratio | B14: Monetary Assets/Current Liabilities | D14: =IF(ISERROR(D54/D53),0,(D54/D53)) -> 1.82940166 | E14: =IF(ISERROR(E54/E53),0,(E54/E53)) -> 3.799047616 | F14: =IF(ISERROR(F54/F53),0,(F54/F53)) -> 3.799047616 | G14: =IF(ISERROR(G54/G53),0,(G54/G53)) -> 0.5550640907 | H14: =IF(ISERROR(H54/H53),0,(H54/H53)) -> 3.799047616
A15: Revenue Management
A16: Annual Debtors Collection Rate (Payment Level %) | B16: Last 12 Mths Receipts/ Last 12 Mths Billing
A17: Outstanding Debtors to Revenue | B17: Total Outstanding Debtors to Annual Revenue | D17: =IF(ISERROR(D59/D55),0,(D59/D55)) -> 0.2407360193 | E17: =IF(ISERROR(E59/E55),0,(E59/E55)) -> 0.04012769634 | F17: =IF(ISERROR(F59/F55),0,(F59/F55)) -> 0.04043720915 | G17: =IF(ISERROR(G59/G55),0,(G59/G55)) -> 0.1122566933 | H17: =IF(ISERROR(H59/H55),0,(H59/H55)) -> 0.04043720915
A18: Longstanding Debtors Recovered | B18: Debtors > 12 Mths Recovered/Total Debtors > 12 Months Old | D18: =IF(ISERROR(D64/D63),0,(D64/D63)) -> 0 | E18: =IF(ISERROR(E64/E63),0,(E64/E63)) -> 0 | F18: =IF(ISERROR(F64/F63),0,(F64/F63)) -> 0 | G18: =IF(ISERROR(G64/G63),0,(G64/G63)) -> 0 | H18: =IF(ISERROR(H64/H63),0,(H64/H63)) -> 0
A19: Creditors Management
A20: Creditors System Efficiency | B20: % of Creditors Paid Within Terms (within MFMA s 65(e))
A21: Funding of Provisions
A22: Percentage Of Provisions Not Funded | B22: Unfunded Provisions/Total Provisions
A23: Other Indicators
A24: Electricity Distribution Losses | B24: % Volume (units purchased and generated less units sold)/units purchased and generated | C24: 2
A25: Water Distribution Losses | B25: % Volume (units purchased and own source less units sold)/Total units purchased and own source | C25: 2
A26: Employee costs | B26: Employee costs/Total Revenue - capital revenue | D26: =IF(ISERROR(D40/D55),0,(D40/D55)) -> 0.4627385277 | E26: =IF(ISERROR(E40/E55),0,(E40/E55)) -> 0.4367329694 | F26: =IF(ISERROR(F40/F55),0,(F40/F55)) -> 0.4408425315 | G26: =IF(ISERROR(G40/G55),0,(G40/G55)) -> 0.4540010583 | H26: =IF(ISERROR(H40/H55),0,(H40/H55)) -> 0.4408425315
A27: Repairs & Maintenance | B27: R&M/Total Revenue - capital revenue | D27: =IF(ISERROR(D41/D55),0,(D41/D55)) -> 0.02486220815 | E27: =IF(ISERROR(E41/E55),0,(E41/E55)) -> 0.02899595073 | F27: =IF(ISERROR(F41/F55),0,(F41/F55)) -> 0.04332439885 | G27: =IF(ISERROR(G41/G55),0,(G41/G55)) -> 0.04125981676 | H27: =IF(ISERROR(H41/H55),0,(H41/H55)) -> 0.04332439885
A28: Interest & Depreciation | B28: I&D/Total Revenue - capital revenue | D28: =IF(ISERROR((D42+D44)/D55),0,((D42+D44)/D55)) -> 0.06499566151 | E28: =IF(ISERROR((E42+E44)/E55),0,((E42+E44)/E55)) -> 0.02798045589 | F28: =IF(ISERROR((F42+F44)/F55),0,((F42+F44)/F55)) -> 0.05330108629 | G28: =IF(ISERROR((G42+G44)/G55),0,((G42+G44)/G55)) -> 0 | H28: =IF(ISERROR((H42+H44)/H55),0,((H42+H44)/H55)) -> 0.06826816843
A29: IDP regulation financial viability indicators
A30: i. Debt coverage | B30: (Total Operating Revenue - Operating Grants)/Debt service payments due within financial year)
A31: ii. O/S Service Debtors to Revenue | B31: Total outstanding service debtors/annual revenue received for services
A32: iii. Cost coverage | B32: (Available cash + Investments)/monthly fixed operational expenditure
A33: References
A34: 1. Consumer debtors > 12 months old are excluded from current assets.
A35: 2. Material variances to be explained.
A37: Calculations
A38: ='C6-FinPos'!A38 -> Borrowing | D38: ='C6-FinPos'!C38 -> 0 | E38: ='C6-FinPos'!D38 -> 0 | F38: ='C6-FinPos'!E38 -> 0 | G38: ='C6-FinPos'!F38 -> 0 | H38: 0
A39: Total Assets | D39: ='C6-FinPos'!C26 -> 205115893 | E39: ='C6-FinPos'!D26 -> 303364104 | F39: ='C6-FinPos'!E26 -> 220953401 | G39: ='C6-FinPos'!F26 -> 320758186.3 | H39: ='C6-FinPos'!G26 -> 220953401
A40: ='C4-FinPerf RE'!A26 -> Employee related costs | D40: ='C4-FinPerf RE'!C26 -> 58009620 | E40: ='C4-FinPerf RE'!D26 -> 66055175.57 | F40: ='C4-FinPerf RE'!E26 -> 66166386.05 | G40: ='C4-FinPerf RE'!G26 -> 61298146 | H40: ='C4-FinPerf RE'!K26 -> 66166386.05
A41: =A27 -> Repairs & Maintenance | D41: 3116765 | E41: 4385592 | F41: =[8]SB18c!$K$79 -> 6502591.504 | G41: =[13]tbjune16!$F$158 -> 5570802.59 | H41: =F41 -> 6502591.504
A42: Interest (finance charges) | D42: ='C4-FinPerf RE'!C30 -> 0 | E42: ='C4-FinPerf RE'!D30 -> 0 | F42: ='C4-FinPerf RE'!E30 -> 0 | G42: ='C4-FinPerf RE'!G30 -> 0 | H42: ='C4-FinPerf RE'!K30 -> 0
A43: Principal paid | D43: =-'C7-CFlow'!C36 -> 0 | E43: =-'C7-CFlow'!D36 -> 0 | F43: =-'C7-CFlow'!E36 -> 0 | G43: =-'C7-CFlow'!G36 -> 0 | H43: =-'C7-CFlow'!K36 -> 0
A44: Depreciation | D44: ='C4-FinPerf RE'!C29 -> 8147957 | E44: ='C4-FinPerf RE'!D29 -> 4232000 | F44: ='C4-FinPerf RE'!E29 -> 8000000 | H44: ='C4-FinPerf RE'!K27 -> 10246420.58
A45: Operating expenditure | D45: ='C4-FinPerf RE'!C37 -> 140136165 | E45: ='C4-FinPerf RE'!D37 -> 133114556.6 | F45: ='C4-FinPerf RE'!E37 -> 144260487.1 | G45: ='C4-FinPerf RE'!G37 -> 118976657 | H45: ='C4-FinPerf RE'!K37 -> 144260487.1
A46: ='C5-Capex'!A40 -> Total Capital Expenditure | D46: ='C5-Capex'!C40 -> 14095520 | E46: ='C5-Capex'!D40 -> 49276150 | F46: ='C5-Capex'!E40 -> 51291446.96 | G46: ='C5-Capex'!G40 -> 35338822 | H46: ='C5-Capex'!K40 -> 51291446.96
A47: Borrowed funding for capital | D47: ='C5-Capex'!C72 -> 0 | E47: ='C5-Capex'!D72 -> 0 | F47: ='C5-Capex'!E72 -> 0 | G47: ='C5-Capex'!G72 -> 0 | H47: ='C5-Capex'!K72 -> 0
A48: Debt | D48: ='C6-FinPos'!C30+'C6-FinPos'!C31+'C6-FinPos'!C33+'C6-FinPos'!C38 -> 10911901 | E48: ='C6-FinPos'!D30+'C6-FinPos'!D31+'C6-FinPos'!D33+'C6-FinPos'!D38 -> 2333624 | F48: ='C6-FinPos'!E30+'C6-FinPos'!E31+'C6-FinPos'!E33+'C6-FinPos'!E38 -> 2333624 | G48: ='C6-FinPos'!F30+'C6-FinPos'!F31+'C6-FinPos'!F33+'C6-FinPos'!F38 -> 5996542.09 | H48: ='C6-FinPos'!G30+'C6-FinPos'!G31+'C6-FinPos'!G33+'C6-FinPos'!G38 -> 2333624
A49: Equity | D49: ='C6-FinPos'!C48 -> 172886480 | E49: ='C6-FinPos'!D48 -> 289765652.8 | F49: ='C6-FinPos'!E48 -> 207354949.8 | G49: ='C6-FinPos'!F48 -> 314777758 | H49: ='C6-FinPos'!G48 -> 207354949.8
A50: ='C6-FinPos'!A47 -> Reserves | D50: ='C6-FinPos'!C47 -> 39671288 | E50: ='C6-FinPos'!D47 -> 51661610.66 | F50: ='C6-FinPos'!E47 -> -30749092.34 | G50: ='C6-FinPos'!F47 -> 0 | H50: ='C6-FinPos'!G47 -> -30749092.34
A51: ='C6-FinPos'!A38 -> Borrowing | D51: ='C6-FinPos'!C38 -> 0 | E51: ='C6-FinPos'!D38 -> 0 | F51: ='C6-FinPos'!E38 -> 0 | G51: ='C6-FinPos'!F38 -> 0 | H51: ='C6-FinPos'!G38 -> 0
A52: ='C6-FinPos'!A6 -> Current assets | D52: ='C6-FinPos'!C13 -> 61728258 | E52: ='C6-FinPos'!D13 -> 41560851.04 | F52: ='C6-FinPos'!E13 -> 41560851.04 | G52: ='C6-FinPos'!F13 -> 18476153.34 | H52: ='C6-FinPos'!G13 -> 41560851.04
A53: ='C6-FinPos'!A29 -> Current liabilities | D53: ='C6-FinPos'!C35 -> 17128332 | E53: ='C6-FinPos'!D35 -> 9230734.526 | F53: ='C6-FinPos'!E35 -> 9230734.526 | G53: ='C6-FinPos'!F35 -> 5980428.09 | H53: ='C6-FinPos'!G35 -> 9230734.526
A54: Monetary assets | D54: ='C6-FinPos'!C7+'C6-FinPos'!C8 -> 31334599 | E54: ='C6-FinPos'!D7+'C6-FinPos'!D8 -> 35068000 | F54: ='C6-FinPos'!E7+'C6-FinPos'!E8 -> 35068000 | G54: ='C6-FinPos'!F7+'C6-FinPos'!F8 -> 3319520.88 | H54: ='C6-FinPos'!G7+'C6-FinPos'!G8 -> 35068000
A55: ='C4-FinPerf RE'!A23 -> Total Revenue (excluding capital transfers and contributions) | D55: ='C4-FinPerf RE'!C23 -> 125361552 | E55: ='C4-FinPerf RE'!D23 -> 151248429.1 | F55: ='C4-FinPerf RE'!E23 -> 150090749.7 | G55: ='C4-FinPerf RE'!G23 -> 135017628 | H55: ='C4-FinPerf RE'!K23 -> 150090749.7
A56: ='C4-FinPerf RE'!A20 -> Transfers recognised - operational | D56: ='C4-FinPerf RE'!C20 -> 94361874 | E56: ='C4-FinPerf RE'!D20 -> 111217000 | F56: ='C4-FinPerf RE'!E20 -> 111217000 | G56: ='C4-FinPerf RE'!G20 -> 108207404 | H56: ='C4-FinPerf RE'!K20 -> 111217000
A57: ='C4-FinPerf RE'!A40 -> Transfers recognised - capital | D57: ='C4-FinPerf RE'!C40 -> 28227629 | E57: ='C4-FinPerf RE'!D40 -> 31418576 | F57: ='C4-FinPerf RE'!E40 -> 31739433 | G57: ='C4-FinPerf RE'!G40 -> 26983649 | H57: ='C4-FinPerf RE'!K40 -> 31739433
A58: Debt service payments | D58: ='C7-CFlow'!C12+'C7-CFlow'!C36 -> 5399686 | E58: ='C7-CFlow'!D12+'C7-CFlow'!D36 -> 4659998.25 | F58: ='C7-CFlow'!E12+'C7-CFlow'!E36 -> 4659998.25 | G58: ='C7-CFlow'!G16+'C7-CFlow'!G36 -> 0 | H58: ='C7-CFlow'!K16+'C7-CFlow'!K36 -> 0
A59: Outstanding debtors (receivables) | D59: ='C6-FinPos'!C9+'C6-FinPos'!C10+'C6-FinPos'!C11+'C6-FinPos'!C16 -> 30179041 | E59: ='C6-FinPos'!D9+'C6-FinPos'!D10+'C6-FinPos'!D11+'C6-FinPos'!D16 -> 6069251.037 | F59: ='C6-FinPos'!E9+'C6-FinPos'!E10+'C6-FinPos'!E11+'C6-FinPos'!E16 -> 6069251.037 | G59: ='C6-FinPos'!F9+'C6-FinPos'!F10+'C6-FinPos'!F11+'C6-FinPos'!F16 -> 15156632.46 | H59: ='C6-FinPos'!G9+'C6-FinPos'!G10+'C6-FinPos'!G11+'C6-FinPos'!G16 -> 6069251.037
A60: Annual services revenue | D60: =SUM('C4-FinPerf RE'!C8:C12) -> 7868111 | E60: =SUM('C4-FinPerf RE'!D8:D12) -> 12283908.58 | F60: =SUM('C4-FinPerf RE'!E8:E12) -> 11091203.58 | G60: =SUM('C4-FinPerf RE'!G8:G12) -> 7491714
A61: Cash + investments | B61: Including LT investments | D61: ='C6-FinPos'!C7+'C6-FinPos'!C8+'C6-FinPos'!C17-'C6-FinPos'!C30 -> 31334599 | E61: ='C6-FinPos'!D7+'C6-FinPos'!D8+'C6-FinPos'!D17-'C6-FinPos'!D30 -> 35068000 | F61: ='C6-FinPos'!E7+'C6-FinPos'!E8+'C6-FinPos'!E17-'C6-FinPos'!E30 -> 35068000 | G61: ='C6-FinPos'!F7+'C6-FinPos'!F8+'C6-FinPos'!F17-'C6-FinPos'!F30 -> 13319520.88 | H61: ='C6-FinPos'!G7+'C6-FinPos'!G8+'C6-FinPos'!G17-'C6-FinPos'!G30 -> 35068000
A62: Fixed operational expend. (monthly)
A63: Longstanding debtors outstanding | D63: ='C6-FinPos'!C16 -> 0 | E63: ='C6-FinPos'!D16 -> 0 | F63: ='C6-FinPos'!E16 -> 0 | G63: ='C6-FinPos'!F16 -> 0 | H63: ='C6-FinPos'!G16 -> 0
A64: Longstanding debtors recovered
A65: Attorney collections

Sheet SC3
A1: =muni& " - "&S71I& " - "&Head57 -> LIM353 Molemole - Supporting Table SC3 Monthly Budget Statement - aged debtors - Q4 Fourth Quarter
A2: =desc -> Description | C2: =Head2 -> Budget Year 2015/16
A3: R thousands | B3: NT Code | C3: 0-30 Days | D3: 31-60 Days | E3: 61-90 Days | F3: 91-120 Days | G3: 121-150 Dys | H3: 151-180 Dys | I3: 181 Dys-1 Yr | J3: Over 1Yr | K3: Total | L3: Total over 90 days | M3: Actual Bad Debts Written Off against Debtors | N3: Impairment - Bad Debts i.t.o Council Policy
A4: Debtors Age Analysis By Income Source
A5: Trade and Other Receivables from Exchange Transactions - Water | B5: 1200 | C5: 127500 | D5: 144936 | E5: 232038 | F5: 6541775 | G5: 0 | H5: 0 | I5: 0 | J5: 0 | K5: =SUM(C5:J5) -> 7046249 | L5: =SUM(F5:J5) -> 6541775 | M5: 0 | N5: 0
A6: Trade and Other Receivables from Exchange Transactions - Electricity | B6: 1300 | C6: 138220 | D6: 108775 | E6: 103950 | F6: 2803937 | G6: 0 | H6: 0 | I6: 0 | J6: 0 | K6: =SUM(C6:J6) -> 3154882 | L6: =SUM(F6:J6) -> 2803937 | M6: 0 | N6: 0
A7: Receivables from Non-exchange Transactions - Property Rates | B7: 1400 | C7: 902605 | D7: 866809 | E7: 856449 | F7: 33661498 | G7: 0 | H7: 0 | I7: 0 | J7: 0 | K7: =SUM(C7:J7) -> 36287361 | L7: 33661498 | M7: 0 | N7: 0
A8: Receivables from Exchange Transactions - Waste Water Management | B8: 1500 | C8: 16359 | D8: 21015 | E8: 39422 | F8: 640244 | G8: 0 | H8: 0 | I8: 0 | J8: 0 | K8: 717040 | L8: 640244 | M8: 0 | N8: 0
A9: Receivables from Exchange Transactions - Waste Management | B9: 1600 | C9: 125835 | D9: 123697 | E9: 122598 | F9: 4216255 | G9: 0 | H9: 0 | I9: 0 | J9: 0 | K9: 4588385 | L9: =SUM(F9:J9) -> 4216255 | M9: 0 | N9: 0
A10: Receivables from Exchange Transactions - Property Rental Debtors | B10: 1700 | C10: 0 | D10: 0 | E10: 0 | F10: 0 | G10: 0 | H10: 0 | I10: 0 | J10: 0 | K10: 0 | L10: =SUM(F10:J10) -> 0 | M10: 0 | N10: 0
A11: Interest on Arrear Debtor Accounts | B11: 1810 | C11: 0 | D11: 0 | E11: 0 | F11: 0 | G11: 0 | H11: 0 | I11: 0 | J11: 0 | K11: 0 | L11: 0 | M11: 0 | N11: 0
A12: Recoverable unauthorised, irregular, fruitless and wasteful expenditure | B12: 1820 | C12: 0 | D12: 0 | E12: 0 | F12: 0 | G12: 0 | H12: 0 | I12: 0 | J12: 0 | K12: 0 | L12: 0 | M12: 0 | N12: 0
A13: Other | B13: 1900 | C13: 181971 | D13: 177122 | E13: 179950 | F13: 5671557 | G13: 0 | H13: 0 | I13: 0 | J13: 0 | K13: 6210600 | L13: =SUM(F13:J13) -> 5671557 | M13: 0 | N13: 0
A14: Total By Income Source | B14: 2000 | C14: =SUM(C5:C13) -> 1492490 | D14: 1442354 | E14: 1534407 | F14: 53535266 | G14: 0 | H14: 0 | I14: 0 | J14: 0 | K14: 58004517 | L14: =SUM(L5:L13) -> 53535266 | M14: 0 | N14: 0
A15: =Head1&" - totals only" -> 2014/15 - totals only | C15: 0 | D15: 0 | E15: 0 | F15: 0 | G15: 0 | H15: 0 | I15: 0 | J15: 0 | K15: =SUM(C15:J15) -> 0 | L15: =SUM(F15:J15) -> 0 | M15: 0 | N15: 0
A16: Debtors Age Analysis By Customer Group
A17: Organs of State | B17: 2200 | C17: 384424 | D17: 385101 | E17: 381141 | F17: 19552593 | G17: 0 | H17: 0 | I17: 0 | J17: 0 | K17: =SUM(C17:J17) -> 20703259 | L17: =SUM(F17:J17) -> 19552593 | M17: 0 | N17: 0
A18: Commercial | B18: 2300 | C18: 52785 | D18: 55017 | E18: 40413 | F18: 1226522 | G18: 0 | H18: 0 | I18: 0 | J18: 0 | K18: =SUM(C18:J18) -> 1374737 | L18: =SUM(F18:J18) -> 1226522 | M18: 0 | N18: 0
A19: Households | B19: 2400 | C19: 636384 | D19: 725342 | E19: 408307 | F19: 20695608 | G19: 0 | H19: 0 | I19: 0 | J19: 0 | K19: =SUM(C19:J19) -> 22465641 | L19: =SUM(F19:J19) -> 20695608 | M19: 0 | N19: 0
A20: Other | B20: 2500 | C20: 418897 | D20: 276894 | E20: 704546 | F20: 12060543 | G20: 0 | H20: 0 | I20: 0 | J20: 0 | K20: =SUM(C20:J20) -> 13460880 | L20: =SUM(F20:J20) -> 12060543 | M20: 0 | N20: 0
A21: Total By Customer Group | B21: 2600 | C21: =SUM(C17:C20) -> 1492490 | D21: 1442354 | E21: 1534407 | F21: 53535266 | G21: 0 | H21: 0 | I21: 0 | J21: =SUM(J17:J20) -> 0 | K21: =SUM(K17:K20) -> 58004517 | L21: =SUM(L17:L20) -> 53535266 | M21: =SUM(M17:M20) -> 0 | N21: =SUM(N17:N20) -> 0
A22: Notes
A23: Material increases in value of debtors' categories compared to previous month to be explained
A24: Bad debts = amounts actually written off in the month
A25: Total by Income Source must reconcile with Total by Customer Group
C26: =C14-C21 -> 0 | D26: =D14-D21 -> 0 | E26: =E14-E21 -> 0 | F26: 0 | G26: 0 | H26: 0 | I26: 0 | J26: =J14-J21 -> 0 | K26: 0
C27: =IF(C26=0,"","MUST AGREE") ->  | D27: =IF(D26=0,"","MUST AGREE") -> 

Sheet SC4
A1: =muni& " - "&S71J& " - "&Head57 -> LIM353 Molemole - Supporting Table SC4 Monthly Budget Statement - aged creditors - Q4 Fourth Quarter
A2: =desc -> Description | B2: NT Code | C2: =Head2 -> Budget Year 2015/16 | L2: Prior year totals for chart (same period)
C3: 0 - 30 Days | D3: 31 - 60 Days | E3: 61 - 90 Days | F3: 91 - 120 Days | G3: 121 - 150 Days | H3: 151 - 180 Days | I3: 181 Days - 1 Year | J3: Over 1 Year | K3: Total
A4: R thousands
A5: Creditors Age Analysis By Customer Type
A6: Bulk Electricity | B6: 0100 | K6: =SUM(C6:J6) -> 0
A7: Bulk Water | B7: 0200 | K7: =SUM(C7:J7) -> 0
A8: PAYE deductions | B8: 0300 | K8: 0
A9: VAT (output less input) | B9: 0400 | K9: 0
A10: Pensions / Retirement deductions | B10: 0500 | K10: 0
A11: Loan repayments | B11: 0600 | K11: 0
A12: Trade Creditors | B12: 0700 | C12: 1596771 | D12: 0 | E12: 0 | F12: 0 | K12: 1596771
A13: Auditor General | B13: 0800 | K13: 0
A14: Other | B14: 0900 | C14: 118764 | K14: =SUM(C14:J14) -> 118764
A15: Total By Customer Type | B15: 1000 | C15: =SUM(C6:C14) -> 1715535 | D15: =SUM(D6:D14) -> 0 | E15: 0 | F15: 0 | G15: 0 | H15: 0 | I15: 0 | J15: 0 | K15: =SUM(K6:K14) -> 1715535 | L15: =SUM(L6:L14) -> 0
A16: Notes
A17: Material increases in value of creditors' categories compared to previous month to be explained

Sheet SC5
A1: =muni& " - "&S71K& " - "&Head57 -> LIM353 Molemole - Supporting Table SC5 Monthly Budget Statement - investment portfolio - Q4 Fourth Quarter
A2: Investments by maturity Name of institution & investment ID | B2: Ref | C2: Period of Investment | D2: Type of Investment | E2: Expiry date of investment | F2: Accrued interest for the month | G2: Yield for the month 1 (%) | H2: Market value at beginning of the month | I2: Change in market value | J2: Market value at end of the month
A3: R thousands | C3: Yrs/Months
A4: Municipality
A5: Nedbank | C5: 1 Year | D5: Call Investment | E5: 2016-06-30 | F5: 134830.98 | G5: 0.061 | H5: 26025016.54 | I5: 134830.98 | J5: =H5+I5 -> 26159847.52
A6: Nedbank | C6: 3 Monhs | D6: Short term Investment | E6: 2015-10-29 | F6: 0 | G6: 0.0658 | H6: 10000000 | I6: =-10000000+-163925 -> -10163925 | J6: 0
A7: ABSA | C7: 4 Months | D7: Short term Investment | E7: 2015-12-05 | F7: 0 | G7: 0.067 | H7: 10000000 | I7: -10220273.97 | J7: 0
A8: ABSA | C8: 3 Monhs | D8: Short term Investment | E8: 2016-03-24 | F8: 0 | G8: 0.0692 | H8: 10000000 | I8: -10178213.7 | J8: 0
A9: ABSA | C9: 2 Months | D9: Short term Investment | E9: 42545 | F9: 123287.67 | G9: 0.075 | H9: 10000000 | I9: -10123287.67 | J9: 0
A12: Municipality sub-total | F12: =SUM(F5:F11) -> 258118.65 | H12: =SUM(H5:H11) -> 66025016.54 | I12: =SUM(I5:I11) -> -40550869.36 | J12: =SUM(J5:J11) -> 26159847.52
A14: Entities
A22: Entities sub-total | F22: =SUM(F15:F21) -> 0 | H22: =SUM(H15:H21) -> 0 | I22: =SUM(I15:I21) -> 0 | J22: =SUM(J15:J21) -> 0
A24: TOTAL INVESTMENTS AND INTEREST | B24: 2 | F24: =F12+F22 -> 258118.65 | H24: =H12+H22 -> 66025016.54 | I24: =I12+I22 -> -40550869.36 | J24: =J12+J22 -> 26159847.52
A25: =head27a -> References
A26: 1. Yield is calculated as the annualised equivalent
A27: 2. Total market value must reconcile with the total of investments on the 'Financial Position statement'

Sheet SC6
A1: =muni& " - "&S71L& " - "&Head57 -> LIM353 Molemole - Supporting Table SC6 Monthly Budget Statement - transfers and grant receipts - Q4 Fourth Quarter
A2: =desc -> Description | B2: =head27 -> Ref | C2: =Head1 -> 2014/15 | D2: =Head2 -> Budget Year 2015/16
C3: =Head5 -> Audited Outcome | D3: =Head6 -> Original Budget | E3: =Head7 -> Adjusted Budget | F3: =Head38 -> Monthly actual | G3: =Head39 -> YearTD actual | H3: =Head40 -> YearTD budget | I3: =Head41 -> YTD variance | J3: =Head41 -> YTD variance | K3: =Head8 -> Full Year Forecast
A4: R thousands | J4: %
A5: RECEIPTS: | B5: 1,2
A7: Operating Transfers and Grants
A8: National Government: | C8: =SUM(C9:C19) -> 108817000 | D8: 108817000 | E8: 108817000 | F8: 741857.39 | G8: 108816857.4 | H8: 108817000 | I8: -142.61 | J8: =IF(I8=0,"",I8/H8) -> -1.310548903e-06 | K8: =SUM(K9:K19) -> 108817000
A9: Local Government Equitable Share | C9: =D9 -> 106287000 | D9: =[6]SA18!$I$8 -> 106287000 | E9: =D9 -> 106287000 | F9: =-[13]tbjune16!$D$185 -> 741857.39 | G9: =105545000+F9 -> 106286857.4 | H9: =E9/12*12 -> 106287000 | I9: =G9-H9 -> -142.61 | J9: -1.341744522e-06 | K9: =E9 -> 106287000
A10: Finance Management | C10: 1600000 | D10: =[6]SA18!$I$9 -> 1600000 | E10: =D10 -> 1600000 | F10: 0 | G10: 1600000 | H10: =E10/12*12 -> 1600000 | K10: =E10 -> 1600000
A11: Municipal Systems Improvement | C11: 930000 | D11: =[6]SA18!$I$10 -> 930000 | E11: 930000 | F11: 0 | G11: 930000 | H11: 930000 | K11: 930000
C12: 0 | D12: 0 | E12: 0 | F12: 0 | G12: =F12 -> 0 | H12: 0 | K12: 0
C13: 0 | D13: 0 | E13: 0 | F13: 0 | G13: 0 | H13: 0 | K13: 0
B14: 3 | C14: 0 | D14: 0 | E14: 0 | F14: 0 | G14: 0 | H14: 0 | I14: 0 | K14: 0
C15: 0 | D15: 0 | E15: 0 | F15: 0 | G15: 0 | H15: 0 | I15: 0 | K15: 0
C16: 0 | D16: 0 | E16: 0 | F16: 0 | G16: 0 | H16: 0 | I16: 0 | K16: 0
C17: 0 | D17: 0 | E17: 0 | F17: 0 | G17: 0 | H17: 0 | I17: 0 | K17: 0
C18: 0 | D18: 0 | E18: 0 | F18: 0 | G18: 0 | H18: 0 | I18: 0 | K18: 0
A19: Other transfers and grants [insert description] | C19: 0 | D19: 0 | E19: 0 | F19: 0 | G19: 0 | H19: 0 | I19: 0 | K19: 0
A20: Provincial Government: | C20: =SUM(C21:C26) -> 0 | D20: 0 | E20: 0 | F20: 0 | G20: 0 | H20: 0 | I20: 0 | K20: =SUM(K21:K26) -> 0
I21: =G21-H21 -> 0
I23: 0
B24: 4 | I24: 0
I25: 0
A26: Other transfers and grants [insert description] | I26: 0
A27: District Municipality: | C27: =SUM(C28:C29) -> 2401576 | D27: 2401576 | E27: 2401576 | F27: 0 | G27: 0 | H27: 1801182 | I27: -1801182 | J27: -1 | K27: =SUM(K28:K29) -> 2401576
A28: CDM | C28: =D28 -> 2401576 | D28: =[6]SA18!$I$22 -> 2401576 | E28: =D28 -> 2401576 | F28: 0 | G28: 0 | H28: =E28/12*9 -> 1801182 | I28: -1801182 | J28: -1 | K28: =E28 -> 2401576
C29: 0 | D29: 0 | E29: 0 | F29: 0 | G29: 0 | H29: 0 | I29: 0 | K29: 0
A30: Other grant providers: | C30: =SUM(C31:C37) -> 0 | D30: 0 | E30: 0 | F30: 0 | G30: 0 | H30: 0 | I30: 0 | K30: =SUM(K31:K37) -> 0
A31: [insert description] | I31: 0
I37: 0
A38: Total Operating Transfers and Grants | B38: 5 | C38: =C8+C20+C27+C30 -> 111218576 | D38: 111218576 | E38: 111218576 | F38: 741857.39 | G38: 108816857.4 | H38: 110618182 | I38: -1801324.61 | J38: -0.01628416394 | K38: =K8+K20+K27+K30 -> 111218576
A40: Capital Transfers and Grants
A41: =A8 -> National Government: | C41: =SUM(C42:C51) -> 31017000 | D41: 31017000 | E41: 31017000 | F41: 0 | G41: 31017000 | H41: 31017000 | I41: 0 | J41: =IF(I41=0,"",I41/H41) ->  | K41: 31017000
A42: Municipal Infrastructure Grant (MIG) | C42: =D42 -> 30017000 | D42: =[6]SA18!$I$31 -> 30017000 | E42: =D42 -> 30017000 | F42: 0 | G42: =10611000+12217000+7189000 -> 30017000 | H42: =E42/12*12 -> 30017000 | I42: =G42-H42 -> 0 | K42: =E42 -> 30017000
C43: 0 | D43: 0 | E43: 0 | F43: 0 | G43: 0 | H43: 0 | K43: 0
C44: 0 | D44: 0 | E44: 0 | F44: 0 | G44: 0 | H44: 0 | K44: 0
C45: 0 | D45: 0 | E45: 0 | F45: 0 | G45: 0 | H45: 0 | K45: 0
C46: 0 | D46: 0 | E46: 0 | F46: 0 | G46: 0 | H46: 0 | K46: 0
C47: 0 | D47: 0 | E47: 0 | F47: 0 | G47: 0 | H47: 0 | I47: 0 | K47: 0
C48: 0 | D48: 0 | E48: 0 | F48: 0 | G48: 0 | H48: 0 | I48: 0 | K48: 0
C49: 0 | D49: 0 | E49: 0 | F49: 0 | G49: 0 | H49: 0 | I49: 0 | K49: 0
C50: 0 | D50: 0 | E50: 0 | F50: 0 | G50: 0 | H50: 0 | I50: 0 | K50: 0
A51: EPWP | C51: =D51 -> 1000000 | D51: =[6]SA18!$I$36 -> 1000000 | E51: =D51 -> 1000000 | F51: 0 | G51: 1000000 | H51: =E51/12*12 -> 1000000 | I51: 0 | K51: =E51 -> 1000000
A52: =A20 -> Provincial Government: | C52: =SUM(C53:C58) -> 0 | D52: 0 | E52: 0 | F52: 0 | G52: 0 | H52: 0 | I52: =G52-H52 -> 0 | J52: =IF(I52=0,"",I52/H52) ->  | K52: =SUM(K53:K58) -> 0
A53: [insert description] | I53: 0 | J53: =IF(I53=0,"",I53/H53) -> 
I58: 0
A59: =A27 -> District Municipality: | C59: =SUM(C60:C61) -> 0 | D59: 0 | E59: 0 | F59: 0 | G59: 0 | H59: 0 | I59: 0 | K59: =SUM(K60:K61) -> 0
A60: [insert description] | I60: 0
I61: 0
A62: =A30 -> Other grant providers: | C62: =SUM(C63:C68) -> 0 | D62: 0 | E62: 0 | F62: 0 | G62: 0 | H62: 0 | I62: 0 | K62: =SUM(K63:K68) -> 0
A63: [insert description] | I63: 0 | J63: =IF(I63=0,"",I63/H63) -> 
I68: 0
A69: Total Capital Transfers and Grants | B69: 5 | C69: =C41+C52+C59+C62 -> 31017000 | D69: =D41+D52+D59+D62 -> 31017000 | E69: 31017000 | F69: 0 | G69: 31017000 | H69: 31017000 | I69: 0 | K69: 31017000
A71: TOTAL RECEIPTS OF TRANSFERS & GRANTS | B71: 5 | C71: =C38+C69 -> 142235576 | D71: 142235576 | E71: 142235576 | F71: 741857.39 | G71: 139833857.4 | H71: 141635182 | I71: -1801324.61 | J71: -0.01271805906 | K71: 142235576
A72: =head27a -> References
A73: 1. Each grant is listed by name as gazetted together with the name of the transferring department or municipality, donor or other organisation
A74: 2. Grant expenditure must be separately listed for each grant received
A75: 3. Replacement of RSC levies
A76: 4. Housing subsidies for housing where ownership transferred
A77: 5. Total recurrent/capital grants and subsidies must reconcile to the 'Financial Performance' Statement

Sheet SC7(1)
A1: =muni& " - "&S71M& " - "&Head57 -> LIM353 Molemole - Supporting Table SC7(1) Monthly Budget Statement - transfers and grant expenditure - Q4 Fourth Quarter
A2: =desc -> Description | B2: =head27 -> Ref | C2: =Head1 -> 2014/15 | D2: =Head2 -> Budget Year 2015/16
C3: =Head5 -> Audited Outcome | D3: =Head6 -> Original Budget | E3: =Head7 -> Adjusted Budget | F3: =Head38 -> Monthly actual | G3: =Head39 -> YearTD actual | H3: =Head40 -> YearTD budget | I3: =Head41 -> YTD variance | J3: =Head41 -> YTD variance | K3: =Head8 -> Full Year Forecast
A4: R thousands | J4: %
A5: EXPENDITURE
A7: Operating expenditure of Transfers and Grants
A8: ='SC6'!A8 -> National Government: | C8: =SUM(C9:C15) -> 2928837 | D8: 108817000 | E8: 108817000 | F8: 14408568 | G8: 108737537 | H8: 108817000 | I8: -79463 | J8: =IF(I8=0,"",I8/H8) -> -0.0007302443552 | K8: =SUM(K9:K15) -> 108817000
A9: ='SC6'!A9 -> Local Government Equitable Share | C9: 0 | D9: ='SC6'!D9 -> 106287000 | E9: =D9 -> 106287000 | F9: =13388100+6056789-F10-F11-F32-F37-F24 -> 13870787 | G9: =E9 -> 106287000 | H9: =E9/12*12 -> 106287000 | I9: =G9-H9 -> 0 | K9: =E9 -> 106287000
A10: ='SC6'!A10 -> Finance Management | C10: =1839164+77688 -> 1916852 | D10: ='SC6'!D10 -> 1600000 | E10: =D10 -> 1600000 | F10: 404557 | G10: 1520537 | H10: =E10/12*12 -> 1600000 | I10: -79463 | J10: -0.049664375 | K10: =E10 -> 1600000
A11: ='SC6'!A11 -> Municipal Systems Improvement | C11: =883585+128400 -> 1011985 | D11: ='SC6'!D11 -> 930000 | E11: 930000 | F11: 133224 | G11: 930000 | H11: 930000 | I11: 0 | K11: 930000
A12: ='SC6'!A12 -> 0 | C12: 0 | D12: 0 | E12: 0 | F12: 0 | G12: 0 | H12: 0 | I12: 0 | K12: =D12 -> 0
A13: ='SC6'!A13 -> 0 | C13: 0 | D13: 0 | E13: 0 | F13: 0 | G13: 0 | H13: 0 | I13: 0 | K13: 0
A14: ='SC6'!A14 -> 0 | C14: 0 | D14: 0 | E14: 0 | F14: 0 | G14: 0 | H14: 0 | I14: 0 | K14: 0
A15: ='SC6'!A19 -> Other transfers and grants [insert description] | C15: 0 | D15: 0 | E15: 0 | F15: 0 | G15: 0 | H15: 0 | I15: 0 | K15: 0
A16: ='SC6'!A20 -> Provincial Government: | C16: =SUM(C17:C21) -> 0 | D16: 0 | E16: 0 | F16: 0 | G16: 0 | H16: 0 | I16: 0 | K16: =SUM(K17:K21) -> 0
A17: ='SC6'!A21 -> 0 | C17: 0 | D17: 0 | E17: 0 | F17: 0 | G17: 0 | H17: 0 | I17: =G17-H17 -> 0 | K17: 0
A18: ='SC6'!A23 -> 0 | C18: 0 | D18: 0 | E18: 0 | F18: 0 | G18: 0 | H18: 0 | I18: 0 | K18: 0
A19: ='SC6'!A24 -> 0 | C19: 0 | D19: 0 | E19: 0 | F19: 0 | G19: 0 | H19: 0 | I19: 0 | K19: 0
A20: ='SC6'!A25 -> 0 | C20: 0 | D20: 0 | E20: 0 | F20: 0 | G20: 0 | H20: 0 | I20: 0 | K20: 0
A21: ='SC6'!A26 -> Other transfers and grants [insert description] | C21: 0 | D21: 0 | E21: 0 | F21: 0 | G21: 0 | H21: 0 | I21: 0 | K21: 0
A22: ='SC6'!A27 -> District Municipality: | C22: =SUM(C23:C24) -> 708902 | D22: 2401576 | E22: =SUM(E23:E24) -> 2401576 | F22: 776303 | G22: 776303 | H22: 2401576 | I22: -1625273 | J22: -0.6767526824 | K22: =SUM(K23:K24) -> 2401576
C23: 0 | D23: 0 | E23: 0 | F23: 0 | G23: 0 | H23: 0 | I23: 0 | K23: 0
A24: ='SC6'!A28 -> CDM | C24: =117450+591452 -> 708902 | D24: ='SC6'!D28 -> 2401576 | E24: =D24 -> 2401576 | F24: =401576+123015+251712 -> 776303 | G24: =F24 -> 776303 | H24: =E24/12*12 -> 2401576 | I24: -1625273 | J24: -0.6767526824 | K24: =E24 -> 2401576
A25: ='SC6'!A30 -> Other grant providers: | C25: =SUM(C26:C27) -> 0 | D25: 0 | E25: 0 | F25: 0 | G25: 0 | H25: 0 | I25: 0 | K25: =SUM(K26:K27) -> 0
C26: 0 | D26: 0 | E26: 0 | F26: 0 | G26: 0 | H26: 0 | I26: 0 | K26: 0
A27: ='SC6'!A31 -> [insert description] | C27: 0 | D27: 0 | E27: 0 | F27: 0 | G27: 0 | H27: 0 | I27: 0 | K27: 0
A28: Total operating expenditure of Transfers and Grants: | C28: =C8+C16+C22+C25 -> 3637739 | D28: =D8+D16+D22+D25 -> 111218576 | E28: 111218576 | F28: 15184871 | G28: 109513840 | H28: 111218576 | I28: -1704736 | J28: -0.0153277992 | K28: =K8+K16+K22+K25 -> 111218576
A30: Capital expenditure of Transfers and Grants
A31: ='SC6'!A41 -> National Government: | C31: =SUM(C32:C37) -> 29937272 | D31: 31017000 | E31: 31017000 | F31: 4260018 | G31: 31243667 | H31: 31017000 | I31: 226667 | J31: =IF(I31=0,"",I31/H31) -> 0.007307831189 | K31: 31017000
A32: ='SC6'!A42 -> Municipal Infrastructure Grant (MIG) | C32: =1053183+27430089 -> 28483272 | D32: ='SC6'!D42 -> 30017000 | E32: =D32 -> 30017000 | F32: 4077407 | G32: 30249923 | H32: =E32/12*12 -> 30017000 | I32: =G32-H32 -> 232923 | J32: 0.007759702835 | K32: =E32 -> 30017000
A33: ='SC6'!A47 -> 0 | C33: 0 | D33: 0 | E33: =D33 -> 0 | F33: 0 | G33: 0 | H33: =E33/12*12 -> 0 | I33: 0 | K33: =D33 -> 0
A34: ='SC6'!A48 -> 0 | C34: 0 | D34: 0 | E34: 0 | F34: 0 | G34: 0 | H34: 0 | I34: 0 | K34: 0
A35: ='SC6'!A49 -> 0 | C35: 0 | D35: 0 | E35: 0 | F35: 0 | G35: 0 | H35: 0 | I35: 0 | K35: 0
A36: ='SC6'!A50 -> 0 | C36: 0 | D36: 0 | E36: 0 | F36: 0 | G36: 0 | H36: 0 | I36: 0 | K36: 0
A37: ='SC6'!A51 -> EPWP | C37: 1454000 | D37: ='SC6'!D51 -> 1000000 | E37: 1000000 | F37: 182611 | G37: 993744 | H37: 1000000 | I37: -6256 | J37: -0.006256 | K37: =E37 -> 1000000
A38: ='SC6'!A52 -> Provincial Government: | C38: =SUM(C39:C40) -> 0 | D38: 0 | E38: 0 | F38: 0 | G38: 0 | H38: 0 | I38: =G38-H38 -> 0 | K38: =SUM(K39:K40) -> 0
C39: 0 | D39: 0 | E39: 0 | F39: 0 | G39: 0 | H39: 0 | I39: 0 | K39: 0
A40: ='SC6'!A58 -> 0 | C40: 0 | D40: 0 | E40: 0 | F40: 0 | G40: 0 | H40: 0 | I40: 0 | K40: 0
A41: ='SC6'!A59 -> District Municipality: | C41: =SUM(C42:C43) -> 0 | D41: 0 | E41: 0 | F41: 0 | G41: 0 | H41: 0 | I41: 0 | K41: =SUM(K42:K43) -> 0
C42: 0 | D42: 0 | E42: 0 | F42: 0 | G42: 0 | H42: 0 | I42: 0 | K42: 0
A43: ='SC6'!A61 -> 0 | C43: 0 | D43: 0 | E43: 0 | F43: 0 | G43: 0 | H43: 0 | I43: 0 | K43: 0
A44: ='SC6'!A62 -> Other grant providers: | C44: =SUM(C45:C46) -> 0 | D44: 0 | E44: 0 | F44: 0 | G44: 0 | H44: 0 | I44: 0 | K44: =SUM(K45:K46) -> 0
C45: 0 | D45: 0 | E45: 0 | F45: 0 | G45: 0 | H45: 0 | I45: 0 | K45: 0
A46: ='SC6'!A68 -> 0 | C46: 0 | D46: 0 | E46: 0 | F46: 0 | G46: 0 | H46: 0 | I46: 0 | K46: 0
A47: Total capital expenditure of Transfers and Grants | C47: =C31+C38+C41+C44 -> 29937272 | D47: =D31+D38+D41+D44 -> 31017000 | E47: 31017000 | F47: 4260018 | G47: 31243667 | H47: 31017000 | I47: 226667 | J47: =IF(I47=0,"",I47/H47) -> 0.007307831189 | K47: 31017000
A49: TOTAL EXPENDITURE OF TRANSFERS AND GRANTS | C49: =C28+C47 -> 33575011 | D49: 142235576 | E49: 142235576 | F49: 19444889 | G49: 140757507 | H49: 142235576 | I49: -1478069 | J49: =IF(I49=0,"",I49/H49) -> -0.01039169694 | K49: 142235576
A50: =head27a -> References

Sheet SC7(2)
A1: =muni& " - "&S71T& " - "&Head57 -> LIM353 Molemole - Supporting Table SC7(2) Monthly Budget Statement - Expenditure against approved rollovers - Q4 Fourth Quarter
A2: =desc -> Description | B2: =head27 -> Ref | C2: =Head2 -> Budget Year 2015/16
C3: ="Approved Rollover " &Head1 -> Approved Rollover 2014/15 | D3: =Head38 -> Monthly actual | E3: =Head39 -> YearTD actual | F3: =Head41 -> YTD variance | G3: =Head41 -> YTD variance
A4: R thousands | G4: %
A5: EXPENDITURE
A7: Operating expenditure of Approved Roll-overs
A8: ='SC6'!A8 -> National Government: | C8: =SUM(C9:C15) -> 0 | D8: =SUM(D9:D15) -> 0 | E8: =SUM(E9:E15) -> 0 | F8: =SUM(F9:F15) -> 0 | G8: =IF(F8=0,"",F8/C8) -> 
A9: ='SC6'!A9 -> Local Government Equitable Share | F9: =E9-C9 -> 0 | G9: =IF(F9=0,"",F9/C9) -> 
A10: ='SC6'!A10 -> Finance Management | F10: =C10-E10 -> 0
A11: ='SC6'!A11 -> Municipal Systems Improvement | F11: 0
A12: ='SC6'!A12 -> 0 | F12: 0
A13: ='SC6'!A13 -> 0 | F13: 0
A14: ='SC6'!A14 -> 0 | F14: 0
A15: ='SC6'!A19 -> Other transfers and grants [insert description] | F15: 0
A16: ='SC6'!A20 -> Provincial Government: | C16: =SUM(C17:C21) -> 0 | D16: =SUM(D17:D21) -> 0 | E16: =SUM(E17:E21) -> 0 | F16: =SUM(F17:F21) -> 0
A17: ='SC6'!A21 -> 0 | F17: =C17-E17 -> 0
A18: ='SC6'!A23 -> 0 | F18: =C18-E18 -> 0
A19: ='SC6'!A24 -> 0 | F19: =C19-E19 -> 0
A20: ='SC6'!A25 -> 0 | F20: =C20-E20 -> 0
A21: ='SC6'!A26 -> Other transfers and grants [insert description] | F21: =C21-E21 -> 0
A22: ='SC6'!A27 -> District Municipality: | C22: =SUM(C23:C24) -> 0 | D22: =SUM(D23:D24) -> 0 | E22: =SUM(E23:E24) -> 0 | F22: =SUM(F23:F24) -> 0
F23: =C23-E23 -> 0
A24: ='SC6'!A28 -> CDM | F24: =C24-E24 -> 0
A25: ='SC6'!A30 -> Other grant providers: | C25: =SUM(C26:C27) -> 0 | D25: =SUM(D26:D27) -> 0 | E25: =SUM(E26:E27) -> 0 | F25: =SUM(F26:F27) -> 0
F26: =C26-E26 -> 0
A27: ='SC6'!A31 -> [insert description] | F27: =C27-E27 -> 0
A28: Total operating expenditure of Approved Roll-overs | C28: =C8+C16+C22+C25 -> 0 | D28: =D8+D16+D22+D25 -> 0 | E28: =E8+E16+E22+E25 -> 0 | F28: =F8+F16+F22+F25 -> 0
A30: Capital expenditure of Approved Roll-overs
A31: ='SC6'!A41 -> National Government: | C31: =SUM(C32:C37) -> 320857 | D31: =SUM(D32:D37) -> 0 | E31: =SUM(E32:E37) -> 320857 | F31: =SUM(F32:F37) -> 0
A32: ='SC6'!A42 -> Municipal Infrastructure Grant (MIG) | C32: 320857 | D32: 0 | E32: 320857 | F32: =C32-E32 -> 0
A33: ='SC6'!A47 -> 0 | F33: 0
A34: ='SC6'!A48 -> 0 | F34: 0
A35: ='SC6'!A49 -> 0 | F35: 0
A36: ='SC6'!A50 -> 0 | F36: 0
A37: ='SC6'!A51 -> EPWP | F37: 0
A38: ='SC6'!A52 -> Provincial Government: | C38: =SUM(C39:C40) -> 0 | D38: =SUM(D39:D40) -> 0 | E38: =SUM(E39:E40) -> 0 | F38: =SUM(F39:F40) -> 0
F39: =C39-E39 -> 0
A40: ='SC6'!A58 -> 0 | F40: =C40-E40 -> 0
A41: ='SC6'!A59 -> District Municipality: | C41: =SUM(C42:C43) -> 0 | D41: =SUM(D42:D43) -> 0 | E41: =SUM(E42:E43) -> 0 | F41: =SUM(F42:F43) -> 0
F42: =C42-E42 -> 0
A43: ='SC6'!A61 -> 0 | F43: =C43-E43 -> 0
A44: ='SC6'!A62 -> Other grant providers: | C44: =SUM(C45:C46) -> 0 | D44: =SUM(D45:D46) -> 0 | E44: =SUM(E45:E46) -> 0 | F44: =SUM(F45:F46) -> 0
F45: =C45-E45 -> 0
A46: ='SC6'!A68 -> 0 | F46: =C46-E46 -> 0
A47: Total capital expenditure of Approved Roll-overs | C47: =C31+C38+C41+C44 -> 320857 | D47: =D31+D38+D41+D44 -> 0 | E47: =E31+E38+E41+E44 -> 320857 | F47: =F31+F38+F41+F44 -> 0
A49: TOTAL EXPENDITURE OF APPROVED ROLL-OVERS | C49: =C28+C47 -> 320857 | D49: =D28+D47 -> 0 | E49: =E28+E47 -> 320857 | F49: =F28+F47 -> 0
A50: =head27a -> References

Sheet SC8
A1: =muni& " - "&S71N& " - "&Head57 -> LIM353 Molemole - Supporting Table SC8 Monthly Budget Statement - councillor and staff benefits - Q4 Fourth Quarter
A2: Summary of Employee and Councillor remuneration | B2: =head27 -> Ref | C2: =Head1 -> 2014/15 | D2: =Head2 -> Budget Year 2015/16
C3: =Head5 -> Audited Outcome | D3: =Head6 -> Original Budget | E3: =Head7 -> Adjusted Budget | F3: =Head38 -> Monthly actual | G3: =Head39 -> YearTD actual | H3: =Head40 -> YearTD budget | I3: =Head41 -> YTD variance | J3: =Head41 -> YTD variance | K3: =Head8 -> Full Year Forecast
A4: R thousands | J4: %
B5: 1 | C5: A | D5: B | E5: C | K5: D
A6: Councillors (Political Office Bearers plus Other)
A7: Basic Salaries and Wages | C7: 7193432 | D7: =[6]SA22!$I$6 -> 7696972 | E7: =[8]SB11!$K$7 -> 7696972 | F7: =[13]tbjune16!$D$34 -> 488997.4 | G7: =[13]tbjune16!$F$34 -> 5999027.85 | H7: =E7*12/12 -> 7696972 | I7: =G7-H7 -> -1697944.15 | J7: =IF(I7=0,"",I7/H7) -> -0.2205989771 | K7: =E7 -> 7696972
A8: Pension and UIF Contributions | C8: 0 | D8: 0 | E8: 0 | F8: 0 | G8: =F8 -> 0 | H8: =E8*12/12 -> 0 | I8: 0 | K8: =E8 -> 0
A9: Medical Aid Contributions | C9: 0 | D9: 0 | E9: 0 | F9: 0 | G9: 0 | H9: 0 | I9: 0 | K9: 0
A10: Motor Vehicle Allowance | C10: 848692 | D10: =[6]SA22!$I$9 -> 1924243 | E10: =[8]SB11!$K$10 -> 1924243 | F10: =[13]tbjune16!$D$36 -> 162999.17 | G10: =[13]tbjune16!$F$36 -> 1999675.83 | H10: 1924243 | I10: =G10-H10 -> 75432.83 | J10: =IF(I10=0,"",I10/H10) -> 0.0392013015 | K10: 1924243
A11: Cellphone Allowance | C11: 1998358 | D11: =[6]SA22!$I$10 -> 625205 | E11: =[8]SB11!$K$11 -> 625205 | F11: =[13]tbjune16!$D$35 -> 55053 | G11: =[13]tbjune16!$F$35 -> 660636 | H11: 625205 | I11: =G11-H11 -> 35431 | J11: =IF(I11=0,"",I11/H11) -> 0.05667101191 | K11: 625205
A12: Housing Allowances | C12: 0 | D12: 0 | E12: 0 | F12: 0 | G12: 0 | H12: 0 | I12: =G12-H12 -> 0 | J12: =IF(I12=0,"",I12/H12) ->  | K12: 0
A13: Other benefits and allowances | C13: 0 | D13: 0 | E13: 0 | F13: 0 | G13: 0 | H13: 0 | I13: 0 | K13: 0
A14: Sub Total - Councillors | C14: =SUM(C7:C13) -> 10040482 | D14: 10246420 | E14: 10246420 | F14: 707049.57 | G14: 8659339.68 | H14: 10246420 | I14: -1587080.32 | J14: -0.154891203 | K14: 10246420
A15: % increase | B15: 4 | D15: =IF(D14=0,"",(D14/C14)-1) -> 0.02051076831 | E15: =IF(E14=0,"",(E14/C14)-1) -> 0.02051076831 | K15: =IF(K14=0,"",(K14/C14)-1) -> 0.02051076831
A17: Senior Managers of the Municipality | B17: 3
A18: Basic Salaries and Wages | C18: =1013885+1224781+1029187+1034199+1034741 -> 5336793 | D18: =[6]SA22!$I$17 -> 6366067.014 | E18: =[8]SB11!$K$18 -> 6366067.014 | F18: 425458 | G18: =402254+402254+402254+425458+402254+425458+425458+425458+425458+425458+425458+425458 -> 5012680 | H18: =E18*12/12 -> 6366067.014 | I18: =G18-H18 -> -1353387.014 | J18: =IF(I18=0,"",I18/H18) -> -0.2125938999 | K18: =E18 -> 6366067.014
A19: Pension and UIF Contributions | C19: 0 | D19: 0 | E19: 0 | F19: 0 | G19: 0 | H19: =E19*12/12 -> 0 | I19: 0 | K19: =E19 -> 0
A20: Medical Aid Contributions | C20: 0 | D20: 0 | E20: 0 | F20: 0 | G20: 0 | H20: 0 | I20: 0 | K20: 0
A21: Overtime | C21: 0 | D21: 0 | E21: 0 | F21: 0 | G21: 0 | H21: 0 | I21: 0 | K21: 0
A22: Performance Bonus | C22: 0 | D22: 0 | E22: 0 | F22: 0 | G22: 0 | H22: 0 | I22: =G22-H22 -> 0 | J22: =IF(I22=0,"",I22/H22) ->  | K22: 0
A23: Motor Vehicle Allowance | C23: 0 | D23: 0 | E23: 0 | F23: 64333 | G23: =61000+61000+61000+61000+77667+64333+64533+64333+64333+64333+64333+64333 -> 772198 | H23: 0 | I23: =G23-H23 -> 772198 | J23: =IF(I23=0,"",I23/H23) ->  | K23: 0
A24: Cellphone Allowance | C24: 0 | D24: 0 | E24: 0 | F24: 19998 | G24: =19998+19998+19998+19998+19998+19998+19998+19998+19998+19998+19998+19998 -> 239976 | H24: 0 | I24: =G24-H24 -> 239976 | J24: =IF(I24=0,"",I24/H24) ->  | K24: 0
A25: Housing Allowances | C25: 0 | D25: 0 | E25: 0 | F25: 21942 | G25: =21942+21942+21942+21942+21942+21942+21492+21942+21942+21942+21942+21492 -> 262404 | H25: 0 | I25: =G25-H25 -> 262404 | J25: =IF(I25=0,"",I25/H25) ->  | K25: 0
A26: Other benefits and allowances | C26: 0 | D26: 0 | E26: 0 | F26: =900+8391+25809 -> 35100 | G26: =7391+10072+8391+10072+8391+5696+68456+21942+95499+8391+450+1763+4626+8391+21825+8391+8391+8391+9570+8391+18293+9886+8391+66148+900+8391+25809 -> 462308 | H26: 0 | I26: 462308 | K26: 0
A27: Payments in lieu of leave | C27: 0 | D27: 0 | E27: 0 | F27: 0 | G27: 0 | H27: 0 | I27: 0 | K27: 0
A28: Long service awards | C28: 0 | D28: 0 | E28: 0 | F28: 0 | G28: 0 | H28: 0 | I28: 0 | K28: 0
A29: Post-retirement benefit obligations | B29: 2 | C29: 0 | D29: 0 | E29: 0 | F29: 0 | G29: 0 | H29: 0 | I29: 0 | K29: 0
A30: Sub Total - Senior Managers of Municipality | C30: =SUM(C18:C29) -> 5336793 | D30: 6366067.014 | E30: 6366067.014 | F30: =SUM(F18:F29) -> 566831 | G30: =SUM(G18:G29) -> 6749566 | H30: =SUM(H18:H29) -> 6366067.014 | I30: 383498.9862 | J30: =IF(I30=0,"",I30/H30) -> 0.06024111675 | K30: 6366067.014
A31: % increase | B31: 4 | D31: =IF(D30=0,"",(D30/C30)-1) -> 0.1928637693 | E31: =IF(E30=0,"",(E30/C30)-1) -> 0.1928637693 | K31: =IF(K30=0,"",(K30/C30)-1) -> 0.1928637693
A33: Other Municipal Staff
A34: Basic Salaries and Wages | C34: =35896210+962024+520458-C18 -> 32041899 | D34: =[6]SA22!$I$33 -> 34868597.48 | E34: =[8]SB11!$K$34 -> 34868597.48 | F34: =[13]tbjune16!$D$16-F18 -> 2792794.65 | G34: =[13]tbjune16!$F$16-G18 -> 33771554.26 | H34: =E34*12/12 -> 34868597.48 | I34: =G34-H34 -> -1097043.219 | J34: =IF(I34=0,"",I34/H34) -> -0.03146221238 | K34: =D34 -> 34868597.48
A35: Pension and UIF Contributions | C35: =6319305+247636 -> 6566941 | D35: =[6]SA22!$I$34 -> 7854430.512 | E35: =[8]SB11!$K$35 -> 7757743.762 | F35: =[13]tbjune16!$D$29+[13]tbjune16!$D$27 -> 584002.04 | G35: =236162+6207467+F35 -> 7027631.04 | H35: =E35*12/12 -> 7757743.762 | I35: -730112.7223 | J35: -0.0941140549 | K35: =D35 -> 7854430.512
A36: Medical Aid Contributions | C36: 2149403 | D36: =[6]SA22!$I$35 -> 3073982.76 | E36: =[8]SB11!$K$36 -> 3094139.86 | F36: =[13]tbjune16!$D$28 -> 234938.2 | G36: =2345164+F36 -> 2580102.2 | H36: 3094139.86 | I36: -514037.66 | J36: -0.1661326518 | K36: 3073982.76
A37: Overtime | C37: 653566 | D37: =[6]SA22!$I$36 -> 681000 | E37: =[8]SB11!$K$37 -> 922000 | F37: =[13]tbjune16!$D$12 -> 97412.55 | G37: =855658+F37 -> 953070.55 | H37: 922000 | I37: 31070.55 | J37: 0.03369907809 | K37: 681000
A38: Performance Bonus | C38: 0 | D38: =[6]SA22!$I$37 -> 0 | E38: 0 | F38: 0 | G38: =F38 -> 0 | H38: 0 | I38: 0 | K38: 0
A39: Motor Vehicle Allowance | C39: 3078521 | D39: =[6]SA22!$I$38 -> 3844729.824 | E39: =[8]SB11!$K$39 -> 3747902.374 | F39: =[13]tbjune16!$D$18-F23 -> 223173.78 | G39: =[13]tbjune16!$F$18-G23 -> 2682707.84 | H39: 3747902.374 | I39: =G39-H39 -> -1065194.534 | J39: =IF(I39=0,"",I39/H39) -> -0.2842108538 | K39: 3844729.824
A40: Cellphone Allowance | C40: 745606 | D40: =[6]SA22!$I$39 -> 1004232 | E40: =[8]SB11!$K$40 -> 1140534.78 | F40: =[13]tbjune16!$D$13-F24 -> 57359.78 | G40: =[13]tbjune16!$F$13-G24 -> 651892.36 | H40: 1140534.78 | I40: =G40-H40 -> -488642.42 | J40: =IF(I40=0,"",I40/H40) -> -0.4284327217 | K40: 1004232
A41: Housing Allowances | C41: 49232 | D41: =[6]SA22!$I$40 -> 125280 | E41: =[8]SB11!$K$41 -> 104629.6 | F41: =[13]tbjune16!$D$9-F25 -> -12842 | G41: =[13]tbjune16!$F$9-G25 -> -170404 | H41: 104629.6 | I41: =G41-H41 -> -275033.6 | J41: =IF(I41=0,"",I41/H41) -> -2.628640461 | K41: 125280
A42: Other benefits and allowances | C42: =2703782+1288973+52072+155867+6000+12536+517407+30000+382181 -> 5148818 | D42: =[6]SA22!$I$41 -> 7699258.454 | E42: =[8]SB11!$K$42 -> 7827173.654 | F42: =5395982-F34-F35-F36-F37-F39-F40-F41-F18-F23-F24-F25-F26-F44 -> 852312 | G42: =61298147-G18-G23-G24-G25-G26-G34-G35-G36-G37-G39-G40-G41-G44 -> 7017366.75 | H42: 7827173.654 | I42: -809806.9036 | J42: -0.1034609604 | K42: 7699258.454
A43: Payments in lieu of leave | C43: 1602827 | D43: =[6]SA22!$I$42 -> 317900 | E43: =[8]SB11!$K$43 -> 267900 | F43: 0 | G43: 0 | H43: 267900 | I43: -267900 | J43: -1 | K43: 317900
A44: Long service awards | C44: 636014 | D44: =[6]SA22!$I$43 -> 219697.53 | E44: =[8]SB11!$K$44 -> 69697.53 | F44: 0 | G44: 34660 | H44: 69697.53 | I44: -35037.53 | J44: -0.5027083456 | K44: 219697.53
A45: Post-retirement benefit obligations | B45: 2 | C45: 0 | D45: 0 | E45: 0 | F45: 0 | G45: 0 | H45: 0 | I45: 0 | K45: 0
A46: Sub Total - Other Municipal Staff | C46: =SUM(C34:C45) -> 52672827 | D46: 59689108.56 | E46: 59800319.04 | F46: =SUM(F34:F45) -> 4829151 | G46: =SUM(G34:G45) -> 54548581 | H46: =SUM(H34:H45) -> 59800319.04 | I46: -5251738.039 | J46: =IF(I46=0,"",I46/H46) -> -0.0878212378 | K46: 59689108.56
A47: % increase | B47: 4 | D47: =IF(D46=0,"",(D46/C46)-1) -> 0.1332049552 | E47: =IF(E46=0,"",(E46/C46)-1) -> 0.1353162996 | K47: =IF(K46=0,"",(K46/C46)-1) -> 0.1332049552
A49: Total Parent Municipality | C49: =C14+C30+C46 -> 68050102 | D49: =D14+D30+D46 -> 76301595.57 | E49: 76412806.05 | F49: 6103031.57 | G49: 69957486.68 | H49: 76412806.05 | I49: =G49-H49 -> -6455319.373 | J49: =IF(I49=0,"",I49/H49) -> -0.08447954873 | K49: 76301595.57
D50: =IF(D49=0,"",(D49/C49)-1) -> 0.1212561529 | E50: =IF(E49=0,"",(E49/C49)-1) -> 0.122890397 | K50: =IF(K49=0,"",(K49/C49)-1) -> 0.1212561529
A51: Unpaid salary, allowances & benefits in arrears:
A53: Board Members of Entities
A54: Basic Salaries and Wages | I54: =G54-H54 -> 0 | J54: =IF(I54=0,"",I54/H54) -> 
A55: Pension and UIF Contributions | I55: 0
A56: Medical Aid Contributions | I56: 0
A57: Overtime | I57: =G57-H57 -> 0 | J57: =IF(I57=0,"",I57/H57) -> 
A58: Performance Bonus | I58: =G58-H58 -> 0 | J58: =IF(I58=0,"",I58/H58) -> 
A59: Motor Vehicle Allowance | I59: =G59-H59 -> 0 | J59: =IF(I59=0,"",I59/H59) -> 
A60: Cellphone Allowance | I60: =G60-H60 -> 0 | J60: =IF(I60=0,"",I60/H60) -> 
A61: Housing Allowances | I61: =G61-H61 -> 0 | J61: =IF(I61=0,"",I61/H61) -> 
A62: Other benefits and allowances | I62: 0
A63: Board Fees | I63: =G63-H63 -> 0 | J63: =IF(I63=0,"",I63/H63) -> 
A64: Payments in lieu of leave | I64: 0
A65: Long service awards | I65: 0
A66: Post-retirement benefit obligations | I66: 0
A67: Sub Total - Board Members of Entities | B67: 2 | C67: =SUM(C54:C66) -> 0 | D67: 0 | E67: 0 | F67: =SUM(F54:F66) -> 0 | G67: =SUM(G54:G66) -> 0 | H67: =SUM(H54:H66) -> 0 | I67: 0 | J67: =IF(I67=0,"",I67/H67) ->  | K67: 0
A68: % increase | B68: 4 | D68: =IF(D67=0,"",(D67/C67)-1) ->  | E68: =IF(E67=0,"",(E67/C67)-1) ->  | K68: =IF(K67=0,"",(K67/C67)-1) -> 
A70: Senior Managers of Entities
A71: Basic Salaries and Wages | I71: =G71-H71 -> 0 | J71: =IF(I71=0,"",I71/H71) -> 
A72: Pension and UIF Contributions | I72: 0
A73: Medical Aid Contributions | I73: 0
A74: Overtime | I74: 0
A75: Performance Bonus | I75: =G75-H75 -> 0 | J75: =IF(I75=0,"",I75/H75) -> 
A76: Motor Vehicle Allowance | I76: =G76-H76 -> 0 | J76: =IF(I76=0,"",I76/H76) -> 
A77: Cellphone Allowance | I77: =G77-H77 -> 0 | J77: =IF(I77=0,"",I77/H77) -> 
A78: Housing Allowances | I78: =G78-H78 -> 0 | J78: =IF(I78=0,"",I78/H78) -> 
A79: Other benefits and allowances | I79: 0
A80: Payments in lieu of leave | I80: 0
A81: Long service awards | I81: 0
A82: Post-retirement benefit obligations | B82: 2 | I82: 0
A83: Sub Total - Senior Managers of Entities | C83: =SUM(C71:C82) -> 0 | D83: 0 | E83: 0 | F83: =SUM(F71:F82) -> 0 | G83: =SUM(G71:G82) -> 0 | H83: =SUM(H71:H82) -> 0 | I83: 0 | J83: =IF(I83=0,"",I83/H83) ->  | K83: 0
A84: % increase | B84: 4 | D84: =IF(D83=0,"",(D83/C83)-1) ->  | E84: =IF(E83=0,"",(E83/C83)-1) ->  | K84: =IF(K83=0,"",(K83/C83)-1) -> 
A86: Other Staff of Entities
A87: Basic Salaries and Wages | I87: =G87-H87 -> 0 | J87: =IF(I87=0,"",I87/H87) -> 
A88: Pension and UIF Contributions | I88: 0
A89: Medical Aid Contributions | I89: =G89-H89 -> 0 | J89: =IF(I89=0,"",I89/H89) -> 
A90: Overtime | I90: =G90-H90 -> 0 | J90: =IF(I90=0,"",I90/H90) -> 
A91: Performance Bonus | I91: =G91-H91 -> 0 | J91: =IF(I91=0,"",I91/H91) -> 
A92: Motor Vehicle Allowance | I92: =G92-H92 -> 0 | J92: =IF(I92=0,"",I92/H92) -> 
A93: Cellphone Allowance | I93: 0
A94: Housing Allowances | I94: 0
A95: Other benefits and allowances | I95: 0
A96: Payments in lieu of leave | I96: 0
A97: Long service awards | I97: 0
A98: Post-retirement benefit obligations | I98: 0
A99: Sub Total - Other Staff of Entities | C99: =SUM(C87:C98) -> 0 | D99: 0 | E99: 0 | F99: 0 | G99: 0 | H99: 0 | I99: 0 | J99: =IF(I99=0,"",I99/H99) ->  | K99: =SUM(K87:K98) -> 0
A100: % increase | B100: 4 | D100: =IF(D99=0,"",(D99/C99)-1) ->  | E100: =IF(E99=0,"",(E99/C99)-1) ->  | K100: =IF(K99=0,"",(K99/C99)-1) -> 
A102: Total Municipal Entities | C102: =C67+C83+C99 -> 0 | D102: 0 | E102: 0 | F102: 0 | G102: 0 | H102: 0 | I102: =G102-H102 -> 0 | J102: =IF(I102=0,"",I102/H102) ->  | K102: =K67+K83+K99 -> 0
A104: TOTAL SALARY, ALLOWANCES & BENEFITS | C104: =C49+C102 -> 68050102 | D104: 76301595.57 | E104: 76412806.05 | F104: 6103031.57 | G104: 69957486.68 | H104: 76412806.05 | I104: =G104-H104 -> -6455319.373 | J104: =IF(I104=0,"",I104/H104) -> -0.08447954873 | K104: =K49+K102 -> 76301595.57
A105: % increase | B105: 4 | D105: =IF(D104=0,"",(D104/C104)-1) -> 0.1212561529 | E105: =IF(E104=0,"",(E104/C104)-1) -> 0.122890397 | K105: =IF(K104=0,"",(K104/C104)-1) -> 0.1212561529
A106: TOTAL MANAGERS AND STAFF | C106: =C30+C46+C83+C99 -> 58009620 | D106: 66055175.57 | E106: 66166386.05 | F106: 5395982 | G106: 61298147 | H106: 66166386.05 | I106: -4868239.053 | J106: =IF(I106=0,"",I106/H106) -> -0.07357571334 | K106: =K30+K46+K83+K99 -> 66055175.57
A107: =head27a -> References
A108: 1. Include 'Loans and advances' where applicable if any reportable amounts until phased compliance with s164 of MFMA achieved
A109: 2. If benefits in kind are provided (e.g. provision of living quarters) the full market value must be shown as the cost to the municipality
A110: 3. s57 of the Systems Act
A111: 4. B/A, C/A, D/A
A112: Column Definitions:
A113: A. Audited actual 2005/06 (audited financial statements). If audited amounts unavailable, unaudited amounts must be provided with a note stating these are unaudited
A114: B. The original budget approved by council for the 2006/07 budget year.
A115: C. The budget for 2006/07 budget year as adjusted by council resolution in terms of section 28 of the MFMA.
A116: D. An estimate of final actual amounts (pre audit - 2006/07 budget year) at the time of preparing the budget for the 2007/08 budget year. This may differ from C.

Sheet SC9
A1: =muni& " - "&S71O& " - "&Head57 -> LIM353 Molemole - Supporting Table SC9 Monthly Budget Statement - actuals and revised targets for cash receipts - Q4 Fourth Quarter
A2: =desc -> Description | B2: =head27 -> Ref | C2: =Head2 -> Budget Year 2015/16 | O2: ='Template names'!B5 -> 2015/16 Medium Term Revenue & Expenditure Framework
C3: July | D3: August | E3: Sept | F3: October | G3: Nov | H3: Dec | I3: January | J3: Feb | K3: March | L3: April | M3: May | N3: June | O3: =Head9 -> Budget Year 2015/16 | P3: =Head10 -> Budget Year +1 2016/17 | Q3: =Head11 -> Budget Year +2 2017/18
A4: R thousands | B4: 1 | C4: Outcome | D4: Outcome | E4: Outcome | F4: Outcome | G4: Outcome | H4: Outcome | I4: Budget | J4: Budget | K4: Budget | L4: Budget | M4: Budget | N4: Budget
A5: Cash Receipts By Source
A6: Property rates | C6: 901583 | D6: 132903 | E6: 67519 | F6: 121249 | G6: 64302 | H6: 47239 | I6: 67714 | J6: 52955 | K6: 0 | L6: 97681 | M6: 21112 | N6: =O6-SUM(C6:M6) -> 6653042 | O6: 8227299 | P6: 9258454.4 | Q6: 10358474
A7: Property rates - penalties & collection charges | C7: 0 | D7: 0 | E7: 0 | F7: 0 | G7: 0 | H7: 0 | I7: 0 | J7: 0 | K7: 0 | L7: 0 | M7: 0 | N7: 0 | O7: 0 | P7: 0 | Q7: 0
A8: Service charges - electricity revenue | C8: 515586 | D8: 384701 | E8: 441174 | F8: 311088 | G8: 338390 | H8: 302644 | I8: 415340 | J8: =126304+291223 -> 417527 | K8: 0 | L8: 783340 | M8: 221832 | N8: 3733409 | O8: 7865031 | P8: 8850781.6 | Q8: 9902364.85
A9: Service charges - water revenue | C9: 0 | D9: 0 | E9: 0 | F9: 0 | G9: 0 | H9: 0 | I9: 0 | J9: 0 | K9: 0 | L9: 0 | M9: 0 | N9: 0 | O9: 0 | P9: 0 | Q9: 0
A10: Service charges - sanitation revenue | C10: 0 | D10: 0 | E10: 0 | F10: 0 | G10: 0 | H10: 0 | I10: 0 | J10: 0 | K10: 0 | L10: 0 | M10: 0 | N10: 0 | O10: 0 | P10: 0 | Q10: 0
A11: Service charges - refuse | C11: 128262 | D11: 9812 | E11: 13187 | F11: 12328 | G11: 13433 | H11: 7554 | I11: 8899 | J11: 12484 | K11: 0 | L11: 11699 | M11: 5343 | N11: 938644.75 | O11: 1161645.75 | P11: 1307239.2 | Q11: 1462555.05
A12: Service charges - other | C12: 0 | D12: 0 | E12: 0 | F12: 0 | G12: 0 | H12: 0 | I12: 0 | J12: 0 | K12: 0 | L12: 0 | M12: 0 | N12: 0 | O12: 0 | P12: 0 | Q12: 0
A13: Rental of facilities and equipment | C13: 27695 | D13: 2532 | E13: 22432 | F13: 11562 | G13: 7796 | H13: 24748 | I13: 23480 | J13: 10685 | K13: 0 | L13: 117380 | M13: 36177 | N13: -25671 | O13: 258816 | P13: 273051 | Q13: 287523
A14: Interest earned - external investments | C14: 69671 | D14: 90391 | E14: 108162 | F14: 108630 | G14: 269506 | H14: 331147 | I14: 115432 | J14: 122948 | K14: 119185 | L14: 377535 | M14: 129831 | N14: 357562 | O14: 2200000 | P14: 1266000 | Q14: 1333098
A15: Interest earned - outstanding debtors | C15: 246672 | D15: 77067 | E15: 18740 | F15: 6759 | G15: 66570 | H15: 5725 | I15: 7765 | J15: 50392 | K15: 0 | L15: 17067 | M15: 26745 | N15: 1936496.25 | O15: 2459998.25 | P15: 3650298 | Q15: 3843763.5
A16: Dividends received | C16: 0 | D16: 0 | E16: 0 | F16: 0 | G16: 0 | H16: 0 | I16: 0 | J16: 0 | K16: 0 | L16: 0 | M16: 0 | N16: 0 | O16: 0 | P16: 0 | Q16: 0
A17: Fines | C17: 1250 | D17: 55350 | E17: 104500 | F17: 36400 | G17: 88050 | H17: 100 | I17: 44200 | J17: 0 | K17: 0 | L17: 25600 | M17: 0 | N17: 366993.5 | O17: 722443.5 | P17: 812989.6 | Q17: 909583.3
A18: Licences and permits | C18: 0 | D18: 437754 | E18: 0 | F18: 806499 | G18: 397132 | H18: 433898 | I18: 256141 | J18: 313685 | K18: 0 | L18: 887829 | M18: 0 | N18: 2223052.5 | O18: 5755990.5 | P18: 6477408 | Q18: 7247004.8
A19: Agency services | C19: =110084+23463 -> 133547 | D19: 8981 | E19: 20951 | F19: 18982 | G19: 38830 | H19: 14945 | I19: 21276 | J19: 27260 | K19: 0 | L19: 19578 | M19: 76715 | N19: 943089.75 | O19: 1324154.75 | P19: 1409288.8 | Q19: 1496938.75
A20: Transfer receipts - operating | C20: 44286000 | D20: 0 | E20: 0 | F20: 0 | G20: 34687000 | H20: 0 | I20: 157492 | J20: 0 | K20: 0 | L20: 0 | M20: 0 | N20: 32086508 | O20: 111217000 | P20: 109571000 | Q20: 106402000
A21: Other revenue | C21: =184366-C17-C18-C19-192418 -> -142849 | D21: 221431 | E21: 81123 | F21: 144431 | G21: 55927 | H21: 24875 | I21: 13078 | J21: =[15]Sheet1!$M$23 -> 556478 | K21: 0 | L21: 6068978 | M21: 29246 | N21: -6200718 | O21: 852000 | P21: 2399250 | Q21: 2862800
A22: Cash Receipts by Source | C22: =SUM(C6:C21) -> 46167417 | D22: 1420922 | E22: 877788 | F22: 1577928 | G22: 36026936 | H22: 1192875 | I22: 1130817 | J22: 1564414 | K22: 119185 | L22: 8406687 | M22: 547001 | N22: 43012408.75 | O22: 142044378.8 | P22: 145275760.6 | Q22: 146106105.2
N23: =O23-SUM(C23:M23) -> 0
A24: Other Cash Flows by Source | N24: 0
A25: Transfer receipts - capital | C25: 10611000 | D25: 400000 | E25: 0 | F25: 0 | G25: 12517000 | H25: 0 | I25: 0 | J25: 300000 | K25: 0 | L25: 0 | M25: 0 | N25: 7590576 | O25: 31418576 | P25: 31097000 | Q25: 32715000
A26: Contributions & Contributed assets | C26: 0 | D26: 0 | E26: 0 | F26: 0 | G26: 0 | H26: 0 | I26: 0 | J26: 0 | K26: 0 | L26: 0 | M26: 0 | N26: 0 | O26: 0 | P26: 0 | Q26: 0
A27: Proceeds on disposal of PPE | C27: 0 | D27: 0 | E27: 0 | F27: 0 | G27: 0 | H27: 0 | I27: 0 | J27: 0 | K27: 0 | L27: 0 | M27: 0 | N27: 0 | O27: 0 | P27: 0 | Q27: 0
A28: Short term loans | C28: 0 | D28: 0 | E28: 0 | F28: 0 | G28: 0 | H28: 0 | I28: 0 | J28: 0 | K28: 0 | L28: 0 | M28: 0 | N28: 0 | O28: 0 | P28: 0 | Q28: 0
A29: Borrowing long term/refinancing | C29: 0 | D29: 0 | E29: 0 | F29: 0 | G29: 0 | H29: 0 | I29: 0 | J29: 0 | K29: 0 | L29: 0 | M29: 0 | N29: 0 | O29: 0 | P29: 0 | Q29: 0
A30: Increase in consumer deposits | C30: 0 | D30: 0 | E30: 0 | F30: 0 | G30: 0 | H30: 0 | I30: 0 | J30: 0 | K30: 0 | L30: 0 | M30: 0 | N30: 0 | O30: 0 | P30: 0 | Q30: 0
A31: Receipt of non-current debtors | C31: 0 | D31: 0 | E31: 0 | F31: 0 | G31: 0 | H31: 0 | I31: 0 | J31: 0 | K31: 0 | L31: 0 | M31: 0 | N31: 0 | O31: 0 | P31: 0 | Q31: 0
A32: Receipt of non-current receivables | C32: 0 | D32: 0 | E32: 0 | F32: 0 | G32: 0 | H32: 0 | I32: 0 | J32: 0 | K32: 0 | L32: 0 | M32: 0 | N32: 0 | O32: 0 | P32: 0 | Q32: 0
A33: Change in non-current investments | C33: 0 | D33: 0 | E33: 0 | F33: 0 | G33: 0 | H33: 0 | I33: 0 | J33: 0 | K33: 0 | L33: 0 | M33: 0 | N33: 0 | O33: 0 | P33: 0 | Q33: 0
A34: Total Cash Receipts by Source | C34: =SUM(C22:C33) -> 56778417 | D34: 1820922 | E34: 877788 | F34: 1577928 | G34: 48543936 | H34: 1192875 | I34: 1130817 | J34: 1864414 | K34: 119185 | L34: 8406687 | M34: 547001 | N34: 50602984.75 | O34: 173462954.8 | P34: 176372760.6 | Q34: 178821105.2
N35: =O35-SUM(C35:M35) -> 0
A36: Cash Payments by Type | N36: 0
A37: Employee related costs | C37: 4660715 | D37: 4695796 | E37: 5368004 | F37: 5339494 | G37: 5143520 | H37: 5138322 | I37: 5209595 | J37: =[16]Sheet1!$M$37 -> 5087479 | K37: 5102039 | L37: 5109985 | M37: 5047216 | N37: 10264221.05 | O37: =[8]SB14!O26 -> 66166386.05 | P37: =[8]SB14!P26 -> 66166386.05 | Q37: =[8]SB14!Q26 -> 69757819.41
A38: Remuneration of councillors | C38: 637560 | D38: 637560 | E38: 637560 | F38: 637560 | G38: 637560 | H38: 637560 | I38: 637560 | J38: =[16]Sheet1!$M$38 -> 1191677 | K38: 883593 | L38: 707050 | M38: 707050 | N38: 2294130.58 | O38: =[8]SB14!O27 -> 10246420.58 | P38: =[8]SB14!P27 -> 10246420.58 | Q38: =[8]SB14!Q27 -> 10861205.2
A39: Interest paid | C39: 2998 | D39: -1119 | E39: 8317 | F39: 5934 | G39: 1857 | H39: 1379 | I39: -113138 | J39: =[16]Sheet1!$M$40 -> 135276 | K39: 1150 | L39: 715 | M39: 654 | N39: -44023 | O39: 0 | P39: 0 | Q39: 0
A40: Bulk purchases - Electricity | C40: 1125504 | D40: -361533 | E40: 1623838 | F40: 563625 | G40: 453235 | H40: 726421 | I40: 467273 | J40: =[16]Sheet1!$M$41 -> 727914 | K40: 574755 | L40: 595530 | M40: 583860 | N40: 1419578 | O40: =[8]SB14!O31 -> 8500000 | P40: =[8]SB14!P31 -> 8500000 | Q40: =[8]SB14!Q31 -> 9010000
A41: Bulk purchases - Water & Sewer | C41: 0 | D41: 0 | E41: 0 | F41: 0 | G41: 0 | H41: 0 | I41: 0 | J41: 0 | K41: 0 | L41: 0 | M41: 0 | N41: 0 | O41: 0 | P41: 0 | Q41: 0
A42: Other materials | C42: 0 | D42: 0 | E42: 0 | F42: 0 | G42: 0 | H42: 0 | I42: 0 | J42: 0 | K42: 0 | L42: 0 | M42: 0 | N42: 0 | O42: 0 | P42: 0 | Q42: 0
A43: Contracted services | C43: 233981 | D43: 0 | E43: 467961 | F43: 233981 | G43: 233981 | H43: 233981 | I43: 233981 | J43: =[16]Sheet1!$M$44 -> 252699 | K43: 0 | L43: 252699 | M43: 505399 | N43: 659193 | O43: =[8]SB14!O33 -> 3307856 | P43: =[8]SB14!P33 -> 3307856 | Q43: =[8]SB14!Q33 -> 3506327.36
A44: Grants and subsidies paid - other municipalities | C44: 0 | D44: 0 | E44: 0 | F44: 0 | G44: 0 | H44: 0 | I44: 0 | J44: 0 | K44: 0 | L44: 0 | M44: 0 | N44: 0 | O44: 0 | P44: 0 | Q44: 0
A45: Grants and subsidies paid - other | C45: 0 | D45: 0 | E45: 0 | F45: 0 | G45: 0 | H45: 0 | I45: 0 | J45: 0 | K45: 0 | L45: 0 | M45: 0 | N45: 0 | O45: 0 | P45: 0 | Q45: 0
A46: General expenses | C46: =2792059-C43-C40+14655+37658 -> 1484887 | D46: =4401567-D40+260807+45740 -> 5069647 | E46: 144876 | F46: 3085820 | G46: =2582869-G43-G40-G39+166124+37257 -> 2097177 | H46: 3144250 | I46: 1298552 | J46: =[16]Sheet1!$M$47 -> 2621256 | K46: =2322783-K40+89126 -> 1837154 | L46: 3754653 | M46: 2251179 | N46: 10703886.43 | O46: =[8]SB14!O35+[8]SB14!O28+[8]SB14!O29-18546487 -> 37493337.43 | P46: =[8]SB14!P35+[8]SB14!P28+[8]SB14!P29-22292166 -> 33747658.43 | Q46: =[8]SB14!Q35+[8]SB14!Q28+[8]SB14!Q29-22459814 -> 30482000.02
A47: Cash Payments by Type | B47: =SUM(B37:B46) -> 0 | C47: =SUM(C37:C46) -> 8145645 | D47: =SUM(D37:D46) -> 10040351 | E47: 8250556 | F47: 9866414 | G47: 8567330 | H47: 9881913 | I47: 7733823 | J47: 10016301 | K47: 8398691 | L47: 10420632 | M47: 9095358 | N47: 25296986.07 | O47: 125714000.1 | P47: 121968321.1 | Q47: 123617352
N48: =O48-SUM(C48:M48) -> 0
A49: Other Cash Flows/Payments by Type
A50: Capital assets | C50: 0 | D50: 140400 | E50: 2279372 | F50: 4242882 | G50: 6099975 | H50: 1946456 | I50: 198000 | J50: =[16]Sheet1!$M$50 -> 6137069 | K50: 3311904 | L50: 3608225 | M50: 1317751 | N50: =O50-SUM(C50:M50) -> 22009413 | O50: 51291447 | P50: 53727150 | Q50: 45749250
A51: Repayment of borrowing | C51: 0 | D51: 0 | E51: 0 | F51: 0 | G51: 0 | H51: 0 | I51: 0 | J51: 0 | K51: 0 | L51: 0 | M51: 0 | N51: =O51-SUM(C51:M51) -> 0 | O51: 0 | P51: 0 | Q51: 0
A52: Other Cash Flows/Payments | C52: 0 | D52: 0 | E52: 0 | F52: 0 | G52: 0 | H52: 0 | I52: 0 | J52: 0 | K52: 0 | L52: 0 | M52: 0 | N52: =O52-SUM(C52:M52) -> 0 | O52: 0 | P52: 0 | Q52: 0
A53: Total Cash Payments by Type | B53: =SUM(B47:B52) -> 0 | C53: 8145645 | D53: 10180751 | E53: 10529928 | F53: 14109296 | G53: 14667305 | H53: 11828369 | I53: 7931823 | J53: 16153370 | K53: 11710595 | L53: 14028857 | M53: 10413109 | N53: 47306399.07 | O53: 177005447.1 | P53: 175695471.1 | Q53: 169366602
N54: =O54-SUM(C54:M54) -> 0
A55: NET INCREASE/(DECREASE) IN CASH HELD | B55: =B34-B53 -> 0 | C55: 48632772 | D55: -8359829 | E55: -9652140 | F55: -12531368 | G55: 33876631 | H55: -10635494 | I55: -6801006 | J55: -14288956 | K55: -11591410 | L55: -5622170 | M55: -9866108 | N55: 3296585.683 | O55: -3542492.317 | P55: 677289.5332 | Q55: 9454503.261
A56: Cash/cash equivalents at the month/year beginning: | C56: 37347017 | D56: =C57 -> 85979789 | E56: =D57 -> 77619960 | F56: 67967820 | G56: 55436452 | H56: 89313083 | I56: 78677589 | J56: 71876583 | K56: 57587627 | L56: 45996217 | M56: 40374047 | N56: 30507939 | O56: =C56 -> 37347017 | P56: =O57 -> 33804524.68 | Q56: =P57 -> 34481814.22
A57: Cash/cash equivalents at the month/year end: | C57: =C55+C56 -> 85979789 | D57: =D55+D56 -> 77619960 | E57: =E55+E56 -> 67967820 | F57: 55436452 | G57: 89313083 | H57: 78677589 | I57: 71876583 | J57: 57587627 | K57: 45996217 | L57: 40374047 | M57: 30507939 | N57: 33804524.68 | O57: =O55+O56 -> 33804524.68 | P57: =P55+P56 -> 34481814.22 | Q57: =Q55+Q56 -> 43936317.48
A58: =head27a -> References
A59: 1. Replace 'budget' heading with adjusted budget, or 'outcome' only for month/s complete
A60: 2. Total of monthly amounts must always agree to the approved or adjusted budget
A61: 3. Amend 'cash-at-beginning' when prior year actual known (as part of the adjustments budget)
E66: =E47+E65 -> 8250556 | F66: 9866414 | G66: 8567330 | H66: 9881913 | I66: 7733823 | J66: 10016301 | K66: 8398691 | L66: 10420632 | N66: =N47+N65 -> 25296986.07 | O66: 125714000.1 | P66: 121968321.1
E67: =E55-E65 -> -9652140 | F67: -12531368 | G67: 33876631 | H67: -10635494 | I67: -6801006 | J67: -14288956 | K67: -11591410 | L67: -5622170 | M67: =M55-M65 -> -9866108 | N67: =N55-N65 -> 3296585.683 | O67: -3542492.317 | P67: 677289.5332

Sheet SC10
A1: =muni& " - "&S71P& " - "&Head57 -> LIM353 Molemole - NOT REQUIRED - municipality does not have entities or this is the parent municipality's budget - Q4 Fourth Quarter
A2: =desc -> Description | B2: =head27 -> Ref | C2: =Head1 -> 2014/15 | D2: =Head2 -> Budget Year 2015/16
C3: =Head5 -> Audited Outcome | D3: =Head6 -> Original Budget | E3: =Head7 -> Adjusted Budget | F3: =Head38 -> Monthly actual | G3: =Head39 -> YearTD actual | H3: =Head40 -> YearTD budget | I3: =Head41 -> YTD variance | J3: =Head41 -> YTD variance | K3: =Head8 -> Full Year Forecast
A4: R thousands | B4: 1 | J4: %
A5: ='C4-FinPerf RE'!A5 -> Revenue By Source
A6: ='C4-FinPerf RE'!A6 -> Property rates | I6: =G6-H6 -> 0 | J6: =IF(I6=0,"",I6/H6) -> 
A7: ='C4-FinPerf RE'!A7 -> Property rates - penalties & collection charges | I7: 0 | J7: =IF(I7=0,"",I7/H7) -> 
A8: ='C4-FinPerf RE'!A8 -> Service charges - electricity revenue | I8: 0
A9: ='C4-FinPerf RE'!A9 -> Service charges - water revenue | I9: 0
A10: ='C4-FinPerf RE'!A10 -> Service charges - sanitation revenue | I10: 0
A11: ='C4-FinPerf RE'!A11 -> Service charges - refuse revenue | I11: 0
A12: ='C4-FinPerf RE'!A12 -> Service charges - other | I12: 0
A13: ='C4-FinPerf RE'!A13 -> Rental of facilities and equipment | I13: 0
A14: ='C4-FinPerf RE'!A14 -> Interest earned - external investments | I14: 0
A15: ='C4-FinPerf RE'!A15 -> Interest earned - outstanding debtors | I15: 0
A16: ='C4-FinPerf RE'!A16 -> Dividends received | I16: 0
A17: ='C4-FinPerf RE'!A17 -> Fines | I17: 0
A18: ='C4-FinPerf RE'!A18 -> Licences and permits | I18: 0
A19: ='C4-FinPerf RE'!A19 -> Agency services | I19: 0
A20: ='C4-FinPerf RE'!A20 -> Transfers recognised - operational | I20: 0
A21: ='C4-FinPerf RE'!A21 -> Other revenue | I21: 0
A22: ='C4-FinPerf RE'!A22 -> Gains on disposal of PPE | I22: 0
A23: Total Revenue (excluding capital transfers and contributions) | C23: =SUM(C6:C22) -> 0 | D23: 0 | E23: 0 | F23: 0 | G23: 0 | H23: 0 | I23: =G23-H23 -> 0 | K23: =SUM(K6:K22) -> 0
A25: Expenditure By Type
A26: ='C4-FinPerf RE'!A26 -> Employee related costs | I26: =G26-H26 -> 0 | J26: =IF(I26=0,"",I26/H26) -> 
A27: ='C4-FinPerf RE'!A27 -> Remuneration of councillors | I27: 0
A28: ='C4-FinPerf RE'!A28 -> Debt impairment | I28: 0
A29: ='C4-FinPerf RE'!A29 -> Depreciation & asset impairment | I29: 0
A30: ='C4-FinPerf RE'!A30 -> Finance charges | I30: 0
A31: ='C4-FinPerf RE'!A31 -> Bulk purchases | I31: 0
A32: ='C4-FinPerf RE'!A32 -> Other materials | I32: 0
A33: ='C4-FinPerf RE'!A33 -> Contracted services | I33: 0
A34: ='C4-FinPerf RE'!A34 -> Transfers and grants | I34: 0
A35: ='C4-FinPerf RE'!A35 -> Other expenditure | I35: 0
A36: ='C4-FinPerf RE'!A36 -> Loss on disposal of PPE | I36: 0
A37: Total Expenditure | C37: =SUM(C26:C36) -> 0 | D37: 0 | E37: 0 | F37: 0 | G37: 0 | H37: 0 | I37: 0 | K37: =SUM(K26:K36) -> 0
I38: 0
A39: ='C4-FinPerf RE'!A39 -> Surplus/(Deficit) | C39: =C23-C37 -> 0 | D39: 0 | E39: 0 | F39: 0 | G39: 0 | H39: 0 | I39: 0 | K39: =K23-K37 -> 0
A40: ='C4-FinPerf RE'!A40 -> Transfers recognised - capital | I40: 0
A41: ='C4-FinPerf RE'!A41 -> Contributions recognised - capital | I41: 0
A42: ='C4-FinPerf RE'!A42 -> Contributed assets | I42: 0
A43: ='C4-FinPerf RE'!A43 -> Surplus/(Deficit) after capital transfers & contributions | C43: =C39+SUM(C40:C42) -> 0 | D43: =D39+SUM(D40:D42) -> 0 | E43: 0 | F43: 0 | G43: 0 | H43: 0 | I43: 0 | K43: 0
A44: ='C4-FinPerf RE'!A44 -> Taxation | I44: 0
A45: ='C4-FinPerf RE'!A45 -> Surplus/(Deficit) after taxation | C45: =C43-C44 -> 0 | D45: 0 | E45: 0 | F45: 0 | G45: 0 | H45: 0 | I45: 0 | K45: =K43-K44 -> 0
A46: =head27a -> References
A47: 1. Votes (consolidated) are revenue sources and expenditure type

Sheet SC11
A1: =muni& " - "&S71Q& " - "&Head57 -> LIM353 Molemole - NOT REQUIRED - municipality does not have entities or this is the parent municipality's budget - Q4 Fourth Quarter
A2: =desc -> Description | B2: =head27 -> Ref | C2: =Head1 -> 2014/15 | D2: =Head2 -> Budget Year 2015/16
C3: =Head5 -> Audited Outcome | D3: =Head6 -> Original Budget | E3: =Head7 -> Adjusted Budget | F3: =Head38 -> Monthly actual | G3: =Head39 -> YearTD actual | H3: =Head40 -> YearTD budget | I3: =Head41 -> YTD variance | J3: =Head41 -> YTD variance | K3: =Head8 -> Full Year Forecast
A4: R thousands | J4: %
A5: Revenue By Municipal Entity
A6: Insert name of municipal entity | I6: =G6-H6 -> 0 | J6: =IF(I6=0,"",I6/H6) -> 
I7: 0 | J7: =IF(I7=0,"",I7/H7) -> 
I8: 0
I9: 0
I10: 0
I11: 0
I12: 0
I13: 0
I14: 0
I15: 0
A16: Total Operating Revenue | B16: 1 | C16: =SUM(C6:C15) -> 0 | D16: 0 | E16: 0 | F16: 0 | G16: 0 | H16: 0 | I16: 0 | K16: =SUM(K6:K15) -> 0
A18: Expenditure By Municipal Entity
A19: =A6 -> Insert name of municipal entity | I19: 0 | J19: =IF(I19=0,"",I19/H19) -> 
A20: =IF(A7="","",A7) ->  | I20: 0
A21: =IF(A8="","",A8) ->  | I21: 0
I22: 0
I23: 0
I24: 0
I25: 0
I26: 0
I27: 0
I28: 0
A29: Total Operating Expenditure | B29: 2 | C29: =SUM(C19:C28) -> 0 | D29: 0 | E29: 0 | F29: 0 | G29: 0 | H29: 0 | I29: 0 | K29: =SUM(K19:K28) -> 0
A31: =Head42 -> Surplus/ (Deficit) for the yr/period | C31: =C16-C29 -> 0 | D31: =D16-D29 -> 0 | E31: 0 | F31: 0 | G31: 0 | H31: 0 | I31: =I16+I29 -> 0 | K31: 0
A32: Capital Expenditure By Municipal Entity
A33: =$A$6 -> Insert name of municipal entity | I33: 0
A34: =IF(A7="","",A7) ->  | I34: 0
A35: =IF(A8="","",A8) ->  | I35: 0
I36: 0
I37: 0
I38: 0
I39: 0
I40: 0
I41: 0
A43: Total Capital Expenditure | B43: 3 | C43: =SUM(C32:C42) -> 0 | D43: =SUM(D32:D42) -> 0 | E43: 0 | F43: 0 | G43: 0 | H43: =SUM(H32:H42) -> 0 | I43: =G43-H43 -> 0 | K43: 0
A44: =head27a -> References
A45: 1. Must reconcile to the sum of all municipal entity monthly revenue reports
A46: 2. Must reconcile to the sum of all municipal entity monthly expenditure reports
A47: 3. YTD = Year to date; FAV - favourable variance or unfavourable variance
A48: 4. Material variances to be explained
A49: 5. Insert additional 'Adjustment' Budget column for each Adjustment made by an entity

Sheet SC12
A1: =muni& " - "&S71R& " - "&Head57 -> LIM353 Molemole - Supporting Table SC12 Monthly Budget Statement - capital expenditure trend - Q4 Fourth Quarter
A2: Month | B2: =Head1 -> 2014/15 | C2: =Head2 -> Budget Year 2015/16
B3: =Head5 -> Audited Outcome | C3: =Head6 -> Original Budget | D3: =Head7 -> Adjusted Budget | E3: =Head38 -> Monthly actual | F3: =Head39 -> YearTD actual | G3: =Head40 -> YearTD budget | H3: =Head41 -> YTD variance | I3: =Head41 -> YTD variance | J3: % spend of Original Budget
A4: R thousands | I4: %
A5: Monthly expenditure performance trend
A6: July | B6: 0 | C6: 0 | D6: 0 | E6: 0 | F6: =IF(E6>0,E6,"") ->  | G6: =IF(D6>0,D6,C6) -> 0 | H6: =IF(F6="",0,G6-F6) -> 0 | I6: =IF(F6="","",IF(H6=0,"",H6/G6)) ->  | J6: =IF(F6="","",F6/$C$18) -> 
A7: August | B7: 0 | C7: 0 | D7: 0 | E7: 140400 | F7: =IF(E7>0,E7+F6,"") ->  | G7: =IF(D7>0,D7+D6,C7+C6) -> 0
A8: September | B8: 0 | C8: 0 | D8: 0 | E8: 2279372 | F8: =IF(E8>0,E8+F7,"") ->  | G8: =IF(D8>0,D8+G7,C8+G7) -> 0
A9: October | B9: 0 | C9: 0 | D9: 0 | E9: 2422882 | G9: =IF(D9>0,D9+G8,C9+G8) -> 0
A10: November | B10: 0 | C10: 0 | D10: 0 | E10: 6099975 | G10: 0
A11: December | B11: 0 | C11: 0 | D11: 0 | E11: 1946456 | G11: 0
A12: January | B12: 0 | C12: 0 | D12: 0 | E12: 198000 | G12: 0
A13: February | B13: 0 | C13: 0 | D13: 0 | E13: 6137069 | G13: 0
A14: March | B14: 0 | C14: 0 | D14: 0 | E14: 3311904 | G14: 0
A15: April | B15: 0 | C15: 0 | D15: 0 | E15: 3608225 | G15: 0
A16: May | B16: 0 | C16: 0 | D16: 0 | E16: 1317751 | G16: 0
A17: June | B17: 0 | C17: 0 | D17: 0 | E17: 6056789 | G17: 0 | H17: =IF(F17="",0,G17-F17) ->  | I17: =IF(F17="","",IF(H17=0,"",H17/G17)) ->  | J17: =IF(F17="","",F17/$C$18) -> 
A18: Total Capital expenditure | B18: =SUM(B6:B17) -> 0 | C18: =SUM(C6:C17) -> 0 | D18: =SUM(D6:D17) -> 0 | E18: =SUM(E6:E17) -> 33518823

Sheet SC13a
A1: =muni& " - "&S71Sa& " - "&Head57 -> LIM353 Molemole - Supporting Table SC13a Monthly Budget Statement - capital expenditure on new assets by asset class - Q4 Fourth Quarter
A2: =desc -> Description | B2: =head27 -> Ref | C2: =Head1 -> 2014/15 | D2: =Head2 -> Budget Year 2015/16
C3: =Head5 -> Audited Outcome | D3: =Head6 -> Original Budget | E3: =Head7 -> Adjusted Budget | F3: =Head38 -> Monthly actual | G3: =Head39 -> YearTD actual | H3: =Head40 -> YearTD budget | I3: =Head41 -> YTD variance | J3: =Head41 -> YTD variance | K3: =Head8 -> Full Year Forecast
A4: R thousands | B4: 1 | J4: %
A5: Capital expenditure on new assets by Asset Class/Sub-class
A7: Infrastructure | C7: =C8+C11+C15+C19+C22 -> 7185710 | D7: 32313600 | E7: 33828733 | F7: 4038552 | G7: 24084514 | H7: 33828733 | I7: =H7-G7 -> 9744219 | J7: =IF(I7=0,"",I7/H7) -> 0.2880456386 | K7: =K8+K11+K15+K19+K22 -> 33828733
A8: Infrastructure - Road transport | C8: =SUM(C9:C10) -> 4624538 | D8: 28413600 | E8: 29987547 | F8: 3503317 | G8: 22753519 | H8: 29987547 | I8: 7234028 | J8: 0.2412344031 | K8: =SUM(K9:K10) -> 29987547
A9: Roads, Pavements & Bridges | C9: =2358061+20503223-18236746 -> 4624538 | D9: =[6]SA34a!$I$8 -> 28413600 | E9: =[8]SB18a!$K$10 -> 29987547 | F9: ='C5C'!F63 -> 3503317 | G9: =1993099+453337+5929175+1150696+2915997+2524111+1165587+245330+1637607-3382164+3572028+196532+204896+643971+F9 -> 22753519 | H9: =E9*12/12 -> 29987547 | I9: 7234028 | J9: 0.2412344031 | K9: =E9 -> 29987547
A10: Storm water | C10: 0 | D10: 0 | E10: 0 | F10: 0 | G10: =F10 -> 0 | H10: 0 | I10: 0 | K10: 0
A11: Infrastructure - Electricity | C11: =SUM(C12:C14) -> 2561172 | D11: 3900000 | E11: 3841186 | F11: 535235 | G11: 1330995 | H11: 3841186 | I11: 2510191 | J11: 0.6534937387 | K11: =SUM(K12:K14) -> 3841186
A12: Generation | C12: 0 | D12: 0 | E12: 0 | F12: 0 | G12: =F12 -> 0 | H12: =E12*12/11 -> 0 | I12: 0 | K12: =D12 -> 0
A13: Transmission & Reticulation | C13: 2561172 | D13: =[6]SA34a!$I$12 -> 3900000 | E13: =[8]SB18a!$K$13 -> 3841186 | F13: ='C5C'!F74 -> 535235 | G13: =795760+F13 -> 1330995 | H13: =E13*12/12 -> 3841186 | I13: 2510191 | J13: 0.6534937387 | K13: =E13 -> 3841186
A14: Street Lighting | C14: 0 | D14: 0 | E14: 0 | F14: 0 | G14: =F14 -> 0 | H14: =E14*12/12 -> 0 | I14: 0 | K14: =D14 -> 0
A15: Infrastructure - Water | C15: =SUM(C16:C18) -> 0 | D15: 0 | E15: 0 | F15: 0 | G15: 0 | H15: 0 | I15: 0 | K15: =SUM(K16:K18) -> 0
A16: Dams & Reservoirs | C16: 0 | D16: 0 | E16: 0 | F16: 0 | G16: 0 | H16: 0 | I16: 0 | K16: 0
A17: Water purification | C17: 0 | D17: 0 | E17: 0 | F17: 0 | G17: 0 | H17: 0 | I17: 0 | K17: 0
A18: Reticulation | C18: 0 | D18: 0 | E18: 0 | F18: 0 | G18: 0 | H18: 0 | I18: 0 | K18: 0
A19: Infrastructure - Sanitation | C19: =SUM(C20:C21) -> 0 | D19: 0 | E19: 0 | F19: 0 | G19: 0 | H19: 0 | I19: 0 | K19: =SUM(K20:K21) -> 0
A20: Reticulation | C20: 0 | D20: 0 | E20: 0 | F20: 0 | G20: 0 | H20: 0 | I20: 0 | K20: 0
A21: Sewerage purification | C21: 0 | D21: 0 | E21: 0 | F21: 0 | G21: 0 | H21: 0 | I21: 0 | K21: 0
A22: Infrastructure - Other | C22: =SUM(C23:C26) -> 0 | D22: 0 | E22: 0 | F22: 0 | G22: 0 | H22: 0 | I22: 0 | K22: =SUM(K23:K26) -> 0
A23: Waste Management | C23: 0 | D23: 0 | E23: 0 | F23: 0 | G23: 0 | H23: 0 | I23: 0 | K23: 0
A24: Transportation | C24: 0 | D24: 0 | E24: 0 | F24: 0 | G24: 0 | H24: 0 | I24: 0 | K24: 0
A25: Gas | C25: 0 | D25: 0 | E25: 0 | F25: 0 | G25: 0 | H25: 0 | I25: 0 | K25: 0
A26: Other | C26: 0 | D26: 0 | E26: 0 | F26: 0 | G26: 0 | H26: 0 | I26: 0 | K26: 0
A28: Community | C28: =SUM(C29:C42) -> 5831816 | D28: 5622550 | E28: 5622550 | F28: 1993367 | G28: 5285686 | H28: 5622550 | I28: 336864 | J28: 0.05991302879 | K28: =SUM(K29:K42) -> 5622550
A29: Parks & gardens | C29: 0 | D29: 0 | E29: =[8]SB18a!$K$30 -> 0 | F29: 0 | G29: 0 | H29: =E29*12/12 -> 0 | I29: 0 | K29: 0
A30: Sportsfields & stadia | C30: =1516450+4315366 -> 5831816 | D30: 4502550 | E30: =[8]SB18a!$K$31 -> 4502550 | F30: =[11]Sheet1!$J$1543 -> 1520867 | G30: =3204719+F30 -> 4725586 | H30: =E30*12/12 -> 4502550 | I30: -223036 | J30: -0.04953548545 | K30: =E30 -> 4502550
A31: Swimming pools | C31: 0 | D31: 0 | E31: 0 | F31: 0 | G31: 0 | H31: =E31/12*12 -> 0 | I31: 0 | K31: =E31 -> 0
A32: Community halls | C32: 0 | D32: 0 | E32: 0 | F32: 0 | G32: 0 | H32: =E32/12*12 -> 0 | I32: 0 | K32: 0
A33: Libraries | C33: 0 | D33: 0 | E33: 0 | F33: 0 | G33: 0 | H33: =E33/12*12 -> 0 | I33: 0 | K33: 0
A34: Recreational facilities | C34: 0 | D34: 300000 | E34: =[8]SB18a!$K$35 -> 300000 | F34: 0 | G34: 0 | H34: =E34*12/12 -> 300000 | I34: 300000 | J34: 1 | K34: 300000
A35: Fire, safety & emergency | C35: 0 | D35: 0 | E35: 0 | F35: 0 | G35: 0 | H35: 0 | I35: 0 | K35: 0
A36: Security and policing | C36: 0 | D36: 0 | E36: 0 | F36: 0 | G36: 0 | H36: 0 | I36: 0 | K36: 0
A37: Buses | C37: 0 | D37: 0 | E37: 0 | F37: 0 | G37: 0 | H37: 0 | I37: 0 | K37: 0
A38: Clinics | C38: 0 | D38: 0 | E38: 0 | F38: 0 | G38: 0 | H38: 0 | I38: 0 | K38: 0
A39: Museums & Art Galleries | C39: 0 | D39: 0 | E39: 0 | F39: 0 | G39: 0 | H39: 0 | I39: 0 | K39: 0
A40: Cemeteries | C40: 0 | D40: 120000 | E40: =[8]SB18a!$K$41 -> 120000 | F40: 0 | G40: 0 | H40: 120000 | I40: 120000 | J40: 1 | K40: 120000
A41: Social rental housing | C41: 0 | D41: 0 | E41: 0 | F41: 0 | G41: 0 | H41: 0 | I41: =H41-G41 -> 0 | J41: =IF(I41=0,"",I41/H41) ->  | K41: 0
A42: Other | C42: 0 | D42: 700000 | E42: =[8]SB18a!$K$43 -> 700000 | F42: =[11]Sheet1!$J$1549 -> 472500 | G42: =87600+F42 -> 560100 | H42: 700000 | I42: 139900 | J42: 0.1998571429 | K42: 700000
A43: Heritage assets | C43: =SUM(C44:C45) -> 0 | D43: 0 | E43: 0 | F43: 0 | G43: 0 | H43: 0 | I43: 0 | K43: =SUM(K44:K45) -> 0
A44: Buildings | C44: 0 | D44: 0 | E44: 0 | F44: 0 | G44: 0 | H44: 0 | I44: 0 | K44: 0
A45: Other | C45: 0 | D45: 0 | E45: 0 | F45: 0 | G45: 0 | H45: 0 | I45: 0 | K45: 0
I46: 0
A47: Investment properties | C47: =SUM(C48:C49) -> 0 | D47: 0 | E47: 0 | F47: 0 | G47: 0 | H47: 0 | I47: 0 | K47: =SUM(K48:K49) -> 0
A48: Housing development | C48: 0 | D48: 0 | E48: 0 | F48: 0 | G48: 0 | H48: 0 | I48: 0 | K48: 0
A49: Other | C49: 0 | D49: 0 | E49: 0 | F49: 0 | G49: 0 | H49: 0 | I49: 0 | K49: 0
A50: Other assets | C50: =SUM(C51:C62) -> 1077994 | D50: 9840000 | E50: 10340164 | F50: 24869 | G50: 5968622 | H50: 10340164 | I50: 4371542 | J50: 0.422772985 | K50: 10340164
A51: General vehicles | C51: 0 | D51: =[6]SA34a!$I$52 -> 7600000 | E51: =[8]SB18a!$K$54 -> 8027626 | F51: 0 | G51: =2193088+1082928 -> 3276016 | H51: =E51*12/12 -> 8027626 | I51: 4751610 | J51: 0.5919072463 | K51: =E51 -> 8027626
A52: Specialised vehicles | C52: =C78 -> 0 | D52: 0 | E52: 0 | F52: 0 | G52: 0 | H52: 0 | I52: 0 | K52: =K78 -> 0
A53: Plant & equipment | C53: 0 | D53: 0 | E53: 0 | F53: 0 | G53: 0 | H53: =E53*12/12 -> 0 | I53: 0 | K53: 0
A54: Computers - hardware/equipment | C54: 0 | D54: 400000 | E54: =[8]SB18a!$K$57 -> 400000 | F54: 0 | G54: =198000+37600+197852+F54 -> 433452 | H54: 400000 | I54: -33452 | J54: -0.08363 | K54: =E54 -> 400000
A55: Furniture and other office equipment | C55: 0 | D55: 560000 | E55: =[8]SB18a!$K$58 -> 833847 | F55: ='C5C'!F19 -> 19969 | G55: =140400+170800+29597+F55 -> 360766 | H55: 833847 | I55: 473081 | J55: 0.567347487 | K55: =E55 -> 833847
A56: Abattoirs | C56: 0 | D56: 0 | E56: 0 | F56: 0 | G56: 0 | H56: 0 | I56: 0 | K56: 0
A57: Markets | C57: 0 | D57: 0 | E57: 0 | F57: 0 | G57: 0 | H57: 0 | I57: 0 | K57: 0
A58: Civic Land and Buildings | C58: 0 | D58: 0 | E58: 0 | F58: 0 | G58: 0 | H58: 0 | I58: 0 | K58: 0
A59: Other Buildings | C59: 0 | D59: 0 | E59: 0 | F59: 0 | G59: 0 | H59: 0 | I59: 0 | K59: 0
A60: Other Land | C60: 0 | D60: 0 | E60: 0 | F60: 0 | G60: 0 | H60: 0 | I60: 0 | K60: 0
A61: Surplus Assets - (Investment or Inventory) | C61: 0 | D61: 0 | E61: 0 | F61: 0 | G61: 0 | H61: 0 | I61: 0 | K61: 0
A62: Other | C62: =433500+85119+396000+163375 -> 1077994 | D62: 1280000 | E62: =[8]SB18a!$K$65 -> 1078691 | F62: ='C5-Capex'!F44 -> 4900 | G62: =470315+226646+1085830+24131+12066+74500+F62 -> 1898388 | H62: 1078691 | I62: -819697 | J62: -0.7598997303 | K62: 1078691
A64: Agricultural assets | C64: =SUM(C65:C66) -> 0 | D64: 0 | E64: 0 | F64: 0 | G64: 0 | H64: 0 | I64: =H64-G64 -> 0 | K64: =SUM(K65) -> 0
A65: List sub-class | C65: 0 | D65: 0 | E65: 0 | F65: 0 | G65: 0 | H65: 0 | I65: =H65-G65 -> 0 | K65: 0
C66: 0 | D66: 0 | E66: 0 | F66: 0 | G66: 0 | H66: 0 | I66: =H66-G66 -> 0 | K66: 0
J67: =IF(I67=0,"",I67/H67) -> 
A68: Biological assets | C68: =SUM(C69:C70) -> 0 | D68: 0 | E68: 0 | F68: 0 | G68: 0 | H68: 0 | I68: =H68-G68 -> 0 | J68: =IF(I68=0,"",I68/H68) ->  | K68: =SUM(K69) -> 0
A69: List sub-class | C69: 0 | D69: 0 | E69: 0 | F69: 0 | G69: 0 | H69: 0 | I69: =H69-G69 -> 0 | J69: =IF(I69=0,"",I69/H69) ->  | K69: 0
C70: 0 | D70: 0 | E70: 0 | F70: 0 | G70: 0 | H70: 0 | I70: =H70-G70 -> 0 | J70: =IF(I70=0,"",I70/H70) ->  | K70: 0
A72: Intangibles | C72: =SUM(C73:C74) -> 0 | D72: 0 | E72: 0 | F72: 0 | G72: 0 | H72: 0 | I72: =H72-G72 -> 0 | J72: =IF(I72=0,"",I72/H72) ->  | K72: =SUM(K73:K74) -> 0
A73: Computers - software & programming | C73: 0 | D73: 0 | E73: 0 | F73: 0 | G73: 0 | H73: 0 | I73: =H73-G73 -> 0 | J73: =IF(I73=0,"",I73/H73) ->  | K73: 0
A74: Other | C74: 0 | D74: 0 | E74: 0 | F74: 0 | G74: 0 | H74: 0 | I74: =H74-G74 -> 0 | J74: =IF(I74=0,"",I74/H74) ->  | K74: 0
A76: Total Capital Expenditure on new assets | B76: 1 | C76: =C7+C28+C43+C47+C50+C64+C68+C72 -> 14095520 | D76: 47776150 | E76: 49791447 | F76: 6056788 | G76: 35338822 | H76: 49791447 | I76: 14452625 | J76: 0.2902632052 | K76: =K7+K28+K43+K47+K50+K64+K68+K72 -> 49791447
A78: Specialised vehicles | C78: =SUM(C79:C82) -> 0 | D78: 0 | E78: 0 | F78: 0 | G78: 0 | H78: 0 | I78: =H78-G78 -> 0 | J78: =IF(I78=0,"",I78/H78) ->  | K78: 0
A79: Refuse | C79: 0 | D79: 0 | E79: 0 | F79: 0 | G79: 0 | H79: 0 | I79: =H79-G79 -> 0 | J79: =IF(I79=0,"",I79/H79) ->  | K79: 0
A80: Fire | C80: 0 | D80: 0 | E80: 0 | F80: 0 | G80: 0 | H80: 0 | I80: =H80-G80 -> 0 | J80: =IF(I80=0,"",I80/H80) ->  | K80: 0
A81: Conservancy | C81: 0 | D81: 0 | E81: 0 | F81: 0 | G81: 0 | H81: 0 | I81: =H81-G81 -> 0 | J81: =IF(I81=0,"",I81/H81) ->  | K81: 0
A82: Ambulances | C82: 0 | D82: 0 | E82: 0 | F82: 0 | G82: 0 | H82: 0 | I82: =H82-G82 -> 0 | J82: =IF(I82=0,"",I82/H82) ->  | K82: 0
A83: =head27a -> References
A84: 1. Total Capital Expenditure on new assets (SC13a) plus Total Capital Expenditure on renewal of existing assets (SC13b) must reconcile to total capital expenditure in Table C5
A86: check balance | C86: =C76+SC13b!C76-'C5-Capex'!C40 -> 0 | D86: =D76+SC13b!D76-'C5-Capex'!D40 -> 0 | E86: =E76+SC13b!E76-'C5-Capex'!E40 -> 0.03999999911 | F86: =F76+SC13b!F76-'C5-Capex'!F40 -> 0 | G86: =G76+SC13b!G76-'C5-Capex'!G40 -> 0 | H86: =H76+SC13b!H76-'C5-Capex'!H40 -> 0.03999999911 | K86: =K76+SC13b!K76-'C5-Capex'!K40 -> 0.03999999911

Sheet SC13b
A1: =muni& " - "&S71Sb& " - "&Head57 -> LIM353 Molemole - Supporting Table SC13b Monthly Budget Statement - capital expenditure on renewal of existing assets by asset class - Q4 Fourth Quarter
A2: =desc -> Description | B2: =head27 -> Ref | C2: =Head1 -> 2014/15 | D2: =Head2 -> Budget Year 2015/16
C3: =Head5 -> Audited Outcome | D3: =Head6 -> Original Budget | E3: =Head7 -> Adjusted Budget | F3: =Head38 -> Monthly actual | G3: =Head39 -> YearTD actual | H3: =Head40 -> YearTD budget | I3: =Head41 -> YTD variance | J3: =Head41 -> YTD variance | K3: =Head8 -> Full Year Forecast
A4: R thousands | B4: 1 | J4: %
A5: Capital expenditure on renewal of existing assets by Asset Class/Sub-class
A7: Infrastructure | C7: =C8+C11+C15+C19+C22 -> 0 | D7: 500000 | E7: 500000 | F7: 0 | G7: 0 | H7: 500000 | I7: =H7-G7 -> 500000 | J7: =IF(I7=0,"",I7/H7) -> 1 | K7: =K8+K11+K15+K19+K22 -> 500000
A8: Infrastructure - Road transport | C8: =SUM(C9:C10) -> 0 | D8: 0 | E8: 0 | F8: 0 | G8: 0 | H8: 0 | I8: 0 | K8: =SUM(K9:K10) -> 0
A9: Roads, Pavements & Bridges | C9: 0 | D9: 0 | E9: 0 | F9: 0 | G9: 0 | H9: =D9/12*3 -> 0 | I9: 0 | K9: =D9 -> 0
A10: Storm water | C10: 0 | D10: 0 | E10: 0 | F10: 0 | G10: 0 | H10: 0 | I10: 0 | K10: 0
A11: Infrastructure - Electricity | C11: =SUM(C12:C14) -> 0 | D11: 500000 | E11: 500000 | F11: 0 | G11: 0 | H11: 500000 | I11: 500000 | J11: 1 | K11: =SUM(K12:K14) -> 500000
A12: Generation | C12: 0 | D12: 0 | E12: 0 | F12: 0 | G12: 0 | H12: 0 | I12: 0 | K12: 0
A13: Transmission & Reticulation | C13: 0 | D13: =[6]SA34b!$I$12 -> 500000 | E13: =D13 -> 500000 | F13: 0 | G13: 0 | H13: =E13*12/12 -> 500000 | I13: 500000 | J13: 1 | K13: =E13 -> 500000
A14: Street Lighting | C14: 0 | D14: 0 | E14: 0 | F14: 0 | G14: 0 | H14: 0 | I14: 0 | K14: 0
A15: Infrastructure - Water | C15: =SUM(C16:C18) -> 0 | D15: 0 | E15: 0 | F15: 0 | G15: 0 | H15: 0 | I15: 0 | K15: =SUM(K16:K18) -> 0
A16: Dams & Reservoirs | C16: 0 | D16: 0 | E16: 0 | F16: 0 | G16: 0 | H16: 0 | I16: 0 | K16: 0
A17: Water purification | C17: 0 | D17: 0 | E17: 0 | F17: 0 | G17: 0 | H17: 0 | I17: 0 | K17: 0
A18: Reticulation | C18: 0 | D18: 0 | E18: 0 | F18: 0 | G18: 0 | H18: 0 | I18: 0 | K18: 0
A19: Infrastructure - Sanitation | C19: =SUM(C20:C21) -> 0 | D19: 0 | E19: 0 | F19: 0 | G19: 0 | H19: 0 | I19: 0 | K19: =SUM(K20:K21) -> 0
A20: Reticulation | C20: 0 | D20: 0 | E20: 0 | F20: 0 | G20: 0 | H20: 0 | I20: 0 | K20: 0
A21: Sewerage purification | C21: 0 | D21: 0 | E21: 0 | F21: 0 | G21: 0 | H21: 0 | I21: 0 | K21: 0
A22: Infrastructure - Other | C22: =SUM(C23:C26) -> 0 | D22: 0 | E22: 0 | F22: 0 | G22: 0 | H22: 0 | I22: 0 | K22: =SUM(K23:K26) -> 0
A23: Waste Management | C23: 0 | D23: 0 | E23: 0 | F23: 0 | G23: 0 | H23: 0 | I23: 0 | K23: 0
A24: Transportation | C24: 0 | D24: 0 | E24: 0 | F24: 0 | G24: 0 | H24: 0 | I24: 0 | K24: 0
A25: Gas | C25: 0 | D25: 0 | E25: 0 | F25: 0 | G25: 0 | H25: 0 | I25: 0 | K25: 0
A26: Other | C26: 0 | D26: 0 | E26: 0 | F26: 0 | G26: 0 | H26: 0 | I26: 0 | K26: 0
A28: Community | C28: =SUM(C29:C42) -> 0 | D28: 500000 | E28: 500000 | F28: 0 | G28: 0 | H28: 500000 | I28: 500000 | J28: 1 | K28: =SUM(K29:K42) -> 500000
A29: Parks & gardens | C29: 0 | D29: 0 | E29: 0 | F29: 0 | G29: 0 | H29: 0 | I29: 0 | K29: 0
A30: Sportsfields & stadia | C30: 0 | D30: 0 | E30: 0 | F30: 0 | G30: 0 | H30: =D30/12*3 -> 0 | I30: 0 | K30: =D30 -> 0
A31: Swimming pools | C31: 0 | D31: 0 | E31: 0 | F31: 0 | G31: 0 | H31: 0 | I31: 0 | K31: 0
A32: Community halls | C32: 0 | D32: 0 | E32: 0 | F32: 0 | G32: 0 | H32: 0 | I32: 0 | K32: 0
A33: Libraries | C33: 0 | D33: 0 | E33: 0 | F33: 0 | G33: 0 | H33: 0 | I33: 0 | K33: 0
A34: Recreational facilities | C34: 0 | D34: 0 | E34: 0 | F34: 0 | G34: 0 | H34: 0 | I34: 0 | K34: 0
A35: Fire, safety & emergency | C35: 0 | D35: 0 | E35: 0 | F35: 0 | G35: 0 | H35: 0 | I35: 0 | K35: 0
A36: Security and policing | C36: 0 | D36: 0 | E36: 0 | F36: 0 | G36: 0 | H36: 0 | I36: 0 | K36: 0
A37: Buses | C37: 0 | D37: 0 | E37: 0 | F37: 0 | G37: 0 | H37: 0 | I37: 0 | K37: 0
A38: Clinics | C38: 0 | D38: 0 | E38: 0 | F38: 0 | G38: 0 | H38: 0 | I38: 0 | K38: 0
A39: Museums & Art Galleries | C39: 0 | D39: 0 | E39: 0 | F39: 0 | G39: 0 | H39: 0 | I39: 0 | K39: 0
A40: Cemeteries | C40: 0 | D40: 0 | E40: 0 | F40: 0 | G40: 0 | H40: 0 | I40: 0 | K40: 0
A41: Social rental housing | C41: 0 | D41: 0 | E41: 0 | F41: 0 | G41: 0 | H41: 0 | I41: 0 | K41: 0
A42: Other | C42: 0 | D42: =[6]SA34b!$I$41 -> 500000 | E42: =D42 -> 500000 | F42: 0 | G42: 0 | H42: =E42*12/12 -> 500000 | I42: 500000 | J42: 1 | K42: =E42 -> 500000
A43: Heritage assets | C43: =SUM(C44:C45) -> 0 | D43: 0 | E43: 0 | F43: 0 | G43: 0 | H43: 0 | I43: 0 | K43: =SUM(K44:K45) -> 0
A44: Buildings | C44: 0 | D44: 0 | E44: 0 | F44: 0 | G44: 0 | H44: 0 | I44: 0 | K44: 0
A45: Other | C45: 0 | D45: 0 | E45: 0 | F45: 0 | G45: 0 | H45: 0 | I45: 0 | K45: 0
I46: 0
A47: Investment properties | C47: =SUM(C48:C49) -> 0 | D47: 0 | E47: 0 | F47: 0 | G47: 0 | H47: 0 | I47: 0 | K47: =SUM(K48:K49) -> 0
A48: Housing development | C48: 0 | D48: 0 | E48: 0 | F48: 0 | G48: 0 | H48: 0 | I48: 0 | K48: 0
A49: Other | C49: 0 | D49: 0 | E49: 0 | F49: 0 | G49: 0 | H49: 0 | I49: 0 | K49: 0
A50: Other assets | C50: =SUM(C51:C62) -> 0 | D50: 500000 | E50: 500000 | F50: 0 | G50: 0 | H50: 500000 | I50: 500000 | J50: 1 | K50: 500000
A51: General vehicles | C51: 0 | D51: 0 | E51: 0 | F51: 0 | G51: 0 | H51: 0 | I51: 0 | K51: 0
A52: Specialised vehicles | C52: =C78 -> 0 | D52: 0 | E52: 0 | F52: 0 | G52: 0 | H52: 0 | I52: 0 | K52: =K78 -> 0
A53: Plant & equipment | C53: 0 | D53: 0 | E53: 0 | F53: 0 | G53: 0 | H53: 0 | I53: 0 | K53: 0
A54: Computers - hardware/equipment | C54: 0 | D54: 0 | E54: 0 | F54: 0 | G54: 0 | H54: 0 | I54: 0 | K54: 0
A55: Furniture and other office equipment | C55: 0 | D55: 0 | E55: 0 | F55: 0 | G55: 0 | H55: 0 | I55: 0 | K55: 0
A56: Abattoirs | C56: 0 | D56: 0 | E56: 0 | F56: 0 | G56: 0 | H56: 0 | I56: 0 | K56: 0
A57: Markets | C57: 0 | D57: 0 | E57: 0 | F57: 0 | G57: 0 | H57: 0 | I57: 0 | K57: 0
A58: Civic Land and Buildings | C58: 0 | D58: 0 | E58: 0 | F58: 0 | G58: 0 | H58: 0 | I58: 0 | K58: 0
A59: Other Buildings | C59: 0 | D59: 0 | E59: 0 | F59: 0 | G59: 0 | H59: 0 | I59: 0 | K59: 0
A60: Other Land | C60: 0 | D60: 0 | E60: 0 | F60: 0 | G60: 0 | H60: 0 | I60: 0 | K60: 0
A61: Surplus Assets - (Investment or Inventory) | C61: 0 | D61: 0 | E61: 0 | F61: 0 | G61: 0 | H61: 0 | I61: 0 | K61: 0
A62: Other | C62: 0 | D62: =[6]SA34b!$I$63 -> 500000 | E62: =D62 -> 500000 | F62: 0 | G62: 0 | H62: =E62*12/12 -> 500000 | I62: 500000 | J62: 1 | K62: =E62 -> 500000
A64: Agricultural assets | C64: =SUM(C65:C66) -> 0 | D64: 0 | E64: 0 | F64: 0 | G64: 0 | H64: 0 | I64: =H64-G64 -> 0 | K64: =SUM(K65) -> 0
A65: List sub-class | C65: 0 | D65: 0 | E65: 0 | F65: 0 | G65: 0 | H65: 0 | I65: =H65-G65 -> 0 | K65: 0
C66: 0 | D66: 0 | E66: 0 | F66: 0 | G66: 0 | H66: 0 | I66: =H66-G66 -> 0 | K66: 0
J67: =IF(I67=0,"",I67/H67) -> 
A68: Biological assets | C68: =SUM(C69:C70) -> 0 | D68: 0 | E68: 0 | F68: 0 | G68: 0 | H68: 0 | I68: =H68-G68 -> 0 | J68: =IF(I68=0,"",I68/H68) ->  | K68: =SUM(K69) -> 0
A69: List sub-class | C69: 0 | D69: 0 | E69: 0 | F69: 0 | G69: 0 | H69: 0 | I69: =H69-G69 -> 0 | J69: =IF(I69=0,"",I69/H69) ->  | K69: 0
C70: 0 | D70: 0 | E70: 0 | F70: 0 | G70: 0 | H70: 0 | I70: =H70-G70 -> 0 | J70: =IF(I70=0,"",I70/H70) ->  | K70: 0
A72: Intangibles | C72: =SUM(C73:C74) -> 0 | D72: 0 | E72: 0 | F72: 0 | G72: 0 | H72: 0 | I72: =H72-G72 -> 0 | J72: =IF(I72=0,"",I72/H72) ->  | K72: =SUM(K73:K74) -> 0
A73: Computers - software & programming | C73: 0 | D73: 0 | E73: 0 | F73: 0 | G73: 0 | H73: 0 | I73: =H73-G73 -> 0 | J73: =IF(I73=0,"",I73/H73) ->  | K73: 0
A74: Other | C74: 0 | D74: 0 | E74: 0 | F74: 0 | G74: 0 | H74: 0 | I74: =H74-G74 -> 0 | J74: =IF(I74=0,"",I74/H74) ->  | K74: 0
A76: Total Capital Expenditure on renewal of existing assets | B76: 1 | C76: =C7+C28+C43+C47+C50+C64+C68+C72 -> 0 | D76: 1500000 | E76: 1500000 | F76: 0 | G76: 0 | H76: 1500000 | I76: =H76-G76 -> 1500000 | J76: =IF(I76=0,"",I76/H76) -> 1 | K76: =K7+K28+K43+K47+K50+K64+K68+K72 -> 1500000
A78: Specialised vehicles | C78: =SUM(C79:C82) -> 0 | D78: 0 | E78: 0 | F78: 0 | G78: 0 | H78: 0 | I78: =H78-G78 -> 0 | J78: =IF(I78=0,"",I78/H78) ->  | K78: 0
A79: Refuse | C79: 0 | D79: 0 | E79: 0 | F79: 0 | G79: 0 | H79: 0 | I79: =H79-G79 -> 0 | J79: =IF(I79=0,"",I79/H79) ->  | K79: 0
A80: Fire | C80: 0 | D80: 0 | E80: 0 | F80: 0 | G80: 0 | H80: 0 | I80: =H80-G80 -> 0 | J80: =IF(I80=0,"",I80/H80) ->  | K80: 0
A81: Conservancy | C81: 0 | D81: 0 | E81: 0 | F81: 0 | G81: 0 | H81: 0 | I81: =H81-G81 -> 0 | J81: =IF(I81=0,"",I81/H81) ->  | K81: 0
A82: Ambulances | C82: 0 | D82: 0 | E82: 0 | F82: 0 | G82: 0 | H82: 0 | I82: =H82-G82 -> 0 | J82: =IF(I82=0,"",I82/H82) ->  | K82: 0
A83: =head27a -> References
A84: 1. Total Capital Expenditure on new assets (SC13a) plus Total Capital Expenditure on renewal of existing assets (SC13b) must reconcile to total capital expenditure in Table C5
A86: check balance | C86: =C76+SC13a!C76-'C5-Capex'!C40 -> 0 | D86: =D76+SC13a!D76-'C5-Capex'!D40 -> 0 | E86: =E76+SC13a!E76-'C5-Capex'!E40 -> 0.03999999911 | F86: =F76+SC13a!F76-'C5-Capex'!F40 -> 0 | G86: =G76+SC13a!G76-'C5-Capex'!G40 -> 0 | H86: =H76+SC13a!H76-'C5-Capex'!H40 -> 0.03999999911 | K86: =K76+SC13a!K76-'C5-Capex'!K40 -> 0.03999999911

Sheet SC13c
A1: =muni& " - "&S71Sc& " - "&Head57 -> LIM353 Molemole - Supporting Table SC13c Monthly Budget Statement - expenditure on repairs and maintenance by asset class - Q4 Fourth Quarter
A2: =desc -> Description | B2: =head27 -> Ref | C2: =Head1 -> 2014/15 | D2: =Head2 -> Budget Year 2015/16
C3: =Head5 -> Audited Outcome | D3: =Head6 -> Original Budget | E3: =Head7 -> Adjusted Budget | F3: =Head38 -> Monthly actual | G3: =Head39 -> YearTD actual | H3: =Head40 -> YearTD budget | I3: =Head41 -> YTD variance | J3: =Head41 -> YTD variance | K3: =Head8 -> Full Year Forecast
A4: R thousands | B4: 1 | J4: %
A5: Repairs and maintenance expenditure by Asset Class/Sub-class
A7: Infrastructure | C7: =C8+C11+C15+C19+C22 -> 2149369 | D7: 1986612.134 | E7: 3538612.134 | F7: 1804715.13 | G7: 2942416.13 | H7: 3538612.134 | I7: =H7-G7 -> 596196.004 | J7: =IF(I7=0,"",I7/H7) -> 0.1684830045 | K7: =K8+K11+K15+K19+K22 -> 3538612.134
A8: Infrastructure - Road transport | C8: =SUM(C9:C10) -> 1990170 | D8: 1500000 | E8: 2852000 | F8: 1599637.5 | G8: 2435428.5 | H8: 2852000 | I8: 416571.5 | J8: 0.1460629383 | K8: =SUM(K9:K10) -> 2852000
A9: Roads, Pavements & Bridges | C9: 1990170 | D9: =[6]SA34c!$I$8 -> 1500000 | E9: =[8]SB18c!$K$10 -> 2852000 | F9: =[13]tbjune16!$D$150+[13]tbjune16!$D$151 -> 1599637.5 | G9: =425316+99049+116600+194826+F9 -> 2435428.5 | H9: =E9*12/12 -> 2852000 | I9: 416571.5 | J9: 0.1460629383 | K9: =E9 -> 2852000
A10: Storm water | C10: 0 | D10: 0 | E10: 0 | F10: 0 | G10: 0 | H10: 0 | I10: 0 | K10: 0
A11: Infrastructure - Electricity | C11: =SUM(C12:C14) -> 159199 | D11: 486612.134 | E11: 686612.134 | F11: 205077.63 | G11: 506987.63 | H11: 686612.134 | I11: 179624.504 | J11: 0.2616098596 | K11: =SUM(K12:K14) -> 686612.134
A12: Generation | C12: 0 | D12: 0 | E12: 0 | F12: 0 | G12: 0 | H12: 0 | I12: 0 | K12: 0
A13: Transmission & Reticulation | C13: 159199 | D13: =[6]SA34c!$I$12 -> 350000 | E13: =[8]SB18c!$K$14 -> 520000 | F13: =[13]tbjune16!$D$146 -> 182697.63 | G13: =252608+16852+12636+434+F13 -> 465227.63 | H13: =E13*12/12 -> 520000 | I13: 54772.37 | J13: 0.1053314808 | K13: =E13 -> 520000
A14: Street Lighting | C14: 0 | D14: =[6]SA34c!$I$13 -> 136612.134 | E14: =[8]SB18c!$K$15 -> 166612.134 | F14: =[13]tbjune16!$D$153 -> 22380 | G14: =19380+F14 -> 41760 | H14: 166612.134 | I14: 124852.134 | J14: 0.7493579909 | K14: =E14 -> 166612.134
A15: Infrastructure - Water | C15: =SUM(C16:C18) -> 0 | D15: 0 | E15: 0 | F15: 0 | G15: 0 | H15: 0 | I15: 0 | K15: =SUM(K16:K18) -> 0
A16: Dams & Reservoirs | C16: 0 | D16: 0 | E16: 0 | F16: 0 | G16: 0 | H16: 0 | I16: 0 | K16: 0
A17: Water purification | C17: 0 | D17: 0 | E17: 0 | F17: 0 | G17: 0 | H17: 0 | I17: 0 | K17: 0
A18: Reticulation | C18: 0 | D18: 0 | E18: 0 | F18: 0 | G18: 0 | H18: 0 | I18: 0 | K18: 0
A19: Infrastructure - Sanitation | C19: =SUM(C20:C21) -> 0 | D19: 0 | E19: 0 | F19: 0 | G19: 0 | H19: 0 | I19: 0 | K19: =SUM(K20:K21) -> 0
A20: Reticulation | C20: 0 | D20: 0 | E20: 0 | F20: 0 | G20: 0 | H20: 0 | I20: 0 | K20: 0
A21: Sewerage purification | C21: 0 | D21: 0 | E21: 0 | F21: 0 | G21: 0 | H21: 0 | I21: 0 | K21: 0
A22: Infrastructure - Other | C22: =SUM(C23:C26) -> 0 | D22: 0 | E22: 0 | F22: 0 | G22: 0 | H22: 0 | I22: 0 | K22: =SUM(K23:K26) -> 0
A23: Waste Management | C23: 0 | D23: 0 | E23: 0 | F23: 0 | G23: 0 | H23: 0 | I23: 0 | K23: 0
A24: Transportation | C24: 0 | D24: 0 | E24: 0 | F24: 0 | G24: 0 | H24: 0 | I24: 0 | K24: 0
A25: Gas | C25: 0 | D25: 0 | E25: 0 | F25: 0 | G25: 0 | H25: 0 | I25: 0 | K25: 0
A26: Other | C26: 0 | D26: 0 | E26: 0 | F26: 0 | G26: 0 | H26: 0 | I26: 0 | K26: 0
A28: Community | C28: =SUM(C29:C42) -> 108397 | D28: 50000 | E28: 500 | F28: 0 | G28: 13875 | H28: 500 | I28: -13375 | J28: -26.75 | K28: =SUM(K29:K42) -> 500
A29: Parks & gardens | C29: 108397 | D29: =[6]SA34c!$I$28 -> 50000 | E29: =[8]SB18c!$K$30 -> 500 | F29: 0 | G29: =391+13484 -> 13875 | H29: =E29*12/12 -> 500 | I29: -13375 | J29: -26.75 | K29: =E29 -> 500
A30: Sportsfields & stadia | C30: 0 | D30: 0 | E30: 0 | F30: 0 | G30: 0 | H30: 0 | I30: 0 | K30: 0
A31: Swimming pools | C31: 0 | D31: 0 | E31: 0 | F31: 0 | G31: 0 | H31: 0 | I31: 0 | K31: 0
A32: Community halls | C32: 0 | D32: 0 | E32: 0 | F32: 0 | G32: 0 | H32: 0 | I32: 0 | K32: 0
A33: Libraries | C33: 0 | D33: 0 | E33: 0 | F33: 0 | G33: 0 | H33: 0 | I33: 0 | K33: 0
A34: Recreational facilities | C34: 0 | D34: 0 | E34: 0 | F34: 0 | G34: 0 | H34: 0 | I34: 0 | K34: 0
A35: Fire, safety & emergency | C35: 0 | D35: 0 | E35: 0 | F35: 0 | H35: 0 | I35: 0 | K35: 0
A36: Security and policing | C36: 0 | D36: 0 | E36: 0 | F36: 0 | G36: 0 | H36: 0 | I36: 0 | K36: 0
A37: Buses | C37: 0 | D37: 0 | E37: 0 | F37: 0 | G37: 0 | H37: 0 | I37: 0 | K37: 0
A38: Clinics | C38: 0 | D38: 0 | E38: 0 | F38: 0 | G38: 0 | H38: 0 | I38: 0 | K38: 0
A39: Museums & Art Galleries | C39: 0 | D39: 0 | E39: 0 | F39: 0 | G39: 0 | H39: 0 | I39: 0 | K39: 0
A40: Cemeteries | C40: 0 | D40: 0 | E40: 0 | F40: 0 | G40: 0 | H40: 0 | I40: 0 | K40: 0
A41: Social rental housing | C41: 0 | D41: 0 | E41: 0 | F41: 0 | G41: 0 | H41: 0 | I41: 0 | K41: 0
A42: Other | C42: 0 | D42: 0 | E42: 0 | F42: 0 | G42: 0 | H42: 0 | I42: 0 | K42: 0
A43: Heritage assets | C43: =SUM(C44:C45) -> 0 | D43: 0 | E43: 0 | F43: 0 | G43: 0 | H43: 0 | I43: 0 | K43: =SUM(K44:K45) -> 0
A44: Buildings | C44: 0 | D44: 0 | E44: 0 | F44: 0 | G44: 0 | H44: 0 | I44: 0 | K44: 0
A45: Other | C45: 0 | D45: 0 | E45: 0 | F45: 0 | G45: 0 | H45: 0 | I45: 0 | K45: 0
I46: 0
A47: Investment properties | C47: =SUM(C48:C49) -> 0 | D47: 0 | E47: 0 | F47: 0 | G47: 0 | H47: 0 | I47: 0 | K47: =SUM(K48:K49) -> 0
A48: Housing development | C48: 0 | D48: 0 | E48: 0 | F48: 0 | G48: 0 | H48: 0 | I48: 0 | K48: 0
A49: Other | C49: 0 | D49: 0 | E49: 0 | F49: 0 | G49: 0 | H49: 0 | I49: 0 | K49: 0
A50: Other assets | C50: =SUM(C51:C62) -> 858999 | D50: 2348979.37 | E50: 2963479.37 | F50: 393858.07 | G50: 2614665.07 | H50: 2963479.37 | I50: 348814.3 | J50: 0.1177043119 | K50: 2963479.37
A51: General vehicles | C51: 0 | D51: =[6]SA34c!$I$52 -> 1500000 | E51: =[8]SB18c!$K$54 -> 1700000 | F51: =[13]tbjune16!$D$154 -> 292319.89 | G51: =941305+92379+F51 -> 1326003.89 | H51: =E51*12/12 -> 1700000 | I51: 373996.11 | J51: 0.2199977118 | K51: =E51 -> 1700000
A52: Specialised vehicles | C52: =C78 -> 0 | D52: 0 | E52: 0 | F52: 0 | G52: 0 | H52: 0 | I52: 0 | K52: =K78 -> 0
A53: Plant & equipment | C53: 0 | D53: 0 | E53: 0 | F53: 0 | G53: 0 | H53: =E53*12/12 -> 0 | I53: 0 | K53: 0
A54: Computers - hardware/equipment | C54: 858999 | D54: =[6]SA34c!$I$55 -> 596823.42 | E54: =[8]SB18c!$K$57 -> 891323.42 | F54: =[13]tbjune16!$D$148 -> 52658 | G54: =40452+29400+239029+5684+149700+F54 -> 516923 | H54: 891323.42 | I54: 374400.42 | J54: 0.4200500196 | K54: =E54 -> 891323.42
A55: Furniture and other office equipment | C55: 0 | D55: =[6]SA34c!$I$56 -> 90000 | E55: =[8]SB18c!$K$58 -> 70000 | F55: 0 | G55: 58200 | H55: 70000 | I55: 11800 | J55: 0.1685714286 | K55: =E55 -> 70000
A56: Abattoirs | C56: 0 | D56: 0 | E56: 0 | F56: 0 | G56: 0 | H56: 0 | I56: 0 | K56: 0
A57: Markets | C57: 0 | D57: 0 | E57: 0 | F57: 0 | G57: 0 | H57: 0 | I57: 0 | K57: 0
A58: Civic Land and Buildings | C58: 0 | D58: 0 | E58: 0 | F58: 0 | G58: 0 | H58: 0 | I58: 0 | K58: 0
A59: Other Buildings | C59: 0 | D59: =[6]SA34c!$I$60 -> 100000 | E59: =[8]SB18c!$K$62 -> 240000 | F59: =[13]tbjune16!$D$143 -> 26139.91 | G59: =212586+F59 -> 238725.91 | H59: 240000 | I59: 1274.09 | J59: 0.005308708333 | K59: 240000
A60: Other Land | C60: 0 | D60: 0 | E60: 0 | F60: 0 | G60: 0 | H60: 0 | I60: 0 | K60: 0
A61: Surplus Assets - (Investment or Inventory) | C61: 0 | D61: 0 | E61: 0 | F61: 0 | G61: 0 | H61: 0 | I61: 0 | K61: 0
A62: Other | C62: 0 | D62: =[6]SA34c!$I$63 -> 62155.95 | E62: =[8]SB18c!$K$65 -> 62155.95 | F62: =[13]tbjune16!$D$144+[13]tbjune16!$D$155 -> 22740.27 | G62: =4544+68749+4544+22897+13484+27950+22718+26968+4544+17791+4544+40685+101000+43109+4544+44001+F62 -> 474812.27 | H62: 62155.95 | I62: -412656.32 | J62: -6.63904775 | K62: 62155.95
A64: Agricultural assets | C64: =SUM(C65:C66) -> 0 | D64: 0 | E64: 0 | F64: 0 | G64: 0 | H64: 0 | I64: =H64-G64 -> 0 | K64: =SUM(K65) -> 0
A65: List sub-class | C65: 0 | D65: 0 | E65: 0 | F65: 0 | G65: 0 | H65: 0 | I65: =H65-G65 -> 0 | K65: 0
C66: 0 | D66: 0 | E66: 0 | F66: 0 | G66: 0 | H66: 0 | I66: =H66-G66 -> 0 | K66: 0
J67: =IF(I67=0,"",I67/H67) -> 
A68: Biological assets | C68: =SUM(C69:C70) -> 0 | D68: 0 | E68: 0 | F68: 0 | G68: 0 | H68: 0 | I68: =H68-G68 -> 0 | J68: =IF(I68=0,"",I68/H68) ->  | K68: =SUM(K69) -> 0
A69: List sub-class | C69: 0 | D69: 0 | E69: 0 | F69: 0 | G69: 0 | H69: 0 | I69: =H69-G69 -> 0 | J69: =IF(I69=0,"",I69/H69) ->  | K69: 0
C70: 0 | D70: 0 | E70: 0 | F70: 0 | G70: 0 | H70: 0 | I70: =H70-G70 -> 0 | J70: =IF(I70=0,"",I70/H70) ->  | K70: 0
A72: Intangibles | C72: =SUM(C73:C74) -> 0 | D72: 0 | E72: 0 | F72: 0 | G72: 0 | H72: 0 | I72: =H72-G72 -> 0 | J72: =IF(I72=0,"",I72/H72) ->  | K72: =SUM(K73:K74) -> 0
A73: Computers - software & programming | C73: 0 | D73: 0 | E73: 0 | F73: 0 | G73: 0 | H73: 0 | I73: =H73-G73 -> 0 | J73: =IF(I73=0,"",I73/H73) ->  | K73: 0
A74: Other | C74: 0 | D74: 0 | E74: 0 | F74: 0 | G74: 0 | H74: 0 | I74: =H74-G74 -> 0 | J74: =IF(I74=0,"",I74/H74) ->  | K74: 0
C75: 0 | D75: 0 | E75: 0 | F75: 0 | G75: 0 | H75: 0
A76: Total Repairs and Maintenance Expenditure | C76: =C7+C28+C43+C47+C50+C64+C68+C72 -> 3116765 | D76: 4385591.504 | E76: 6502591.504 | F76: 2198573.2 | G76: 5570956.2 | H76: 6502591.504 | I76: =H76-G76 -> 931635.304 | J76: =IF(I76=0,"",I76/H76) -> 0.143271387 | K76: =K7+K28+K43+K47+K50+K64+K68+K72 -> 6502591.504
A78: Specialised vehicles | C78: =SUM(C79:C82) -> 0 | D78: 0 | E78: 0 | F78: 0 | G78: 0 | H78: 0 | I78: =H78-G78 -> 0 | J78: =IF(I78=0,"",I78/H78) ->  | K78: 0
A79: Refuse | C79: 0 | D79: 0 | E79: 0 | F79: 0 | G79: 0 | H79: 0 | I79: =H79-G79 -> 0 | J79: =IF(I79=0,"",I79/H79) ->  | K79: 0
A80: Fire | C80: 0 | D80: 0 | E80: 0 | F80: 0 | G80: 0 | H80: 0 | I80: =H80-G80 -> 0 | J80: =IF(I80=0,"",I80/H80) ->  | K80: 0
A81: Conservancy | C81: 0 | D81: 0 | E81: 0 | F81: 0 | G81: 0 | H81: 0 | I81: =H81-G81 -> 0 | J81: =IF(I81=0,"",I81/H81) ->  | K81: 0
A82: Ambulances | C82: 0 | D82: 0 | E82: 0 | F82: 0 | G82: 0 | H82: 0 | I82: =H82-G82 -> 0 | J82: =IF(I82=0,"",I82/H82) ->  | K82: 0

Sheet SC13d
A1: =muni& " - "&S71Sd& " - "&Head57 -> LIM353 Molemole - Supporting Table SC13d Monthly Budget Statement - depreciation by asset class - Q4 Fourth Quarter
A2: =desc -> Description | B2: =head27 -> Ref | C2: =Head1 -> 2014/15 | D2: =Head2 -> Budget Year 2015/16
C3: =Head5 -> Audited Outcome | D3: =Head6 -> Original Budget | E3: =Head7 -> Adjusted Budget | F3: =Head38 -> Monthly actual | G3: =Head39 -> YearTD actual | H3: =Head40 -> YearTD budget | I3: =Head41 -> YTD variance | J3: =Head41 -> YTD variance | K3: =Head8 -> Full Year Forecast
A4: R thousands | B4: 1 | J4: %
A5: Depreciation by Asset Class/Sub-class
A7: Infrastructure | C7: =C8+C11+C15+C19+C22 -> 854800 | D7: 1438000 | E7: 0 | F7: 986927 | G7: 6575468 | H7: 1438000 | I7: =H7-G7 -> -5137468 | J7: =IF(I7=0,"",I7/H7) -> -3.572648122 | K7: =K8+K11+K15+K19+K22 -> 1438000
A8: Infrastructure - Road transport | C8: =SUM(C9:C10) -> 854800 | D8: 1438000 | E8: 0 | F8: 986927 | G8: 6575468 | H8: 1438000 | I8: -5137468 | J8: -3.572648122 | K8: =SUM(K9:K10) -> 1438000
A9: Roads, Pavements & Bridges | C9: 854800 | D9: 890000 | E9: 0 | F9: 986927 | G9: =800108+731016+816787+780378+742962+820084+897206+986927 -> 6575468 | H9: =D9*12/12 -> 890000 | I9: -5685468 | J9: -6.388166292 | K9: =D9 -> 890000
A10: Storm water | C10: 0 | D10: 548000 | E10: 0 | F10: 0 | G10: 0 | H10: =D10*12/12 -> 548000 | I10: 548000 | J10: 1 | K10: =D10 -> 548000
A11: Infrastructure - Electricity | C11: =SUM(C12:C14) -> 0 | D11: 0 | E11: 0 | F11: 0 | G11: 0 | H11: 0 | I11: 0 | K11: =SUM(K12:K14) -> 0
A12: Generation | C12: 0 | D12: 0 | E12: 0 | F12: 0 | G12: 0 | H12: 0 | I12: 0 | K12: 0
A13: Transmission & Reticulation | C13: 0 | D13: 0 | E13: 0 | F13: 0 | G13: 0 | H13: 0 | I13: 0 | K13: 0
A14: Street Lighting | C14: 0 | D14: 0 | E14: 0 | F14: 0 | G14: 0 | H14: 0 | I14: 0 | K14: 0
A15: Infrastructure - Water | C15: =SUM(C16:C18) -> 0 | D15: 0 | E15: 0 | F15: 0 | G15: 0 | H15: 0 | I15: 0 | K15: =SUM(K16:K18) -> 0
A16: Dams & Reservoirs | C16: 0 | D16: 0 | E16: 0 | F16: 0 | G16: 0 | H16: 0 | I16: 0 | K16: 0
A17: Water purification | C17: 0 | D17: 0 | E17: 0 | F17: 0 | G17: 0 | H17: 0 | I17: 0 | K17: 0
A18: Reticulation | C18: 0 | D18: 0 | E18: 0 | F18: 0 | G18: 0 | H18: 0 | I18: 0 | K18: 0
A19: Infrastructure - Sanitation | C19: =SUM(C20:C21) -> 0 | D19: 0 | E19: 0 | F19: 0 | G19: 0 | H19: 0 | I19: 0 | K19: =SUM(K20:K21) -> 0
A20: Reticulation | C20: 0 | D20: 0 | E20: 0 | F20: 0 | G20: 0 | H20: 0 | I20: 0 | K20: 0
A21: Sewerage purification | C21: 0 | D21: 0 | E21: 0 | F21: 0 | G21: 0 | H21: 0 | I21: 0 | K21: 0
A22: Infrastructure - Other | C22: =SUM(C23:C26) -> 0 | D22: 0 | E22: 0 | F22: 0 | G22: 0 | H22: 0 | I22: 0 | K22: =SUM(K23:K26) -> 0
A23: Waste Management | C23: 0 | D23: 0 | E23: 0 | F23: 0 | G23: 0 | H23: 0 | I23: 0 | K23: 0
A24: Transportation | C24: 0 | D24: 0 | E24: 0 | F24: 0 | G24: 0 | H24: 0 | I24: 0 | K24: 0
A25: Gas | C25: 0 | D25: 0 | E25: 0 | F25: 0 | G25: 0 | H25: 0 | I25: 0 | K25: 0
A26: Other | C26: 0 | D26: 0 | E26: 0 | F26: 0 | G26: 0 | H26: 0 | I26: 0 | K26: 0
A28: Community | C28: =SUM(C29:C42) -> 791602 | D28: 540000 | E28: 0 | F28: 0 | G28: 0 | H28: 540000 | I28: 540000 | J28: 1 | K28: =SUM(K29:K42) -> 540000
A29: Parks & gardens | C29: 0 | D29: 0 | E29: 0 | F29: 0 | G29: 0 | H29: 0 | I29: 0 | K29: 0
A30: Sportsfields & stadia | C30: 0 | D30: 0 | E30: 0 | F30: 0 | G30: 0 | H30: 0 | I30: 0 | K30: 0
A31: Swimming pools | C31: 0 | D31: 0 | E31: 0 | F31: 0 | G31: 0 | H31: 0 | I31: 0 | K31: 0
A32: Community halls | C32: 791602 | D32: 540000 | E32: 0 | F32: 0 | G32: 0 | H32: =D32/12*12 -> 540000 | I32: 540000 | J32: 1 | K32: =D32 -> 540000
A33: Libraries | C33: 0 | D33: 0 | E33: 0 | F33: 0 | G33: 0 | H33: 0 | I33: 0 | K33: 0
A34: Recreational facilities | C34: 0 | D34: 0 | E34: 0 | F34: 0 | G34: 0 | H34: 0 | I34: 0 | K34: 0
A35: Fire, safety & emergency | C35: 0 | D35: 0 | E35: 0 | F35: 0 | G35: 0 | H35: 0 | I35: 0 | K35: 0
A36: Security and policing | C36: 0 | D36: 0 | E36: 0 | F36: 0 | G36: 0 | H36: 0 | I36: 0 | K36: 0
A37: Buses | C37: 0 | D37: 0 | E37: 0 | F37: 0 | G37: 0 | H37: 0 | I37: 0 | K37: 0
A38: Clinics | C38: 0 | D38: 0 | E38: 0 | F38: 0 | G38: 0 | H38: 0 | I38: 0 | K38: 0
A39: Museums & Art Galleries | C39: 0 | D39: 0 | E39: 0 | F39: 0 | G39: 0 | H39: 0 | I39: 0 | K39: 0
A40: Cemeteries | C40: 0 | D40: 0 | E40: 0 | F40: 0 | G40: 0 | H40: 0 | I40: 0 | K40: 0
A41: Social rental housing | C41: 0 | D41: 0 | E41: 0 | F41: 0 | G41: 0 | H41: 0 | I41: 0 | K41: 0
A42: Other | C42: 0 | D42: 0 | E42: 0 | F42: 0 | G42: 0 | H42: 0 | I42: 0 | K42: 0
A43: Heritage assets | C43: =SUM(C44:C45) -> 0 | D43: 0 | E43: 0 | F43: 0 | G43: 0 | H43: 0 | I43: 0 | K43: =SUM(K44:K45) -> 0
A44: Buildings | C44: 0 | D44: 0 | E44: 0 | F44: 0 | G44: 0 | H44: 0 | I44: 0 | K44: 0
A45: Other | C45: 0 | D45: 0 | E45: 0 | F45: 0 | G45: 0 | H45: 0 | I45: 0 | K45: 0
I46: 0
A47: Investment properties | C47: =SUM(C48:C49) -> 0 | D47: 0 | E47: 0 | F47: 0 | G47: 0 | H47: 0 | I47: 0 | K47: =SUM(K48:K49) -> 0
A48: Housing development | C48: 0 | D48: 0 | E48: 0 | F48: 0 | G48: 0 | H48: 0 | I48: 0 | K48: 0
A49: Other | C49: 0 | D49: 0 | E49: 0 | F49: 0 | G49: 0 | H49: 0 | I49: 0 | K49: 0
A50: Other assets | C50: =SUM(C51:C62) -> 3083542 | D50: 2254000 | E50: 0 | F50: 0 | G50: 0 | H50: 2254000 | I50: 2254000 | J50: 1 | K50: 2254000
A51: General vehicles | C51: 0 | D51: 0 | E51: 0 | F51: 0 | G51: 0 | H51: 0 | I51: 0 | K51: 0
A52: Specialised vehicles | C52: =C78 -> 0 | D52: 0 | E52: 0 | F52: 0 | G52: 0 | H52: 0 | I52: 0 | K52: =K78 -> 0
A53: Plant & equipment | C53: 483095 | D53: 851000 | E53: 0 | F53: 0 | G53: 0 | H53: =D53/12*12 -> 851000 | I53: 851000 | J53: 1 | K53: =D53 -> 851000
A54: Computers - hardware/equipment | C54: 507767 | D54: 206000 | E54: 0 | F54: 0 | G54: 0 | H54: =D54/12*12 -> 206000 | I54: 206000 | J54: 1 | K54: =D54 -> 206000
A55: Furniture and other office equipment | C55: 151942 | D55: 160000 | E55: 0 | F55: 0 | G55: 0 | H55: 160000 | I55: 160000 | J55: 1 | K55: 160000
A56: Abattoirs | C56: 226413 | D56: 300000 | E56: 0 | F56: 0 | G56: 0 | H56: 300000 | I56: 300000 | J56: 1 | K56: 300000
A57: Markets | C57: 0 | E57: 0 | F57: 0 | G57: 0 | H57: 0 | I57: 0 | K57: 0
A58: Civic Land and Buildings | C58: 0 | E58: 0 | F58: 0 | G58: 0 | H58: 0 | I58: 0 | K58: 0
A59: Other Buildings | C59: 786142 | D59: 500000 | E59: 0 | F59: 0 | G59: 0 | H59: 500000 | I59: 500000 | J59: 1 | K59: 500000
A60: Other Land | C60: 0 | D60: 87000 | E60: 0 | F60: 0 | G60: 0 | H60: 87000 | I60: 87000 | J60: 1 | K60: 87000
A61: Surplus Assets - (Investment or Inventory) | C61: 0 | E61: 0 | F61: 0 | G61: 0 | H61: 0 | I61: 0 | K61: 0
A62: Other | C62: =255545+645808+26830 -> 928183 | D62: 150000 | E62: 0 | F62: 0 | G62: 0 | H62: 150000 | I62: 150000 | J62: 1 | K62: 150000
A64: Agricultural assets | C64: =SUM(C65:C66) -> 0 | D64: 0 | E64: 0 | F64: 0 | G64: 0 | H64: 0 | I64: =H64-G64 -> 0 | K64: =SUM(K65) -> 0
A65: List sub-class | C65: 0 | D65: 0 | E65: 0 | F65: 0 | G65: 0 | H65: 0 | I65: =H65-G65 -> 0 | K65: 0
C66: 0 | D66: 0 | E66: 0 | F66: 0 | G66: 0 | H66: 0 | I66: =H66-G66 -> 0 | K66: 0
J67: =IF(I67=0,"",I67/H67) -> 
A68: Biological assets | C68: =SUM(C69:C70) -> 0 | D68: 0 | E68: 0 | F68: 0 | G68: 0 | H68: 0 | I68: =H68-G68 -> 0 | J68: =IF(I68=0,"",I68/H68) ->  | K68: =SUM(K69) -> 0
A69: List sub-class | C69: 0 | D69: 0 | E69: 0 | F69: 0 | G69: 0 | H69: 0 | I69: =H69-G69 -> 0 | J69: =IF(I69=0,"",I69/H69) ->  | K69: 0
C70: 0 | D70: 0 | E70: 0 | F70: 0 | G70: 0 | H70: 0 | I70: =H70-G70 -> 0 | J70: =IF(I70=0,"",I70/H70) ->  | K70: 0
A72: Intangibles | C72: =SUM(C73:C74) -> 0 | D72: 0 | E72: 0 | F72: 0 | G72: 0 | H72: 0 | I72: =H72-G72 -> 0 | J72: =IF(I72=0,"",I72/H72) ->  | K72: =SUM(K73:K74) -> 0
A73: Computers - software & programming | C73: 0 | D73: 0 | E73: 0 | F73: 0 | G73: 0 | H73: 0 | I73: =H73-G73 -> 0 | J73: =IF(I73=0,"",I73/H73) ->  | K73: 0
A74: Other | C74: 0 | D74: 0 | E74: 0 | F74: 0 | G74: 0 | H74: 0 | I74: =H74-G74 -> 0 | J74: =IF(I74=0,"",I74/H74) ->  | K74: 0
A76: Total Depreciation | C76: =C7+C28+C43+C47+C50+C64+C68+C72 -> 4729944 | D76: 4232000 | E76: 0 | F76: 986927 | G76: 6575468 | H76: 4232000 | I76: =H76-G76 -> -2343468 | J76: =IF(I76=0,"",I76/H76) -> -0.5537495274 | K76: =K7+K28+K43+K47+K50+K64+K68+K72 -> 4232000
A78: Specialised vehicles | C78: =SUM(C79:C82) -> 0 | D78: 0 | E78: 0 | F78: 0 | G78: 0 | H78: 0 | I78: =H78-G78 -> 0 | J78: =IF(I78=0,"",I78/H78) ->  | K78: 0
A79: Refuse | C79: 0 | D79: 0 | E79: 0 | F79: 0 | G79: 0 | H79: 0 | I79: =H79-G79 -> 0 | J79: =IF(I79=0,"",I79/H79) ->  | K79: 0
A80: Fire | C80: 0 | D80: 0 | E80: 0 | F80: 0 | G80: 0 | H80: 0 | I80: =H80-G80 -> 0 | J80: =IF(I80=0,"",I80/H80) ->  | K80: 0
A81: Conservancy | C81: 0 | D81: 0 | E81: 0 | F81: 0 | G81: 0 | H81: 0 | I81: =H81-G81 -> 0 | J81: =IF(I81=0,"",I81/H81) ->  | K81: 0
A82: Ambulances | C82: 0 | D82: 0 | E82: 0 | F82: 0 | G82: 0 | H82: 0 | I82: =H82-G82 -> 0 | J82: =IF(I82=0,"",I82/H82) ->  | K82: 0

Sheet SC71charts
A1: ='Template names'!B101 -> Chart C1 2015/16 Capital Expenditure Monthly Trend: actual v target
A2: Month | B2: ='SC12'!B2 -> 2014/15 | C2: ='SC12'!C3 -> Original Budget | D2: ='SC12'!D3 -> Adjusted Budget | E2: ='SC12'!E3 -> Monthly actual
A3: =LEFT('SC12'!A6,3) -> Jul | B3: ='SC12'!B6 -> 0 | C3: ='SC12'!C6 -> 0 | D3: ='SC12'!D6 -> 0 | E3: ='SC12'!E6 -> 0
A4: =LEFT('SC12'!A7,3) -> Aug | B4: ='SC12'!B7 -> 0 | C4: ='SC12'!C7 -> 0 | D4: ='SC12'!D7 -> 0 | E4: ='SC12'!E7 -> 140400
A5: =LEFT('SC12'!A8,3) -> Sep | B5: ='SC12'!B8 -> 0 | C5: ='SC12'!C8 -> 0 | D5: ='SC12'!D8 -> 0 | E5: ='SC12'!E8 -> 2279372
